Workbook

Sheet INSTRUÇÕES
B3: INSTRUÇÕES
B5: 1. Preencher apenas as células amarelas da aba "Lances" (D6 a D16). Em seguida, clicar em "calcular lance".
B6: 2. Os valores de OPEX, CAPEX e TIR da aba "Lances" (D6 a D16) não podem ultrapassar 100%. E devem ser positivos.
B7: 3. Todas as demais abas e células representam informações mandatórias do Edital e não podem ser alteradas diretamente, podendo ser alteradas somente como consequência das células amarelas da aba "Lances".
B8: 4. O valor do lance (aba "Lances" (K7)) equivale a soma das parcelas fixas e variáveis. Este montante não pode ultrapassar o valor teto estabelecido no Edital.
B9: 5. O valor do lance serve apenas como referência para determinar o vencedor do certame, não implicando necessariamente que a CONCESSIONÁRIA irá receber seu valor ao longo dos anos. O que se garante é o Preço Unitário (PU) por m3 e a Parcela Fixa mensal, desde que a CONCESSIONÁRIA cumpra todas suas obrigações.
B10: 6. Os valores ofertados pelo licitante representam compromisso em seguí-los até o final do contrato. Não serão aceitos pedidos de reequilíbrio por alterações aos preços indicados nas células em amarelo, devendo o licitante realizar ex-ante todas as projeções necessárias para a devida mensuração destes valores.
B11: 7. Ao término do leilão verbal será feito um ajuste na TIR para para igualar ao lance vencedor.
B12: 8. A aba "Plano de Negócios" resultante será vinculante ao CONTRATO.
B13: 9. Caso o licitante queira apresentar sugestões de melhoria ou esclarecimentos, deve fazê-lo dentro das regras e prazos indicados no Edital, para a devida circularização das mudanças entre todos os licitantes.
B14: 10. As variáveis de preços-teto unitários de CAPEX, OPEX e TIR, assim como do somatório das contraprestações, serão consideradas com valores até duas casas decimais.

Sheet Lances
B2: PASSO 1: Preencher as células amarelas | F2: PASSO 2: Clicar em "CALCULAR" | I2: PASSO 3: validar seu lance | M2: PASSO 4: validar os preços-teto unitários | S2: PASSO 5: validar as ponderações da fórmula paramétrica de reajustes
N4: OPEX
C5: LANCES | I5: Total das pacelas fixas | K5: =PC!E493 -> 6960775598 | N5: MEDIANA DOS PREÇOS-TETO UNITÁRIOS ANUAIS | T5: PONDERAÇÕES REAJUSTE | Y5: OPEX | AD5: CAPEX | AL5: OPEX | AQ5: CAPEX
B6: OPEX | C6: Energia Elétrica | D6: 1 | I6: Total das parcelas variáveis | K6: =PC!E531 -> 3655081532 | N6: Energia Elétrica | P6: =0.19*D6 -> 0.19 | Q6: por m3 | S6: OPEX | T6: Pessoal (P1) | U6: =AA43/SUM($Y$43:$AB$43) -> 0.4553325714 | X6: BLOCO 1 | Y6: Energia Elétrica | Z6: Produtos Químicos | AA6: Pessoal | AB6: Outros Custos | AC6: Seguros e Garantias | AD6: Estações Elevatórias | AE6: Linhas de Recalque e Emissários Finais | AF6: Redes Coletoras e Ligações | AG6: ETEs + Sist. de Tratamento Individual | AH6: Desapropriação | AK6: AUXILIAR | AL6: Energia Elétrica | AM6: Produtos Químicos | AN6: Pessoal | AO6: Outros Custos | AP6: Seguros e Garantias | AQ6: Estações Elevatórias | AR6: Linhas de Recalque e Emissários Finais | AS6: Redes Coletoras e Ligações | AT6: ETEs + Sist. de Tratamento Individual | AU6: Desapropriação
C7: Produtos Químicos | D7: 1 | I7: SEU LANCE | K7: =K5+K6 -> 1.061585713e+10 | N7: Produtos Químicos | P7: =0.12*D7 -> 0.12 | Q7: por m3 | T7: Energia Elétrica (P2) | U7: =Y43/SUM($Y$43:$AB$43) -> 0.08077964462
C8: Pessoal | D8: 1 | N8: Pessoal | P8: =150.57*$D$8 -> 150.57 | Q8: por ligação | T8: Produtos Químicos (P3) | U8: =Z43/SUM($Y$43:$AB$43) -> 0.008572648008 | X8: 2023 | Y8: =$D$6*AL8 -> 2803294.719 | Z8: =$D$7*AM8 -> 68448.48041 | AA8: =$D$8*AN8 -> 15210268.17 | AB8: =$D$9*AO8 -> 17700713.32 | AC8: =$D$10*AP8 -> 730216.5656 | AD8: =$D$11*AQ8 -> 6020105.127 | AE8: =$D$12*AR8 -> 7492351.736 | AF8: =$D$13*AS8 -> 117120838.2 | AG8: =$D$14*AT8 -> 10049872.98 | AH8: =$D$15*AU8 -> 10653249.3 | AK8: 2023 | AL8: 2803294.719 | AM8: 68448.48041 | AN8: 15210268.17 | AO8: 17700713.32 | AP8: 730216.5656 | AQ8: 6020105.127 | AR8: 7492351.736 | AS8: 117120838.2 | AT8: 10049872.98 | AU8: 10653249.3
C9: Outros Custos | D9: 1 | N9: Outros Custos | P9: =136.46*$D$9 -> 136.46 | Q9: por ligação | T9: Outros Custos (P4) | U9: =AB43/SUM($Y$43:$AB$43) -> 0.455315136 | X9: 2024 | Y9: 3326029.389 | Z9: 114896.864 | AA9: 18581858.72 | AB9: 20118211.57 | AC9: =$D$10*AP9 -> 1657810.713 | AD9: 40316007.88 | AE9: 77086253.52 | AF9: 109448556 | AG9: 146628662.3 | AH9: 2584110.291 | AK9: 2024 | AL9: 3326029.389 | AM9: 114896.864 | AN9: 18581858.72 | AO9: 20118211.57 | AP9: 1657810.713 | AQ9: 40316007.88 | AR9: 77086253.52 | AS9: 109448556 | AT9: 146628662.3 | AU9: 2584110.291
C10: Seguros e Garantias | D10: 1 | I10: PREÇO UNITÁRIO (PU) m3 | K10: =CP!C7 -> 3.72543258 | U10: =SUM(U6:U9) -> 1 | X10: 2025 | Y10: 4217061.669 | Z10: 354222.6901 | AA10: 22603904.14 | AB10: 23558996.75 | AC10: 851496.4948 | AD10: 23141035.02 | AE10: 23572238.34 | AF10: 115749964.9 | AG10: 25131512.22 | AH10: 2066794.085 | AK10: 2025 | AL10: 4217061.669 | AM10: 354222.6901 | AN10: 22603904.14 | AO10: 23558996.75 | AP10: 851496.4948 | AQ10: 23141035.02 | AR10: 23572238.34 | AS10: 115749964.9 | AT10: 25131512.22 | AU10: 2066794.085
B11: CAPEX | C11: Estações Elevatórias | D11: 1 | I11: PARCELA FIXA (PF) MENSAL | K11: =CP!C9 -> 23991633.77 | N11: CAPEX | X11: 2026 | Y11: 4979241.39 | Z11: 441973.5999 | AA11: 27043263.35 | AB11: 28443783.54 | AC11: 820319.2286 | AD11: 23612099.95 | AE11: 14206818.62 | AF11: 107278093.8 | AG11: 26802413.36 | AH11: 1818630.512 | AK11: 2026 | AL11: 4979241.39 | AM11: 441973.5999 | AN11: 27043263.35 | AO11: 28443783.54 | AP11: 820319.2286 | AQ11: 23612099.95 | AR11: 14206818.62 | AS11: 107278093.8 | AT11: 26802413.36 | AU11: 1818630.512
C12: Linhas de Recalque e Emissários Finais | D12: 1 | N12: REDE | X12: 2027 | Y12: 5699974.293 | Z12: 516898.9837 | AA12: 31290734.64 | AB12: 33795362.56 | AC12: 990128.9527 | AD12: 19136778.32 | AE12: 19108934.15 | AF12: 108488707.2 | AG12: 64464150.11 | AH12: 2330077.657 | AK12: 2027 | AL12: 5699974.293 | AM12: 516898.9837 | AN12: 31290734.64 | AO12: 33795362.56 | AP12: 990128.9527 | AQ12: 19136778.32 | AR12: 19108934.15 | AS12: 108488707.2 | AT12: 64464150.11 | AU12: 2330077.657
C13: Redes Coletoras e Ligações | D13: 1 | N13: Custo Médio por Metro de Rede de Esgoto Conforme Diâmetro | X13: 2028 | Y13: 6388657.274 | Z13: 635610.01 | AA13: 35309207.03 | AB13: 36724146.41 | AC13: 870650.1434 | AD13: 20756610.01 | AE13: 20399481.18 | AF13: 108945829.9 | AG13: 33670605.72 | AH13: 1608942.512 | AK13: 2028 | AL13: 6388657.274 | AM13: 635610.01 | AN13: 35309207.03 | AO13: 36724146.41 | AP13: 870650.1434 | AQ13: 20756610.01 | AR13: 20399481.18 | AS13: 108945829.9 | AT13: 33670605.72 | AU13: 1608942.512
C14: ETEs + Sist. de Tratamento Individual | D14: 1 | O14: DN (mm) | P14: R$/m | X14: 2029 | Y14: 7070479.224 | Z14: 720573.407 | AA14: 39295484.55 | AB14: 40390552.57 | AC14: 696963.2385 | AD14: 15733776.16 | AE14: 8770193.531 | AF14: 110002318.3 | AG14: 8600733.038 | AH14: 2068669.375 | AK14: 2029 | AL14: 7070479.224 | AM14: 720573.407 | AN14: 39295484.55 | AO14: 40390552.57 | AP14: 696963.2385 | AQ14: 15733776.16 | AR14: 8770193.531 | AS14: 110002318.3 | AT14: 8600733.038 | AU14: 2068669.375
C15: Desapropriação | D15: 1 | O15: 100 | P15: =176.52*$D$13 -> 176.52 | X15: 2030 | Y15: 7755627.527 | Z15: 798765.2928 | AA15: 43305347.35 | AB15: 44080253.57 | AC15: 759546.3897 | AD15: 15459172.37 | AE15: 11465929.54 | AF15: 112358006.4 | AG15: 19771157.02 | AH15: 986791.3658 | AK15: 2030 | AL15: 7755627.527 | AM15: 798765.2928 | AN15: 43305347.35 | AO15: 44080253.57 | AP15: 759546.3897 | AQ15: 15459172.37 | AR15: 11465929.54 | AS15: 112358006.4 | AT15: 19771157.02 | AU15: 986791.3658
C16: TIR | D16: 1 | O16: 150 | P16: =294.39*$D$13 -> 294.39 | X16: 2031 | Y16: 8443395.983 | Z16: 908871.2147 | AA16: 47333907.93 | AB16: 47789419.4 | AC16: 661095.6744 | AD16: 10240556.53 | AE16: 6124138.145 | AF16: 114692025.6 | AG16: 5771463.255 | AH16: 802215.3658 | AK16: 2031 | AL16: 8443395.983 | AM16: 908871.2147 | AN16: 47333907.93 | AO16: 47789419.4 | AP16: 661095.6744 | AQ16: 10240556.53 | AR16: 6124138.145 | AS16: 114692025.6 | AT16: 5771463.255 | AU16: 802215.3658
O17: 200 | P17: =423.17*$D$13 -> 423.17 | X17: 2032 | Y17: 9133194.449 | Z17: 990421.787 | AA17: 51377082.83 | AB17: 52135533.81 | AC17: 650851.7497 | AD17: 3302491.89 | AE17: 1451874.15 | AF17: 117000758.1 | AG17: 13722432.01 | AH17: 231453.1373 | AK17: 2032 | AL17: 9133194.449 | AM17: 990421.787 | AN17: 51377082.83 | AO17: 52135533.81 | AP17: 650851.7497 | AQ17: 3302491.89 | AR17: 1451874.15 | AS17: 117000758.1 | AT17: 13722432.01 | AU17: 231453.1373
B18: Observação: OPEX, CAPEX e TIR não podem ultrapassar 100%. E devem ser positivos. | O18: 250 | P18: =$D$13*560.74 -> 560.74 | X18: 2033 | Y18: 9824683.203 | Z18: 1072204.079 | AA18: 55430746.45 | AB18: 55251554.76 | AC18: 558807.9597 | AD18: 1354191.418 | AE18: 155337.14 | AF18: 111482236.5 | AG18: 6535515.987 | AH18: 160513.4518 | AK18: 2033 | AL18: 9824683.203 | AM18: 1072204.079 | AN18: 55430746.45 | AO18: 55251554.76 | AP18: 558807.9597 | AQ18: 1354191.418 | AR18: 155337.14 | AS18: 111482236.5 | AT18: 6535515.987 | AU18: 160513.4518
O19: 300 | P19: =705.73*$D$13 -> 705.73 | X19: 2034 | Y19: 10348347.24 | Z19: 1135114.3 | AA19: 58661015 | AB19: 58244439.83 | AC19: 183031.934 | AD19: 1221588.248 | AE19: 0 | AF19: 29117637.01 | AG19: 3136093.255 | AH19: 160513.4518 | AK19: 2034 | AL19: 10348347.24 | AM19: 1135114.3 | AN19: 58661015 | AO19: 58244439.83 | AP19: 183031.934 | AQ19: 1221588.248 | AR19: 0 | AS19: 29117637.01 | AT19: 3136093.255 | AU19: 160513.4518
O20: 350 | P20: =$D$13*857.21 -> 857.21 | X20: 2035 | Y20: 10631728.05 | Z20: 1168054.841 | AA20: 60429682.49 | AB20: 59857608.19 | AC20: 186677.6205 | AD20: 1629847.348 | AE20: 0 | AF20: 28953465.45 | AG20: 3808244.539 | AH20: 0 | AK20: 2035 | AL20: 10631728.05 | AM20: 1168054.841 | AN20: 60429682.49 | AO20: 59857608.19 | AP20: 186677.6205 | AQ20: 1629847.348 | AR20: 0 | AS20: 28953465.45 | AT20: 3808244.539 | AU20: 0
O21: 400 | P21: =1014.47*$D$13 -> 1014.47 | X21: 2036 | Y21: 10752332.59 | Z21: 1181287.383 | AA21: 61093286.64 | AB21: 60469214.13 | AC21: 185959.9599 | AD21: 1715166.566 | AE21: 0 | AF21: 28790411.44 | AG21: 4022323.51 | AH21: 0 | AK21: 2036 | AL21: 10752332.59 | AM21: 1181287.383 | AN21: 61093286.64 | AO21: 60469214.13 | AP21: 185959.9599 | AQ21: 1715166.566 | AR21: 0 | AS21: 28790411.44 | AT21: 4022323.51 | AU21: 0
O22: 500 | P22: =1344.25*$D$13 -> 1344.25 | X22: 2037 | Y22: 10869542.24 | Z22: 1194122.71 | AA22: 61734356.49 | AB22: 61060388.85 | AC22: 186177.7145 | AD22: 1883177.208 | AE22: 0 | AF22: 28616691.3 | AG22: 4037228.244 | AH22: 0 | AK22: 2037 | AL22: 10869542.24 | AM22: 1194122.71 | AN22: 61734356.49 | AO22: 61060388.85 | AP22: 186177.7145 | AQ22: 1883177.208 | AR22: 0 | AS22: 28616691.3 | AT22: 4037228.244 | AU22: 0
O23: 600 | P23: =1691.85*$D$13 -> 1691.85 | X23: 2038 | Y23: 10983264.31 | Z23: 1206554.228 | AA23: 62352292.75 | AB23: 61630942 | AC23: 186862.1544 | AD23: 1898882.04 | AE23: 0 | AF23: 28442288.89 | AG23: 4022323.51 | AH23: 0 | AK23: 2038 | AL23: 10983264.31 | AM23: 1206554.228 | AN23: 62352292.75 | AO23: 61630942 | AP23: 186862.1544 | AQ23: 1898882.04 | AR23: 0 | AS23: 28442288.89 | AT23: 4022323.51 | AU23: 0
X24: 2039 | Y24: 11093454 | Z24: 1218573.368 | AA24: 62946700.95 | AB24: 62179843.18 | AC24: 185109.9076 | AD24: 1936946.343 | AE24: 0 | AF24: 28259759.33 | AG24: 4042196.489 | AH24: 0 | AK24: 2039 | AL24: 11093454 | AM24: 1218573.368 | AN24: 62946700.95 | AO24: 62179843.18 | AP24: 185109.9076 | AQ24: 1936946.343 | AR24: 0 | AS24: 28259759.33 | AT24: 4042196.489 | AU24: 0
N25: LINHA DE RECALQUE E EMISSÁRIOS | X25: 2040 | Y25: 11200091.21 | Z25: 1230179.19 | AA25: 63517475.69 | AB25: 62707652 | AC25: 184114.1827 | AD25: 1902696.834 | AE25: 0 | AF25: 28081691.37 | AG25: 4037228.244 | AH25: 0 | AK25: 2040 | AL25: 11200091.21 | AM25: 1230179.19 | AN25: 63517475.69 | AO25: 62707652 | AP25: 184114.1827 | AQ25: 1902696.834 | AR25: 0 | AS25: 28081691.37 | AT25: 4037228.244 | AU25: 0
N26: Custo Médio por Metro de Rede de Esgoto Conforme Diâmetro | X26: 2041 | Y26: 11298501.97 | Z26: 1240777.977 | AA26: 64064472.41 | AB26: 63213875.46 | AC26: 133297.5669 | AD26: 1902696.834 | AE26: 0 | AF26: 16923068.53 | AG26: 3739133.566 | AH26: 0 | AK26: 2041 | AL26: 11298501.97 | AM26: 1240777.977 | AN26: 64064472.41 | AO26: 63213875.46 | AP26: 133297.5669 | AQ26: 1902696.834 | AR26: 0 | AS26: 16923068.53 | AT26: 3739133.566 | AU26: 0
O27: DN (mm) | P27: R$/m | X27: 2042 | Y27: 11354301.78 | Z27: 1246510.086 | AA27: 64346989.91 | AB27: 64096504.06 | AC27: 131576.1631 | AD27: 1902696.834 | AE27: 0 | AF27: 16729883.71 | AG27: 3719260.587 | AH27: 0 | AK27: 2042 | AL27: 11354301.78 | AM27: 1246510.086 | AN27: 64346989.91 | AO27: 64096504.06 | AP27: 131576.1631 | AQ27: 1902696.834 | AR27: 0 | AS27: 16729883.71 | AT27: 3719260.587 | AU27: 0
O28: 100 | P28: =176.52*$D$12 -> 176.52 | X28: 2043 | Y28: 11365921.3 | Z28: 1247259.563 | AA28: 64341037.88 | AB28: 63475250.05 | AC28: 77752.69435 | AD28: 1904637.093 | AE28: 0 | AF28: 4263829.236 | AG28: 3396324.686 | AH28: 0 | AK28: 2043 | AL28: 11365921.3 | AM28: 1247259.563 | AN28: 64341037.88 | AO28: 63475250.05 | AP28: 77752.69435 | AQ28: 1904637.093 | AR28: 0 | AS28: 4263829.236 | AT28: 3396324.686 | AU28: 0
O29: 150 | P29: =294.39*$D$12 -> 294.39 | X29: 2044 | Y29: 11359424.59 | Z29: 1246507.605 | AA29: 64298113.38 | AB29: 63436428.03 | AC29: 76667.02296 | AD29: 1904637.093 | AE29: 0 | AF29: 4249336.216 | AG29: 3426134.154 | AH29: 0 | AK29: 2044 | AL29: 11359424.59 | AM29: 1246507.605 | AN29: 64298113.38 | AO29: 63436428.03 | AP29: 76667.02296 | AQ29: 1904637.093 | AR29: 0 | AS29: 4249336.216 | AT29: 3426134.154 | AU29: 0
O30: 200 | P30: =423.17*$D$12 -> 423.17 | X30: 2045 | Y30: 11349123.77 | Z30: 1245308.585 | AA30: 64229832.9 | AB30: 63374786.15 | AC30: 77156.93582 | AD30: 1904637.093 | AE30: 0 | AF30: 4248449.591 | AG30: 3411229.42 | AH30: 0 | AK30: 2045 | AL30: 11349123.77 | AM30: 1245308.585 | AN30: 64229832.9 | AO30: 63374786.15 | AP30: 77156.93582 | AQ30: 1904637.093 | AR30: 0 | AS30: 4248449.591 | AT30: 3411229.42 | AU30: 0
O31: 250 | P31: =560.74*$D$12 -> 560.74 | X31: 2046 | Y31: 11335231.82 | Z31: 1243680.328 | AA31: 64137726.22 | AB31: 63291230.84 | AC31: 75919.23249 | AD31: 1904637.093 | AE31: 0 | AF31: 4244329.666 | AG31: 3416197.664 | AH31: 0 | AK31: 2046 | AL31: 11335231.82 | AM31: 1243680.328 | AN31: 64137726.22 | AO31: 63291230.84 | AP31: 75919.23249 | AQ31: 1904637.093 | AR31: 0 | AS31: 4244329.666 | AT31: 3416197.664 | AU31: 0
O32: 300 | P32: =705.73*$D$12 -> 705.73 | X32: 2047 | Y32: 11317788.32 | Z32: 1241651.615 | AA32: 64022068.88 | AB32: 63186411.82 | AC32: 76215.46275 | AD32: 1904637.093 | AE32: 0 | AF32: 4241623.347 | AG32: 3421165.909 | AH32: 0 | AK32: 2047 | AL32: 11317788.32 | AM32: 1241651.615 | AN32: 64022068.88 | AO32: 63186411.82 | AP32: 76215.46275 | AQ32: 1904637.093 | AR32: 0 | AS32: 4241623.347 | AT32: 3421165.909 | AU32: 0
O33: 350 | P33: =857.21*$D$12 -> 857.21 | X33: 2048 | Y33: 11296695.92 | Z33: 1239203.057 | AA33: 63882117.08 | AB33: 63059574.98 | AC33: 77760.29812 | AD33: 1904637.093 | AE33: 0 | AF33: 4238426.474 | AG33: 3431102.398 | AH33: 0 | AK33: 2048 | AL33: 11296695.92 | AM33: 1239203.057 | AN33: 63882117.08 | AO33: 63059574.98 | AP33: 77760.29812 | AQ33: 1904637.093 | AR33: 0 | AS33: 4238426.474 | AT33: 3431102.398 | AU33: 0
O34: 400 | P34: =1014.47*$D$12 -> 1014.47 | X34: 2049 | Y34: 11272186.88 | Z34: 1236344.972 | AA34: 63719418.67 | AB34: 62911883.13 | AC34: 76763.10993 | AD34: 1904637.093 | AE34: 0 | AF34: 4238426.474 | AG34: 3460911.866 | AH34: 0 | AK34: 2049 | AL34: 11272186.88 | AM34: 1236344.972 | AN34: 63719418.67 | AO34: 62911883.13 | AP34: 76763.10993 | AQ34: 1904637.093 | AR34: 0 | AS34: 4238426.474 | AT34: 3460911.866 | AU34: 0
O35: 500 | P35: =1344.25*$D$12 -> 1344.25 | X35: 2050 | Y35: 11244028.09 | Z35: 1233065.289 | AA35: 63532397.17 | AB35: 62742707.53 | AC35: 77237.76622 | AD35: 1904637.093 | AE35: 0 | AF35: 4232382.62 | AG35: 3446007.132 | AH35: 0 | AK35: 2050 | AL35: 11244028.09 | AM35: 1233065.289 | AN35: 63532397.17 | AO35: 62742707.53 | AP35: 77237.76622 | AQ35: 1904637.093 | AR35: 0 | AS35: 4232382.62 | AT35: 3446007.132 | AU35: 0
O36: 600 | P36: =1691.85*$D$12 -> 1691.85 | X36: 2051 | Y36: 11212168.17 | Z36: 1229364.343 | AA36: 63320957.75 | AB36: 62550842.21 | AC36: 76042.89131 | AD36: 1904637.093 | AE36: 0 | AF36: 4228262.695 | AG36: 3460911.866 | AH36: 0 | AK36: 2051 | AL36: 11212168.17 | AM36: 1229364.343 | AN36: 63320957.75 | AO36: 62550842.21 | AP36: 76042.89131 | AQ36: 1904637.093 | AR36: 0 | AS36: 4228262.695 | AT36: 3460911.866 | AU36: 0
X37: 2052 | Y37: 11176593.97 | Z37: 1225223.298 | AA37: 63084736 | AB37: 62957699.79 | AC37: 76335.38856 | AD37: 1904637.093 | AE37: 0 | AF37: 4224669.75 | AG37: 3465880.111 | AH37: 0 | AK37: 2052 | AL37: 11176593.97 | AM37: 1225223.298 | AN37: 63084736 | AO37: 62957699.79 | AP37: 76335.38856 | AQ37: 1904637.093 | AR37: 0 | AS37: 4224669.75 | AT37: 3465880.111 | AU37: 0
N38: LIGAÇÕES DOMICILIARES | X38: 2053 | Y38: 0 | Z38: 0 | AA38: 0 | AB38: 0 | AC38: 0 | AD38: 0 | AE38: 0 | AF38: 0 | AG38: 0 | AH38: 0 | AK38: 2053 | AL38: 0 | AM38: 0 | AN38: 0 | AO38: 0 | AP38: 0 | AQ38: 0 | AR38: 0 | AS38: 0 | AT38: 0 | AU38: 0
N39: Custo médio das ligações domiciliares de esgoto - R$ / ligação. | X39: 2054 | Y39: 0 | Z39: 0 | AA39: 0 | AB39: 0 | AC39: 0 | AD39: 0 | AE39: 0 | AF39: 0 | AG39: 0 | AH39: 0 | AK39: 2054 | AL39: 0 | AM39: 0 | AN39: 0 | AO39: 0 | AP39: 0 | AQ39: 0 | AR39: 0 | AS39: 0 | AT39: 0 | AU39: 0
O40: Tipo | P40: R$/ligação | X40: 2055 | Y40: 0 | Z40: 0 | AA40: 0 | AB40: 0 | AC40: 0 | AD40: 0 | AE40: 0 | AF40: 0 | AG40: 0 | AH40: 0 | AK40: 2055 | AL40: 0 | AM40: 0 | AN40: 0 | AO40: 0 | AP40: 0 | AQ40: 0 | AR40: 0 | AS40: 0 | AT40: 0 | AU40: 0
O41: Ligação sem intradomiciliar | P41: =886.63*$D$13 -> 886.63 | X41: 2056 | Y41: 0 | Z41: 0 | AA41: 0 | AB41: 0 | AC41: 0 | AD41: 0 | AE41: 0 | AF41: 0 | AG41: 0 | AH41: 0 | AK41: 2056 | AL41: 0 | AM41: 0 | AN41: 0 | AO41: 0 | AP41: 0 | AQ41: 0 | AR41: 0 | AS41: 0 | AT41: 0 | AU41: 0
O42: Ligação com intradomiciliar | P42: =2466.66*$D$13 -> 2466.66 | X42: 2057 | Y42: 0 | Z42: 0 | AA42: 0 | AB42: 0 | AC42: 0 | AD42: 0 | AE42: 0 | AF42: 0 | AG42: 0 | AH42: 0 | AK42: 2057 | AL42: 0 | AM42: 0 | AN42: 0 | AO42: 0 | AP42: 0 | AQ42: 0 | AR42: 0 | AS42: 0 | AT42: 0 | AU42: 0
X43: TOTAIS | Y43: =SUM(Y8:Y42) -> 281102365.3 | Z43: 29831669.15 | AA43: 1584496483 | AB43: 1584435810 | AC43: 11578545.12 | AD43: 214112893.9 | AE43: 189833550.1 | AF43: 1508891968 | AG43: 430048415.1 | AH43: 25471960.5 | AL43: =SUM(AL8:AL42) -> 281102365.3 | AM43: 29831669.15 | AN43: 1584496483 | AO43: 1584435810 | AP43: 11578545.12 | AQ43: 214112893.9 | AR43: 189833550.1 | AS43: 1508891968 | AT43: 430048415.1 | AU43: 25471960.5
N45: ETE E SISTEMA INDIVIDUAL
N46: Custo unitário de ETE convencional por vazão (L/s)
O48: Vazão | P48: Preço unitário
O49: 26 -50 l/s | P49: =223165.6041*$D$14 -> 223165.6041
O50: 51-100 l/s | P50: =189554.4651*$D$14 -> 189554.4651
O51: 101 - 200 l/s | P51: =158709.8181*$D$14 -> 158709.8181
O52: Maior que 200 l/s | P52: =112369.476479452*$D$14 -> 112369.4765
N54: Custo Unitário de ETE compacta por vazão (L/s)
O56: Vazão | P56: Preço unitário
O57: 1 - 5 l/s | P57: =395765.3536*$D$14 -> 395765.3536
O58: 6 - 15 l/s | P58: =175276.78*$D$14 -> 175276.78
O59: 15 - 25 l/s | P59: =122592.772*$D$14 -> 122592.772
N63: Custo do Sistema individual por unidade
O65: Valor | P65: =4968.24*$D$14 -> 4968.24
N67: ESTAÇÕES ELEVATÓRIAS
N68: Custo de Estações Elevatórias por CV
O69: CV | P69: Preço unitário
O70: 1 - 5 cv | P70: =111983.98*$D$11 -> 111983.98
O71: 6 - 10 cv | P71: =67437.9*$D$11 -> 67437.9
O72: 11 - 20 cv | P72: =55090.47*$D$11 -> 55090.47
O73: 21 - 50 cv | P73: =39399.41*$D$11 -> 39399.41
O74: 51 - 70 cv | P74: =30716.18*$D$11 -> 30716.18
O75: 71 - 150 cv | P75: =22600.34*$D$11 -> 22600.34
O76: maior que 150 | P76: =18531.68899*$D$11 -> 18531.68899
N78: DESAPROPRIAÇÃO
N79: Custo de desapropriação - R$/m²
O81: Cidade | P81: Preço do Terreno (R$/m²)
P82: Terreno | Q82: Gleba
O83: Aquiraz | P83: =181.28*$D$15 -> 181.28 | Q83: =45.71*$D$15 -> 45.71
O84: Barbalha | P84: =210.9*$D$15 -> 210.9 | Q84: =70.21*$D$15 -> 70.21
O85: Cascavel | P85: =177.49*$D$15 -> 177.49 | Q85: =37.76*$D$15 -> 37.76
O86: Caucaia | P86: =210.1*$D$15 -> 210.1 | Q86: =69.4*$D$15 -> 69.4
O87: Chorozinho | P87: =131.89*$D$15 -> 131.89 | Q87: =11.46*$D$15 -> 11.46
O88: Eusébio | P88: =224.77*$D$15 -> 224.77 | Q88: =101.26*$D$15 -> 101.26
O89: Farias Brito | P89: =163.88*$D$15 -> 163.88 | Q89: =25.06*$D$15 -> 25.06
O90: Fortaleza | P90: =1010.85*$D$15 -> 1010.85 | Q90: =490.75*$D$14 -> 490.75
O91: Guaiuba | P91: =159.06*$D$15 -> 159.06 | Q91: =8.62*$D$14 -> 8.62
O92: Horizonte | P92: =197.01*$D$15 -> 197.01 | Q92: =61.45*$D$14 -> 61.45
O93: Itaitinga | P93: =167.39*$D$15 -> 167.39 | Q93: =31.83*$D$14 -> 31.83
O94: Juazeiro do Norte | P94: =230.34*$D$15 -> 230.34 | Q94: =94.78*$D$14 -> 94.78
O95: Maracanaú | P95: =222.94*$D$15 -> 222.94 | Q95: =87.37*$D$14 -> 87.37
O96: Maranguape | P96: =190.23*$D$15 -> 190.23 | Q96: =49.77*$D$14 -> 49.77
O97: Missão Velha | P97: =151.92*$D$15 -> 151.92 | Q97: =13.84*$D$14 -> 13.84
O98: Nova Olinda | P98: =155.21*$D$15 -> 155.21 | Q98: =16.94*$D$14 -> 16.94
O99: Pacajus | P99: =190.23*$D$15 -> 190.23 | Q99: =49.77*$D$14 -> 49.77
O100: Pacatuba | P100: =212.75*$D$15 -> 212.75 | Q100: =63.62*$D$14 -> 63.62
O101: Paracuru | P101: =177.57*$D$15 -> 177.57 | Q101: =29.04*$D$14 -> 29.04
O102: Paraipaba | P102: =164.95*$D$15 -> 164.95 | Q102: =26.06*$D$14 -> 26.06
O103: São Gonçalo do Amarante | P103: =195.73*$D$15 -> 195.73 | Q103: =55.08*$D$14 -> 55.08
O104: São Luís do Curu | P104: =149.72*$D$15 -> 149.72 | Q104: =11.76*$D$14 -> 11.76
O105: Trairi | P105: =148.87*$D$15 -> 148.87 | Q105: =13.31*$D$14 -> 13.31
O106: Santana do Cariri | P106: =210.9*$D$15 -> 210.9
N108: REFORMAS
N109: Para orçamentação de reformas de estações elevatórias e de tratramento, será considerado 25% do custo unitário de implantação de uma unidade nova

Sheet PC (hidden)
B1: =ROW(C1) -> 1 | C1: Coluna | E1: =IFERROR(SUBSTITUTE(ADDRESS(1,COLUMN(E4),4,3),"1",""),"") -> E | F1: =IFERROR(SUBSTITUTE(ADDRESS(1,COLUMN(F4),4,3),"1",""),"") -> F | G1: G | H1: H | I1: I | K1: K | L1: =IFERROR(SUBSTITUTE(ADDRESS(1,COLUMN(L4),4,3),"1",""),"") -> L | M1: M | N1: N | O1: O | P1: P | Q1: Q | R1: R | S1: S | T1: T | U1: U | V1: V | W1: W | X1: X | Y1: Y | Z1: Z | AA1: AA | AB1: AB | AC1: AC | AD1: AD | AE1: AE | AF1: AF | AG1: AG | AL1: Data base: | AM1: 2021-04-01
C2: Modelo de Contratação | E2: Subconcessão
C3: Natureza Jurídica | E3: SPE de Consórcios Municipais | K3: Aquiraz | L3: Barbalha | M3: Cascavel | N3: Caucaia | O3: Chorozinho | P3: Eusébio | Q3: Farias Brito | R3: Fortaleza | S3: Guaiúba | T3: Horizonte | U3: Itaitinga | V3: Juazeiro do Norte | W3: Maracanaú | X3: Maranguape | Y3: Missão Velha | Z3: Nova Olinda | AA3: Pacajus | AB3: Pacatuba | AC3: Paracuru | AD3: Paraipaba | AE3: São Gonçalo do Amarante | AF3: São Luís do Curu | AG3: Trairi | AH3: Santana do Cariri | AL3: Municípios
C4: SPEs | E4: Cons1 | F4: Cons2 | G4: Cons3 | H4: Cons4 | I4: Cons5 | K4: Aquiraz | L4: Barbalha | M4: Cascavel | N4: Caucaia | O4: Chorozinho | P4: Eusébio | Q4: Farias_Brito | R4: Fortaleza | S4: Guaiúba | T4: Horizonte | U4: Itaitinga | V4: Juazeiro_do_Norte | W4: Maracanaú | X4: Maranguape | Y4: Missão_Velha | Z4: Nova_Olinda | AA4: Pacajus | AB4: Pacatuba | AC4: Paracuru | AD4: Paraipaba | AE4: São_Gonçalo_do_Amarante | AF4: São_Luís_do_Curu | AG4: Trairi | AH4: Santana do Cariri | AL4: Aquiraz | AM4: Barbalha | AN4: Cascavel | AO4: Caucaia | AP4: Chorozinho | AQ4: Eusébio | AR4: Farias_Brito | AS4: Fortaleza | AT4: Guaiúba | AU4: Horizonte | AV4: Itaitinga | AW4: Juazeiro_do_Norte | AX4: Maracanaú | AY4: Maranguape | AZ4: Missão_Velha | BA4: Nova_Olinda | BB4: Pacajus | BC4: Pacatuba | BD4: Paracuru | BE4: Paraipaba | BF4: São_Gonçalo_do_Amarante | BG4: São_Luís_do_Curu | BH4: Trairi | BI4: Santana do Cariri
B5: =ROW(C5) -> 5 | D5: =IF(C5="","",IF(AND(COUNT(C5)>0,COUNT(C4)=0),C4,D4)) -> 
B6: 6 | C6: Inputs | E6: Real
B7: 7
B8: 8 | C8: Datas | K8: =LARGE(K11:AG11,1) -> 
B9: 9
B10: 10 | C10: Início da Concessão | E10: 2023-01-31 | F10: 2023-01-31 | G10: 2023-01-31 | H10: 2023-01-31 | I10: 2023-01-31
B11: 11 | C11: Início da Distribuição de Dividendos | E11: 2028-01-01 | F11: 2028-01-01 | G11: 2028-01-01 | H11: 2028-01-01 | I11: 2028-01-01
B12: =ROW(C12) -> 12 | C12: Início da Redução de Capital | E12: =E13 -> 2052-12-31 | F12: =F13 -> 2052-12-31 | G12: 2052-12-31 | H12: 2052-12-31 | I12: 2052-12-31 | K12: 2052-12-31 | L12: 2052-12-31 | M12: 2052-12-31 | N12: 2052-12-31 | O12: 2052-12-31 | P12: 2052-12-31 | Q12: 2052-12-31 | R12: 2052-12-31 | S12: 2052-12-31 | T12: 2052-12-31 | U12: 2052-12-31 | V12: 2052-12-31 | W12: 2052-12-31 | X12: 2052-12-31 | Y12: 2052-12-31 | Z12: 2052-12-31 | AA12: 2052-12-31 | AB12: 2052-12-31 | AC12: 2052-12-31 | AD12: 2052-12-31 | AE12: 2052-12-31 | AF12: 2052-12-31 | AG12: 2052-12-31 | AH12: 2052-12-31
B13: 13 | C13: Período da Concessão | E13: =E14 -> 2052-12-31 | F13: =F14 -> 2052-12-31 | G13: 2052-12-31 | H13: 2052-12-31 | I13: 2052-12-31 | K13: =MIN(K$12,INDEX($E$13:$I$13,1,MATCH(K$18,$E$4:$I$4,0))) -> 2052-12-31 | L13: =MIN(L$12,INDEX($E$13:$I$13,1,MATCH(L$18,$E$4:$I$4,0))) -> 2052-12-31 | M13: 2052-12-31 | N13: =MIN(N$12,INDEX($E$13:$I$13,1,MATCH(N$18,$E$4:$I$4,0))) -> 2052-12-31 | O13: 2052-12-31 | P13: 2052-12-31 | Q13: 2052-12-31 | R13: 2052-12-31 | S13: 2052-12-31 | T13: 2052-12-31 | U13: 2052-12-31 | V13: 2052-12-31 | W13: 2052-12-31 | X13: 2052-12-31 | Y13: 2052-12-31 | Z13: 2052-12-31 | AA13: 2052-12-31 | AB13: 2052-12-31 | AC13: 2052-12-31 | AD13: 2052-12-31 | AE13: 2052-12-31 | AF13: 2052-12-31 | AG13: 2052-12-31 | AH13: =MIN(AH$12,INDEX($E$13:$I$13,1,MATCH(AH$18,$E$4:$I$4,0))) -> 2052-12-31 | AL13: =YEAR(K13) -> 2052 | AM13: 2052 | AN13: 2052 | AO13: 2052 | AP13: 2052 | AQ13: 2052 | AR13: 2052 | AS13: 2052 | AT13: 2052 | AU13: 2052 | AV13: 2052 | AW13: 2052 | AX13: 2052 | AY13: 2052 | AZ13: 2052 | BA13: 2052 | BB13: 2052 | BC13: 2052 | BD13: 2052 | BE13: 2052 | BF13: 2052 | BG13: 2052 | BH13: 2052 | BI13: 2052
B14: 14 | C14: Percentual do Último Ano | E14: =EOMONTH(E10,30*12-1) -> 2052-12-31 | F14: =EOMONTH(F10,30*12-1) -> 2052-12-31 | G14: =EOMONTH(G10,30*12-1) -> 2052-12-31 | H14: =EOMONTH(H10,30*12-1) -> 2052-12-31 | I14: =EOMONTH(I10,30*12-1) -> 2052-12-31 | K14: =IF(K13=INDEX($E$13:$I$13,1,MATCH(K$18,$E$4:$I$4,0)),1,(MONTH(K13)-1)/12) -> 1 | L14: =IF(L13=INDEX($E$13:$I$13,1,MATCH(L$18,$E$4:$I$4,0)),1,(MONTH(L13)-1)/12) -> 1 | M14: 1 | N14: 1 | O14: 1 | P14: 1 | Q14: 1 | R14: 1 | S14: 1 | T14: 1 | U14: 1 | V14: 1 | W14: 1 | X14: =IF(X13=INDEX($E$13:$I$13,1,MATCH(X$18,$E$4:$I$4,0)),1,(MONTH(X13)-1)/12) -> 1 | Y14: 1 | Z14: 1 | AA14: 1 | AB14: 1 | AC14: 1 | AD14: 1 | AE14: 1 | AF14: 1 | AG14: 1 | AH14: 1
B15: 15 | D15: =IF(C15="","",IF(AND(COUNT(C15)>0,COUNT(C13)=0),C13,D13)) -> 
B16: 16 | C16: Consórcios Municipais | K16: Cons1 | L16: Cons1 | M16: Cons1 | N16: Cons2 | O16: Cons1 | P16: Cons1 | Q16: Cons1 | R16: Cons2 | S16: Cons1 | T16: Cons1 | U16: Cons1 | V16: Cons1 | W16: Cons1 | X16: Cons1 | Y16: Cons1 | Z16: Cons1 | AA16: Cons1 | AB16: Cons1 | AC16: Cons2 | AD16: Cons2 | AE16: Cons2 | AF16: Cons2 | AG16: Cons2 | AH16: Cons1
B17: 17 | K17: Cons2 | L17: Cons2 | M17: Cons2 | N17: Cons1 | O17: Cons2 | P17: Cons2 | Q17: Cons2 | R17: Cons1 | S17: Cons2 | T17: Cons2 | U17: Cons2 | V17: Cons2 | W17: Cons2 | X17: Cons2 | Y17: Cons2 | Z17: Cons2 | AA17: Cons2 | AB17: Cons2 | AC17: Cons1 | AD17: Cons1 | AE17: Cons1 | AF17: Cons1 | AG17: Cons1
B18: 18 | C18: Alocação em cada Consórcio | K18: ='CP individual'!K4 -> Cons1 | L18: ='CP individual'!L4 -> Cons1 | M18: ='CP individual'!M4 -> Cons1 | N18: ='CP individual'!N4 -> Cons2 | O18: ='CP individual'!O4 -> Cons1 | P18: ='CP individual'!P4 -> Cons1 | Q18: ='CP individual'!Q4 -> Cons1 | R18: ='CP individual'!R4 -> Cons2 | S18: ='CP individual'!S4 -> Cons1 | T18: ='CP individual'!T4 -> Cons1 | U18: ='CP individual'!U4 -> Cons1 | V18: ='CP individual'!V4 -> Cons1 | W18: ='CP individual'!W4 -> Cons1 | X18: ='CP individual'!X4 -> Cons1 | Y18: ='CP individual'!Y4 -> Cons1 | Z18: ='CP individual'!Z4 -> Cons1 | AA18: ='CP individual'!AA4 -> Cons1 | AB18: ='CP individual'!AB4 -> Cons1 | AC18: ='CP individual'!AC4 -> Cons2 | AD18: ='CP individual'!AD4 -> Cons2 | AE18: ='CP individual'!AE4 -> Cons2 | AF18: ='CP individual'!AF4 -> Cons2 | AG18: ='CP individual'!AG4 -> Cons2 | AH18: ='CP individual'!AH4 -> Cons1
B19: 19
B20: 20 | C20: Modelo de Negócio
B21: 21
B22: 22 | C22: Modelo de Negócio | E22: PPP | F22: PPP | G22: PPP | H22: PPP | I22: PPP
B23: 23
B24: 24 | C24: Capital de Giro
B25: 25 | D25: =IF(C25="","",IF(AND(COUNT(C25)>0,COUNT(C24)=0),C24,D24)) -> 
B26: 26 | C26: Contas a receber - dias | E26: 30 | F26: 30 | G26: 30 | H26: 30 | I26: 30
B27: 27 | C27: Contas a Pagar - dias | E27: 30 | F27: 30 | G27: 30 | H27: 30 | I27: 30
B28: 28 | C28: Impostos a Pagar - dias | E28: 30 | F28: 30 | G28: 30 | H28: 30 | I28: 30
B29: 29
B30: 30 | C30: Indicadores Operacionais
B31: 31
A32: x | B32: 32 | C32: População | AL32: 1 | AM32: 1 | AN32: 1 | AO32: 1 | AP32: 1 | AQ32: 1 | AR32: 1 | AS32: 1 | AT32: 1 | AU32: 1 | AV32: 1 | AW32: 1 | AX32: 1 | AY32: 1 | AZ32: 1 | BA32: 1 | BB32: 1 | BC32: 1 | BD32: 1 | BE32: 1 | BF32: 1 | BG32: 1 | BH32: 1 | BI32: 1
B33: 33 | C33: 2020 | D33: =IF(C33="","",IF(AND(COUNT(C33)>0,COUNT(C32)=0),C32,D32)) -> População | E33: =SUMIFS($K33:$AH33,$K$18:$AH$18,E$4) -> 1102861.224 | F33: =SUMIFS($K33:$AH33,$K$18:$AH$18,F$4) -> 3134785.338 | G33: 0 | H33: 0 | I33: 0 | K33: =INDEX('[64]Dados AECOM'!$D$580:$BK$615,MATCH($C33,'[64]Dados AECOM'!$C$580:$C$615,0),MATCH(K$3,'[64]Dados AECOM'!$D$2:$BK$2,0))*AL33 -> 52502 | L33: =INDEX('[64]Dados AECOM'!$D$580:$BK$615,MATCH($C33,'[64]Dados AECOM'!$C$580:$C$615,0),MATCH(L$3,'[64]Dados AECOM'!$D$2:$BK$2,0))*AM33 -> 42391 | M33: =INDEX('[64]Dados AECOM'!$D$580:$BK$615,MATCH($C33,'[64]Dados AECOM'!$C$580:$C$615,0),MATCH(M$3,'[64]Dados AECOM'!$D$2:$BK$2,0))*AN33 -> 57315 | N33: =INDEX('[64]Dados AECOM'!$D$580:$BK$615,MATCH($C33,'[64]Dados AECOM'!$C$580:$C$615,0),MATCH(N$3,'[64]Dados AECOM'!$D$2:$BK$2,0))*AO33 -> 338182.3385 | O33: =INDEX('[64]Dados AECOM'!$D$580:$BK$615,MATCH($C33,'[64]Dados AECOM'!$C$580:$C$615,0),MATCH(O$3,'[64]Dados AECOM'!$D$2:$BK$2,0))*AP33 -> 12776 | P33: =INDEX('[64]Dados AECOM'!$D$580:$BK$615,MATCH($C33,'[64]Dados AECOM'!$C$580:$C$615,0),MATCH(P$3,'[64]Dados AECOM'!$D$2:$BK$2,0))*AQ33 -> 53839 | Q33: =INDEX('[64]Dados AECOM'!$D$580:$BK$615,MATCH($C33,'[64]Dados AECOM'!$C$580:$C$615,0),MATCH(Q$3,'[64]Dados AECOM'!$D$2:$BK$2,0))*AR33 -> 6950 | R33: =INDEX('[64]Dados AECOM'!$D$580:$BK$615,MATCH($C33,'[64]Dados AECOM'!$C$580:$C$615,0),MATCH(R$3,'[64]Dados AECOM'!$D$2:$BK$2,0))*AS33 -> 2707915 | S33: =INDEX('[64]Dados AECOM'!$D$580:$BK$615,MATCH($C33,'[64]Dados AECOM'!$C$580:$C$615,0),MATCH(S$3,'[64]Dados AECOM'!$D$2:$BK$2,0))*AT33 -> 16229 | T33: =INDEX('[64]Dados AECOM'!$D$580:$BK$615,MATCH($C33,'[64]Dados AECOM'!$C$580:$C$615,0),MATCH(T$3,'[64]Dados AECOM'!$D$2:$BK$2,0))*AU33 -> 60678 | U33: =INDEX('[64]Dados AECOM'!$D$580:$BK$615,MATCH($C33,'[64]Dados AECOM'!$C$580:$C$615,0),MATCH(U$3,'[64]Dados AECOM'!$D$2:$BK$2,0))*AV33 -> 42792 | V33: =INDEX('[64]Dados AECOM'!$D$580:$BK$615,MATCH($C33,'[64]Dados AECOM'!$C$580:$C$615,0),MATCH(V$3,'[64]Dados AECOM'!$D$2:$BK$2,0))*AW33 -> 271464 | W33: =INDEX('[64]Dados AECOM'!$D$580:$BK$615,MATCH($C33,'[64]Dados AECOM'!$C$580:$C$615,0),MATCH(W$3,'[64]Dados AECOM'!$D$2:$BK$2,0))*AX33 -> 228126 | X33: =INDEX('[64]Dados AECOM'!$D$580:$BK$615,MATCH($C33,'[64]Dados AECOM'!$C$580:$C$615,0),MATCH(X$3,'[64]Dados AECOM'!$D$2:$BK$2,0))*AY33 -> 91937 | Y33: =INDEX('[64]Dados AECOM'!$D$580:$BK$615,MATCH($C33,'[64]Dados AECOM'!$C$580:$C$615,0),MATCH(Y$3,'[64]Dados AECOM'!$D$2:$BK$2,0))*AZ33 -> 14876 | Z33: =INDEX('[64]Dados AECOM'!$D$580:$BK$615,MATCH($C33,'[64]Dados AECOM'!$C$580:$C$615,0),MATCH(Z$3,'[64]Dados AECOM'!$D$2:$BK$2,0))*BA33 -> 13400.22394 | AA33: =INDEX('[64]Dados AECOM'!$D$580:$BK$615,MATCH($C33,'[64]Dados AECOM'!$C$580:$C$615,0),MATCH(AA$3,'[64]Dados AECOM'!$D$2:$BK$2,0))*BB33 -> 59049 | AB33: =INDEX('[64]Dados AECOM'!$D$580:$BK$615,MATCH($C33,'[64]Dados AECOM'!$C$580:$C$615,0),MATCH(AB$3,'[64]Dados AECOM'!$D$2:$BK$2,0))*BC33 -> 72688 | AC33: =INDEX('[64]Dados AECOM'!$D$580:$BK$615,MATCH($C33,'[64]Dados AECOM'!$C$580:$C$615,0),MATCH(AC$3,'[64]Dados AECOM'!$D$2:$BK$2,0))*BD33 -> 22652 | AD33: =INDEX('[64]Dados AECOM'!$D$580:$BK$615,MATCH($C33,'[64]Dados AECOM'!$C$580:$C$615,0),MATCH(AD$3,'[64]Dados AECOM'!$D$2:$BK$2,0))*BE33 -> 12623 | AE33: =INDEX('[64]Dados AECOM'!$D$580:$BK$615,MATCH($C33,'[64]Dados AECOM'!$C$580:$C$615,0),MATCH(AE$3,'[64]Dados AECOM'!$D$2:$BK$2,0))*BF33 -> 24614 | AF33: =INDEX('[64]Dados AECOM'!$D$580:$BK$615,MATCH($C33,'[64]Dados AECOM'!$C$580:$C$615,0),MATCH(AF$3,'[64]Dados AECOM'!$D$2:$BK$2,0))*BG33 -> 8392 | AG33: =INDEX('[64]Dados AECOM'!$D$580:$BK$615,MATCH($C33,'[64]Dados AECOM'!$C$580:$C$615,0),MATCH(AG$3,'[64]Dados AECOM'!$D$2:$BK$2,0))*BH33 -> 20407 | AH33: =INDEX('[64]Dados AECOM'!$D$580:$BN$615,MATCH($C33,'[64]Dados AECOM'!$C$580:$C$615,0),MATCH(AH$3,'[64]Dados AECOM'!$D$2:$BN$2,0))*BI33 -> 5849 | AK33: 0 | AL33: =IF(OR(AL32<1,$C33>AL$13),0,IF(YEAR(INDEX($K$13:$AG$13,1,MATCH(AL$4,$K$4:$AG$4,0)))<=$C33,INDEX($K$14:$AG$14,1,MATCH(AL$4,$K$4:$AG$4,0)),1)) -> 1 | AM33: =IF(OR(AM32<1,$C33>AM$13),0,IF(YEAR(INDEX($K$13:$AG$13,1,MATCH(AM$4,$K$4:$AG$4,0)))<=$C33,INDEX($K$14:$AG$14,1,MATCH(AM$4,$K$4:$AG$4,0)),1)) -> 1 | AN33: =IF(OR(AN32<1,$C33>AN$13),0,IF(YEAR(INDEX($K$13:$AG$13,1,MATCH(AN$4,$K$4:$AG$4,0)))<=$C33,INDEX($K$14:$AG$14,1,MATCH(AN$4,$K$4:$AG$4,0)),1)) -> 1 | AO33: =IF(OR(AO32<1,$C33>AO$13),0,IF(YEAR(INDEX($K$13:$AG$13,1,MATCH(AO$4,$K$4:$AG$4,0)))<=$C33,INDEX($K$14:$AG$14,1,MATCH(AO$4,$K$4:$AG$4,0)),1)) -> 1 | AP33: =IF(OR(AP32<1,$C33>AP$13),0,IF(YEAR(INDEX($K$13:$AG$13,1,MATCH(AP$4,$K$4:$AG$4,0)))<=$C33,INDEX($K$14:$AG$14,1,MATCH(AP$4,$K$4:$AG$4,0)),1)) -> 1 | AQ33: =IF(OR(AQ32<1,$C33>AQ$13),0,IF(YEAR(INDEX($K$13:$AG$13,1,MATCH(AQ$4,$K$4:$AG$4,0)))<=$C33,INDEX($K$14:$AG$14,1,MATCH(AQ$4,$K$4:$AG$4,0)),1)) -> 1 | AR33: =IF(OR(AR32<1,$C33>AR$13),0,IF(YEAR(INDEX($K$13:$AG$13,1,MATCH(AR$4,$K$4:$AG$4,0)))<=$C33,INDEX($K$14:$AG$14,1,MATCH(AR$4,$K$4:$AG$4,0)),1)) -> 1 | AS33: =IF(OR(AS32<1,$C33>AS$13),0,IF(YEAR(INDEX($K$13:$AG$13,1,MATCH(AS$4,$K$4:$AG$4,0)))<=$C33,INDEX($K$14:$AG$14,1,MATCH(AS$4,$K$4:$AG$4,0)),1)) -> 1 | AT33: =IF(OR(AT32<1,$C33>AT$13),0,IF(YEAR(INDEX($K$13:$AG$13,1,MATCH(AT$4,$K$4:$AG$4,0)))<=$C33,INDEX($K$14:$AG$14,1,MATCH(AT$4,$K$4:$AG$4,0)),1)) -> 1 | AU33: =IF(OR(AU32<1,$C33>AU$13),0,IF(YEAR(INDEX($K$13:$AG$13,1,MATCH(AU$4,$K$4:$AG$4,0)))<=$C33,INDEX($K$14:$AG$14,1,MATCH(AU$4,$K$4:$AG$4,0)),1)) -> 1 | AV33: =IF(OR(AV32<1,$C33>AV$13),0,IF(YEAR(INDEX($K$13:$AG$13,1,MATCH(AV$4,$K$4:$AG$4,0)))<=$C33,INDEX($K$14:$AG$14,1,MATCH(AV$4,$K$4:$AG$4,0)),1)) -> 1 | AW33: =IF(OR(AW32<1,$C33>AW$13),0,IF(YEAR(INDEX($K$13:$AG$13,1,MATCH(AW$4,$K$4:$AG$4,0)))<=$C33,INDEX($K$14:$AG$14,1,MATCH(AW$4,$K$4:$AG$4,0)),1)) -> 1 | AX33: =IF(OR(AX32<1,$C33>AX$13),0,IF(YEAR(INDEX($K$13:$AG$13,1,MATCH(AX$4,$K$4:$AG$4,0)))<=$C33,INDEX($K$14:$AG$14,1,MATCH(AX$4,$K$4:$AG$4,0)),1)) -> 1 | AY33: =IF(OR(AY32<1,$C33>AY$13),0,IF(YEAR(INDEX($K$13:$AG$13,1,MATCH(AY$4,$K$4:$AG$4,0)))<=$C33,INDEX($K$14:$AG$14,1,MATCH(AY$4,$K$4:$AG$4,0)),1)) -> 1 | AZ33: =IF(OR(AZ32<1,$C33>AZ$13),0,IF(YEAR(INDEX($K$13:$AG$13,1,MATCH(AZ$4,$K$4:$AG$4,0)))<=$C33,INDEX($K$14:$AG$14,1,MATCH(AZ$4,$K$4:$AG$4,0)),1)) -> 1 | BA33: =IF(OR(BA32<1,$C33>BA$13),0,IF(YEAR(INDEX($K$13:$AG$13,1,MATCH(BA$4,$K$4:$AG$4,0)))<=$C33,INDEX($K$14:$AG$14,1,MATCH(BA$4,$K$4:$AG$4,0)),1)) -> 1 | BB33: =IF(OR(BB32<1,$C33>BB$13),0,IF(YEAR(INDEX($K$13:$AG$13,1,MATCH(BB$4,$K$4:$AG$4,0)))<=$C33,INDEX($K$14:$AG$14,1,MATCH(BB$4,$K$4:$AG$4,0)),1)) -> 1 | BC33: =IF(OR(BC32<1,$C33>BC$13),0,IF(YEAR(INDEX($K$13:$AG$13,1,MATCH(BC$4,$K$4:$AG$4,0)))<=$C33,INDEX($K$14:$AG$14,1,MATCH(BC$4,$K$4:$AG$4,0)),1)) -> 1 | BD33: =IF(OR(BD32<1,$C33>BD$13),0,IF(YEAR(INDEX($K$13:$AG$13,1,MATCH(BD$4,$K$4:$AG$4,0)))<=$C33,INDEX($K$14:$AG$14,1,MATCH(BD$4,$K$4:$AG$4,0)),1)) -> 1 | BE33: =IF(OR(BE32<1,$C33>BE$13),0,IF(YEAR(INDEX($K$13:$AG$13,1,MATCH(BE$4,$K$4:$AG$4,0)))<=$C33,INDEX($K$14:$AG$14,1,MATCH(BE$4,$K$4:$AG$4,0)),1)) -> 1 | BF33: =IF(OR(BF32<1,$C33>BF$13),0,IF(YEAR(INDEX($K$13:$AG$13,1,MATCH(BF$4,$K$4:$AG$4,0)))<=$C33,INDEX($K$14:$AG$14,1,MATCH(BF$4,$K$4:$AG$4,0)),1)) -> 1 | BG33: =IF(OR(BG32<1,$C33>BG$13),0,IF(YEAR(INDEX($K$13:$AG$13,1,MATCH(BG$4,$K$4:$AG$4,0)))<=$C33,INDEX($K$14:$AG$14,1,MATCH(BG$4,$K$4:$AG$4,0)),1)) -> 1 | BH33: =IF(OR(BH32<1,$C33>BH$13),0,IF(YEAR(INDEX($K$13:$AG$13,1,MATCH(BH$4,$K$4:$AG$4,0)))<=$C33,INDEX($K$14:$AG$14,1,MATCH(BH$4,$K$4:$AG$4,0)),1)) -> 1 | BI33: =IF(OR(BI32<1,$C33>BI$13),0,IF(YEAR(INDEX($K$13:$AH$13,1,MATCH(BI$4,$K$4:$AH$4,0)))<=$C33,INDEX($K$14:$AH$14,1,MATCH(BI$4,$K$4:$AH$4,0)),1)) -> 1
B34: 34 | C34: 2023 | D34: População | E34: 1113321.153 | F34: 3153694.394 | G34: 0 | H34: 0 | I34: 0 | K34: =INDEX('[64]Dados AECOM'!$D$580:$BK$615,MATCH($C34,'[64]Dados AECOM'!$C$580:$C$615,0),MATCH(K$3,'[64]Dados AECOM'!$D$2:$BK$2,0))*AL34 -> 53049 | L34: =INDEX('[64]Dados AECOM'!$D$580:$BK$615,MATCH($C34,'[64]Dados AECOM'!$C$580:$C$615,0),MATCH(L$3,'[64]Dados AECOM'!$D$2:$BK$2,0))*AM34 -> 42684 | M34: =INDEX('[64]Dados AECOM'!$D$580:$BK$615,MATCH($C34,'[64]Dados AECOM'!$C$580:$C$615,0),MATCH(M$3,'[64]Dados AECOM'!$D$2:$BK$2,0))*AN34 -> 57706 | N34: =INDEX('[64]Dados AECOM'!$D$580:$BK$615,MATCH($C34,'[64]Dados AECOM'!$C$580:$C$615,0),MATCH(N$3,'[64]Dados AECOM'!$D$2:$BK$2,0))*AO34 -> 341258.3936 | O34: =INDEX('[64]Dados AECOM'!$D$580:$BK$615,MATCH($C34,'[64]Dados AECOM'!$C$580:$C$615,0),MATCH(O$3,'[64]Dados AECOM'!$D$2:$BK$2,0))*AP34 -> 12920 | P34: =INDEX('[64]Dados AECOM'!$D$580:$BK$615,MATCH($C34,'[64]Dados AECOM'!$C$580:$C$615,0),MATCH(P$3,'[64]Dados AECOM'!$D$2:$BK$2,0))*AQ34 -> 54301 | Q34: =INDEX('[64]Dados AECOM'!$D$580:$BK$615,MATCH($C34,'[64]Dados AECOM'!$C$580:$C$615,0),MATCH(Q$3,'[64]Dados AECOM'!$D$2:$BK$2,0))*AR34 -> 6953 | R34: =INDEX('[64]Dados AECOM'!$D$580:$BK$615,MATCH($C34,'[64]Dados AECOM'!$C$580:$C$615,0),MATCH(R$3,'[64]Dados AECOM'!$D$2:$BK$2,0))*AS34 -> 2723062 | S34: =INDEX('[64]Dados AECOM'!$D$580:$BK$615,MATCH($C34,'[64]Dados AECOM'!$C$580:$C$615,0),MATCH(S$3,'[64]Dados AECOM'!$D$2:$BK$2,0))*AT34 -> 16338 | T34: =INDEX('[64]Dados AECOM'!$D$580:$BK$615,MATCH($C34,'[64]Dados AECOM'!$C$580:$C$615,0),MATCH(T$3,'[64]Dados AECOM'!$D$2:$BK$2,0))*AU34 -> 61267 | U34: =INDEX('[64]Dados AECOM'!$D$580:$BK$615,MATCH($C34,'[64]Dados AECOM'!$C$580:$C$615,0),MATCH(U$3,'[64]Dados AECOM'!$D$2:$BK$2,0))*AV34 -> 43221 | V34: =INDEX('[64]Dados AECOM'!$D$580:$BK$615,MATCH($C34,'[64]Dados AECOM'!$C$580:$C$615,0),MATCH(V$3,'[64]Dados AECOM'!$D$2:$BK$2,0))*AW34 -> 273320 | W34: =INDEX('[64]Dados AECOM'!$D$580:$BK$615,MATCH($C34,'[64]Dados AECOM'!$C$580:$C$615,0),MATCH(W$3,'[64]Dados AECOM'!$D$2:$BK$2,0))*AX34 -> 231058 | X34: =INDEX('[64]Dados AECOM'!$D$580:$BK$615,MATCH($C34,'[64]Dados AECOM'!$C$580:$C$615,0),MATCH(X$3,'[64]Dados AECOM'!$D$2:$BK$2,0))*AY34 -> 92961 | Y34: =INDEX('[64]Dados AECOM'!$D$580:$BK$615,MATCH($C34,'[64]Dados AECOM'!$C$580:$C$615,0),MATCH(Y$3,'[64]Dados AECOM'!$D$2:$BK$2,0))*AZ34 -> 14993 | Z34: =INDEX('[64]Dados AECOM'!$D$580:$BK$615,MATCH($C34,'[64]Dados AECOM'!$C$580:$C$615,0),MATCH(Z$3,'[64]Dados AECOM'!$D$2:$BK$2,0))*BA34 -> 13844.15272 | AA34: =INDEX('[64]Dados AECOM'!$D$580:$BK$615,MATCH($C34,'[64]Dados AECOM'!$C$580:$C$615,0),MATCH(AA$3,'[64]Dados AECOM'!$D$2:$BK$2,0))*BB34 -> 59623 | AB34: =INDEX('[64]Dados AECOM'!$D$580:$BK$615,MATCH($C34,'[64]Dados AECOM'!$C$580:$C$615,0),MATCH(AB$3,'[64]Dados AECOM'!$D$2:$BK$2,0))*BC34 -> 73228 | AC34: =INDEX('[64]Dados AECOM'!$D$580:$BK$615,MATCH($C34,'[64]Dados AECOM'!$C$580:$C$615,0),MATCH(AC$3,'[64]Dados AECOM'!$D$2:$BK$2,0))*BD34 -> 22826 | AD34: =INDEX('[64]Dados AECOM'!$D$580:$BK$615,MATCH($C34,'[64]Dados AECOM'!$C$580:$C$615,0),MATCH(AD$3,'[64]Dados AECOM'!$D$2:$BK$2,0))*BE34 -> 12684 | AE34: =INDEX('[64]Dados AECOM'!$D$580:$BK$615,MATCH($C34,'[64]Dados AECOM'!$C$580:$C$615,0),MATCH(AE$3,'[64]Dados AECOM'!$D$2:$BK$2,0))*BF34 -> 24841 | AF34: =INDEX('[64]Dados AECOM'!$D$580:$BK$615,MATCH($C34,'[64]Dados AECOM'!$C$580:$C$615,0),MATCH(AF$3,'[64]Dados AECOM'!$D$2:$BK$2,0))*BG34 -> 8418 | AG34: =INDEX('[64]Dados AECOM'!$D$580:$BK$615,MATCH($C34,'[64]Dados AECOM'!$C$580:$C$615,0),MATCH(AG$3,'[64]Dados AECOM'!$D$2:$BK$2,0))*BH34 -> 20605 | AH34: =INDEX('[64]Dados AECOM'!$D$580:$BN$615,MATCH($C34,'[64]Dados AECOM'!$C$580:$C$615,0),MATCH(AH$3,'[64]Dados AECOM'!$D$2:$BN$2,0))*BI34 -> 5855 | AK34: =AK33+1 -> 1 | AL34: =IF(OR(AL33<1,$C34>AL$13),0,IF(YEAR(INDEX($K$13:$AG$13,1,MATCH(AL$4,$K$4:$AG$4,0)))<=$C34,INDEX($K$14:$AG$14,1,MATCH(AL$4,$K$4:$AG$4,0)),1)) -> 1 | AM34: 1 | AN34: 1 | AO34: 1 | AP34: 1 | AQ34: 1 | AR34: 1 | AS34: 1 | AT34: 1 | AU34: 1 | AV34: 1 | AW34: 1 | AX34: 1 | AY34: 1 | AZ34: 1 | BA34: 1 | BB34: 1 | BC34: 1 | BD34: 1 | BE34: 1 | BF34: 1 | BG34: 1 | BH34: =IF(OR(BH33<1,$C34>BH$13),0,IF(YEAR(INDEX($K$13:$AG$13,1,MATCH(BH$4,$K$4:$AG$4,0)))<=$C34,INDEX($K$14:$AG$14,1,MATCH(BH$4,$K$4:$AG$4,0)),1)) -> 1 | BI34: =IF(OR(BI33<1,$C34>BI$13),0,IF(YEAR(INDEX($K$13:$AH$13,1,MATCH(BI$4,$K$4:$AH$4,0)))<=$C34,INDEX($K$14:$AH$14,1,MATCH(BI$4,$K$4:$AH$4,0)),1)) -> 1
B35: 35 | C35: =C34+1 -> 2024 | D35: População | E35: 1120561.929 | F35: 3171789.38 | G35: 0 | H35: 0 | I35: 0 | K35: =INDEX('[64]Dados AECOM'!$D$580:$BK$615,MATCH($C35,'[64]Dados AECOM'!$C$580:$C$615,0),MATCH(K$3,'[64]Dados AECOM'!$D$2:$BK$2,0))*AL35 -> 53357 | L35: =INDEX('[64]Dados AECOM'!$D$580:$BK$615,MATCH($C35,'[64]Dados AECOM'!$C$580:$C$615,0),MATCH(L$3,'[64]Dados AECOM'!$D$2:$BK$2,0))*AM35 -> 42965 | M35: =INDEX('[64]Dados AECOM'!$D$580:$BK$615,MATCH($C35,'[64]Dados AECOM'!$C$580:$C$615,0),MATCH(M$3,'[64]Dados AECOM'!$D$2:$BK$2,0))*AN35 -> 58081 | N35: =INDEX('[64]Dados AECOM'!$D$580:$BK$615,MATCH($C35,'[64]Dados AECOM'!$C$580:$C$615,0),MATCH(N$3,'[64]Dados AECOM'!$D$2:$BK$2,0))*AO35 -> 344202.3796 | O35: =INDEX('[64]Dados AECOM'!$D$580:$BK$615,MATCH($C35,'[64]Dados AECOM'!$C$580:$C$615,0),MATCH(O$3,'[64]Dados AECOM'!$D$2:$BK$2,0))*AP35 -> 13058 | P35: =INDEX('[64]Dados AECOM'!$D$580:$BK$615,MATCH($C35,'[64]Dados AECOM'!$C$580:$C$615,0),MATCH(P$3,'[64]Dados AECOM'!$D$2:$BK$2,0))*AQ35 -> 54744 | Q35: =INDEX('[64]Dados AECOM'!$D$580:$BK$615,MATCH($C35,'[64]Dados AECOM'!$C$580:$C$615,0),MATCH(Q$3,'[64]Dados AECOM'!$D$2:$BK$2,0))*AR35 -> 6956 | R35: =INDEX('[64]Dados AECOM'!$D$580:$BK$615,MATCH($C35,'[64]Dados AECOM'!$C$580:$C$615,0),MATCH(R$3,'[64]Dados AECOM'!$D$2:$BK$2,0))*AS35 -> 2737557 | S35: =INDEX('[64]Dados AECOM'!$D$580:$BK$615,MATCH($C35,'[64]Dados AECOM'!$C$580:$C$615,0),MATCH(S$3,'[64]Dados AECOM'!$D$2:$BK$2,0))*AT35 -> 16443 | T35: =INDEX('[64]Dados AECOM'!$D$580:$BK$615,MATCH($C35,'[64]Dados AECOM'!$C$580:$C$615,0),MATCH(T$3,'[64]Dados AECOM'!$D$2:$BK$2,0))*AU35 -> 61830 | U35: =INDEX('[64]Dados AECOM'!$D$580:$BK$615,MATCH($C35,'[64]Dados AECOM'!$C$580:$C$615,0),MATCH(U$3,'[64]Dados AECOM'!$D$2:$BK$2,0))*AV35 -> 42792 | V35: =INDEX('[64]Dados AECOM'!$D$580:$BK$615,MATCH($C35,'[64]Dados AECOM'!$C$580:$C$615,0),MATCH(V$3,'[64]Dados AECOM'!$D$2:$BK$2,0))*AW35 -> 275097 | W35: =INDEX('[64]Dados AECOM'!$D$580:$BK$615,MATCH($C35,'[64]Dados AECOM'!$C$580:$C$615,0),MATCH(W$3,'[64]Dados AECOM'!$D$2:$BK$2,0))*AX35 -> 232445 | X35: =INDEX('[64]Dados AECOM'!$D$580:$BK$615,MATCH($C35,'[64]Dados AECOM'!$C$580:$C$615,0),MATCH(X$3,'[64]Dados AECOM'!$D$2:$BK$2,0))*AY35 -> 93855 | Y35: =INDEX('[64]Dados AECOM'!$D$580:$BK$615,MATCH($C35,'[64]Dados AECOM'!$C$580:$C$615,0),MATCH(Y$3,'[64]Dados AECOM'!$D$2:$BK$2,0))*AZ35 -> 15106 | Z35: =INDEX('[64]Dados AECOM'!$D$580:$BK$615,MATCH($C35,'[64]Dados AECOM'!$C$580:$C$615,0),MATCH(Z$3,'[64]Dados AECOM'!$D$2:$BK$2,0))*BA35 -> 14054.92876 | AA35: =INDEX('[64]Dados AECOM'!$D$580:$BK$615,MATCH($C35,'[64]Dados AECOM'!$C$580:$C$615,0),MATCH(AA$3,'[64]Dados AECOM'!$D$2:$BK$2,0))*BB35 -> 60173 | AB35: =INDEX('[64]Dados AECOM'!$D$580:$BK$615,MATCH($C35,'[64]Dados AECOM'!$C$580:$C$615,0),MATCH(AB$3,'[64]Dados AECOM'!$D$2:$BK$2,0))*BC35 -> 73744 | AC35: =INDEX('[64]Dados AECOM'!$D$580:$BK$615,MATCH($C35,'[64]Dados AECOM'!$C$580:$C$615,0),MATCH(AC$3,'[64]Dados AECOM'!$D$2:$BK$2,0))*BD35 -> 22992 | AD35: =INDEX('[64]Dados AECOM'!$D$580:$BK$615,MATCH($C35,'[64]Dados AECOM'!$C$580:$C$615,0),MATCH(AD$3,'[64]Dados AECOM'!$D$2:$BK$2,0))*BE35 -> 12742 | AE35: =INDEX('[64]Dados AECOM'!$D$580:$BK$615,MATCH($C35,'[64]Dados AECOM'!$C$580:$C$615,0),MATCH(AE$3,'[64]Dados AECOM'!$D$2:$BK$2,0))*BF35 -> 25058 | AF35: =INDEX('[64]Dados AECOM'!$D$580:$BK$615,MATCH($C35,'[64]Dados AECOM'!$C$580:$C$615,0),MATCH(AF$3,'[64]Dados AECOM'!$D$2:$BK$2,0))*BG35 -> 8442 | AG35: =INDEX('[64]Dados AECOM'!$D$580:$BK$615,MATCH($C35,'[64]Dados AECOM'!$C$580:$C$615,0),MATCH(AG$3,'[64]Dados AECOM'!$D$2:$BK$2,0))*BH35 -> 20796 | AH35: =INDEX('[64]Dados AECOM'!$D$580:$BN$615,MATCH($C35,'[64]Dados AECOM'!$C$580:$C$615,0),MATCH(AH$3,'[64]Dados AECOM'!$D$2:$BN$2,0))*BI35 -> 5861 | AK35: =AK34+1 -> 2 | AL35: 1 | AM35: 1 | AN35: 1 | AO35: 1 | AP35: 1 | AQ35: 1 | AR35: 1 | AS35: 1 | AT35: 1 | AU35: 1 | AV35: 1 | AW35: 1 | AX35: 1 | AY35: 1 | AZ35: 1 | BA35: 1 | BB35: 1 | BC35: 1 | BD35: 1 | BE35: 1 | BF35: 1 | BG35: 1 | BH35: 1 | BI35: 1
B36: 36 | C36: 2025 | D36: População | E36: 1128514.189 | F36: 3189007.141 | G36: 0 | H36: 0 | I36: 0 | K36: =INDEX('[64]Dados AECOM'!$D$580:$BK$615,MATCH($C36,'[64]Dados AECOM'!$C$580:$C$615,0),MATCH(K$3,'[64]Dados AECOM'!$D$2:$BK$2,0))*AL36 -> 53865 | L36: =INDEX('[64]Dados AECOM'!$D$580:$BK$615,MATCH($C36,'[64]Dados AECOM'!$C$580:$C$615,0),MATCH(L$3,'[64]Dados AECOM'!$D$2:$BK$2,0))*AM36 -> 43232 | M36: =INDEX('[64]Dados AECOM'!$D$580:$BK$615,MATCH($C36,'[64]Dados AECOM'!$C$580:$C$615,0),MATCH(M$3,'[64]Dados AECOM'!$D$2:$BK$2,0))*AN36 -> 58438 | N36: =INDEX('[64]Dados AECOM'!$D$580:$BK$615,MATCH($C36,'[64]Dados AECOM'!$C$580:$C$615,0),MATCH(N$3,'[64]Dados AECOM'!$D$2:$BK$2,0))*AO36 -> 347004.1413 | O36: =INDEX('[64]Dados AECOM'!$D$580:$BK$615,MATCH($C36,'[64]Dados AECOM'!$C$580:$C$615,0),MATCH(O$3,'[64]Dados AECOM'!$D$2:$BK$2,0))*AP36 -> 13189 | P36: =INDEX('[64]Dados AECOM'!$D$580:$BK$615,MATCH($C36,'[64]Dados AECOM'!$C$580:$C$615,0),MATCH(P$3,'[64]Dados AECOM'!$D$2:$BK$2,0))*AQ36 -> 55165 | Q36: =INDEX('[64]Dados AECOM'!$D$580:$BK$615,MATCH($C36,'[64]Dados AECOM'!$C$580:$C$615,0),MATCH(Q$3,'[64]Dados AECOM'!$D$2:$BK$2,0))*AR36 -> 6959 | R36: =INDEX('[64]Dados AECOM'!$D$580:$BK$615,MATCH($C36,'[64]Dados AECOM'!$C$580:$C$615,0),MATCH(R$3,'[64]Dados AECOM'!$D$2:$BK$2,0))*AS36 -> 2751350 | S36: =INDEX('[64]Dados AECOM'!$D$580:$BK$615,MATCH($C36,'[64]Dados AECOM'!$C$580:$C$615,0),MATCH(S$3,'[64]Dados AECOM'!$D$2:$BK$2,0))*AT36 -> 16542 | T36: =INDEX('[64]Dados AECOM'!$D$580:$BK$615,MATCH($C36,'[64]Dados AECOM'!$C$580:$C$615,0),MATCH(T$3,'[64]Dados AECOM'!$D$2:$BK$2,0))*AU36 -> 62367 | U36: =INDEX('[64]Dados AECOM'!$D$580:$BK$615,MATCH($C36,'[64]Dados AECOM'!$C$580:$C$615,0),MATCH(U$3,'[64]Dados AECOM'!$D$2:$BK$2,0))*AV36 -> 43221 | V36: =INDEX('[64]Dados AECOM'!$D$580:$BK$615,MATCH($C36,'[64]Dados AECOM'!$C$580:$C$615,0),MATCH(V$3,'[64]Dados AECOM'!$D$2:$BK$2,0))*AW36 -> 276788 | W36: =INDEX('[64]Dados AECOM'!$D$580:$BK$615,MATCH($C36,'[64]Dados AECOM'!$C$580:$C$615,0),MATCH(W$3,'[64]Dados AECOM'!$D$2:$BK$2,0))*AX36 -> 233773 | X36: =INDEX('[64]Dados AECOM'!$D$580:$BK$615,MATCH($C36,'[64]Dados AECOM'!$C$580:$C$615,0),MATCH(X$3,'[64]Dados AECOM'!$D$2:$BK$2,0))*AY36 -> 94708 | Y36: =INDEX('[64]Dados AECOM'!$D$580:$BK$615,MATCH($C36,'[64]Dados AECOM'!$C$580:$C$615,0),MATCH(Y$3,'[64]Dados AECOM'!$D$2:$BK$2,0))*AZ36 -> 15213 | Z36: =INDEX('[64]Dados AECOM'!$D$580:$BK$615,MATCH($C36,'[64]Dados AECOM'!$C$580:$C$615,0),MATCH(Z$3,'[64]Dados AECOM'!$D$2:$BK$2,0))*BA36 -> 14255.18942 | AA36: =INDEX('[64]Dados AECOM'!$D$580:$BK$615,MATCH($C36,'[64]Dados AECOM'!$C$580:$C$615,0),MATCH(AA$3,'[64]Dados AECOM'!$D$2:$BK$2,0))*BB36 -> 60697 | AB36: =INDEX('[64]Dados AECOM'!$D$580:$BK$615,MATCH($C36,'[64]Dados AECOM'!$C$580:$C$615,0),MATCH(AB$3,'[64]Dados AECOM'!$D$2:$BK$2,0))*BC36 -> 74235 | AC36: =INDEX('[64]Dados AECOM'!$D$580:$BK$615,MATCH($C36,'[64]Dados AECOM'!$C$580:$C$615,0),MATCH(AC$3,'[64]Dados AECOM'!$D$2:$BK$2,0))*BD36 -> 23151 | AD36: =INDEX('[64]Dados AECOM'!$D$580:$BK$615,MATCH($C36,'[64]Dados AECOM'!$C$580:$C$615,0),MATCH(AD$3,'[64]Dados AECOM'!$D$2:$BK$2,0))*BE36 -> 12797 | AE36: =INDEX('[64]Dados AECOM'!$D$580:$BK$615,MATCH($C36,'[64]Dados AECOM'!$C$580:$C$615,0),MATCH(AE$3,'[64]Dados AECOM'!$D$2:$BK$2,0))*BF36 -> 25262 | AF36: =INDEX('[64]Dados AECOM'!$D$580:$BK$615,MATCH($C36,'[64]Dados AECOM'!$C$580:$C$615,0),MATCH(AF$3,'[64]Dados AECOM'!$D$2:$BK$2,0))*BG36 -> 8465 | AG36: =INDEX('[64]Dados AECOM'!$D$580:$BK$615,MATCH($C36,'[64]Dados AECOM'!$C$580:$C$615,0),MATCH(AG$3,'[64]Dados AECOM'!$D$2:$BK$2,0))*BH36 -> 20978 | AH36: =INDEX('[64]Dados AECOM'!$D$580:$BN$615,MATCH($C36,'[64]Dados AECOM'!$C$580:$C$615,0),MATCH(AH$3,'[64]Dados AECOM'!$D$2:$BN$2,0))*BI36 -> 5867 | AK36: 3 | AL36: 1 | AM36: 1 | AN36: 1 | AO36: 1 | AP36: 1 | AQ36: 1 | AR36: 1 | AS36: 1 | AT36: 1 | AU36: 1 | AV36: 1 | AW36: 1 | AX36: 1 | AY36: 1 | AZ36: 1 | BA36: 1 | BB36: 1 | BC36: 1 | BD36: 1 | BE36: 1 | BF36: 1 | BG36: 1 | BH36: 1 | BI36: 1
B37: 37 | C37: 2026 | D37: População | E37: 1136053.295 | F37: 3205308.571 | G37: 0 | H37: 0 | I37: 0 | K37: =INDEX('[64]Dados AECOM'!$D$580:$BK$615,MATCH($C37,'[64]Dados AECOM'!$C$580:$C$615,0),MATCH(K$3,'[64]Dados AECOM'!$D$2:$BK$2,0))*AL37 -> 54347 | L37: =INDEX('[64]Dados AECOM'!$D$580:$BK$615,MATCH($C37,'[64]Dados AECOM'!$C$580:$C$615,0),MATCH(L$3,'[64]Dados AECOM'!$D$2:$BK$2,0))*AM37 -> 43486 | M37: =INDEX('[64]Dados AECOM'!$D$580:$BK$615,MATCH($C37,'[64]Dados AECOM'!$C$580:$C$615,0),MATCH(M$3,'[64]Dados AECOM'!$D$2:$BK$2,0))*AN37 -> 58776 | N37: =INDEX('[64]Dados AECOM'!$D$580:$BK$615,MATCH($C37,'[64]Dados AECOM'!$C$580:$C$615,0),MATCH(N$3,'[64]Dados AECOM'!$D$2:$BK$2,0))*AO37 -> 349656.5714 | O37: =INDEX('[64]Dados AECOM'!$D$580:$BK$615,MATCH($C37,'[64]Dados AECOM'!$C$580:$C$615,0),MATCH(O$3,'[64]Dados AECOM'!$D$2:$BK$2,0))*AP37 -> 13313 | P37: =INDEX('[64]Dados AECOM'!$D$580:$BK$615,MATCH($C37,'[64]Dados AECOM'!$C$580:$C$615,0),MATCH(P$3,'[64]Dados AECOM'!$D$2:$BK$2,0))*AQ37 -> 55563 | Q37: =INDEX('[64]Dados AECOM'!$D$580:$BK$615,MATCH($C37,'[64]Dados AECOM'!$C$580:$C$615,0),MATCH(Q$3,'[64]Dados AECOM'!$D$2:$BK$2,0))*AR37 -> 6962 | R37: =INDEX('[64]Dados AECOM'!$D$580:$BK$615,MATCH($C37,'[64]Dados AECOM'!$C$580:$C$615,0),MATCH(R$3,'[64]Dados AECOM'!$D$2:$BK$2,0))*AS37 -> 2764409 | S37: =INDEX('[64]Dados AECOM'!$D$580:$BK$615,MATCH($C37,'[64]Dados AECOM'!$C$580:$C$615,0),MATCH(S$3,'[64]Dados AECOM'!$D$2:$BK$2,0))*AT37 -> 16636 | T37: =INDEX('[64]Dados AECOM'!$D$580:$BK$615,MATCH($C37,'[64]Dados AECOM'!$C$580:$C$615,0),MATCH(T$3,'[64]Dados AECOM'!$D$2:$BK$2,0))*AU37 -> 62875 | U37: =INDEX('[64]Dados AECOM'!$D$580:$BK$615,MATCH($C37,'[64]Dados AECOM'!$C$580:$C$615,0),MATCH(U$3,'[64]Dados AECOM'!$D$2:$BK$2,0))*AV37 -> 43630 | V37: =INDEX('[64]Dados AECOM'!$D$580:$BK$615,MATCH($C37,'[64]Dados AECOM'!$C$580:$C$615,0),MATCH(V$3,'[64]Dados AECOM'!$D$2:$BK$2,0))*AW37 -> 278389 | W37: =INDEX('[64]Dados AECOM'!$D$580:$BK$615,MATCH($C37,'[64]Dados AECOM'!$C$580:$C$615,0),MATCH(W$3,'[64]Dados AECOM'!$D$2:$BK$2,0))*AX37 -> 235036 | X37: =INDEX('[64]Dados AECOM'!$D$580:$BK$615,MATCH($C37,'[64]Dados AECOM'!$C$580:$C$615,0),MATCH(X$3,'[64]Dados AECOM'!$D$2:$BK$2,0))*AY37 -> 95514 | Y37: =INDEX('[64]Dados AECOM'!$D$580:$BK$615,MATCH($C37,'[64]Dados AECOM'!$C$580:$C$615,0),MATCH(Y$3,'[64]Dados AECOM'!$D$2:$BK$2,0))*AZ37 -> 15314 | Z37: =INDEX('[64]Dados AECOM'!$D$580:$BK$615,MATCH($C37,'[64]Dados AECOM'!$C$580:$C$615,0),MATCH(Z$3,'[64]Dados AECOM'!$D$2:$BK$2,0))*BA37 -> 14447.29526 | AA37: =INDEX('[64]Dados AECOM'!$D$580:$BK$615,MATCH($C37,'[64]Dados AECOM'!$C$580:$C$615,0),MATCH(AA$3,'[64]Dados AECOM'!$D$2:$BK$2,0))*BB37 -> 61192 | AB37: =INDEX('[64]Dados AECOM'!$D$580:$BK$615,MATCH($C37,'[64]Dados AECOM'!$C$580:$C$615,0),MATCH(AB$3,'[64]Dados AECOM'!$D$2:$BK$2,0))*BC37 -> 74701 | AC37: =INDEX('[64]Dados AECOM'!$D$580:$BK$615,MATCH($C37,'[64]Dados AECOM'!$C$580:$C$615,0),MATCH(AC$3,'[64]Dados AECOM'!$D$2:$BK$2,0))*BD37 -> 23302 | AD37: =INDEX('[64]Dados AECOM'!$D$580:$BK$615,MATCH($C37,'[64]Dados AECOM'!$C$580:$C$615,0),MATCH(AD$3,'[64]Dados AECOM'!$D$2:$BK$2,0))*BE37 -> 12849 | AE37: =INDEX('[64]Dados AECOM'!$D$580:$BK$615,MATCH($C37,'[64]Dados AECOM'!$C$580:$C$615,0),MATCH(AE$3,'[64]Dados AECOM'!$D$2:$BK$2,0))*BF37 -> 25457 | AF37: =INDEX('[64]Dados AECOM'!$D$580:$BK$615,MATCH($C37,'[64]Dados AECOM'!$C$580:$C$615,0),MATCH(AF$3,'[64]Dados AECOM'!$D$2:$BK$2,0))*BG37 -> 8487 | AG37: =INDEX('[64]Dados AECOM'!$D$580:$BK$615,MATCH($C37,'[64]Dados AECOM'!$C$580:$C$615,0),MATCH(AG$3,'[64]Dados AECOM'!$D$2:$BK$2,0))*BH37 -> 21148 | AH37: =INDEX('[64]Dados AECOM'!$D$580:$BN$615,MATCH($C37,'[64]Dados AECOM'!$C$580:$C$615,0),MATCH(AH$3,'[64]Dados AECOM'!$D$2:$BN$2,0))*BI37 -> 5872 | AK37: 4 | AL37: 1 | AM37: 1 | AN37: 1 | AO37: 1 | AP37: 1 | AQ37: 1 | AR37: 1 | AS37: 1 | AT37: 1 | AU37: 1 | AV37: 1 | AW37: 1 | AX37: 1 | AY37: 1 | AZ37: 1 | BA37: 1 | BB37: 1 | BC37: 1 | BD37: 1 | BE37: 1 | BF37: 1 | BG37: 1 | BH37: 1 | BI37: 1
B38: 38 | C38: 2027 | D38: População | E38: 1143158.805 | F38: 3220651.565 | G38: 0 | H38: 0 | I38: 0 | K38: =INDEX('[64]Dados AECOM'!$D$580:$BK$615,MATCH($C38,'[64]Dados AECOM'!$C$580:$C$615,0),MATCH(K$3,'[64]Dados AECOM'!$D$2:$BK$2,0))*AL38 -> 54802 | L38: =INDEX('[64]Dados AECOM'!$D$580:$BK$615,MATCH($C38,'[64]Dados AECOM'!$C$580:$C$615,0),MATCH(L$3,'[64]Dados AECOM'!$D$2:$BK$2,0))*AM38 -> 43724 | M38: =INDEX('[64]Dados AECOM'!$D$580:$BK$615,MATCH($C38,'[64]Dados AECOM'!$C$580:$C$615,0),MATCH(M$3,'[64]Dados AECOM'!$D$2:$BK$2,0))*AN38 -> 59093 | N38: =INDEX('[64]Dados AECOM'!$D$580:$BK$615,MATCH($C38,'[64]Dados AECOM'!$C$580:$C$615,0),MATCH(N$3,'[64]Dados AECOM'!$D$2:$BK$2,0))*AO38 -> 352153.5648 | O38: =INDEX('[64]Dados AECOM'!$D$580:$BK$615,MATCH($C38,'[64]Dados AECOM'!$C$580:$C$615,0),MATCH(O$3,'[64]Dados AECOM'!$D$2:$BK$2,0))*AP38 -> 13430 | P38: =INDEX('[64]Dados AECOM'!$D$580:$BK$615,MATCH($C38,'[64]Dados AECOM'!$C$580:$C$615,0),MATCH(P$3,'[64]Dados AECOM'!$D$2:$BK$2,0))*AQ38 -> 55938 | Q38: =INDEX('[64]Dados AECOM'!$D$580:$BK$615,MATCH($C38,'[64]Dados AECOM'!$C$580:$C$615,0),MATCH(Q$3,'[64]Dados AECOM'!$D$2:$BK$2,0))*AR38 -> 6964 | R38: =INDEX('[64]Dados AECOM'!$D$580:$BK$615,MATCH($C38,'[64]Dados AECOM'!$C$580:$C$615,0),MATCH(R$3,'[64]Dados AECOM'!$D$2:$BK$2,0))*AS38 -> 2776699 | S38: =INDEX('[64]Dados AECOM'!$D$580:$BK$615,MATCH($C38,'[64]Dados AECOM'!$C$580:$C$615,0),MATCH(S$3,'[64]Dados AECOM'!$D$2:$BK$2,0))*AT38 -> 16725 | T38: =INDEX('[64]Dados AECOM'!$D$580:$BK$615,MATCH($C38,'[64]Dados AECOM'!$C$580:$C$615,0),MATCH(T$3,'[64]Dados AECOM'!$D$2:$BK$2,0))*AU38 -> 63353 | U38: =INDEX('[64]Dados AECOM'!$D$580:$BK$615,MATCH($C38,'[64]Dados AECOM'!$C$580:$C$615,0),MATCH(U$3,'[64]Dados AECOM'!$D$2:$BK$2,0))*AV38 -> 44020 | V38: =INDEX('[64]Dados AECOM'!$D$580:$BK$615,MATCH($C38,'[64]Dados AECOM'!$C$580:$C$615,0),MATCH(V$3,'[64]Dados AECOM'!$D$2:$BK$2,0))*AW38 -> 279895 | W38: =INDEX('[64]Dados AECOM'!$D$580:$BK$615,MATCH($C38,'[64]Dados AECOM'!$C$580:$C$615,0),MATCH(W$3,'[64]Dados AECOM'!$D$2:$BK$2,0))*AX38 -> 236232 | X38: =INDEX('[64]Dados AECOM'!$D$580:$BK$615,MATCH($C38,'[64]Dados AECOM'!$C$580:$C$615,0),MATCH(X$3,'[64]Dados AECOM'!$D$2:$BK$2,0))*AY38 -> 96273 | Y38: =INDEX('[64]Dados AECOM'!$D$580:$BK$615,MATCH($C38,'[64]Dados AECOM'!$C$580:$C$615,0),MATCH(Y$3,'[64]Dados AECOM'!$D$2:$BK$2,0))*AZ38 -> 15409 | Z38: =INDEX('[64]Dados AECOM'!$D$580:$BK$615,MATCH($C38,'[64]Dados AECOM'!$C$580:$C$615,0),MATCH(Z$3,'[64]Dados AECOM'!$D$2:$BK$2,0))*BA38 -> 14627.8054 | AA38: =INDEX('[64]Dados AECOM'!$D$580:$BK$615,MATCH($C38,'[64]Dados AECOM'!$C$580:$C$615,0),MATCH(AA$3,'[64]Dados AECOM'!$D$2:$BK$2,0))*BB38 -> 61658 | AB38: =INDEX('[64]Dados AECOM'!$D$580:$BK$615,MATCH($C38,'[64]Dados AECOM'!$C$580:$C$615,0),MATCH(AB$3,'[64]Dados AECOM'!$D$2:$BK$2,0))*BC38 -> 75139 | AC38: =INDEX('[64]Dados AECOM'!$D$580:$BK$615,MATCH($C38,'[64]Dados AECOM'!$C$580:$C$615,0),MATCH(AC$3,'[64]Dados AECOM'!$D$2:$BK$2,0))*BD38 -> 23443 | AD38: =INDEX('[64]Dados AECOM'!$D$580:$BK$615,MATCH($C38,'[64]Dados AECOM'!$C$580:$C$615,0),MATCH(AD$3,'[64]Dados AECOM'!$D$2:$BK$2,0))*BE38 -> 12899 | AE38: =INDEX('[64]Dados AECOM'!$D$580:$BK$615,MATCH($C38,'[64]Dados AECOM'!$C$580:$C$615,0),MATCH(AE$3,'[64]Dados AECOM'!$D$2:$BK$2,0))*BF38 -> 25639 | AF38: =INDEX('[64]Dados AECOM'!$D$580:$BK$615,MATCH($C38,'[64]Dados AECOM'!$C$580:$C$615,0),MATCH(AF$3,'[64]Dados AECOM'!$D$2:$BK$2,0))*BG38 -> 8508 | AG38: =INDEX('[64]Dados AECOM'!$D$580:$BK$615,MATCH($C38,'[64]Dados AECOM'!$C$580:$C$615,0),MATCH(AG$3,'[64]Dados AECOM'!$D$2:$BK$2,0))*BH38 -> 21310 | AH38: =INDEX('[64]Dados AECOM'!$D$580:$BN$615,MATCH($C38,'[64]Dados AECOM'!$C$580:$C$615,0),MATCH(AH$3,'[64]Dados AECOM'!$D$2:$BN$2,0))*BI38 -> 5876 | AK38: 5 | AL38: 1 | AM38: 1 | AN38: 1 | AO38: 1 | AP38: 1 | AQ38: 1 | AR38: 1 | AS38: 1 | AT38: 1 | AU38: 1 | AV38: 1 | AW38: 1 | AX38: 1 | AY38: 1 | AZ38: 1 | BA38: 1 | BB38: 1 | BC38: 1 | BD38: 1 | BE38: 1 | BF38: 1 | BG38: 1 | BH38: 1 | BI38: 1
B39: 39 | C39: 2028 | D39: População | E39: 1149821.287 | F39: 3234991.008 | G39: 0 | H39: 0 | I39: 0 | K39: =INDEX('[64]Dados AECOM'!$D$580:$BK$615,MATCH($C39,'[64]Dados AECOM'!$C$580:$C$615,0),MATCH(K$3,'[64]Dados AECOM'!$D$2:$BK$2,0))*AL39 -> 55227 | L39: =INDEX('[64]Dados AECOM'!$D$580:$BK$615,MATCH($C39,'[64]Dados AECOM'!$C$580:$C$615,0),MATCH(L$3,'[64]Dados AECOM'!$D$2:$BK$2,0))*AM39 -> 43947 | M39: =INDEX('[64]Dados AECOM'!$D$580:$BK$615,MATCH($C39,'[64]Dados AECOM'!$C$580:$C$615,0),MATCH(M$3,'[64]Dados AECOM'!$D$2:$BK$2,0))*AN39 -> 59391 | N39: =INDEX('[64]Dados AECOM'!$D$580:$BK$615,MATCH($C39,'[64]Dados AECOM'!$C$580:$C$615,0),MATCH(N$3,'[64]Dados AECOM'!$D$2:$BK$2,0))*AO39 -> 354487.0076 | O39: =INDEX('[64]Dados AECOM'!$D$580:$BK$615,MATCH($C39,'[64]Dados AECOM'!$C$580:$C$615,0),MATCH(O$3,'[64]Dados AECOM'!$D$2:$BK$2,0))*AP39 -> 13539 | P39: =INDEX('[64]Dados AECOM'!$D$580:$BK$615,MATCH($C39,'[64]Dados AECOM'!$C$580:$C$615,0),MATCH(P$3,'[64]Dados AECOM'!$D$2:$BK$2,0))*AQ39 -> 56289 | Q39: =INDEX('[64]Dados AECOM'!$D$580:$BK$615,MATCH($C39,'[64]Dados AECOM'!$C$580:$C$615,0),MATCH(Q$3,'[64]Dados AECOM'!$D$2:$BK$2,0))*AR39 -> 6966 | R39: =INDEX('[64]Dados AECOM'!$D$580:$BK$615,MATCH($C39,'[64]Dados AECOM'!$C$580:$C$615,0),MATCH(R$3,'[64]Dados AECOM'!$D$2:$BK$2,0))*AS39 -> 2788186 | S39: =INDEX('[64]Dados AECOM'!$D$580:$BK$615,MATCH($C39,'[64]Dados AECOM'!$C$580:$C$615,0),MATCH(S$3,'[64]Dados AECOM'!$D$2:$BK$2,0))*AT39 -> 16808 | T39: =INDEX('[64]Dados AECOM'!$D$580:$BK$615,MATCH($C39,'[64]Dados AECOM'!$C$580:$C$615,0),MATCH(T$3,'[64]Dados AECOM'!$D$2:$BK$2,0))*AU39 -> 63800 | U39: =INDEX('[64]Dados AECOM'!$D$580:$BK$615,MATCH($C39,'[64]Dados AECOM'!$C$580:$C$615,0),MATCH(U$3,'[64]Dados AECOM'!$D$2:$BK$2,0))*AV39 -> 44389 | V39: =INDEX('[64]Dados AECOM'!$D$580:$BK$615,MATCH($C39,'[64]Dados AECOM'!$C$580:$C$615,0),MATCH(V$3,'[64]Dados AECOM'!$D$2:$BK$2,0))*AW39 -> 281303 | W39: =INDEX('[64]Dados AECOM'!$D$580:$BK$615,MATCH($C39,'[64]Dados AECOM'!$C$580:$C$615,0),MATCH(W$3,'[64]Dados AECOM'!$D$2:$BK$2,0))*AX39 -> 237358 | X39: =INDEX('[64]Dados AECOM'!$D$580:$BK$615,MATCH($C39,'[64]Dados AECOM'!$C$580:$C$615,0),MATCH(X$3,'[64]Dados AECOM'!$D$2:$BK$2,0))*AY39 -> 96984 | Y39: =INDEX('[64]Dados AECOM'!$D$580:$BK$615,MATCH($C39,'[64]Dados AECOM'!$C$580:$C$615,0),MATCH(Y$3,'[64]Dados AECOM'!$D$2:$BK$2,0))*AZ39 -> 15499 | Z39: =INDEX('[64]Dados AECOM'!$D$580:$BK$615,MATCH($C39,'[64]Dados AECOM'!$C$580:$C$615,0),MATCH(Z$3,'[64]Dados AECOM'!$D$2:$BK$2,0))*BA39 -> 14798.28694 | AA39: =INDEX('[64]Dados AECOM'!$D$580:$BK$615,MATCH($C39,'[64]Dados AECOM'!$C$580:$C$615,0),MATCH(AA$3,'[64]Dados AECOM'!$D$2:$BK$2,0))*BB39 -> 62094 | AB39: =INDEX('[64]Dados AECOM'!$D$580:$BK$615,MATCH($C39,'[64]Dados AECOM'!$C$580:$C$615,0),MATCH(AB$3,'[64]Dados AECOM'!$D$2:$BK$2,0))*BC39 -> 75548 | AC39: =INDEX('[64]Dados AECOM'!$D$580:$BK$615,MATCH($C39,'[64]Dados AECOM'!$C$580:$C$615,0),MATCH(AC$3,'[64]Dados AECOM'!$D$2:$BK$2,0))*BD39 -> 23575 | AD39: =INDEX('[64]Dados AECOM'!$D$580:$BK$615,MATCH($C39,'[64]Dados AECOM'!$C$580:$C$615,0),MATCH(AD$3,'[64]Dados AECOM'!$D$2:$BK$2,0))*BE39 -> 12945 | AE39: =INDEX('[64]Dados AECOM'!$D$580:$BK$615,MATCH($C39,'[64]Dados AECOM'!$C$580:$C$615,0),MATCH(AE$3,'[64]Dados AECOM'!$D$2:$BK$2,0))*BF39 -> 25811 | AF39: =INDEX('[64]Dados AECOM'!$D$580:$BK$615,MATCH($C39,'[64]Dados AECOM'!$C$580:$C$615,0),MATCH(AF$3,'[64]Dados AECOM'!$D$2:$BK$2,0))*BG39 -> 8527 | AG39: =INDEX('[64]Dados AECOM'!$D$580:$BK$615,MATCH($C39,'[64]Dados AECOM'!$C$580:$C$615,0),MATCH(AG$3,'[64]Dados AECOM'!$D$2:$BK$2,0))*BH39 -> 21460 | AH39: =INDEX('[64]Dados AECOM'!$D$580:$BN$615,MATCH($C39,'[64]Dados AECOM'!$C$580:$C$615,0),MATCH(AH$3,'[64]Dados AECOM'!$D$2:$BN$2,0))*BI39 -> 5881 | AK39: 6 | AL39: 1 | AM39: 1 | AN39: 1 | AO39: 1 | AP39: 1 | AQ39: 1 | AR39: 1 | AS39: 1 | AT39: 1 | AU39: 1 | AV39: 1 | AW39: 1 | AX39: 1 | AY39: 1 | AZ39: 1 | BA39: 1 | BB39: 1 | BC39: 1 | BD39: 1 | BE39: 1 | BF39: 1 | BG39: 1 | BH39: 1 | BI39: 1
B40: 40 | C40: 2029 | D40: População | E40: 1156021.271 | F40: 3248308.848 | G40: 0 | H40: 0 | I40: 0 | K40: =INDEX('[64]Dados AECOM'!$D$580:$BK$615,MATCH($C40,'[64]Dados AECOM'!$C$580:$C$615,0),MATCH(K$3,'[64]Dados AECOM'!$D$2:$BK$2,0))*AL40 -> 55624 | L40: =INDEX('[64]Dados AECOM'!$D$580:$BK$615,MATCH($C40,'[64]Dados AECOM'!$C$580:$C$615,0),MATCH(L$3,'[64]Dados AECOM'!$D$2:$BK$2,0))*AM40 -> 44153 | M40: =INDEX('[64]Dados AECOM'!$D$580:$BK$615,MATCH($C40,'[64]Dados AECOM'!$C$580:$C$615,0),MATCH(M$3,'[64]Dados AECOM'!$D$2:$BK$2,0))*AN40 -> 59666 | N40: =INDEX('[64]Dados AECOM'!$D$580:$BK$615,MATCH($C40,'[64]Dados AECOM'!$C$580:$C$615,0),MATCH(N$3,'[64]Dados AECOM'!$D$2:$BK$2,0))*AO40 -> 356652.8476 | O40: =INDEX('[64]Dados AECOM'!$D$580:$BK$615,MATCH($C40,'[64]Dados AECOM'!$C$580:$C$615,0),MATCH(O$3,'[64]Dados AECOM'!$D$2:$BK$2,0))*AP40 -> 13641 | P40: =INDEX('[64]Dados AECOM'!$D$580:$BK$615,MATCH($C40,'[64]Dados AECOM'!$C$580:$C$615,0),MATCH(P$3,'[64]Dados AECOM'!$D$2:$BK$2,0))*AQ40 -> 56615 | Q40: =INDEX('[64]Dados AECOM'!$D$580:$BK$615,MATCH($C40,'[64]Dados AECOM'!$C$580:$C$615,0),MATCH(Q$3,'[64]Dados AECOM'!$D$2:$BK$2,0))*AR40 -> 6969 | R40: =INDEX('[64]Dados AECOM'!$D$580:$BK$615,MATCH($C40,'[64]Dados AECOM'!$C$580:$C$615,0),MATCH(R$3,'[64]Dados AECOM'!$D$2:$BK$2,0))*AS40 -> 2798852 | S40: =INDEX('[64]Dados AECOM'!$D$580:$BK$615,MATCH($C40,'[64]Dados AECOM'!$C$580:$C$615,0),MATCH(S$3,'[64]Dados AECOM'!$D$2:$BK$2,0))*AT40 -> 16885 | T40: =INDEX('[64]Dados AECOM'!$D$580:$BK$615,MATCH($C40,'[64]Dados AECOM'!$C$580:$C$615,0),MATCH(T$3,'[64]Dados AECOM'!$D$2:$BK$2,0))*AU40 -> 64214 | U40: =INDEX('[64]Dados AECOM'!$D$580:$BK$615,MATCH($C40,'[64]Dados AECOM'!$C$580:$C$615,0),MATCH(U$3,'[64]Dados AECOM'!$D$2:$BK$2,0))*AV40 -> 44736 | V40: =INDEX('[64]Dados AECOM'!$D$580:$BK$615,MATCH($C40,'[64]Dados AECOM'!$C$580:$C$615,0),MATCH(V$3,'[64]Dados AECOM'!$D$2:$BK$2,0))*AW40 -> 282611 | W40: =INDEX('[64]Dados AECOM'!$D$580:$BK$615,MATCH($C40,'[64]Dados AECOM'!$C$580:$C$615,0),MATCH(W$3,'[64]Dados AECOM'!$D$2:$BK$2,0))*AX40 -> 238410 | X40: =INDEX('[64]Dados AECOM'!$D$580:$BK$615,MATCH($C40,'[64]Dados AECOM'!$C$580:$C$615,0),MATCH(X$3,'[64]Dados AECOM'!$D$2:$BK$2,0))*AY40 -> 97644 | Y40: =INDEX('[64]Dados AECOM'!$D$580:$BK$615,MATCH($C40,'[64]Dados AECOM'!$C$580:$C$615,0),MATCH(Y$3,'[64]Dados AECOM'!$D$2:$BK$2,0))*AZ40 -> 15581 | Z40: =INDEX('[64]Dados AECOM'!$D$580:$BK$615,MATCH($C40,'[64]Dados AECOM'!$C$580:$C$615,0),MATCH(Z$3,'[64]Dados AECOM'!$D$2:$BK$2,0))*BA40 -> 14957.27121 | AA40: =INDEX('[64]Dados AECOM'!$D$580:$BK$615,MATCH($C40,'[64]Dados AECOM'!$C$580:$C$615,0),MATCH(AA$3,'[64]Dados AECOM'!$D$2:$BK$2,0))*BB40 -> 62499 | AB40: =INDEX('[64]Dados AECOM'!$D$580:$BK$615,MATCH($C40,'[64]Dados AECOM'!$C$580:$C$615,0),MATCH(AB$3,'[64]Dados AECOM'!$D$2:$BK$2,0))*BC40 -> 75930 | AC40: =INDEX('[64]Dados AECOM'!$D$580:$BK$615,MATCH($C40,'[64]Dados AECOM'!$C$580:$C$615,0),MATCH(AC$3,'[64]Dados AECOM'!$D$2:$BK$2,0))*BD40 -> 23698 | AD40: =INDEX('[64]Dados AECOM'!$D$580:$BK$615,MATCH($C40,'[64]Dados AECOM'!$C$580:$C$615,0),MATCH(AD$3,'[64]Dados AECOM'!$D$2:$BK$2,0))*BE40 -> 12989 | AE40: =INDEX('[64]Dados AECOM'!$D$580:$BK$615,MATCH($C40,'[64]Dados AECOM'!$C$580:$C$615,0),MATCH(AE$3,'[64]Dados AECOM'!$D$2:$BK$2,0))*BF40 -> 25970 | AF40: =INDEX('[64]Dados AECOM'!$D$580:$BK$615,MATCH($C40,'[64]Dados AECOM'!$C$580:$C$615,0),MATCH(AF$3,'[64]Dados AECOM'!$D$2:$BK$2,0))*BG40 -> 8545 | AG40: =INDEX('[64]Dados AECOM'!$D$580:$BK$615,MATCH($C40,'[64]Dados AECOM'!$C$580:$C$615,0),MATCH(AG$3,'[64]Dados AECOM'!$D$2:$BK$2,0))*BH40 -> 21602 | AH40: =INDEX('[64]Dados AECOM'!$D$580:$BN$615,MATCH($C40,'[64]Dados AECOM'!$C$580:$C$615,0),MATCH(AH$3,'[64]Dados AECOM'!$D$2:$BN$2,0))*BI40 -> 5886 | AK40: 7 | AL40: 1 | AM40: 1 | AN40: 1 | AO40: 1 | AP40: 1 | AQ40: 1 | AR40: 1 | AS40: 1 | AT40: 1 | AU40: 1 | AV40: 1 | AW40: 1 | AX40: 1 | AY40: 1 | AZ40: 1 | BA40: 1 | BB40: 1 | BC40: 1 | BD40: 1 | BE40: 1 | BF40: 1 | BG40: 1 | BH40: 1 | BI40: 1
B41: 41 | C41: 2030 | D41: População | E41: 1161758.544 | F41: 3260607.108 | G41: 0 | H41: 0 | I41: 0 | K41: =INDEX('[64]Dados AECOM'!$D$580:$BK$615,MATCH($C41,'[64]Dados AECOM'!$C$580:$C$615,0),MATCH(K$3,'[64]Dados AECOM'!$D$2:$BK$2,0))*AL41 -> 55992 | L41: =INDEX('[64]Dados AECOM'!$D$580:$BK$615,MATCH($C41,'[64]Dados AECOM'!$C$580:$C$615,0),MATCH(L$3,'[64]Dados AECOM'!$D$2:$BK$2,0))*AM41 -> 44345 | M41: =INDEX('[64]Dados AECOM'!$D$580:$BK$615,MATCH($C41,'[64]Dados AECOM'!$C$580:$C$615,0),MATCH(M$3,'[64]Dados AECOM'!$D$2:$BK$2,0))*AN41 -> 59920 | N41: =INDEX('[64]Dados AECOM'!$D$580:$BK$615,MATCH($C41,'[64]Dados AECOM'!$C$580:$C$615,0),MATCH(N$3,'[64]Dados AECOM'!$D$2:$BK$2,0))*AO41 -> 358654.1081 | O41: =INDEX('[64]Dados AECOM'!$D$580:$BK$615,MATCH($C41,'[64]Dados AECOM'!$C$580:$C$615,0),MATCH(O$3,'[64]Dados AECOM'!$D$2:$BK$2,0))*AP41 -> 13735 | P41: =INDEX('[64]Dados AECOM'!$D$580:$BK$615,MATCH($C41,'[64]Dados AECOM'!$C$580:$C$615,0),MATCH(P$3,'[64]Dados AECOM'!$D$2:$BK$2,0))*AQ41 -> 56915 | Q41: =INDEX('[64]Dados AECOM'!$D$580:$BK$615,MATCH($C41,'[64]Dados AECOM'!$C$580:$C$615,0),MATCH(Q$3,'[64]Dados AECOM'!$D$2:$BK$2,0))*AR41 -> 6971 | R41: =INDEX('[64]Dados AECOM'!$D$580:$BK$615,MATCH($C41,'[64]Dados AECOM'!$C$580:$C$615,0),MATCH(R$3,'[64]Dados AECOM'!$D$2:$BK$2,0))*AS41 -> 2808705 | S41: =INDEX('[64]Dados AECOM'!$D$580:$BK$615,MATCH($C41,'[64]Dados AECOM'!$C$580:$C$615,0),MATCH(S$3,'[64]Dados AECOM'!$D$2:$BK$2,0))*AT41 -> 16956 | T41: =INDEX('[64]Dados AECOM'!$D$580:$BK$615,MATCH($C41,'[64]Dados AECOM'!$C$580:$C$615,0),MATCH(T$3,'[64]Dados AECOM'!$D$2:$BK$2,0))*AU41 -> 64597 | U41: =INDEX('[64]Dados AECOM'!$D$580:$BK$615,MATCH($C41,'[64]Dados AECOM'!$C$580:$C$615,0),MATCH(U$3,'[64]Dados AECOM'!$D$2:$BK$2,0))*AV41 -> 45061 | V41: =INDEX('[64]Dados AECOM'!$D$580:$BK$615,MATCH($C41,'[64]Dados AECOM'!$C$580:$C$615,0),MATCH(V$3,'[64]Dados AECOM'!$D$2:$BK$2,0))*AW41 -> 283818 | W41: =INDEX('[64]Dados AECOM'!$D$580:$BK$615,MATCH($C41,'[64]Dados AECOM'!$C$580:$C$615,0),MATCH(W$3,'[64]Dados AECOM'!$D$2:$BK$2,0))*AX41 -> 239387 | X41: =INDEX('[64]Dados AECOM'!$D$580:$BK$615,MATCH($C41,'[64]Dados AECOM'!$C$580:$C$615,0),MATCH(X$3,'[64]Dados AECOM'!$D$2:$BK$2,0))*AY41 -> 98255 | Y41: =INDEX('[64]Dados AECOM'!$D$580:$BK$615,MATCH($C41,'[64]Dados AECOM'!$C$580:$C$615,0),MATCH(Y$3,'[64]Dados AECOM'!$D$2:$BK$2,0))*AZ41 -> 15658 | Z41: =INDEX('[64]Dados AECOM'!$D$580:$BK$615,MATCH($C41,'[64]Dados AECOM'!$C$580:$C$615,0),MATCH(Z$3,'[64]Dados AECOM'!$D$2:$BK$2,0))*BA41 -> 15105.54374 | AA41: =INDEX('[64]Dados AECOM'!$D$580:$BK$615,MATCH($C41,'[64]Dados AECOM'!$C$580:$C$615,0),MATCH(AA$3,'[64]Dados AECOM'!$D$2:$BK$2,0))*BB41 -> 62873 | AB41: =INDEX('[64]Dados AECOM'!$D$580:$BK$615,MATCH($C41,'[64]Dados AECOM'!$C$580:$C$615,0),MATCH(AB$3,'[64]Dados AECOM'!$D$2:$BK$2,0))*BC41 -> 76281 | AC41: =INDEX('[64]Dados AECOM'!$D$580:$BK$615,MATCH($C41,'[64]Dados AECOM'!$C$580:$C$615,0),MATCH(AC$3,'[64]Dados AECOM'!$D$2:$BK$2,0))*BD41 -> 23811 | AD41: =INDEX('[64]Dados AECOM'!$D$580:$BK$615,MATCH($C41,'[64]Dados AECOM'!$C$580:$C$615,0),MATCH(AD$3,'[64]Dados AECOM'!$D$2:$BK$2,0))*BE41 -> 13028 | AE41: =INDEX('[64]Dados AECOM'!$D$580:$BK$615,MATCH($C41,'[64]Dados AECOM'!$C$580:$C$615,0),MATCH(AE$3,'[64]Dados AECOM'!$D$2:$BK$2,0))*BF41 -> 26117 | AF41: =INDEX('[64]Dados AECOM'!$D$580:$BK$615,MATCH($C41,'[64]Dados AECOM'!$C$580:$C$615,0),MATCH(AF$3,'[64]Dados AECOM'!$D$2:$BK$2,0))*BG41 -> 8562 | AG41: =INDEX('[64]Dados AECOM'!$D$580:$BK$615,MATCH($C41,'[64]Dados AECOM'!$C$580:$C$615,0),MATCH(AG$3,'[64]Dados AECOM'!$D$2:$BK$2,0))*BH41 -> 21730 | AH41: =INDEX('[64]Dados AECOM'!$D$580:$BN$615,MATCH($C41,'[64]Dados AECOM'!$C$580:$C$615,0),MATCH(AH$3,'[64]Dados AECOM'!$D$2:$BN$2,0))*BI41 -> 5889 | AK41: 8 | AL41: 1 | AM41: 1 | AN41: 1 | AO41: 1 | AP41: 1 | AQ41: 1 | AR41: 1 | AS41: 1 | AT41: 1 | AU41: 1 | AV41: 1 | AW41: 1 | AX41: 1 | AY41: 1 | AZ41: 1 | BA41: 1 | BB41: 1 | BC41: 1 | BD41: 1 | BE41: 1 | BF41: 1 | BG41: 1 | BH41: 1 | BI41: 1
B42: 42 | C42: 2031 | D42: População | E42: 1167058.2 | F42: 3271871.737 | G42: 0 | H42: 0 | I42: 0 | K42: =INDEX('[64]Dados AECOM'!$D$580:$BK$615,MATCH($C42,'[64]Dados AECOM'!$C$580:$C$615,0),MATCH(K$3,'[64]Dados AECOM'!$D$2:$BK$2,0))*AL42 -> 56329 | L42: =INDEX('[64]Dados AECOM'!$D$580:$BK$615,MATCH($C42,'[64]Dados AECOM'!$C$580:$C$615,0),MATCH(L$3,'[64]Dados AECOM'!$D$2:$BK$2,0))*AM42 -> 44519 | M42: =INDEX('[64]Dados AECOM'!$D$580:$BK$615,MATCH($C42,'[64]Dados AECOM'!$C$580:$C$615,0),MATCH(M$3,'[64]Dados AECOM'!$D$2:$BK$2,0))*AN42 -> 60155 | N42: =INDEX('[64]Dados AECOM'!$D$580:$BK$615,MATCH($C42,'[64]Dados AECOM'!$C$580:$C$615,0),MATCH(N$3,'[64]Dados AECOM'!$D$2:$BK$2,0))*AO42 -> 360486.737 | O42: =INDEX('[64]Dados AECOM'!$D$580:$BK$615,MATCH($C42,'[64]Dados AECOM'!$C$580:$C$615,0),MATCH(O$3,'[64]Dados AECOM'!$D$2:$BK$2,0))*AP42 -> 13820 | P42: =INDEX('[64]Dados AECOM'!$D$580:$BK$615,MATCH($C42,'[64]Dados AECOM'!$C$580:$C$615,0),MATCH(P$3,'[64]Dados AECOM'!$D$2:$BK$2,0))*AQ42 -> 57191 | Q42: =INDEX('[64]Dados AECOM'!$D$580:$BK$615,MATCH($C42,'[64]Dados AECOM'!$C$580:$C$615,0),MATCH(Q$3,'[64]Dados AECOM'!$D$2:$BK$2,0))*AR42 -> 6972 | R42: =INDEX('[64]Dados AECOM'!$D$580:$BK$615,MATCH($C42,'[64]Dados AECOM'!$C$580:$C$615,0),MATCH(R$3,'[64]Dados AECOM'!$D$2:$BK$2,0))*AS42 -> 2817729 | S42: =INDEX('[64]Dados AECOM'!$D$580:$BK$615,MATCH($C42,'[64]Dados AECOM'!$C$580:$C$615,0),MATCH(S$3,'[64]Dados AECOM'!$D$2:$BK$2,0))*AT42 -> 17021 | T42: =INDEX('[64]Dados AECOM'!$D$580:$BK$615,MATCH($C42,'[64]Dados AECOM'!$C$580:$C$615,0),MATCH(T$3,'[64]Dados AECOM'!$D$2:$BK$2,0))*AU42 -> 64947 | U42: =INDEX('[64]Dados AECOM'!$D$580:$BK$615,MATCH($C42,'[64]Dados AECOM'!$C$580:$C$615,0),MATCH(U$3,'[64]Dados AECOM'!$D$2:$BK$2,0))*AV42 -> 45363 | V42: =INDEX('[64]Dados AECOM'!$D$580:$BK$615,MATCH($C42,'[64]Dados AECOM'!$C$580:$C$615,0),MATCH(V$3,'[64]Dados AECOM'!$D$2:$BK$2,0))*AW42 -> 284924 | W42: =INDEX('[64]Dados AECOM'!$D$580:$BK$615,MATCH($C42,'[64]Dados AECOM'!$C$580:$C$615,0),MATCH(W$3,'[64]Dados AECOM'!$D$2:$BK$2,0))*AX42 -> 240289 | X42: =INDEX('[64]Dados AECOM'!$D$580:$BK$615,MATCH($C42,'[64]Dados AECOM'!$C$580:$C$615,0),MATCH(X$3,'[64]Dados AECOM'!$D$2:$BK$2,0))*AY42 -> 98814 | Y42: =INDEX('[64]Dados AECOM'!$D$580:$BK$615,MATCH($C42,'[64]Dados AECOM'!$C$580:$C$615,0),MATCH(Y$3,'[64]Dados AECOM'!$D$2:$BK$2,0))*AZ42 -> 15728 | Z42: =INDEX('[64]Dados AECOM'!$D$580:$BK$615,MATCH($C42,'[64]Dados AECOM'!$C$580:$C$615,0),MATCH(Z$3,'[64]Dados AECOM'!$D$2:$BK$2,0))*BA42 -> 15242.19984 | AA42: =INDEX('[64]Dados AECOM'!$D$580:$BK$615,MATCH($C42,'[64]Dados AECOM'!$C$580:$C$615,0),MATCH(AA$3,'[64]Dados AECOM'!$D$2:$BK$2,0))*BB42 -> 63215 | AB42: =INDEX('[64]Dados AECOM'!$D$580:$BK$615,MATCH($C42,'[64]Dados AECOM'!$C$580:$C$615,0),MATCH(AB$3,'[64]Dados AECOM'!$D$2:$BK$2,0))*BC42 -> 76636 | AC42: =INDEX('[64]Dados AECOM'!$D$580:$BK$615,MATCH($C42,'[64]Dados AECOM'!$C$580:$C$615,0),MATCH(AC$3,'[64]Dados AECOM'!$D$2:$BK$2,0))*BD42 -> 23915 | AD42: =INDEX('[64]Dados AECOM'!$D$580:$BK$615,MATCH($C42,'[64]Dados AECOM'!$C$580:$C$615,0),MATCH(AD$3,'[64]Dados AECOM'!$D$2:$BK$2,0))*BE42 -> 13064 | AE42: =INDEX('[64]Dados AECOM'!$D$580:$BK$615,MATCH($C42,'[64]Dados AECOM'!$C$580:$C$615,0),MATCH(AE$3,'[64]Dados AECOM'!$D$2:$BK$2,0))*BF42 -> 26252 | AF42: =INDEX('[64]Dados AECOM'!$D$580:$BK$615,MATCH($C42,'[64]Dados AECOM'!$C$580:$C$615,0),MATCH(AF$3,'[64]Dados AECOM'!$D$2:$BK$2,0))*BG42 -> 8577 | AG42: =INDEX('[64]Dados AECOM'!$D$580:$BK$615,MATCH($C42,'[64]Dados AECOM'!$C$580:$C$615,0),MATCH(AG$3,'[64]Dados AECOM'!$D$2:$BK$2,0))*BH42 -> 21848 | AH42: =INDEX('[64]Dados AECOM'!$D$580:$BN$615,MATCH($C42,'[64]Dados AECOM'!$C$580:$C$615,0),MATCH(AH$3,'[64]Dados AECOM'!$D$2:$BN$2,0))*BI42 -> 5893 | AK42: 9 | AL42: 1 | AM42: 1 | AN42: 1 | AO42: 1 | AP42: 1 | AQ42: 1 | AR42: 1 | AS42: 1 | AT42: 1 | AU42: 1 | AV42: 1 | AW42: 1 | AX42: 1 | AY42: 1 | AZ42: 1 | BA42: 1 | BB42: 1 | BC42: 1 | BD42: 1 | BE42: 1 | BF42: 1 | BG42: 1 | BH42: 1 | BI42: 1
B43: 43 | C43: 2032 | D43: População | E43: =SUMIFS($K43:$AH43,$K$18:$AH$18,E$4) -> 1171844.025 | F43: 3282053.61 | G43: 0 | H43: 0 | I43: 0 | K43: =INDEX('[64]Dados AECOM'!$D$580:$BK$615,MATCH($C43,'[64]Dados AECOM'!$C$580:$C$615,0),MATCH(K$3,'[64]Dados AECOM'!$D$2:$BK$2,0))*AL43 -> 56636 | L43: =INDEX('[64]Dados AECOM'!$D$580:$BK$615,MATCH($C43,'[64]Dados AECOM'!$C$580:$C$615,0),MATCH(L$3,'[64]Dados AECOM'!$D$2:$BK$2,0))*AM43 -> 44678 | M43: =INDEX('[64]Dados AECOM'!$D$580:$BK$615,MATCH($C43,'[64]Dados AECOM'!$C$580:$C$615,0),MATCH(M$3,'[64]Dados AECOM'!$D$2:$BK$2,0))*AN43 -> 60364 | N43: =INDEX('[64]Dados AECOM'!$D$580:$BK$615,MATCH($C43,'[64]Dados AECOM'!$C$580:$C$615,0),MATCH(N$3,'[64]Dados AECOM'!$D$2:$BK$2,0))*AO43 -> 362143.6097 | O43: =INDEX('[64]Dados AECOM'!$D$580:$BK$615,MATCH($C43,'[64]Dados AECOM'!$C$580:$C$615,0),MATCH(O$3,'[64]Dados AECOM'!$D$2:$BK$2,0))*AP43 -> 13898 | P43: =INDEX('[64]Dados AECOM'!$D$580:$BK$615,MATCH($C43,'[64]Dados AECOM'!$C$580:$C$615,0),MATCH(P$3,'[64]Dados AECOM'!$D$2:$BK$2,0))*AQ43 -> 57440 | Q43: =INDEX('[64]Dados AECOM'!$D$580:$BK$615,MATCH($C43,'[64]Dados AECOM'!$C$580:$C$615,0),MATCH(Q$3,'[64]Dados AECOM'!$D$2:$BK$2,0))*AR43 -> 6974 | R43: =INDEX('[64]Dados AECOM'!$D$580:$BK$615,MATCH($C43,'[64]Dados AECOM'!$C$580:$C$615,0),MATCH(R$3,'[64]Dados AECOM'!$D$2:$BK$2,0))*AS43 -> 2825884 | S43: =INDEX('[64]Dados AECOM'!$D$580:$BK$615,MATCH($C43,'[64]Dados AECOM'!$C$580:$C$615,0),MATCH(S$3,'[64]Dados AECOM'!$D$2:$BK$2,0))*AT43 -> 17080 | T43: =INDEX('[64]Dados AECOM'!$D$580:$BK$615,MATCH($C43,'[64]Dados AECOM'!$C$580:$C$615,0),MATCH(T$3,'[64]Dados AECOM'!$D$2:$BK$2,0))*AU43 -> 65265 | U43: =INDEX('[64]Dados AECOM'!$D$580:$BK$615,MATCH($C43,'[64]Dados AECOM'!$C$580:$C$615,0),MATCH(U$3,'[64]Dados AECOM'!$D$2:$BK$2,0))*AV43 -> 45641 | V43: =INDEX('[64]Dados AECOM'!$D$580:$BK$615,MATCH($C43,'[64]Dados AECOM'!$C$580:$C$615,0),MATCH(V$3,'[64]Dados AECOM'!$D$2:$BK$2,0))*AW43 -> 285924 | W43: =INDEX('[64]Dados AECOM'!$D$580:$BK$615,MATCH($C43,'[64]Dados AECOM'!$C$580:$C$615,0),MATCH(W$3,'[64]Dados AECOM'!$D$2:$BK$2,0))*AX43 -> 241116 | X43: =INDEX('[64]Dados AECOM'!$D$580:$BK$615,MATCH($C43,'[64]Dados AECOM'!$C$580:$C$615,0),MATCH(X$3,'[64]Dados AECOM'!$D$2:$BK$2,0))*AY43 -> 99320 | Y43: =INDEX('[64]Dados AECOM'!$D$580:$BK$615,MATCH($C43,'[64]Dados AECOM'!$C$580:$C$615,0),MATCH(Y$3,'[64]Dados AECOM'!$D$2:$BK$2,0))*AZ43 -> 15791 | Z43: =INDEX('[64]Dados AECOM'!$D$580:$BK$615,MATCH($C43,'[64]Dados AECOM'!$C$580:$C$615,0),MATCH(Z$3,'[64]Dados AECOM'!$D$2:$BK$2,0))*BA43 -> 15367.02505 | AA43: =INDEX('[64]Dados AECOM'!$D$580:$BK$615,MATCH($C43,'[64]Dados AECOM'!$C$580:$C$615,0),MATCH(AA$3,'[64]Dados AECOM'!$D$2:$BK$2,0))*BB43 -> 63525 | AB43: =INDEX('[64]Dados AECOM'!$D$580:$BK$615,MATCH($C43,'[64]Dados AECOM'!$C$580:$C$615,0),MATCH(AB$3,'[64]Dados AECOM'!$D$2:$BK$2,0))*BC43 -> 76928 | AC43: =INDEX('[64]Dados AECOM'!$D$580:$BK$615,MATCH($C43,'[64]Dados AECOM'!$C$580:$C$615,0),MATCH(AC$3,'[64]Dados AECOM'!$D$2:$BK$2,0))*BD43 -> 24009 | AD43: =INDEX('[64]Dados AECOM'!$D$580:$BK$615,MATCH($C43,'[64]Dados AECOM'!$C$580:$C$615,0),MATCH(AD$3,'[64]Dados AECOM'!$D$2:$BK$2,0))*BE43 -> 13096 | AE43: =INDEX('[64]Dados AECOM'!$D$580:$BK$615,MATCH($C43,'[64]Dados AECOM'!$C$580:$C$615,0),MATCH(AE$3,'[64]Dados AECOM'!$D$2:$BK$2,0))*BF43 -> 26373 | AF43: =INDEX('[64]Dados AECOM'!$D$580:$BK$615,MATCH($C43,'[64]Dados AECOM'!$C$580:$C$615,0),MATCH(AF$3,'[64]Dados AECOM'!$D$2:$BK$2,0))*BG43 -> 8591 | AG43: =INDEX('[64]Dados AECOM'!$D$580:$BK$615,MATCH($C43,'[64]Dados AECOM'!$C$580:$C$615,0),MATCH(AG$3,'[64]Dados AECOM'!$D$2:$BK$2,0))*BH43 -> 21957 | AH43: =INDEX('[64]Dados AECOM'!$D$580:$BN$615,MATCH($C43,'[64]Dados AECOM'!$C$580:$C$615,0),MATCH(AH$3,'[64]Dados AECOM'!$D$2:$BN$2,0))*BI43 -> 5897 | AK43: 10 | AL43: 1 | AM43: 1 | AN43: 1 | AO43: 1 | AP43: 1 | AQ43: 1 | AR43: 1 | AS43: 1 | AT43: 1 | AU43: 1 | AV43: 1 | AW43: 1 | AX43: 1 | AY43: 1 | AZ43: 1 | BA43: 1 | BB43: 1 | BC43: 1 | BD43: 1 | BE43: 1 | BF43: 1 | BG43: 1 | BH43: 1 | BI43: 1
B44: 44 | C44: 2033 | D44: População | E44: 1176134.507 | F44: 3291139.702 | G44: 0 | H44: 0 | I44: 0 | K44: =INDEX('[64]Dados AECOM'!$D$580:$BK$615,MATCH($C44,'[64]Dados AECOM'!$C$580:$C$615,0),MATCH(K$3,'[64]Dados AECOM'!$D$2:$BK$2,0))*AL44 -> 56911 | L44: =INDEX('[64]Dados AECOM'!$D$580:$BK$615,MATCH($C44,'[64]Dados AECOM'!$C$580:$C$615,0),MATCH(L$3,'[64]Dados AECOM'!$D$2:$BK$2,0))*AM44 -> 44818 | M44: =INDEX('[64]Dados AECOM'!$D$580:$BK$615,MATCH($C44,'[64]Dados AECOM'!$C$580:$C$615,0),MATCH(M$3,'[64]Dados AECOM'!$D$2:$BK$2,0))*AN44 -> 60554 | N44: =INDEX('[64]Dados AECOM'!$D$580:$BK$615,MATCH($C44,'[64]Dados AECOM'!$C$580:$C$615,0),MATCH(N$3,'[64]Dados AECOM'!$D$2:$BK$2,0))*AO44 -> 363621.7021 | O44: =INDEX('[64]Dados AECOM'!$D$580:$BK$615,MATCH($C44,'[64]Dados AECOM'!$C$580:$C$615,0),MATCH(O$3,'[64]Dados AECOM'!$D$2:$BK$2,0))*AP44 -> 13967 | P44: =INDEX('[64]Dados AECOM'!$D$580:$BK$615,MATCH($C44,'[64]Dados AECOM'!$C$580:$C$615,0),MATCH(P$3,'[64]Dados AECOM'!$D$2:$BK$2,0))*AQ44 -> 57662 | Q44: =INDEX('[64]Dados AECOM'!$D$580:$BK$615,MATCH($C44,'[64]Dados AECOM'!$C$580:$C$615,0),MATCH(Q$3,'[64]Dados AECOM'!$D$2:$BK$2,0))*AR44 -> 6975 | R44: =INDEX('[64]Dados AECOM'!$D$580:$BK$615,MATCH($C44,'[64]Dados AECOM'!$C$580:$C$615,0),MATCH(R$3,'[64]Dados AECOM'!$D$2:$BK$2,0))*AS44 -> 2833163 | S44: =INDEX('[64]Dados AECOM'!$D$580:$BK$615,MATCH($C44,'[64]Dados AECOM'!$C$580:$C$615,0),MATCH(S$3,'[64]Dados AECOM'!$D$2:$BK$2,0))*AT44 -> 17133 | T44: =INDEX('[64]Dados AECOM'!$D$580:$BK$615,MATCH($C44,'[64]Dados AECOM'!$C$580:$C$615,0),MATCH(T$3,'[64]Dados AECOM'!$D$2:$BK$2,0))*AU44 -> 65548 | U44: =INDEX('[64]Dados AECOM'!$D$580:$BK$615,MATCH($C44,'[64]Dados AECOM'!$C$580:$C$615,0),MATCH(U$3,'[64]Dados AECOM'!$D$2:$BK$2,0))*AV44 -> 45896 | V44: =INDEX('[64]Dados AECOM'!$D$580:$BK$615,MATCH($C44,'[64]Dados AECOM'!$C$580:$C$615,0),MATCH(V$3,'[64]Dados AECOM'!$D$2:$BK$2,0))*AW44 -> 286816 | W44: =INDEX('[64]Dados AECOM'!$D$580:$BK$615,MATCH($C44,'[64]Dados AECOM'!$C$580:$C$615,0),MATCH(W$3,'[64]Dados AECOM'!$D$2:$BK$2,0))*AX44 -> 241863 | X44: =INDEX('[64]Dados AECOM'!$D$580:$BK$615,MATCH($C44,'[64]Dados AECOM'!$C$580:$C$615,0),MATCH(X$3,'[64]Dados AECOM'!$D$2:$BK$2,0))*AY44 -> 99772 | Y44: =INDEX('[64]Dados AECOM'!$D$580:$BK$615,MATCH($C44,'[64]Dados AECOM'!$C$580:$C$615,0),MATCH(Y$3,'[64]Dados AECOM'!$D$2:$BK$2,0))*AZ44 -> 15848 | Z44: =INDEX('[64]Dados AECOM'!$D$580:$BK$615,MATCH($C44,'[64]Dados AECOM'!$C$580:$C$615,0),MATCH(Z$3,'[64]Dados AECOM'!$D$2:$BK$2,0))*BA44 -> 15480.50701 | AA44: =INDEX('[64]Dados AECOM'!$D$580:$BK$615,MATCH($C44,'[64]Dados AECOM'!$C$580:$C$615,0),MATCH(AA$3,'[64]Dados AECOM'!$D$2:$BK$2,0))*BB44 -> 63801 | AB44: =INDEX('[64]Dados AECOM'!$D$580:$BK$615,MATCH($C44,'[64]Dados AECOM'!$C$580:$C$615,0),MATCH(AB$3,'[64]Dados AECOM'!$D$2:$BK$2,0))*BC44 -> 77190 | AC44: =INDEX('[64]Dados AECOM'!$D$580:$BK$615,MATCH($C44,'[64]Dados AECOM'!$C$580:$C$615,0),MATCH(AC$3,'[64]Dados AECOM'!$D$2:$BK$2,0))*BD44 -> 24093 | AD44: =INDEX('[64]Dados AECOM'!$D$580:$BK$615,MATCH($C44,'[64]Dados AECOM'!$C$580:$C$615,0),MATCH(AD$3,'[64]Dados AECOM'!$D$2:$BK$2,0))*BE44 -> 13125 | AE44: =INDEX('[64]Dados AECOM'!$D$580:$BK$615,MATCH($C44,'[64]Dados AECOM'!$C$580:$C$615,0),MATCH(AE$3,'[64]Dados AECOM'!$D$2:$BK$2,0))*BF44 -> 26482 | AF44: =INDEX('[64]Dados AECOM'!$D$580:$BK$615,MATCH($C44,'[64]Dados AECOM'!$C$580:$C$615,0),MATCH(AF$3,'[64]Dados AECOM'!$D$2:$BK$2,0))*BG44 -> 8603 | AG44: =INDEX('[64]Dados AECOM'!$D$580:$BK$615,MATCH($C44,'[64]Dados AECOM'!$C$580:$C$615,0),MATCH(AG$3,'[64]Dados AECOM'!$D$2:$BK$2,0))*BH44 -> 22052 | AH44: =INDEX('[64]Dados AECOM'!$D$580:$BN$615,MATCH($C44,'[64]Dados AECOM'!$C$580:$C$615,0),MATCH(AH$3,'[64]Dados AECOM'!$D$2:$BN$2,0))*BI44 -> 5900 | AK44: 11 | AL44: 1 | AM44: 1 | AN44: 1 | AO44: 1 | AP44: 1 | AQ44: 1 | AR44: 1 | AS44: 1 | AT44: 1 | AU44: 1 | AV44: 1 | AW44: 1 | AX44: 1 | AY44: 1 | AZ44: 1 | BA44: 1 | BB44: 1 | BC44: 1 | BD44: 1 | BE44: 1 | BF44: 1 | BG44: 1 | BH44: 1 | BI44: 1
B45: 45 | C45: 2034 | D45: População | E45: 1179927.546 | F45: 3299138.033 | G45: 0 | H45: 0 | I45: 0 | K45: =INDEX('[64]Dados AECOM'!$D$580:$BK$615,MATCH($C45,'[64]Dados AECOM'!$C$580:$C$615,0),MATCH(K$3,'[64]Dados AECOM'!$D$2:$BK$2,0))*AL45 -> 57155 | L45: =INDEX('[64]Dados AECOM'!$D$580:$BK$615,MATCH($C45,'[64]Dados AECOM'!$C$580:$C$615,0),MATCH(L$3,'[64]Dados AECOM'!$D$2:$BK$2,0))*AM45 -> 44943 | M45: =INDEX('[64]Dados AECOM'!$D$580:$BK$615,MATCH($C45,'[64]Dados AECOM'!$C$580:$C$615,0),MATCH(M$3,'[64]Dados AECOM'!$D$2:$BK$2,0))*AN45 -> 60719 | N45: =INDEX('[64]Dados AECOM'!$D$580:$BK$615,MATCH($C45,'[64]Dados AECOM'!$C$580:$C$615,0),MATCH(N$3,'[64]Dados AECOM'!$D$2:$BK$2,0))*AO45 -> 364923.0326 | O45: =INDEX('[64]Dados AECOM'!$D$580:$BK$615,MATCH($C45,'[64]Dados AECOM'!$C$580:$C$615,0),MATCH(O$3,'[64]Dados AECOM'!$D$2:$BK$2,0))*AP45 -> 14028 | P45: =INDEX('[64]Dados AECOM'!$D$580:$BK$615,MATCH($C45,'[64]Dados AECOM'!$C$580:$C$615,0),MATCH(P$3,'[64]Dados AECOM'!$D$2:$BK$2,0))*AQ45 -> 57857 | Q45: =INDEX('[64]Dados AECOM'!$D$580:$BK$615,MATCH($C45,'[64]Dados AECOM'!$C$580:$C$615,0),MATCH(Q$3,'[64]Dados AECOM'!$D$2:$BK$2,0))*AR45 -> 6977 | R45: =INDEX('[64]Dados AECOM'!$D$580:$BK$615,MATCH($C45,'[64]Dados AECOM'!$C$580:$C$615,0),MATCH(R$3,'[64]Dados AECOM'!$D$2:$BK$2,0))*AS45 -> 2839571 | S45: =INDEX('[64]Dados AECOM'!$D$580:$BK$615,MATCH($C45,'[64]Dados AECOM'!$C$580:$C$615,0),MATCH(S$3,'[64]Dados AECOM'!$D$2:$BK$2,0))*AT45 -> 17179 | T45: =INDEX('[64]Dados AECOM'!$D$580:$BK$615,MATCH($C45,'[64]Dados AECOM'!$C$580:$C$615,0),MATCH(T$3,'[64]Dados AECOM'!$D$2:$BK$2,0))*AU45 -> 65797 | U45: =INDEX('[64]Dados AECOM'!$D$580:$BK$615,MATCH($C45,'[64]Dados AECOM'!$C$580:$C$615,0),MATCH(U$3,'[64]Dados AECOM'!$D$2:$BK$2,0))*AV45 -> 46127 | V45: =INDEX('[64]Dados AECOM'!$D$580:$BK$615,MATCH($C45,'[64]Dados AECOM'!$C$580:$C$615,0),MATCH(V$3,'[64]Dados AECOM'!$D$2:$BK$2,0))*AW45 -> 287602 | W45: =INDEX('[64]Dados AECOM'!$D$580:$BK$615,MATCH($C45,'[64]Dados AECOM'!$C$580:$C$615,0),MATCH(W$3,'[64]Dados AECOM'!$D$2:$BK$2,0))*AX45 -> 242529 | X45: =INDEX('[64]Dados AECOM'!$D$580:$BK$615,MATCH($C45,'[64]Dados AECOM'!$C$580:$C$615,0),MATCH(X$3,'[64]Dados AECOM'!$D$2:$BK$2,0))*AY45 -> 100170 | Y45: =INDEX('[64]Dados AECOM'!$D$580:$BK$615,MATCH($C45,'[64]Dados AECOM'!$C$580:$C$615,0),MATCH(Y$3,'[64]Dados AECOM'!$D$2:$BK$2,0))*AZ45 -> 15897 | Z45: =INDEX('[64]Dados AECOM'!$D$580:$BK$615,MATCH($C45,'[64]Dados AECOM'!$C$580:$C$615,0),MATCH(Z$3,'[64]Dados AECOM'!$D$2:$BK$2,0))*BA45 -> 15581.54643 | AA45: =INDEX('[64]Dados AECOM'!$D$580:$BK$615,MATCH($C45,'[64]Dados AECOM'!$C$580:$C$615,0),MATCH(AA$3,'[64]Dados AECOM'!$D$2:$BK$2,0))*BB45 -> 64044 | AB45: =INDEX('[64]Dados AECOM'!$D$580:$BK$615,MATCH($C45,'[64]Dados AECOM'!$C$580:$C$615,0),MATCH(AB$3,'[64]Dados AECOM'!$D$2:$BK$2,0))*BC45 -> 77420 | AC45: =INDEX('[64]Dados AECOM'!$D$580:$BK$615,MATCH($C45,'[64]Dados AECOM'!$C$580:$C$615,0),MATCH(AC$3,'[64]Dados AECOM'!$D$2:$BK$2,0))*BD45 -> 24166 | AD45: =INDEX('[64]Dados AECOM'!$D$580:$BK$615,MATCH($C45,'[64]Dados AECOM'!$C$580:$C$615,0),MATCH(AD$3,'[64]Dados AECOM'!$D$2:$BK$2,0))*BE45 -> 13151 | AE45: =INDEX('[64]Dados AECOM'!$D$580:$BK$615,MATCH($C45,'[64]Dados AECOM'!$C$580:$C$615,0),MATCH(AE$3,'[64]Dados AECOM'!$D$2:$BK$2,0))*BF45 -> 26576 | AF45: =INDEX('[64]Dados AECOM'!$D$580:$BK$615,MATCH($C45,'[64]Dados AECOM'!$C$580:$C$615,0),MATCH(AF$3,'[64]Dados AECOM'!$D$2:$BK$2,0))*BG45 -> 8614 | AG45: =INDEX('[64]Dados AECOM'!$D$580:$BK$615,MATCH($C45,'[64]Dados AECOM'!$C$580:$C$615,0),MATCH(AG$3,'[64]Dados AECOM'!$D$2:$BK$2,0))*BH45 -> 22137 | AH45: =INDEX('[64]Dados AECOM'!$D$580:$BN$615,MATCH($C45,'[64]Dados AECOM'!$C$580:$C$615,0),MATCH(AH$3,'[64]Dados AECOM'!$D$2:$BN$2,0))*BI45 -> 5902 | AK45: 12 | AL45: 1 | AM45: 1 | AN45: 1 | AO45: 1 | AP45: 1 | AQ45: 1 | AR45: 1 | AS45: 1 | AT45: 1 | AU45: 1 | AV45: 1 | AW45: 1 | AX45: 1 | AY45: 1 | AZ45: 1 | BA45: 1 | BB45: 1 | BC45: 1 | BD45: 1 | BE45: 1 | BF45: 1 | BG45: 1 | BH45: 1 | BI45: 1
B46: 46 | C46: 2035 | D46: População | E46: 1183234.219 | F46: 3306065.637 | G46: 0 | H46: 0 | I46: 0 | K46: =INDEX('[64]Dados AECOM'!$D$580:$BK$615,MATCH($C46,'[64]Dados AECOM'!$C$580:$C$615,0),MATCH(K$3,'[64]Dados AECOM'!$D$2:$BK$2,0))*AL46 -> 57368 | L46: =INDEX('[64]Dados AECOM'!$D$580:$BK$615,MATCH($C46,'[64]Dados AECOM'!$C$580:$C$615,0),MATCH(L$3,'[64]Dados AECOM'!$D$2:$BK$2,0))*AM46 -> 45051 | M46: =INDEX('[64]Dados AECOM'!$D$580:$BK$615,MATCH($C46,'[64]Dados AECOM'!$C$580:$C$615,0),MATCH(M$3,'[64]Dados AECOM'!$D$2:$BK$2,0))*AN46 -> 60862 | N46: =INDEX('[64]Dados AECOM'!$D$580:$BK$615,MATCH($C46,'[64]Dados AECOM'!$C$580:$C$615,0),MATCH(N$3,'[64]Dados AECOM'!$D$2:$BK$2,0))*AO46 -> 366050.6369 | O46: =INDEX('[64]Dados AECOM'!$D$580:$BK$615,MATCH($C46,'[64]Dados AECOM'!$C$580:$C$615,0),MATCH(O$3,'[64]Dados AECOM'!$D$2:$BK$2,0))*AP46 -> 14081 | P46: =INDEX('[64]Dados AECOM'!$D$580:$BK$615,MATCH($C46,'[64]Dados AECOM'!$C$580:$C$615,0),MATCH(P$3,'[64]Dados AECOM'!$D$2:$BK$2,0))*AQ46 -> 58027 | Q46: =INDEX('[64]Dados AECOM'!$D$580:$BK$615,MATCH($C46,'[64]Dados AECOM'!$C$580:$C$615,0),MATCH(Q$3,'[64]Dados AECOM'!$D$2:$BK$2,0))*AR46 -> 6978 | R46: =INDEX('[64]Dados AECOM'!$D$580:$BK$615,MATCH($C46,'[64]Dados AECOM'!$C$580:$C$615,0),MATCH(R$3,'[64]Dados AECOM'!$D$2:$BK$2,0))*AS46 -> 2845120 | S46: =INDEX('[64]Dados AECOM'!$D$580:$BK$615,MATCH($C46,'[64]Dados AECOM'!$C$580:$C$615,0),MATCH(S$3,'[64]Dados AECOM'!$D$2:$BK$2,0))*AT46 -> 17219 | T46: =INDEX('[64]Dados AECOM'!$D$580:$BK$615,MATCH($C46,'[64]Dados AECOM'!$C$580:$C$615,0),MATCH(T$3,'[64]Dados AECOM'!$D$2:$BK$2,0))*AU46 -> 66013 | U46: =INDEX('[64]Dados AECOM'!$D$580:$BK$615,MATCH($C46,'[64]Dados AECOM'!$C$580:$C$615,0),MATCH(U$3,'[64]Dados AECOM'!$D$2:$BK$2,0))*AV46 -> 46332 | V46: =INDEX('[64]Dados AECOM'!$D$580:$BK$615,MATCH($C46,'[64]Dados AECOM'!$C$580:$C$615,0),MATCH(V$3,'[64]Dados AECOM'!$D$2:$BK$2,0))*AW46 -> 288282 | W46: =INDEX('[64]Dados AECOM'!$D$580:$BK$615,MATCH($C46,'[64]Dados AECOM'!$C$580:$C$615,0),MATCH(W$3,'[64]Dados AECOM'!$D$2:$BK$2,0))*AX46 -> 243116 | X46: =INDEX('[64]Dados AECOM'!$D$580:$BK$615,MATCH($C46,'[64]Dados AECOM'!$C$580:$C$615,0),MATCH(X$3,'[64]Dados AECOM'!$D$2:$BK$2,0))*AY46 -> 100517 | Y46: =INDEX('[64]Dados AECOM'!$D$580:$BK$615,MATCH($C46,'[64]Dados AECOM'!$C$580:$C$615,0),MATCH(Y$3,'[64]Dados AECOM'!$D$2:$BK$2,0))*AZ46 -> 15940 | Z46: =INDEX('[64]Dados AECOM'!$D$580:$BK$615,MATCH($C46,'[64]Dados AECOM'!$C$580:$C$615,0),MATCH(Z$3,'[64]Dados AECOM'!$D$2:$BK$2,0))*BA46 -> 15670.21877 | AA46: =INDEX('[64]Dados AECOM'!$D$580:$BK$615,MATCH($C46,'[64]Dados AECOM'!$C$580:$C$615,0),MATCH(AA$3,'[64]Dados AECOM'!$D$2:$BK$2,0))*BB46 -> 64254 | AB46: =INDEX('[64]Dados AECOM'!$D$580:$BK$615,MATCH($C46,'[64]Dados AECOM'!$C$580:$C$615,0),MATCH(AB$3,'[64]Dados AECOM'!$D$2:$BK$2,0))*BC46 -> 77620 | AC46: =INDEX('[64]Dados AECOM'!$D$580:$BK$615,MATCH($C46,'[64]Dados AECOM'!$C$580:$C$615,0),MATCH(AC$3,'[64]Dados AECOM'!$D$2:$BK$2,0))*BD46 -> 24231 | AD46: =INDEX('[64]Dados AECOM'!$D$580:$BK$615,MATCH($C46,'[64]Dados AECOM'!$C$580:$C$615,0),MATCH(AD$3,'[64]Dados AECOM'!$D$2:$BK$2,0))*BE46 -> 13174 | AE46: =INDEX('[64]Dados AECOM'!$D$580:$BK$615,MATCH($C46,'[64]Dados AECOM'!$C$580:$C$615,0),MATCH(AE$3,'[64]Dados AECOM'!$D$2:$BK$2,0))*BF46 -> 26659 | AF46: =INDEX('[64]Dados AECOM'!$D$580:$BK$615,MATCH($C46,'[64]Dados AECOM'!$C$580:$C$615,0),MATCH(AF$3,'[64]Dados AECOM'!$D$2:$BK$2,0))*BG46 -> 8623 | AG46: =INDEX('[64]Dados AECOM'!$D$580:$BK$615,MATCH($C46,'[64]Dados AECOM'!$C$580:$C$615,0),MATCH(AG$3,'[64]Dados AECOM'!$D$2:$BK$2,0))*BH46 -> 22208 | AH46: =INDEX('[64]Dados AECOM'!$D$580:$BN$615,MATCH($C46,'[64]Dados AECOM'!$C$580:$C$615,0),MATCH(AH$3,'[64]Dados AECOM'!$D$2:$BN$2,0))*BI46 -> 5904 | AK46: 13 | AL46: 1 | AM46: 1 | AN46: 1 | AO46: 1 | AP46: 1 | AQ46: 1 | AR46: 1 | AS46: 1 | AT46: 1 | AU46: 1 | AV46: 1 | AW46: 1 | AX46: 1 | AY46: 1 | AZ46: 1 | BA46: 1 | BB46: 1 | BC46: 1 | BD46: 1 | BE46: 1 | BF46: 1 | BG46: 1 | BH46: 1 | BI46: 1
B47: 47 | C47: 2036 | D47: População | E47: 1186056.671 | F47: 3311932.546 | G47: 0 | H47: 0 | I47: 0 | K47: =INDEX('[64]Dados AECOM'!$D$580:$BK$615,MATCH($C47,'[64]Dados AECOM'!$C$580:$C$615,0),MATCH(K$3,'[64]Dados AECOM'!$D$2:$BK$2,0))*AL47 -> 57550 | L47: =INDEX('[64]Dados AECOM'!$D$580:$BK$615,MATCH($C47,'[64]Dados AECOM'!$C$580:$C$615,0),MATCH(L$3,'[64]Dados AECOM'!$D$2:$BK$2,0))*AM47 -> 45142 | M47: =INDEX('[64]Dados AECOM'!$D$580:$BK$615,MATCH($C47,'[64]Dados AECOM'!$C$580:$C$615,0),MATCH(M$3,'[64]Dados AECOM'!$D$2:$BK$2,0))*AN47 -> 60983 | N47: =INDEX('[64]Dados AECOM'!$D$580:$BK$615,MATCH($C47,'[64]Dados AECOM'!$C$580:$C$615,0),MATCH(N$3,'[64]Dados AECOM'!$D$2:$BK$2,0))*AO47 -> 367004.5458 | O47: =INDEX('[64]Dados AECOM'!$D$580:$BK$615,MATCH($C47,'[64]Dados AECOM'!$C$580:$C$615,0),MATCH(O$3,'[64]Dados AECOM'!$D$2:$BK$2,0))*AP47 -> 14126 | P47: =INDEX('[64]Dados AECOM'!$D$580:$BK$615,MATCH($C47,'[64]Dados AECOM'!$C$580:$C$615,0),MATCH(P$3,'[64]Dados AECOM'!$D$2:$BK$2,0))*AQ47 -> 58170 | Q47: =INDEX('[64]Dados AECOM'!$D$580:$BK$615,MATCH($C47,'[64]Dados AECOM'!$C$580:$C$615,0),MATCH(Q$3,'[64]Dados AECOM'!$D$2:$BK$2,0))*AR47 -> 6979 | R47: =INDEX('[64]Dados AECOM'!$D$580:$BK$615,MATCH($C47,'[64]Dados AECOM'!$C$580:$C$615,0),MATCH(R$3,'[64]Dados AECOM'!$D$2:$BK$2,0))*AS47 -> 2849819 | S47: =INDEX('[64]Dados AECOM'!$D$580:$BK$615,MATCH($C47,'[64]Dados AECOM'!$C$580:$C$615,0),MATCH(S$3,'[64]Dados AECOM'!$D$2:$BK$2,0))*AT47 -> 17253 | T47: =INDEX('[64]Dados AECOM'!$D$580:$BK$615,MATCH($C47,'[64]Dados AECOM'!$C$580:$C$615,0),MATCH(T$3,'[64]Dados AECOM'!$D$2:$BK$2,0))*AU47 -> 66196 | U47: =INDEX('[64]Dados AECOM'!$D$580:$BK$615,MATCH($C47,'[64]Dados AECOM'!$C$580:$C$615,0),MATCH(U$3,'[64]Dados AECOM'!$D$2:$BK$2,0))*AV47 -> 46513 | V47: =INDEX('[64]Dados AECOM'!$D$580:$BK$615,MATCH($C47,'[64]Dados AECOM'!$C$580:$C$615,0),MATCH(V$3,'[64]Dados AECOM'!$D$2:$BK$2,0))*AW47 -> 288858 | W47: =INDEX('[64]Dados AECOM'!$D$580:$BK$615,MATCH($C47,'[64]Dados AECOM'!$C$580:$C$615,0),MATCH(W$3,'[64]Dados AECOM'!$D$2:$BK$2,0))*AX47 -> 243624 | X47: =INDEX('[64]Dados AECOM'!$D$580:$BK$615,MATCH($C47,'[64]Dados AECOM'!$C$580:$C$615,0),MATCH(X$3,'[64]Dados AECOM'!$D$2:$BK$2,0))*AY47 -> 100810 | Y47: =INDEX('[64]Dados AECOM'!$D$580:$BK$615,MATCH($C47,'[64]Dados AECOM'!$C$580:$C$615,0),MATCH(Y$3,'[64]Dados AECOM'!$D$2:$BK$2,0))*AZ47 -> 15977 | Z47: =INDEX('[64]Dados AECOM'!$D$580:$BK$615,MATCH($C47,'[64]Dados AECOM'!$C$580:$C$615,0),MATCH(Z$3,'[64]Dados AECOM'!$D$2:$BK$2,0))*BA47 -> 15747.67098 | AA47: =INDEX('[64]Dados AECOM'!$D$580:$BK$615,MATCH($C47,'[64]Dados AECOM'!$C$580:$C$615,0),MATCH(AA$3,'[64]Dados AECOM'!$D$2:$BK$2,0))*BB47 -> 64433 | AB47: =INDEX('[64]Dados AECOM'!$D$580:$BK$615,MATCH($C47,'[64]Dados AECOM'!$C$580:$C$615,0),MATCH(AB$3,'[64]Dados AECOM'!$D$2:$BK$2,0))*BC47 -> 77789 | AC47: =INDEX('[64]Dados AECOM'!$D$580:$BK$615,MATCH($C47,'[64]Dados AECOM'!$C$580:$C$615,0),MATCH(AC$3,'[64]Dados AECOM'!$D$2:$BK$2,0))*BD47 -> 24284 | AD47: =INDEX('[64]Dados AECOM'!$D$580:$BK$615,MATCH($C47,'[64]Dados AECOM'!$C$580:$C$615,0),MATCH(AD$3,'[64]Dados AECOM'!$D$2:$BK$2,0))*BE47 -> 13193 | AE47: =INDEX('[64]Dados AECOM'!$D$580:$BK$615,MATCH($C47,'[64]Dados AECOM'!$C$580:$C$615,0),MATCH(AE$3,'[64]Dados AECOM'!$D$2:$BK$2,0))*BF47 -> 26730 | AF47: =INDEX('[64]Dados AECOM'!$D$580:$BK$615,MATCH($C47,'[64]Dados AECOM'!$C$580:$C$615,0),MATCH(AF$3,'[64]Dados AECOM'!$D$2:$BK$2,0))*BG47 -> 8631 | AG47: =INDEX('[64]Dados AECOM'!$D$580:$BK$615,MATCH($C47,'[64]Dados AECOM'!$C$580:$C$615,0),MATCH(AG$3,'[64]Dados AECOM'!$D$2:$BK$2,0))*BH47 -> 22271 | AH47: =INDEX('[64]Dados AECOM'!$D$580:$BN$615,MATCH($C47,'[64]Dados AECOM'!$C$580:$C$615,0),MATCH(AH$3,'[64]Dados AECOM'!$D$2:$BN$2,0))*BI47 -> 5906 | AK47: 14 | AL47: 1 | AM47: 1 | AN47: 1 | AO47: 1 | AP47: 1 | AQ47: 1 | AR47: 1 | AS47: 1 | AT47: 1 | AU47: 1 | AV47: 1 | AW47: 1 | AX47: 1 | AY47: 1 | AZ47: 1 | BA47: 1 | BB47: 1 | BC47: 1 | BD47: 1 | BE47: 1 | BF47: 1 | BG47: 1 | BH47: 1 | BI47: 1
B48: 48 | C48: 2037 | D48: População | E48: 1188395.03 | F48: 3316737.755 | G48: 0 | H48: 0 | I48: 0 | K48: =INDEX('[64]Dados AECOM'!$D$580:$BK$615,MATCH($C48,'[64]Dados AECOM'!$C$580:$C$615,0),MATCH(K$3,'[64]Dados AECOM'!$D$2:$BK$2,0))*AL48 -> 57701 | L48: =INDEX('[64]Dados AECOM'!$D$580:$BK$615,MATCH($C48,'[64]Dados AECOM'!$C$580:$C$615,0),MATCH(L$3,'[64]Dados AECOM'!$D$2:$BK$2,0))*AM48 -> 45216 | M48: =INDEX('[64]Dados AECOM'!$D$580:$BK$615,MATCH($C48,'[64]Dados AECOM'!$C$580:$C$615,0),MATCH(M$3,'[64]Dados AECOM'!$D$2:$BK$2,0))*AN48 -> 61083 | N48: =INDEX('[64]Dados AECOM'!$D$580:$BK$615,MATCH($C48,'[64]Dados AECOM'!$C$580:$C$615,0),MATCH(N$3,'[64]Dados AECOM'!$D$2:$BK$2,0))*AO48 -> 367786.7554 | O48: =INDEX('[64]Dados AECOM'!$D$580:$BK$615,MATCH($C48,'[64]Dados AECOM'!$C$580:$C$615,0),MATCH(O$3,'[64]Dados AECOM'!$D$2:$BK$2,0))*AP48 -> 14162 | P48: =INDEX('[64]Dados AECOM'!$D$580:$BK$615,MATCH($C48,'[64]Dados AECOM'!$C$580:$C$615,0),MATCH(P$3,'[64]Dados AECOM'!$D$2:$BK$2,0))*AQ48 -> 58288 | Q48: =INDEX('[64]Dados AECOM'!$D$580:$BK$615,MATCH($C48,'[64]Dados AECOM'!$C$580:$C$615,0),MATCH(Q$3,'[64]Dados AECOM'!$D$2:$BK$2,0))*AR48 -> 6980 | R48: =INDEX('[64]Dados AECOM'!$D$580:$BK$615,MATCH($C48,'[64]Dados AECOM'!$C$580:$C$615,0),MATCH(R$3,'[64]Dados AECOM'!$D$2:$BK$2,0))*AS48 -> 2853667 | S48: =INDEX('[64]Dados AECOM'!$D$580:$BK$615,MATCH($C48,'[64]Dados AECOM'!$C$580:$C$615,0),MATCH(S$3,'[64]Dados AECOM'!$D$2:$BK$2,0))*AT48 -> 17281 | T48: =INDEX('[64]Dados AECOM'!$D$580:$BK$615,MATCH($C48,'[64]Dados AECOM'!$C$580:$C$615,0),MATCH(T$3,'[64]Dados AECOM'!$D$2:$BK$2,0))*AU48 -> 66345 | U48: =INDEX('[64]Dados AECOM'!$D$580:$BK$615,MATCH($C48,'[64]Dados AECOM'!$C$580:$C$615,0),MATCH(U$3,'[64]Dados AECOM'!$D$2:$BK$2,0))*AV48 -> 46670 | V48: =INDEX('[64]Dados AECOM'!$D$580:$BK$615,MATCH($C48,'[64]Dados AECOM'!$C$580:$C$615,0),MATCH(V$3,'[64]Dados AECOM'!$D$2:$BK$2,0))*AW48 -> 289330 | W48: =INDEX('[64]Dados AECOM'!$D$580:$BK$615,MATCH($C48,'[64]Dados AECOM'!$C$580:$C$615,0),MATCH(W$3,'[64]Dados AECOM'!$D$2:$BK$2,0))*AX48 -> 244055 | X48: =INDEX('[64]Dados AECOM'!$D$580:$BK$615,MATCH($C48,'[64]Dados AECOM'!$C$580:$C$615,0),MATCH(X$3,'[64]Dados AECOM'!$D$2:$BK$2,0))*AY48 -> 101052 | Y48: =INDEX('[64]Dados AECOM'!$D$580:$BK$615,MATCH($C48,'[64]Dados AECOM'!$C$580:$C$615,0),MATCH(Y$3,'[64]Dados AECOM'!$D$2:$BK$2,0))*AZ48 -> 16007 | Z48: =INDEX('[64]Dados AECOM'!$D$580:$BK$615,MATCH($C48,'[64]Dados AECOM'!$C$580:$C$615,0),MATCH(Z$3,'[64]Dados AECOM'!$D$2:$BK$2,0))*BA48 -> 15812.03017 | AA48: =INDEX('[64]Dados AECOM'!$D$580:$BK$615,MATCH($C48,'[64]Dados AECOM'!$C$580:$C$615,0),MATCH(AA$3,'[64]Dados AECOM'!$D$2:$BK$2,0))*BB48 -> 64579 | AB48: =INDEX('[64]Dados AECOM'!$D$580:$BK$615,MATCH($C48,'[64]Dados AECOM'!$C$580:$C$615,0),MATCH(AB$3,'[64]Dados AECOM'!$D$2:$BK$2,0))*BC48 -> 77927 | AC48: =INDEX('[64]Dados AECOM'!$D$580:$BK$615,MATCH($C48,'[64]Dados AECOM'!$C$580:$C$615,0),MATCH(AC$3,'[64]Dados AECOM'!$D$2:$BK$2,0))*BD48 -> 24329 | AD48: =INDEX('[64]Dados AECOM'!$D$580:$BK$615,MATCH($C48,'[64]Dados AECOM'!$C$580:$C$615,0),MATCH(AD$3,'[64]Dados AECOM'!$D$2:$BK$2,0))*BE48 -> 13208 | AE48: =INDEX('[64]Dados AECOM'!$D$580:$BK$615,MATCH($C48,'[64]Dados AECOM'!$C$580:$C$615,0),MATCH(AE$3,'[64]Dados AECOM'!$D$2:$BK$2,0))*BF48 -> 26787 | AF48: =INDEX('[64]Dados AECOM'!$D$580:$BK$615,MATCH($C48,'[64]Dados AECOM'!$C$580:$C$615,0),MATCH(AF$3,'[64]Dados AECOM'!$D$2:$BK$2,0))*BG48 -> 8638 | AG48: =INDEX('[64]Dados AECOM'!$D$580:$BK$615,MATCH($C48,'[64]Dados AECOM'!$C$580:$C$615,0),MATCH(AG$3,'[64]Dados AECOM'!$D$2:$BK$2,0))*BH48 -> 22322 | AH48: =INDEX('[64]Dados AECOM'!$D$580:$BN$615,MATCH($C48,'[64]Dados AECOM'!$C$580:$C$615,0),MATCH(AH$3,'[64]Dados AECOM'!$D$2:$BN$2,0))*BI48 -> 5907 | AK48: 15 | AL48: 1 | AM48: 1 | AN48: 1 | AO48: 1 | AP48: 1 | AQ48: 1 | AR48: 1 | AS48: 1 | AT48: 1 | AU48: 1 | AV48: 1 | AW48: 1 | AX48: 1 | AY48: 1 | AZ48: 1 | BA48: 1 | BB48: 1 | BC48: 1 | BD48: 1 | BE48: 1 | BF48: 1 | BG48: 1 | BH48: 1 | BI48: 1
B49: 49 | C49: 2038 | D49: População | E49: 1190252.28 | F49: 3320488.284 | G49: 0 | H49: 0 | I49: 0 | K49: =INDEX('[64]Dados AECOM'!$D$580:$BK$615,MATCH($C49,'[64]Dados AECOM'!$C$580:$C$615,0),MATCH(K$3,'[64]Dados AECOM'!$D$2:$BK$2,0))*AL49 -> 57822 | L49: =INDEX('[64]Dados AECOM'!$D$580:$BK$615,MATCH($C49,'[64]Dados AECOM'!$C$580:$C$615,0),MATCH(L$3,'[64]Dados AECOM'!$D$2:$BK$2,0))*AM49 -> 45274 | M49: =INDEX('[64]Dados AECOM'!$D$580:$BK$615,MATCH($C49,'[64]Dados AECOM'!$C$580:$C$615,0),MATCH(M$3,'[64]Dados AECOM'!$D$2:$BK$2,0))*AN49 -> 61160 | N49: =INDEX('[64]Dados AECOM'!$D$580:$BK$615,MATCH($C49,'[64]Dados AECOM'!$C$580:$C$615,0),MATCH(N$3,'[64]Dados AECOM'!$D$2:$BK$2,0))*AO49 -> 368397.2842 | O49: =INDEX('[64]Dados AECOM'!$D$580:$BK$615,MATCH($C49,'[64]Dados AECOM'!$C$580:$C$615,0),MATCH(O$3,'[64]Dados AECOM'!$D$2:$BK$2,0))*AP49 -> 14191 | P49: =INDEX('[64]Dados AECOM'!$D$580:$BK$615,MATCH($C49,'[64]Dados AECOM'!$C$580:$C$615,0),MATCH(P$3,'[64]Dados AECOM'!$D$2:$BK$2,0))*AQ49 -> 58379 | Q49: =INDEX('[64]Dados AECOM'!$D$580:$BK$615,MATCH($C49,'[64]Dados AECOM'!$C$580:$C$615,0),MATCH(Q$3,'[64]Dados AECOM'!$D$2:$BK$2,0))*AR49 -> 6980 | R49: =INDEX('[64]Dados AECOM'!$D$580:$BK$615,MATCH($C49,'[64]Dados AECOM'!$C$580:$C$615,0),MATCH(R$3,'[64]Dados AECOM'!$D$2:$BK$2,0))*AS49 -> 2856671 | S49: =INDEX('[64]Dados AECOM'!$D$580:$BK$615,MATCH($C49,'[64]Dados AECOM'!$C$580:$C$615,0),MATCH(S$3,'[64]Dados AECOM'!$D$2:$BK$2,0))*AT49 -> 17302 | T49: =INDEX('[64]Dados AECOM'!$D$580:$BK$615,MATCH($C49,'[64]Dados AECOM'!$C$580:$C$615,0),MATCH(T$3,'[64]Dados AECOM'!$D$2:$BK$2,0))*AU49 -> 66462 | U49: =INDEX('[64]Dados AECOM'!$D$580:$BK$615,MATCH($C49,'[64]Dados AECOM'!$C$580:$C$615,0),MATCH(U$3,'[64]Dados AECOM'!$D$2:$BK$2,0))*AV49 -> 46803 | V49: =INDEX('[64]Dados AECOM'!$D$580:$BK$615,MATCH($C49,'[64]Dados AECOM'!$C$580:$C$615,0),MATCH(V$3,'[64]Dados AECOM'!$D$2:$BK$2,0))*AW49 -> 289698 | W49: =INDEX('[64]Dados AECOM'!$D$580:$BK$615,MATCH($C49,'[64]Dados AECOM'!$C$580:$C$615,0),MATCH(W$3,'[64]Dados AECOM'!$D$2:$BK$2,0))*AX49 -> 244407 | X49: =INDEX('[64]Dados AECOM'!$D$580:$BK$615,MATCH($C49,'[64]Dados AECOM'!$C$580:$C$615,0),MATCH(X$3,'[64]Dados AECOM'!$D$2:$BK$2,0))*AY49 -> 101241 | Y49: =INDEX('[64]Dados AECOM'!$D$580:$BK$615,MATCH($C49,'[64]Dados AECOM'!$C$580:$C$615,0),MATCH(Y$3,'[64]Dados AECOM'!$D$2:$BK$2,0))*AZ49 -> 16030 | Z49: =INDEX('[64]Dados AECOM'!$D$580:$BK$615,MATCH($C49,'[64]Dados AECOM'!$C$580:$C$615,0),MATCH(Z$3,'[64]Dados AECOM'!$D$2:$BK$2,0))*BA49 -> 15865.28044 | AA49: =INDEX('[64]Dados AECOM'!$D$580:$BK$615,MATCH($C49,'[64]Dados AECOM'!$C$580:$C$615,0),MATCH(AA$3,'[64]Dados AECOM'!$D$2:$BK$2,0))*BB49 -> 64693 | AB49: =INDEX('[64]Dados AECOM'!$D$580:$BK$615,MATCH($C49,'[64]Dados AECOM'!$C$580:$C$615,0),MATCH(AB$3,'[64]Dados AECOM'!$D$2:$BK$2,0))*BC49 -> 78036 | AC49: =INDEX('[64]Dados AECOM'!$D$580:$BK$615,MATCH($C49,'[64]Dados AECOM'!$C$580:$C$615,0),MATCH(AC$3,'[64]Dados AECOM'!$D$2:$BK$2,0))*BD49 -> 24363 | AD49: =INDEX('[64]Dados AECOM'!$D$580:$BK$615,MATCH($C49,'[64]Dados AECOM'!$C$580:$C$615,0),MATCH(AD$3,'[64]Dados AECOM'!$D$2:$BK$2,0))*BE49 -> 13221 | AE49: =INDEX('[64]Dados AECOM'!$D$580:$BK$615,MATCH($C49,'[64]Dados AECOM'!$C$580:$C$615,0),MATCH(AE$3,'[64]Dados AECOM'!$D$2:$BK$2,0))*BF49 -> 26832 | AF49: =INDEX('[64]Dados AECOM'!$D$580:$BK$615,MATCH($C49,'[64]Dados AECOM'!$C$580:$C$615,0),MATCH(AF$3,'[64]Dados AECOM'!$D$2:$BK$2,0))*BG49 -> 8643 | AG49: =INDEX('[64]Dados AECOM'!$D$580:$BK$615,MATCH($C49,'[64]Dados AECOM'!$C$580:$C$615,0),MATCH(AG$3,'[64]Dados AECOM'!$D$2:$BK$2,0))*BH49 -> 22361 | AH49: =INDEX('[64]Dados AECOM'!$D$580:$BN$615,MATCH($C49,'[64]Dados AECOM'!$C$580:$C$615,0),MATCH(AH$3,'[64]Dados AECOM'!$D$2:$BN$2,0))*BI49 -> 5909 | AK49: 16 | AL49: 1 | AM49: 1 | AN49: 1 | AO49: 1 | AP49: 1 | AQ49: 1 | AR49: 1 | AS49: 1 | AT49: 1 | AU49: 1 | AV49: 1 | AW49: 1 | AX49: 1 | AY49: 1 | AZ49: 1 | BA49: 1 | BB49: 1 | BC49: 1 | BD49: 1 | BE49: 1 | BF49: 1 | BG49: 1 | BH49: 1 | BI49: 1
B50: 50 | C50: 2039 | D50: População | E50: 1191641.497 | F50: 3323204.196 | G50: 0 | H50: 0 | I50: 0 | K50: =INDEX('[64]Dados AECOM'!$D$580:$BK$615,MATCH($C50,'[64]Dados AECOM'!$C$580:$C$615,0),MATCH(K$3,'[64]Dados AECOM'!$D$2:$BK$2,0))*AL50 -> 57913 | L50: =INDEX('[64]Dados AECOM'!$D$580:$BK$615,MATCH($C50,'[64]Dados AECOM'!$C$580:$C$615,0),MATCH(L$3,'[64]Dados AECOM'!$D$2:$BK$2,0))*AM50 -> 45317 | M50: =INDEX('[64]Dados AECOM'!$D$580:$BK$615,MATCH($C50,'[64]Dados AECOM'!$C$580:$C$615,0),MATCH(M$3,'[64]Dados AECOM'!$D$2:$BK$2,0))*AN50 -> 61218 | N50: =INDEX('[64]Dados AECOM'!$D$580:$BK$615,MATCH($C50,'[64]Dados AECOM'!$C$580:$C$615,0),MATCH(N$3,'[64]Dados AECOM'!$D$2:$BK$2,0))*AO50 -> 368839.1958 | O50: =INDEX('[64]Dados AECOM'!$D$580:$BK$615,MATCH($C50,'[64]Dados AECOM'!$C$580:$C$615,0),MATCH(O$3,'[64]Dados AECOM'!$D$2:$BK$2,0))*AP50 -> 14211 | P50: =INDEX('[64]Dados AECOM'!$D$580:$BK$615,MATCH($C50,'[64]Dados AECOM'!$C$580:$C$615,0),MATCH(P$3,'[64]Dados AECOM'!$D$2:$BK$2,0))*AQ50 -> 58446 | Q50: =INDEX('[64]Dados AECOM'!$D$580:$BK$615,MATCH($C50,'[64]Dados AECOM'!$C$580:$C$615,0),MATCH(Q$3,'[64]Dados AECOM'!$D$2:$BK$2,0))*AR50 -> 6981 | R50: =INDEX('[64]Dados AECOM'!$D$580:$BK$615,MATCH($C50,'[64]Dados AECOM'!$C$580:$C$615,0),MATCH(R$3,'[64]Dados AECOM'!$D$2:$BK$2,0))*AS50 -> 2858849 | S50: =INDEX('[64]Dados AECOM'!$D$580:$BK$615,MATCH($C50,'[64]Dados AECOM'!$C$580:$C$615,0),MATCH(S$3,'[64]Dados AECOM'!$D$2:$BK$2,0))*AT50 -> 17318 | T50: =INDEX('[64]Dados AECOM'!$D$580:$BK$615,MATCH($C50,'[64]Dados AECOM'!$C$580:$C$615,0),MATCH(T$3,'[64]Dados AECOM'!$D$2:$BK$2,0))*AU50 -> 66546 | U50: =INDEX('[64]Dados AECOM'!$D$580:$BK$615,MATCH($C50,'[64]Dados AECOM'!$C$580:$C$615,0),MATCH(U$3,'[64]Dados AECOM'!$D$2:$BK$2,0))*AV50 -> 46912 | V50: =INDEX('[64]Dados AECOM'!$D$580:$BK$615,MATCH($C50,'[64]Dados AECOM'!$C$580:$C$615,0),MATCH(V$3,'[64]Dados AECOM'!$D$2:$BK$2,0))*AW50 -> 289965 | W50: =INDEX('[64]Dados AECOM'!$D$580:$BK$615,MATCH($C50,'[64]Dados AECOM'!$C$580:$C$615,0),MATCH(W$3,'[64]Dados AECOM'!$D$2:$BK$2,0))*AX50 -> 244682 | X50: =INDEX('[64]Dados AECOM'!$D$580:$BK$615,MATCH($C50,'[64]Dados AECOM'!$C$580:$C$615,0),MATCH(X$3,'[64]Dados AECOM'!$D$2:$BK$2,0))*AY50 -> 101379 | Y50: =INDEX('[64]Dados AECOM'!$D$580:$BK$615,MATCH($C50,'[64]Dados AECOM'!$C$580:$C$615,0),MATCH(Y$3,'[64]Dados AECOM'!$D$2:$BK$2,0))*AZ50 -> 16047 | Z50: =INDEX('[64]Dados AECOM'!$D$580:$BK$615,MATCH($C50,'[64]Dados AECOM'!$C$580:$C$615,0),MATCH(Z$3,'[64]Dados AECOM'!$D$2:$BK$2,0))*BA50 -> 15907.49726 | AA50: =INDEX('[64]Dados AECOM'!$D$580:$BK$615,MATCH($C50,'[64]Dados AECOM'!$C$580:$C$615,0),MATCH(AA$3,'[64]Dados AECOM'!$D$2:$BK$2,0))*BB50 -> 64775 | AB50: =INDEX('[64]Dados AECOM'!$D$580:$BK$615,MATCH($C50,'[64]Dados AECOM'!$C$580:$C$615,0),MATCH(AB$3,'[64]Dados AECOM'!$D$2:$BK$2,0))*BC50 -> 78115 | AC50: =INDEX('[64]Dados AECOM'!$D$580:$BK$615,MATCH($C50,'[64]Dados AECOM'!$C$580:$C$615,0),MATCH(AC$3,'[64]Dados AECOM'!$D$2:$BK$2,0))*BD50 -> 24388 | AD50: =INDEX('[64]Dados AECOM'!$D$580:$BK$615,MATCH($C50,'[64]Dados AECOM'!$C$580:$C$615,0),MATCH(AD$3,'[64]Dados AECOM'!$D$2:$BK$2,0))*BE50 -> 13229 | AE50: =INDEX('[64]Dados AECOM'!$D$580:$BK$615,MATCH($C50,'[64]Dados AECOM'!$C$580:$C$615,0),MATCH(AE$3,'[64]Dados AECOM'!$D$2:$BK$2,0))*BF50 -> 26864 | AF50: =INDEX('[64]Dados AECOM'!$D$580:$BK$615,MATCH($C50,'[64]Dados AECOM'!$C$580:$C$615,0),MATCH(AF$3,'[64]Dados AECOM'!$D$2:$BK$2,0))*BG50 -> 8646 | AG50: =INDEX('[64]Dados AECOM'!$D$580:$BK$615,MATCH($C50,'[64]Dados AECOM'!$C$580:$C$615,0),MATCH(AG$3,'[64]Dados AECOM'!$D$2:$BK$2,0))*BH50 -> 22389 | AH50: =INDEX('[64]Dados AECOM'!$D$580:$BN$615,MATCH($C50,'[64]Dados AECOM'!$C$580:$C$615,0),MATCH(AH$3,'[64]Dados AECOM'!$D$2:$BN$2,0))*BI50 -> 5909 | AK50: 17 | AL50: 1 | AM50: 1 | AN50: 1 | AO50: 1 | AP50: 1 | AQ50: 1 | AR50: 1 | AS50: 1 | AT50: 1 | AU50: 1 | AV50: 1 | AW50: 1 | AX50: 1 | AY50: 1 | AZ50: 1 | BA50: 1 | BB50: 1 | BC50: 1 | BD50: 1 | BE50: 1 | BF50: 1 | BG50: 1 | BH50: 1 | BI50: 1
B51: 51 | C51: 2040 | D51: População | E51: 1192568.943 | F51: 3324922.555 | G51: 0 | H51: 0 | I51: 0 | K51: =INDEX('[64]Dados AECOM'!$D$580:$BK$615,MATCH($C51,'[64]Dados AECOM'!$C$580:$C$615,0),MATCH(K$3,'[64]Dados AECOM'!$D$2:$BK$2,0))*AL51 -> 57974 | L51: =INDEX('[64]Dados AECOM'!$D$580:$BK$615,MATCH($C51,'[64]Dados AECOM'!$C$580:$C$615,0),MATCH(L$3,'[64]Dados AECOM'!$D$2:$BK$2,0))*AM51 -> 45343 | M51: =INDEX('[64]Dados AECOM'!$D$580:$BK$615,MATCH($C51,'[64]Dados AECOM'!$C$580:$C$615,0),MATCH(M$3,'[64]Dados AECOM'!$D$2:$BK$2,0))*AN51 -> 61253 | N51: =INDEX('[64]Dados AECOM'!$D$580:$BK$615,MATCH($C51,'[64]Dados AECOM'!$C$580:$C$615,0),MATCH(N$3,'[64]Dados AECOM'!$D$2:$BK$2,0))*AO51 -> 369118.5549 | O51: =INDEX('[64]Dados AECOM'!$D$580:$BK$615,MATCH($C51,'[64]Dados AECOM'!$C$580:$C$615,0),MATCH(O$3,'[64]Dados AECOM'!$D$2:$BK$2,0))*AP51 -> 14225 | P51: =INDEX('[64]Dados AECOM'!$D$580:$BK$615,MATCH($C51,'[64]Dados AECOM'!$C$580:$C$615,0),MATCH(P$3,'[64]Dados AECOM'!$D$2:$BK$2,0))*AQ51 -> 58488 | Q51: =INDEX('[64]Dados AECOM'!$D$580:$BK$615,MATCH($C51,'[64]Dados AECOM'!$C$580:$C$615,0),MATCH(Q$3,'[64]Dados AECOM'!$D$2:$BK$2,0))*AR51 -> 6981 | R51: =INDEX('[64]Dados AECOM'!$D$580:$BK$615,MATCH($C51,'[64]Dados AECOM'!$C$580:$C$615,0),MATCH(R$3,'[64]Dados AECOM'!$D$2:$BK$2,0))*AS51 -> 2860223 | S51: =INDEX('[64]Dados AECOM'!$D$580:$BK$615,MATCH($C51,'[64]Dados AECOM'!$C$580:$C$615,0),MATCH(S$3,'[64]Dados AECOM'!$D$2:$BK$2,0))*AT51 -> 17327 | T51: =INDEX('[64]Dados AECOM'!$D$580:$BK$615,MATCH($C51,'[64]Dados AECOM'!$C$580:$C$615,0),MATCH(T$3,'[64]Dados AECOM'!$D$2:$BK$2,0))*AU51 -> 66600 | U51: =INDEX('[64]Dados AECOM'!$D$580:$BK$615,MATCH($C51,'[64]Dados AECOM'!$C$580:$C$615,0),MATCH(U$3,'[64]Dados AECOM'!$D$2:$BK$2,0))*AV51 -> 46997 | V51: =INDEX('[64]Dados AECOM'!$D$580:$BK$615,MATCH($C51,'[64]Dados AECOM'!$C$580:$C$615,0),MATCH(V$3,'[64]Dados AECOM'!$D$2:$BK$2,0))*AW51 -> 290133 | W51: =INDEX('[64]Dados AECOM'!$D$580:$BK$615,MATCH($C51,'[64]Dados AECOM'!$C$580:$C$615,0),MATCH(W$3,'[64]Dados AECOM'!$D$2:$BK$2,0))*AX51 -> 244882 | X51: =INDEX('[64]Dados AECOM'!$D$580:$BK$615,MATCH($C51,'[64]Dados AECOM'!$C$580:$C$615,0),MATCH(X$3,'[64]Dados AECOM'!$D$2:$BK$2,0))*AY51 -> 101467 | Y51: =INDEX('[64]Dados AECOM'!$D$580:$BK$615,MATCH($C51,'[64]Dados AECOM'!$C$580:$C$615,0),MATCH(Y$3,'[64]Dados AECOM'!$D$2:$BK$2,0))*AZ51 -> 16058 | Z51: =INDEX('[64]Dados AECOM'!$D$580:$BK$615,MATCH($C51,'[64]Dados AECOM'!$C$580:$C$615,0),MATCH(Z$3,'[64]Dados AECOM'!$D$2:$BK$2,0))*BA51 -> 15937.94275 | AA51: =INDEX('[64]Dados AECOM'!$D$580:$BK$615,MATCH($C51,'[64]Dados AECOM'!$C$580:$C$615,0),MATCH(AA$3,'[64]Dados AECOM'!$D$2:$BK$2,0))*BB51 -> 64827 | AB51: =INDEX('[64]Dados AECOM'!$D$580:$BK$615,MATCH($C51,'[64]Dados AECOM'!$C$580:$C$615,0),MATCH(AB$3,'[64]Dados AECOM'!$D$2:$BK$2,0))*BC51 -> 78165 | AC51: =INDEX('[64]Dados AECOM'!$D$580:$BK$615,MATCH($C51,'[64]Dados AECOM'!$C$580:$C$615,0),MATCH(AC$3,'[64]Dados AECOM'!$D$2:$BK$2,0))*BD51 -> 24404 | AD51: =INDEX('[64]Dados AECOM'!$D$580:$BK$615,MATCH($C51,'[64]Dados AECOM'!$C$580:$C$615,0),MATCH(AD$3,'[64]Dados AECOM'!$D$2:$BK$2,0))*BE51 -> 13234 | AE51: =INDEX('[64]Dados AECOM'!$D$580:$BK$615,MATCH($C51,'[64]Dados AECOM'!$C$580:$C$615,0),MATCH(AE$3,'[64]Dados AECOM'!$D$2:$BK$2,0))*BF51 -> 26886 | AF51: =INDEX('[64]Dados AECOM'!$D$580:$BK$615,MATCH($C51,'[64]Dados AECOM'!$C$580:$C$615,0),MATCH(AF$3,'[64]Dados AECOM'!$D$2:$BK$2,0))*BG51 -> 8649 | AG51: =INDEX('[64]Dados AECOM'!$D$580:$BK$615,MATCH($C51,'[64]Dados AECOM'!$C$580:$C$615,0),MATCH(AG$3,'[64]Dados AECOM'!$D$2:$BK$2,0))*BH51 -> 22408 | AH51: =INDEX('[64]Dados AECOM'!$D$580:$BN$615,MATCH($C51,'[64]Dados AECOM'!$C$580:$C$615,0),MATCH(AH$3,'[64]Dados AECOM'!$D$2:$BN$2,0))*BI51 -> 5911 | AK51: 18 | AL51: 1 | AM51: 1 | AN51: 1 | AO51: 1 | AP51: 1 | AQ51: 1 | AR51: 1 | AS51: 1 | AT51: 1 | AU51: 1 | AV51: 1 | AW51: 1 | AX51: 1 | AY51: 1 | AZ51: 1 | BA51: 1 | BB51: 1 | BC51: 1 | BD51: 1 | BE51: 1 | BF51: 1 | BG51: 1 | BH51: 1 | BI51: 1
B52: 52 | C52: 2041 | D52: População | E52: 1193040.883 | F52: 3325646.396 | G52: 0 | H52: 0 | I52: 0 | K52: =INDEX('[64]Dados AECOM'!$D$580:$BK$615,MATCH($C52,'[64]Dados AECOM'!$C$580:$C$615,0),MATCH(K$3,'[64]Dados AECOM'!$D$2:$BK$2,0))*AL52 -> 58007 | L52: =INDEX('[64]Dados AECOM'!$D$580:$BK$615,MATCH($C52,'[64]Dados AECOM'!$C$580:$C$615,0),MATCH(L$3,'[64]Dados AECOM'!$D$2:$BK$2,0))*AM52 -> 45354 | M52: =INDEX('[64]Dados AECOM'!$D$580:$BK$615,MATCH($C52,'[64]Dados AECOM'!$C$580:$C$615,0),MATCH(M$3,'[64]Dados AECOM'!$D$2:$BK$2,0))*AN52 -> 61267 | N52: =INDEX('[64]Dados AECOM'!$D$580:$BK$615,MATCH($C52,'[64]Dados AECOM'!$C$580:$C$615,0),MATCH(N$3,'[64]Dados AECOM'!$D$2:$BK$2,0))*AO52 -> 369236.3962 | O52: =INDEX('[64]Dados AECOM'!$D$580:$BK$615,MATCH($C52,'[64]Dados AECOM'!$C$580:$C$615,0),MATCH(O$3,'[64]Dados AECOM'!$D$2:$BK$2,0))*AP52 -> 14230 | P52: =INDEX('[64]Dados AECOM'!$D$580:$BK$615,MATCH($C52,'[64]Dados AECOM'!$C$580:$C$615,0),MATCH(P$3,'[64]Dados AECOM'!$D$2:$BK$2,0))*AQ52 -> 58505 | Q52: =INDEX('[64]Dados AECOM'!$D$580:$BK$615,MATCH($C52,'[64]Dados AECOM'!$C$580:$C$615,0),MATCH(Q$3,'[64]Dados AECOM'!$D$2:$BK$2,0))*AR52 -> 6981 | R52: =INDEX('[64]Dados AECOM'!$D$580:$BK$615,MATCH($C52,'[64]Dados AECOM'!$C$580:$C$615,0),MATCH(R$3,'[64]Dados AECOM'!$D$2:$BK$2,0))*AS52 -> 2860804 | S52: =INDEX('[64]Dados AECOM'!$D$580:$BK$615,MATCH($C52,'[64]Dados AECOM'!$C$580:$C$615,0),MATCH(S$3,'[64]Dados AECOM'!$D$2:$BK$2,0))*AT52 -> 17332 | T52: =INDEX('[64]Dados AECOM'!$D$580:$BK$615,MATCH($C52,'[64]Dados AECOM'!$C$580:$C$615,0),MATCH(T$3,'[64]Dados AECOM'!$D$2:$BK$2,0))*AU52 -> 66623 | U52: =INDEX('[64]Dados AECOM'!$D$580:$BK$615,MATCH($C52,'[64]Dados AECOM'!$C$580:$C$615,0),MATCH(U$3,'[64]Dados AECOM'!$D$2:$BK$2,0))*AV52 -> 47058 | V52: =INDEX('[64]Dados AECOM'!$D$580:$BK$615,MATCH($C52,'[64]Dados AECOM'!$C$580:$C$615,0),MATCH(V$3,'[64]Dados AECOM'!$D$2:$BK$2,0))*AW52 -> 290204 | W52: =INDEX('[64]Dados AECOM'!$D$580:$BK$615,MATCH($C52,'[64]Dados AECOM'!$C$580:$C$615,0),MATCH(W$3,'[64]Dados AECOM'!$D$2:$BK$2,0))*AX52 -> 245008 | X52: =INDEX('[64]Dados AECOM'!$D$580:$BK$615,MATCH($C52,'[64]Dados AECOM'!$C$580:$C$615,0),MATCH(X$3,'[64]Dados AECOM'!$D$2:$BK$2,0))*AY52 -> 101508 | Y52: =INDEX('[64]Dados AECOM'!$D$580:$BK$615,MATCH($C52,'[64]Dados AECOM'!$C$580:$C$615,0),MATCH(Y$3,'[64]Dados AECOM'!$D$2:$BK$2,0))*AZ52 -> 16062 | Z52: =INDEX('[64]Dados AECOM'!$D$580:$BK$615,MATCH($C52,'[64]Dados AECOM'!$C$580:$C$615,0),MATCH(Z$3,'[64]Dados AECOM'!$D$2:$BK$2,0))*BA52 -> 15956.88304 | AA52: =INDEX('[64]Dados AECOM'!$D$580:$BK$615,MATCH($C52,'[64]Dados AECOM'!$C$580:$C$615,0),MATCH(AA$3,'[64]Dados AECOM'!$D$2:$BK$2,0))*BB52 -> 64849 | AB52: =INDEX('[64]Dados AECOM'!$D$580:$BK$615,MATCH($C52,'[64]Dados AECOM'!$C$580:$C$615,0),MATCH(AB$3,'[64]Dados AECOM'!$D$2:$BK$2,0))*BC52 -> 78186 | AC52: =INDEX('[64]Dados AECOM'!$D$580:$BK$615,MATCH($C52,'[64]Dados AECOM'!$C$580:$C$615,0),MATCH(AC$3,'[64]Dados AECOM'!$D$2:$BK$2,0))*BD52 -> 24410 | AD52: =INDEX('[64]Dados AECOM'!$D$580:$BK$615,MATCH($C52,'[64]Dados AECOM'!$C$580:$C$615,0),MATCH(AD$3,'[64]Dados AECOM'!$D$2:$BK$2,0))*BE52 -> 13237 | AE52: =INDEX('[64]Dados AECOM'!$D$580:$BK$615,MATCH($C52,'[64]Dados AECOM'!$C$580:$C$615,0),MATCH(AE$3,'[64]Dados AECOM'!$D$2:$BK$2,0))*BF52 -> 26894 | AF52: =INDEX('[64]Dados AECOM'!$D$580:$BK$615,MATCH($C52,'[64]Dados AECOM'!$C$580:$C$615,0),MATCH(AF$3,'[64]Dados AECOM'!$D$2:$BK$2,0))*BG52 -> 8650 | AG52: =INDEX('[64]Dados AECOM'!$D$580:$BK$615,MATCH($C52,'[64]Dados AECOM'!$C$580:$C$615,0),MATCH(AG$3,'[64]Dados AECOM'!$D$2:$BK$2,0))*BH52 -> 22415 | AH52: =INDEX('[64]Dados AECOM'!$D$580:$BN$615,MATCH($C52,'[64]Dados AECOM'!$C$580:$C$615,0),MATCH(AH$3,'[64]Dados AECOM'!$D$2:$BN$2,0))*BI52 -> 5910 | AK52: 19 | AL52: 1 | AM52: 1 | AN52: 1 | AO52: 1 | AP52: 1 | AQ52: 1 | AR52: 1 | AS52: 1 | AT52: 1 | AU52: 1 | AV52: 1 | AW52: 1 | AX52: 1 | AY52: 1 | AZ52: 1 | BA52: 1 | BB52: 1 | BC52: 1 | BD52: 1 | BE52: 1 | BF52: 1 | BG52: 1 | BH52: 1 | BI52: 1
B53: 53 | C53: 2042 | D53: População | E53: =SUMIFS($K53:$AH53,$K$18:$AH$18,E$4) -> 1193070.461 | F53: 3325387.737 | G53: 0 | H53: 0 | I53: 0 | K53: =INDEX('[64]Dados AECOM'!$D$580:$BK$615,MATCH($C53,'[64]Dados AECOM'!$C$580:$C$615,0),MATCH(K$3,'[64]Dados AECOM'!$D$2:$BK$2,0))*AL53 -> 58010 | L53: =INDEX('[64]Dados AECOM'!$D$580:$BK$615,MATCH($C53,'[64]Dados AECOM'!$C$580:$C$615,0),MATCH(L$3,'[64]Dados AECOM'!$D$2:$BK$2,0))*AM53 -> 45350 | M53: =INDEX('[64]Dados AECOM'!$D$580:$BK$615,MATCH($C53,'[64]Dados AECOM'!$C$580:$C$615,0),MATCH(M$3,'[64]Dados AECOM'!$D$2:$BK$2,0))*AN53 -> 61263 | N53: =INDEX('[64]Dados AECOM'!$D$580:$BK$615,MATCH($C53,'[64]Dados AECOM'!$C$580:$C$615,0),MATCH(N$3,'[64]Dados AECOM'!$D$2:$BK$2,0))*AO53 -> 369194.7371 | O53: =INDEX('[64]Dados AECOM'!$D$580:$BK$615,MATCH($C53,'[64]Dados AECOM'!$C$580:$C$615,0),MATCH(O$3,'[64]Dados AECOM'!$D$2:$BK$2,0))*AP53 -> 14228 | P53: =INDEX('[64]Dados AECOM'!$D$580:$BK$615,MATCH($C53,'[64]Dados AECOM'!$C$580:$C$615,0),MATCH(P$3,'[64]Dados AECOM'!$D$2:$BK$2,0))*AQ53 -> 58499 | Q53: =INDEX('[64]Dados AECOM'!$D$580:$BK$615,MATCH($C53,'[64]Dados AECOM'!$C$580:$C$615,0),MATCH(Q$3,'[64]Dados AECOM'!$D$2:$BK$2,0))*AR53 -> 6981 | R53: =INDEX('[64]Dados AECOM'!$D$580:$BK$615,MATCH($C53,'[64]Dados AECOM'!$C$580:$C$615,0),MATCH(R$3,'[64]Dados AECOM'!$D$2:$BK$2,0))*AS53 -> 2860596 | S53: =INDEX('[64]Dados AECOM'!$D$580:$BK$615,MATCH($C53,'[64]Dados AECOM'!$C$580:$C$615,0),MATCH(S$3,'[64]Dados AECOM'!$D$2:$BK$2,0))*AT53 -> 17330 | T53: =INDEX('[64]Dados AECOM'!$D$580:$BK$615,MATCH($C53,'[64]Dados AECOM'!$C$580:$C$615,0),MATCH(T$3,'[64]Dados AECOM'!$D$2:$BK$2,0))*AU53 -> 66615 | U53: =INDEX('[64]Dados AECOM'!$D$580:$BK$615,MATCH($C53,'[64]Dados AECOM'!$C$580:$C$615,0),MATCH(U$3,'[64]Dados AECOM'!$D$2:$BK$2,0))*AV53 -> 47097 | V53: =INDEX('[64]Dados AECOM'!$D$580:$BK$615,MATCH($C53,'[64]Dados AECOM'!$C$580:$C$615,0),MATCH(V$3,'[64]Dados AECOM'!$D$2:$BK$2,0))*AW53 -> 290179 | W53: =INDEX('[64]Dados AECOM'!$D$580:$BK$615,MATCH($C53,'[64]Dados AECOM'!$C$580:$C$615,0),MATCH(W$3,'[64]Dados AECOM'!$D$2:$BK$2,0))*AX53 -> 245061 | X53: =INDEX('[64]Dados AECOM'!$D$580:$BK$615,MATCH($C53,'[64]Dados AECOM'!$C$580:$C$615,0),MATCH(X$3,'[64]Dados AECOM'!$D$2:$BK$2,0))*AY53 -> 101500 | Y53: =INDEX('[64]Dados AECOM'!$D$580:$BK$615,MATCH($C53,'[64]Dados AECOM'!$C$580:$C$615,0),MATCH(Y$3,'[64]Dados AECOM'!$D$2:$BK$2,0))*AZ53 -> 16061 | Z53: =INDEX('[64]Dados AECOM'!$D$580:$BK$615,MATCH($C53,'[64]Dados AECOM'!$C$580:$C$615,0),MATCH(Z$3,'[64]Dados AECOM'!$D$2:$BK$2,0))*BA53 -> 15964.46109 | AA53: =INDEX('[64]Dados AECOM'!$D$580:$BK$615,MATCH($C53,'[64]Dados AECOM'!$C$580:$C$615,0),MATCH(AA$3,'[64]Dados AECOM'!$D$2:$BK$2,0))*BB53 -> 64842 | AB53: =INDEX('[64]Dados AECOM'!$D$580:$BK$615,MATCH($C53,'[64]Dados AECOM'!$C$580:$C$615,0),MATCH(AB$3,'[64]Dados AECOM'!$D$2:$BK$2,0))*BC53 -> 78180 | AC53: =INDEX('[64]Dados AECOM'!$D$580:$BK$615,MATCH($C53,'[64]Dados AECOM'!$C$580:$C$615,0),MATCH(AC$3,'[64]Dados AECOM'!$D$2:$BK$2,0))*BD53 -> 24408 | AD53: =INDEX('[64]Dados AECOM'!$D$580:$BK$615,MATCH($C53,'[64]Dados AECOM'!$C$580:$C$615,0),MATCH(AD$3,'[64]Dados AECOM'!$D$2:$BK$2,0))*BE53 -> 13236 | AE53: =INDEX('[64]Dados AECOM'!$D$580:$BK$615,MATCH($C53,'[64]Dados AECOM'!$C$580:$C$615,0),MATCH(AE$3,'[64]Dados AECOM'!$D$2:$BK$2,0))*BF53 -> 26891 | AF53: =INDEX('[64]Dados AECOM'!$D$580:$BK$615,MATCH($C53,'[64]Dados AECOM'!$C$580:$C$615,0),MATCH(AF$3,'[64]Dados AECOM'!$D$2:$BK$2,0))*BG53 -> 8649 | AG53: =INDEX('[64]Dados AECOM'!$D$580:$BK$615,MATCH($C53,'[64]Dados AECOM'!$C$580:$C$615,0),MATCH(AG$3,'[64]Dados AECOM'!$D$2:$BK$2,0))*BH53 -> 22413 | AH53: =INDEX('[64]Dados AECOM'!$D$580:$BN$615,MATCH($C53,'[64]Dados AECOM'!$C$580:$C$615,0),MATCH(AH$3,'[64]Dados AECOM'!$D$2:$BN$2,0))*BI53 -> 5910 | AK53: 20 | AL53: 1 | AM53: 1 | AN53: 1 | AO53: 1 | AP53: 1 | AQ53: 1 | AR53: 1 | AS53: 1 | AT53: 1 | AU53: 1 | AV53: 1 | AW53: 1 | AX53: 1 | AY53: 1 | AZ53: 1 | BA53: 1 | BB53: 1 | BC53: 1 | BD53: 1 | BE53: 1 | BF53: 1 | BG53: 1 | BH53: 1 | BI53: 1
B54: 54 | C54: 2043 | D54: População | E54: 1192652.748 | F54: 3324158.617 | G54: 0 | H54: 0 | I54: 0 | K54: =INDEX('[64]Dados AECOM'!$D$580:$BK$615,MATCH($C54,'[64]Dados AECOM'!$C$580:$C$615,0),MATCH(K$3,'[64]Dados AECOM'!$D$2:$BK$2,0))*AL54 -> 57987 | L54: =INDEX('[64]Dados AECOM'!$D$580:$BK$615,MATCH($C54,'[64]Dados AECOM'!$C$580:$C$615,0),MATCH(L$3,'[64]Dados AECOM'!$D$2:$BK$2,0))*AM54 -> 45331 | M54: =INDEX('[64]Dados AECOM'!$D$580:$BK$615,MATCH($C54,'[64]Dados AECOM'!$C$580:$C$615,0),MATCH(M$3,'[64]Dados AECOM'!$D$2:$BK$2,0))*AN54 -> 61237 | N54: =INDEX('[64]Dados AECOM'!$D$580:$BK$615,MATCH($C54,'[64]Dados AECOM'!$C$580:$C$615,0),MATCH(N$3,'[64]Dados AECOM'!$D$2:$BK$2,0))*AO54 -> 368994.6171 | O54: =INDEX('[64]Dados AECOM'!$D$580:$BK$615,MATCH($C54,'[64]Dados AECOM'!$C$580:$C$615,0),MATCH(O$3,'[64]Dados AECOM'!$D$2:$BK$2,0))*AP54 -> 14219 | P54: =INDEX('[64]Dados AECOM'!$D$580:$BK$615,MATCH($C54,'[64]Dados AECOM'!$C$580:$C$615,0),MATCH(P$3,'[64]Dados AECOM'!$D$2:$BK$2,0))*AQ54 -> 58469 | Q54: =INDEX('[64]Dados AECOM'!$D$580:$BK$615,MATCH($C54,'[64]Dados AECOM'!$C$580:$C$615,0),MATCH(Q$3,'[64]Dados AECOM'!$D$2:$BK$2,0))*AR54 -> 6981 | R54: =INDEX('[64]Dados AECOM'!$D$580:$BK$615,MATCH($C54,'[64]Dados AECOM'!$C$580:$C$615,0),MATCH(R$3,'[64]Dados AECOM'!$D$2:$BK$2,0))*AS54 -> 2859612 | S54: =INDEX('[64]Dados AECOM'!$D$580:$BK$615,MATCH($C54,'[64]Dados AECOM'!$C$580:$C$615,0),MATCH(S$3,'[64]Dados AECOM'!$D$2:$BK$2,0))*AT54 -> 17323 | T54: =INDEX('[64]Dados AECOM'!$D$580:$BK$615,MATCH($C54,'[64]Dados AECOM'!$C$580:$C$615,0),MATCH(T$3,'[64]Dados AECOM'!$D$2:$BK$2,0))*AU54 -> 66576 | U54: =INDEX('[64]Dados AECOM'!$D$580:$BK$615,MATCH($C54,'[64]Dados AECOM'!$C$580:$C$615,0),MATCH(U$3,'[64]Dados AECOM'!$D$2:$BK$2,0))*AV54 -> 47113 | V54: =INDEX('[64]Dados AECOM'!$D$580:$BK$615,MATCH($C54,'[64]Dados AECOM'!$C$580:$C$615,0),MATCH(V$3,'[64]Dados AECOM'!$D$2:$BK$2,0))*AW54 -> 290058 | W54: =INDEX('[64]Dados AECOM'!$D$580:$BK$615,MATCH($C54,'[64]Dados AECOM'!$C$580:$C$615,0),MATCH(W$3,'[64]Dados AECOM'!$D$2:$BK$2,0))*AX54 -> 245042 | X54: =INDEX('[64]Dados AECOM'!$D$580:$BK$615,MATCH($C54,'[64]Dados AECOM'!$C$580:$C$615,0),MATCH(X$3,'[64]Dados AECOM'!$D$2:$BK$2,0))*AY54 -> 101444 | Y54: =INDEX('[64]Dados AECOM'!$D$580:$BK$615,MATCH($C54,'[64]Dados AECOM'!$C$580:$C$615,0),MATCH(Y$3,'[64]Dados AECOM'!$D$2:$BK$2,0))*AZ54 -> 16053 | Z54: =INDEX('[64]Dados AECOM'!$D$580:$BK$615,MATCH($C54,'[64]Dados AECOM'!$C$580:$C$615,0),MATCH(Z$3,'[64]Dados AECOM'!$D$2:$BK$2,0))*BA54 -> 15961.7484 | AA54: =INDEX('[64]Dados AECOM'!$D$580:$BK$615,MATCH($C54,'[64]Dados AECOM'!$C$580:$C$615,0),MATCH(AA$3,'[64]Dados AECOM'!$D$2:$BK$2,0))*BB54 -> 64804 | AB54: =INDEX('[64]Dados AECOM'!$D$580:$BK$615,MATCH($C54,'[64]Dados AECOM'!$C$580:$C$615,0),MATCH(AB$3,'[64]Dados AECOM'!$D$2:$BK$2,0))*BC54 -> 78144 | AC54: =INDEX('[64]Dados AECOM'!$D$580:$BK$615,MATCH($C54,'[64]Dados AECOM'!$C$580:$C$615,0),MATCH(AC$3,'[64]Dados AECOM'!$D$2:$BK$2,0))*BD54 -> 24397 | AD54: =INDEX('[64]Dados AECOM'!$D$580:$BK$615,MATCH($C54,'[64]Dados AECOM'!$C$580:$C$615,0),MATCH(AD$3,'[64]Dados AECOM'!$D$2:$BK$2,0))*BE54 -> 13232 | AE54: =INDEX('[64]Dados AECOM'!$D$580:$BK$615,MATCH($C54,'[64]Dados AECOM'!$C$580:$C$615,0),MATCH(AE$3,'[64]Dados AECOM'!$D$2:$BK$2,0))*BF54 -> 26876 | AF54: =INDEX('[64]Dados AECOM'!$D$580:$BK$615,MATCH($C54,'[64]Dados AECOM'!$C$580:$C$615,0),MATCH(AF$3,'[64]Dados AECOM'!$D$2:$BK$2,0))*BG54 -> 8648 | AG54: =INDEX('[64]Dados AECOM'!$D$580:$BK$615,MATCH($C54,'[64]Dados AECOM'!$C$580:$C$615,0),MATCH(AG$3,'[64]Dados AECOM'!$D$2:$BK$2,0))*BH54 -> 22399 | AH54: =INDEX('[64]Dados AECOM'!$D$580:$BN$615,MATCH($C54,'[64]Dados AECOM'!$C$580:$C$615,0),MATCH(AH$3,'[64]Dados AECOM'!$D$2:$BN$2,0))*BI54 -> 5910 | AK54: 21 | AL54: 1 | AM54: 1 | AN54: 1 | AO54: 1 | AP54: 1 | AQ54: 1 | AR54: 1 | AS54: 1 | AT54: 1 | AU54: 1 | AV54: 1 | AW54: 1 | AX54: 1 | AY54: 1 | AZ54: 1 | BA54: 1 | BB54: 1 | BC54: 1 | BD54: 1 | BE54: 1 | BF54: 1 | BG54: 1 | BH54: 1 | BI54: 1
B55: 55 | C55: 2044 | D55: População | E55: 1191805.908 | F55: 3321985.091 | G55: 0 | H55: 0 | I55: 0 | K55: =INDEX('[64]Dados AECOM'!$D$580:$BK$615,MATCH($C55,'[64]Dados AECOM'!$C$580:$C$615,0),MATCH(K$3,'[64]Dados AECOM'!$D$2:$BK$2,0))*AL55 -> 57934 | L55: =INDEX('[64]Dados AECOM'!$D$580:$BK$615,MATCH($C55,'[64]Dados AECOM'!$C$580:$C$615,0),MATCH(L$3,'[64]Dados AECOM'!$D$2:$BK$2,0))*AM55 -> 45297 | M55: =INDEX('[64]Dados AECOM'!$D$580:$BK$615,MATCH($C55,'[64]Dados AECOM'!$C$580:$C$615,0),MATCH(M$3,'[64]Dados AECOM'!$D$2:$BK$2,0))*AN55 -> 61192 | N55: =INDEX('[64]Dados AECOM'!$D$580:$BK$615,MATCH($C55,'[64]Dados AECOM'!$C$580:$C$615,0),MATCH(N$3,'[64]Dados AECOM'!$D$2:$BK$2,0))*AO55 -> 368640.0913 | O55: =INDEX('[64]Dados AECOM'!$D$580:$BK$615,MATCH($C55,'[64]Dados AECOM'!$C$580:$C$615,0),MATCH(O$3,'[64]Dados AECOM'!$D$2:$BK$2,0))*AP55 -> 14202 | P55: =INDEX('[64]Dados AECOM'!$D$580:$BK$615,MATCH($C55,'[64]Dados AECOM'!$C$580:$C$615,0),MATCH(P$3,'[64]Dados AECOM'!$D$2:$BK$2,0))*AQ55 -> 58416 | Q55: =INDEX('[64]Dados AECOM'!$D$580:$BK$615,MATCH($C55,'[64]Dados AECOM'!$C$580:$C$615,0),MATCH(Q$3,'[64]Dados AECOM'!$D$2:$BK$2,0))*AR55 -> 6981 | R55: =INDEX('[64]Dados AECOM'!$D$580:$BK$615,MATCH($C55,'[64]Dados AECOM'!$C$580:$C$615,0),MATCH(R$3,'[64]Dados AECOM'!$D$2:$BK$2,0))*AS55 -> 2857871 | S55: =INDEX('[64]Dados AECOM'!$D$580:$BK$615,MATCH($C55,'[64]Dados AECOM'!$C$580:$C$615,0),MATCH(S$3,'[64]Dados AECOM'!$D$2:$BK$2,0))*AT55 -> 17311 | T55: =INDEX('[64]Dados AECOM'!$D$580:$BK$615,MATCH($C55,'[64]Dados AECOM'!$C$580:$C$615,0),MATCH(T$3,'[64]Dados AECOM'!$D$2:$BK$2,0))*AU55 -> 66509 | U55: =INDEX('[64]Dados AECOM'!$D$580:$BK$615,MATCH($C55,'[64]Dados AECOM'!$C$580:$C$615,0),MATCH(U$3,'[64]Dados AECOM'!$D$2:$BK$2,0))*AV55 -> 47108 | V55: =INDEX('[64]Dados AECOM'!$D$580:$BK$615,MATCH($C55,'[64]Dados AECOM'!$C$580:$C$615,0),MATCH(V$3,'[64]Dados AECOM'!$D$2:$BK$2,0))*AW55 -> 289845 | W55: =INDEX('[64]Dados AECOM'!$D$580:$BK$615,MATCH($C55,'[64]Dados AECOM'!$C$580:$C$615,0),MATCH(W$3,'[64]Dados AECOM'!$D$2:$BK$2,0))*AX55 -> 244952 | X55: =INDEX('[64]Dados AECOM'!$D$580:$BK$615,MATCH($C55,'[64]Dados AECOM'!$C$580:$C$615,0),MATCH(X$3,'[64]Dados AECOM'!$D$2:$BK$2,0))*AY55 -> 101340 | Y55: =INDEX('[64]Dados AECOM'!$D$580:$BK$615,MATCH($C55,'[64]Dados AECOM'!$C$580:$C$615,0),MATCH(Y$3,'[64]Dados AECOM'!$D$2:$BK$2,0))*AZ55 -> 16039 | Z55: =INDEX('[64]Dados AECOM'!$D$580:$BK$615,MATCH($C55,'[64]Dados AECOM'!$C$580:$C$615,0),MATCH(Z$3,'[64]Dados AECOM'!$D$2:$BK$2,0))*BA55 -> 15947.90781 | AA55: =INDEX('[64]Dados AECOM'!$D$580:$BK$615,MATCH($C55,'[64]Dados AECOM'!$C$580:$C$615,0),MATCH(AA$3,'[64]Dados AECOM'!$D$2:$BK$2,0))*BB55 -> 64738 | AB55: =INDEX('[64]Dados AECOM'!$D$580:$BK$615,MATCH($C55,'[64]Dados AECOM'!$C$580:$C$615,0),MATCH(AB$3,'[64]Dados AECOM'!$D$2:$BK$2,0))*BC55 -> 78084 | AC55: =INDEX('[64]Dados AECOM'!$D$580:$BK$615,MATCH($C55,'[64]Dados AECOM'!$C$580:$C$615,0),MATCH(AC$3,'[64]Dados AECOM'!$D$2:$BK$2,0))*BD55 -> 24377 | AD55: =INDEX('[64]Dados AECOM'!$D$580:$BK$615,MATCH($C55,'[64]Dados AECOM'!$C$580:$C$615,0),MATCH(AD$3,'[64]Dados AECOM'!$D$2:$BK$2,0))*BE55 -> 13226 | AE55: =INDEX('[64]Dados AECOM'!$D$580:$BK$615,MATCH($C55,'[64]Dados AECOM'!$C$580:$C$615,0),MATCH(AE$3,'[64]Dados AECOM'!$D$2:$BK$2,0))*BF55 -> 26850 | AF55: =INDEX('[64]Dados AECOM'!$D$580:$BK$615,MATCH($C55,'[64]Dados AECOM'!$C$580:$C$615,0),MATCH(AF$3,'[64]Dados AECOM'!$D$2:$BK$2,0))*BG55 -> 8645 | AG55: =INDEX('[64]Dados AECOM'!$D$580:$BK$615,MATCH($C55,'[64]Dados AECOM'!$C$580:$C$615,0),MATCH(AG$3,'[64]Dados AECOM'!$D$2:$BK$2,0))*BH55 -> 22376 | AH55: =INDEX('[64]Dados AECOM'!$D$580:$BN$615,MATCH($C55,'[64]Dados AECOM'!$C$580:$C$615,0),MATCH(AH$3,'[64]Dados AECOM'!$D$2:$BN$2,0))*BI55 -> 5910 | AK55: 22 | AL55: 1 | AM55: 1 | AN55: 1 | AO55: 1 | AP55: 1 | AQ55: 1 | AR55: 1 | AS55: 1 | AT55: 1 | AU55: 1 | AV55: 1 | AW55: 1 | AX55: 1 | AY55: 1 | AZ55: 1 | BA55: 1 | BB55: 1 | BC55: 1 | BD55: 1 | BE55: 1 | BF55: 1 | BG55: 1 | BH55: 1 | BI55: 1
B56: 56 | C56: 2045 | D56: População | E56: 1190526.166 | F56: 3318861.156 | G56: 0 | H56: 0 | I56: 0 | K56: =INDEX('[64]Dados AECOM'!$D$580:$BK$615,MATCH($C56,'[64]Dados AECOM'!$C$580:$C$615,0),MATCH(K$3,'[64]Dados AECOM'!$D$2:$BK$2,0))*AL56 -> 57855 | L56: =INDEX('[64]Dados AECOM'!$D$580:$BK$615,MATCH($C56,'[64]Dados AECOM'!$C$580:$C$615,0),MATCH(L$3,'[64]Dados AECOM'!$D$2:$BK$2,0))*AM56 -> 45250 | M56: =INDEX('[64]Dados AECOM'!$D$580:$BK$615,MATCH($C56,'[64]Dados AECOM'!$C$580:$C$615,0),MATCH(M$3,'[64]Dados AECOM'!$D$2:$BK$2,0))*AN56 -> 61127 | N56: =INDEX('[64]Dados AECOM'!$D$580:$BK$615,MATCH($C56,'[64]Dados AECOM'!$C$580:$C$615,0),MATCH(N$3,'[64]Dados AECOM'!$D$2:$BK$2,0))*AO56 -> 368133.1558 | O56: =INDEX('[64]Dados AECOM'!$D$580:$BK$615,MATCH($C56,'[64]Dados AECOM'!$C$580:$C$615,0),MATCH(O$3,'[64]Dados AECOM'!$D$2:$BK$2,0))*AP56 -> 14178 | P56: =INDEX('[64]Dados AECOM'!$D$580:$BK$615,MATCH($C56,'[64]Dados AECOM'!$C$580:$C$615,0),MATCH(P$3,'[64]Dados AECOM'!$D$2:$BK$2,0))*AQ56 -> 58340 | Q56: =INDEX('[64]Dados AECOM'!$D$580:$BK$615,MATCH($C56,'[64]Dados AECOM'!$C$580:$C$615,0),MATCH(Q$3,'[64]Dados AECOM'!$D$2:$BK$2,0))*AR56 -> 6980 | R56: =INDEX('[64]Dados AECOM'!$D$580:$BK$615,MATCH($C56,'[64]Dados AECOM'!$C$580:$C$615,0),MATCH(R$3,'[64]Dados AECOM'!$D$2:$BK$2,0))*AS56 -> 2855369 | S56: =INDEX('[64]Dados AECOM'!$D$580:$BK$615,MATCH($C56,'[64]Dados AECOM'!$C$580:$C$615,0),MATCH(S$3,'[64]Dados AECOM'!$D$2:$BK$2,0))*AT56 -> 17293 | T56: =INDEX('[64]Dados AECOM'!$D$580:$BK$615,MATCH($C56,'[64]Dados AECOM'!$C$580:$C$615,0),MATCH(T$3,'[64]Dados AECOM'!$D$2:$BK$2,0))*AU56 -> 66412 | U56: =INDEX('[64]Dados AECOM'!$D$580:$BK$615,MATCH($C56,'[64]Dados AECOM'!$C$580:$C$615,0),MATCH(U$3,'[64]Dados AECOM'!$D$2:$BK$2,0))*AV56 -> 47080 | V56: =INDEX('[64]Dados AECOM'!$D$580:$BK$615,MATCH($C56,'[64]Dados AECOM'!$C$580:$C$615,0),MATCH(V$3,'[64]Dados AECOM'!$D$2:$BK$2,0))*AW56 -> 289538 | W56: =INDEX('[64]Dados AECOM'!$D$580:$BK$615,MATCH($C56,'[64]Dados AECOM'!$C$580:$C$615,0),MATCH(W$3,'[64]Dados AECOM'!$D$2:$BK$2,0))*AX56 -> 244792 | X56: =INDEX('[64]Dados AECOM'!$D$580:$BK$615,MATCH($C56,'[64]Dados AECOM'!$C$580:$C$615,0),MATCH(X$3,'[64]Dados AECOM'!$D$2:$BK$2,0))*AY56 -> 101190 | Y56: =INDEX('[64]Dados AECOM'!$D$580:$BK$615,MATCH($C56,'[64]Dados AECOM'!$C$580:$C$615,0),MATCH(Y$3,'[64]Dados AECOM'!$D$2:$BK$2,0))*AZ56 -> 16020 | Z56: =INDEX('[64]Dados AECOM'!$D$580:$BK$615,MATCH($C56,'[64]Dados AECOM'!$C$580:$C$615,0),MATCH(Z$3,'[64]Dados AECOM'!$D$2:$BK$2,0))*BA56 -> 15924.16571 | AA56: =INDEX('[64]Dados AECOM'!$D$580:$BK$615,MATCH($C56,'[64]Dados AECOM'!$C$580:$C$615,0),MATCH(AA$3,'[64]Dados AECOM'!$D$2:$BK$2,0))*BB56 -> 64643 | AB56: =INDEX('[64]Dados AECOM'!$D$580:$BK$615,MATCH($C56,'[64]Dados AECOM'!$C$580:$C$615,0),MATCH(AB$3,'[64]Dados AECOM'!$D$2:$BK$2,0))*BC56 -> 77995 | AC56: =INDEX('[64]Dados AECOM'!$D$580:$BK$615,MATCH($C56,'[64]Dados AECOM'!$C$580:$C$615,0),MATCH(AC$3,'[64]Dados AECOM'!$D$2:$BK$2,0))*BD56 -> 24348 | AD56: =INDEX('[64]Dados AECOM'!$D$580:$BK$615,MATCH($C56,'[64]Dados AECOM'!$C$580:$C$615,0),MATCH(AD$3,'[64]Dados AECOM'!$D$2:$BK$2,0))*BE56 -> 13215 | AE56: =INDEX('[64]Dados AECOM'!$D$580:$BK$615,MATCH($C56,'[64]Dados AECOM'!$C$580:$C$615,0),MATCH(AE$3,'[64]Dados AECOM'!$D$2:$BK$2,0))*BF56 -> 26812 | AF56: =INDEX('[64]Dados AECOM'!$D$580:$BK$615,MATCH($C56,'[64]Dados AECOM'!$C$580:$C$615,0),MATCH(AF$3,'[64]Dados AECOM'!$D$2:$BK$2,0))*BG56 -> 8640 | AG56: =INDEX('[64]Dados AECOM'!$D$580:$BK$615,MATCH($C56,'[64]Dados AECOM'!$C$580:$C$615,0),MATCH(AG$3,'[64]Dados AECOM'!$D$2:$BK$2,0))*BH56 -> 22344 | AH56: =INDEX('[64]Dados AECOM'!$D$580:$BN$615,MATCH($C56,'[64]Dados AECOM'!$C$580:$C$615,0),MATCH(AH$3,'[64]Dados AECOM'!$D$2:$BN$2,0))*BI56 -> 5909 | AK56: 23 | AL56: 1 | AM56: 1 | AN56: 1 | AO56: 1 | AP56: 1 | AQ56: 1 | AR56: 1 | AS56: 1 | AT56: 1 | AU56: 1 | AV56: 1 | AW56: 1 | AX56: 1 | AY56: 1 | AZ56: 1 | BA56: 1 | BB56: 1 | BC56: 1 | BD56: 1 | BE56: 1 | BF56: 1 | BG56: 1 | BH56: 1 | BI56: 1
B57: 57 | C57: 2046 | D57: População | E57: 1188809.506 | F57: 3314781.784 | G57: 0 | H57: 0 | I57: 0 | K57: =INDEX('[64]Dados AECOM'!$D$580:$BK$615,MATCH($C57,'[64]Dados AECOM'!$C$580:$C$615,0),MATCH(K$3,'[64]Dados AECOM'!$D$2:$BK$2,0))*AL57 -> 57748 | L57: =INDEX('[64]Dados AECOM'!$D$580:$BK$615,MATCH($C57,'[64]Dados AECOM'!$C$580:$C$615,0),MATCH(L$3,'[64]Dados AECOM'!$D$2:$BK$2,0))*AM57 -> 45186 | M57: =INDEX('[64]Dados AECOM'!$D$580:$BK$615,MATCH($C57,'[64]Dados AECOM'!$C$580:$C$615,0),MATCH(M$3,'[64]Dados AECOM'!$D$2:$BK$2,0))*AN57 -> 61043 | N57: =INDEX('[64]Dados AECOM'!$D$580:$BK$615,MATCH($C57,'[64]Dados AECOM'!$C$580:$C$615,0),MATCH(N$3,'[64]Dados AECOM'!$D$2:$BK$2,0))*AO57 -> 367469.7835 | O57: =INDEX('[64]Dados AECOM'!$D$580:$BK$615,MATCH($C57,'[64]Dados AECOM'!$C$580:$C$615,0),MATCH(O$3,'[64]Dados AECOM'!$D$2:$BK$2,0))*AP57 -> 14147 | P57: =INDEX('[64]Dados AECOM'!$D$580:$BK$615,MATCH($C57,'[64]Dados AECOM'!$C$580:$C$615,0),MATCH(P$3,'[64]Dados AECOM'!$D$2:$BK$2,0))*AQ57 -> 58240 | Q57: =INDEX('[64]Dados AECOM'!$D$580:$BK$615,MATCH($C57,'[64]Dados AECOM'!$C$580:$C$615,0),MATCH(Q$3,'[64]Dados AECOM'!$D$2:$BK$2,0))*AR57 -> 6980 | R57: =INDEX('[64]Dados AECOM'!$D$580:$BK$615,MATCH($C57,'[64]Dados AECOM'!$C$580:$C$615,0),MATCH(R$3,'[64]Dados AECOM'!$D$2:$BK$2,0))*AS57 -> 2852100 | S57: =INDEX('[64]Dados AECOM'!$D$580:$BK$615,MATCH($C57,'[64]Dados AECOM'!$C$580:$C$615,0),MATCH(S$3,'[64]Dados AECOM'!$D$2:$BK$2,0))*AT57 -> 17269 | T57: =INDEX('[64]Dados AECOM'!$D$580:$BK$615,MATCH($C57,'[64]Dados AECOM'!$C$580:$C$615,0),MATCH(T$3,'[64]Dados AECOM'!$D$2:$BK$2,0))*AU57 -> 66284 | U57: =INDEX('[64]Dados AECOM'!$D$580:$BK$615,MATCH($C57,'[64]Dados AECOM'!$C$580:$C$615,0),MATCH(U$3,'[64]Dados AECOM'!$D$2:$BK$2,0))*AV57 -> 47031 | V57: =INDEX('[64]Dados AECOM'!$D$580:$BK$615,MATCH($C57,'[64]Dados AECOM'!$C$580:$C$615,0),MATCH(V$3,'[64]Dados AECOM'!$D$2:$BK$2,0))*AW57 -> 289138 | W57: =INDEX('[64]Dados AECOM'!$D$580:$BK$615,MATCH($C57,'[64]Dados AECOM'!$C$580:$C$615,0),MATCH(W$3,'[64]Dados AECOM'!$D$2:$BK$2,0))*AX57 -> 244563 | X57: =INDEX('[64]Dados AECOM'!$D$580:$BK$615,MATCH($C57,'[64]Dados AECOM'!$C$580:$C$615,0),MATCH(X$3,'[64]Dados AECOM'!$D$2:$BK$2,0))*AY57 -> 100993 | Y57: =INDEX('[64]Dados AECOM'!$D$580:$BK$615,MATCH($C57,'[64]Dados AECOM'!$C$580:$C$615,0),MATCH(Y$3,'[64]Dados AECOM'!$D$2:$BK$2,0))*AZ57 -> 15995 | Z57: =INDEX('[64]Dados AECOM'!$D$580:$BK$615,MATCH($C57,'[64]Dados AECOM'!$C$580:$C$615,0),MATCH(Z$3,'[64]Dados AECOM'!$D$2:$BK$2,0))*BA57 -> 15889.50621 | AA57: =INDEX('[64]Dados AECOM'!$D$580:$BK$615,MATCH($C57,'[64]Dados AECOM'!$C$580:$C$615,0),MATCH(AA$3,'[64]Dados AECOM'!$D$2:$BK$2,0))*BB57 -> 64519 | AB57: =INDEX('[64]Dados AECOM'!$D$580:$BK$615,MATCH($C57,'[64]Dados AECOM'!$C$580:$C$615,0),MATCH(AB$3,'[64]Dados AECOM'!$D$2:$BK$2,0))*BC57 -> 77877 | AC57: =INDEX('[64]Dados AECOM'!$D$580:$BK$615,MATCH($C57,'[64]Dados AECOM'!$C$580:$C$615,0),MATCH(AC$3,'[64]Dados AECOM'!$D$2:$BK$2,0))*BD57 -> 24311 | AD57: =INDEX('[64]Dados AECOM'!$D$580:$BK$615,MATCH($C57,'[64]Dados AECOM'!$C$580:$C$615,0),MATCH(AD$3,'[64]Dados AECOM'!$D$2:$BK$2,0))*BE57 -> 13202 | AE57: =INDEX('[64]Dados AECOM'!$D$580:$BK$615,MATCH($C57,'[64]Dados AECOM'!$C$580:$C$615,0),MATCH(AE$3,'[64]Dados AECOM'!$D$2:$BK$2,0))*BF57 -> 26764 | AF57: =INDEX('[64]Dados AECOM'!$D$580:$BK$615,MATCH($C57,'[64]Dados AECOM'!$C$580:$C$615,0),MATCH(AF$3,'[64]Dados AECOM'!$D$2:$BK$2,0))*BG57 -> 8635 | AG57: =INDEX('[64]Dados AECOM'!$D$580:$BK$615,MATCH($C57,'[64]Dados AECOM'!$C$580:$C$615,0),MATCH(AG$3,'[64]Dados AECOM'!$D$2:$BK$2,0))*BH57 -> 22300 | AH57: =INDEX('[64]Dados AECOM'!$D$580:$BN$615,MATCH($C57,'[64]Dados AECOM'!$C$580:$C$615,0),MATCH(AH$3,'[64]Dados AECOM'!$D$2:$BN$2,0))*BI57 -> 5907 | AK57: 24 | AL57: 1 | AM57: 1 | AN57: 1 | AO57: 1 | AP57: 1 | AQ57: 1 | AR57: 1 | AS57: 1 | AT57: 1 | AU57: 1 | AV57: 1 | AW57: 1 | AX57: 1 | AY57: 1 | AZ57: 1 | BA57: 1 | BB57: 1 | BC57: 1 | BD57: 1 | BE57: 1 | BF57: 1 | BG57: 1 | BH57: 1 | BI57: 1
B58: 58 | C58: 2047 | D58: População | E58: 1186658.818 | F58: 3309739.972 | G58: 0 | H58: 0 | I58: 0 | K58: =INDEX('[64]Dados AECOM'!$D$580:$BK$615,MATCH($C58,'[64]Dados AECOM'!$C$580:$C$615,0),MATCH(K$3,'[64]Dados AECOM'!$D$2:$BK$2,0))*AL58 -> 57613 | L58: =INDEX('[64]Dados AECOM'!$D$580:$BK$615,MATCH($C58,'[64]Dados AECOM'!$C$580:$C$615,0),MATCH(L$3,'[64]Dados AECOM'!$D$2:$BK$2,0))*AM58 -> 45108 | M58: =INDEX('[64]Dados AECOM'!$D$580:$BK$615,MATCH($C58,'[64]Dados AECOM'!$C$580:$C$615,0),MATCH(M$3,'[64]Dados AECOM'!$D$2:$BK$2,0))*AN58 -> 60938 | N58: =INDEX('[64]Dados AECOM'!$D$580:$BK$615,MATCH($C58,'[64]Dados AECOM'!$C$580:$C$615,0),MATCH(N$3,'[64]Dados AECOM'!$D$2:$BK$2,0))*AO58 -> 366648.9717 | O58: =INDEX('[64]Dados AECOM'!$D$580:$BK$615,MATCH($C58,'[64]Dados AECOM'!$C$580:$C$615,0),MATCH(O$3,'[64]Dados AECOM'!$D$2:$BK$2,0))*AP58 -> 14109 | P58: =INDEX('[64]Dados AECOM'!$D$580:$BK$615,MATCH($C58,'[64]Dados AECOM'!$C$580:$C$615,0),MATCH(P$3,'[64]Dados AECOM'!$D$2:$BK$2,0))*AQ58 -> 58117 | Q58: =INDEX('[64]Dados AECOM'!$D$580:$BK$615,MATCH($C58,'[64]Dados AECOM'!$C$580:$C$615,0),MATCH(Q$3,'[64]Dados AECOM'!$D$2:$BK$2,0))*AR58 -> 6978 | R58: =INDEX('[64]Dados AECOM'!$D$580:$BK$615,MATCH($C58,'[64]Dados AECOM'!$C$580:$C$615,0),MATCH(R$3,'[64]Dados AECOM'!$D$2:$BK$2,0))*AS58 -> 2848062 | S58: =INDEX('[64]Dados AECOM'!$D$580:$BK$615,MATCH($C58,'[64]Dados AECOM'!$C$580:$C$615,0),MATCH(S$3,'[64]Dados AECOM'!$D$2:$BK$2,0))*AT58 -> 17240 | T58: =INDEX('[64]Dados AECOM'!$D$580:$BK$615,MATCH($C58,'[64]Dados AECOM'!$C$580:$C$615,0),MATCH(T$3,'[64]Dados AECOM'!$D$2:$BK$2,0))*AU58 -> 66127 | U58: =INDEX('[64]Dados AECOM'!$D$580:$BK$615,MATCH($C58,'[64]Dados AECOM'!$C$580:$C$615,0),MATCH(U$3,'[64]Dados AECOM'!$D$2:$BK$2,0))*AV58 -> 46960 | V58: =INDEX('[64]Dados AECOM'!$D$580:$BK$615,MATCH($C58,'[64]Dados AECOM'!$C$580:$C$615,0),MATCH(V$3,'[64]Dados AECOM'!$D$2:$BK$2,0))*AW58 -> 288643 | W58: =INDEX('[64]Dados AECOM'!$D$580:$BK$615,MATCH($C58,'[64]Dados AECOM'!$C$580:$C$615,0),MATCH(W$3,'[64]Dados AECOM'!$D$2:$BK$2,0))*AX58 -> 244264 | X58: =INDEX('[64]Dados AECOM'!$D$580:$BK$615,MATCH($C58,'[64]Dados AECOM'!$C$580:$C$615,0),MATCH(X$3,'[64]Dados AECOM'!$D$2:$BK$2,0))*AY58 -> 100750 | Y58: =INDEX('[64]Dados AECOM'!$D$580:$BK$615,MATCH($C58,'[64]Dados AECOM'!$C$580:$C$615,0),MATCH(Y$3,'[64]Dados AECOM'!$D$2:$BK$2,0))*AZ58 -> 15963 | Z58: =INDEX('[64]Dados AECOM'!$D$580:$BK$615,MATCH($C58,'[64]Dados AECOM'!$C$580:$C$615,0),MATCH(Z$3,'[64]Dados AECOM'!$D$2:$BK$2,0))*BA58 -> 15843.81811 | AA58: =INDEX('[64]Dados AECOM'!$D$580:$BK$615,MATCH($C58,'[64]Dados AECOM'!$C$580:$C$615,0),MATCH(AA$3,'[64]Dados AECOM'!$D$2:$BK$2,0))*BB58 -> 64366 | AB58: =INDEX('[64]Dados AECOM'!$D$580:$BK$615,MATCH($C58,'[64]Dados AECOM'!$C$580:$C$615,0),MATCH(AB$3,'[64]Dados AECOM'!$D$2:$BK$2,0))*BC58 -> 77734 | AC58: =INDEX('[64]Dados AECOM'!$D$580:$BK$615,MATCH($C58,'[64]Dados AECOM'!$C$580:$C$615,0),MATCH(AC$3,'[64]Dados AECOM'!$D$2:$BK$2,0))*BD58 -> 24264 | AD58: =INDEX('[64]Dados AECOM'!$D$580:$BK$615,MATCH($C58,'[64]Dados AECOM'!$C$580:$C$615,0),MATCH(AD$3,'[64]Dados AECOM'!$D$2:$BK$2,0))*BE58 -> 13185 | AE58: =INDEX('[64]Dados AECOM'!$D$580:$BK$615,MATCH($C58,'[64]Dados AECOM'!$C$580:$C$615,0),MATCH(AE$3,'[64]Dados AECOM'!$D$2:$BK$2,0))*BF58 -> 26704 | AF58: =INDEX('[64]Dados AECOM'!$D$580:$BK$615,MATCH($C58,'[64]Dados AECOM'!$C$580:$C$615,0),MATCH(AF$3,'[64]Dados AECOM'!$D$2:$BK$2,0))*BG58 -> 8628 | AG58: =INDEX('[64]Dados AECOM'!$D$580:$BK$615,MATCH($C58,'[64]Dados AECOM'!$C$580:$C$615,0),MATCH(AG$3,'[64]Dados AECOM'!$D$2:$BK$2,0))*BH58 -> 22248 | AH58: =INDEX('[64]Dados AECOM'!$D$580:$BN$615,MATCH($C58,'[64]Dados AECOM'!$C$580:$C$615,0),MATCH(AH$3,'[64]Dados AECOM'!$D$2:$BN$2,0))*BI58 -> 5905 | AK58: 25 | AL58: 1 | AM58: 1 | AN58: 1 | AO58: 1 | AP58: 1 | AQ58: 1 | AR58: 1 | AS58: 1 | AT58: 1 | AU58: 1 | AV58: 1 | AW58: 1 | AX58: 1 | AY58: 1 | AZ58: 1 | BA58: 1 | BB58: 1 | BC58: 1 | BD58: 1 | BE58: 1 | BF58: 1 | BG58: 1 | BH58: 1 | BI58: 1
B59: =ROW(C59) -> 59 | C59: 2048 | D59: População | E59: 1184071.089 | F59: 3303738.722 | G59: 0 | H59: 0 | I59: 0 | K59: =INDEX('[64]Dados AECOM'!$D$580:$BK$615,MATCH($C59,'[64]Dados AECOM'!$C$580:$C$615,0),MATCH(K$3,'[64]Dados AECOM'!$D$2:$BK$2,0))*AL59 -> 57452 | L59: =INDEX('[64]Dados AECOM'!$D$580:$BK$615,MATCH($C59,'[64]Dados AECOM'!$C$580:$C$615,0),MATCH(L$3,'[64]Dados AECOM'!$D$2:$BK$2,0))*AM59 -> 45014 | M59: =INDEX('[64]Dados AECOM'!$D$580:$BK$615,MATCH($C59,'[64]Dados AECOM'!$C$580:$C$615,0),MATCH(M$3,'[64]Dados AECOM'!$D$2:$BK$2,0))*AN59 -> 60814 | N59: =INDEX('[64]Dados AECOM'!$D$580:$BK$615,MATCH($C59,'[64]Dados AECOM'!$C$580:$C$615,0),MATCH(N$3,'[64]Dados AECOM'!$D$2:$BK$2,0))*AO59 -> 365671.7221 | O59: =INDEX('[64]Dados AECOM'!$D$580:$BK$615,MATCH($C59,'[64]Dados AECOM'!$C$580:$C$615,0),MATCH(O$3,'[64]Dados AECOM'!$D$2:$BK$2,0))*AP59 -> 14063 | P59: =INDEX('[64]Dados AECOM'!$D$580:$BK$615,MATCH($C59,'[64]Dados AECOM'!$C$580:$C$615,0),MATCH(P$3,'[64]Dados AECOM'!$D$2:$BK$2,0))*AQ59 -> 57970 | Q59: =INDEX('[64]Dados AECOM'!$D$580:$BK$615,MATCH($C59,'[64]Dados AECOM'!$C$580:$C$615,0),MATCH(Q$3,'[64]Dados AECOM'!$D$2:$BK$2,0))*AR59 -> 6978 | R59: =INDEX('[64]Dados AECOM'!$D$580:$BK$615,MATCH($C59,'[64]Dados AECOM'!$C$580:$C$615,0),MATCH(R$3,'[64]Dados AECOM'!$D$2:$BK$2,0))*AS59 -> 2843255 | S59: =INDEX('[64]Dados AECOM'!$D$580:$BK$615,MATCH($C59,'[64]Dados AECOM'!$C$580:$C$615,0),MATCH(S$3,'[64]Dados AECOM'!$D$2:$BK$2,0))*AT59 -> 17205 | T59: =INDEX('[64]Dados AECOM'!$D$580:$BK$615,MATCH($C59,'[64]Dados AECOM'!$C$580:$C$615,0),MATCH(T$3,'[64]Dados AECOM'!$D$2:$BK$2,0))*AU59 -> 65940 | U59: =INDEX('[64]Dados AECOM'!$D$580:$BK$615,MATCH($C59,'[64]Dados AECOM'!$C$580:$C$615,0),MATCH(U$3,'[64]Dados AECOM'!$D$2:$BK$2,0))*AV59 -> 46867 | V59: =INDEX('[64]Dados AECOM'!$D$580:$BK$615,MATCH($C59,'[64]Dados AECOM'!$C$580:$C$615,0),MATCH(V$3,'[64]Dados AECOM'!$D$2:$BK$2,0))*AW59 -> 288053 | W59: =INDEX('[64]Dados AECOM'!$D$580:$BK$615,MATCH($C59,'[64]Dados AECOM'!$C$580:$C$615,0),MATCH(W$3,'[64]Dados AECOM'!$D$2:$BK$2,0))*AX59 -> 243894 | X59: =INDEX('[64]Dados AECOM'!$D$580:$BK$615,MATCH($C59,'[64]Dados AECOM'!$C$580:$C$615,0),MATCH(X$3,'[64]Dados AECOM'!$D$2:$BK$2,0))*AY59 -> 100458 | Y59: =INDEX('[64]Dados AECOM'!$D$580:$BK$615,MATCH($C59,'[64]Dados AECOM'!$C$580:$C$615,0),MATCH(Y$3,'[64]Dados AECOM'!$D$2:$BK$2,0))*AZ59 -> 15926 | Z59: =INDEX('[64]Dados AECOM'!$D$580:$BK$615,MATCH($C59,'[64]Dados AECOM'!$C$580:$C$615,0),MATCH(Z$3,'[64]Dados AECOM'!$D$2:$BK$2,0))*BA59 -> 15788.08948 | AA59: =INDEX('[64]Dados AECOM'!$D$580:$BK$615,MATCH($C59,'[64]Dados AECOM'!$C$580:$C$615,0),MATCH(AA$3,'[64]Dados AECOM'!$D$2:$BK$2,0))*BB59 -> 64184 | AB59: =INDEX('[64]Dados AECOM'!$D$580:$BK$615,MATCH($C59,'[64]Dados AECOM'!$C$580:$C$615,0),MATCH(AB$3,'[64]Dados AECOM'!$D$2:$BK$2,0))*BC59 -> 77562 | AC59: =INDEX('[64]Dados AECOM'!$D$580:$BK$615,MATCH($C59,'[64]Dados AECOM'!$C$580:$C$615,0),MATCH(AC$3,'[64]Dados AECOM'!$D$2:$BK$2,0))*BD59 -> 24209 | AD59: =INDEX('[64]Dados AECOM'!$D$580:$BK$615,MATCH($C59,'[64]Dados AECOM'!$C$580:$C$615,0),MATCH(AD$3,'[64]Dados AECOM'!$D$2:$BK$2,0))*BE59 -> 13166 | AE59: =INDEX('[64]Dados AECOM'!$D$580:$BK$615,MATCH($C59,'[64]Dados AECOM'!$C$580:$C$615,0),MATCH(AE$3,'[64]Dados AECOM'!$D$2:$BK$2,0))*BF59 -> 26633 | AF59: =INDEX('[64]Dados AECOM'!$D$580:$BK$615,MATCH($C59,'[64]Dados AECOM'!$C$580:$C$615,0),MATCH(AF$3,'[64]Dados AECOM'!$D$2:$BK$2,0))*BG59 -> 8620 | AG59: =INDEX('[64]Dados AECOM'!$D$580:$BK$615,MATCH($C59,'[64]Dados AECOM'!$C$580:$C$615,0),MATCH(AG$3,'[64]Dados AECOM'!$D$2:$BK$2,0))*BH59 -> 22184 | AH59: =INDEX('[64]Dados AECOM'!$D$580:$BN$615,MATCH($C59,'[64]Dados AECOM'!$C$580:$C$615,0),MATCH(AH$3,'[64]Dados AECOM'!$D$2:$BN$2,0))*BI59 -> 5903 | AK59: 26 | AL59: 1 | AM59: 1 | AN59: 1 | AO59: 1 | AP59: 1 | AQ59: 1 | AR59: 1 | AS59: 1 | AT59: 1 | AU59: 1 | AV59: 1 | AW59: 1 | AX59: 1 | AY59: 1 | AZ59: 1 | BA59: 1 | BB59: 1 | BC59: 1 | BD59: 1 | BE59: 1 | BF59: 1 | BG59: 1 | BH59: 1 | BI59: 1
B60: 60 | C60: 2049 | D60: População | E60: 1181052.328 | F60: 3296778.033 | G60: 0 | H60: 0 | I60: 0 | K60: =INDEX('[64]Dados AECOM'!$D$580:$BK$615,MATCH($C60,'[64]Dados AECOM'!$C$580:$C$615,0),MATCH(K$3,'[64]Dados AECOM'!$D$2:$BK$2,0))*AL60 -> 57261 | L60: =INDEX('[64]Dados AECOM'!$D$580:$BK$615,MATCH($C60,'[64]Dados AECOM'!$C$580:$C$615,0),MATCH(L$3,'[64]Dados AECOM'!$D$2:$BK$2,0))*AM60 -> 44907 | M60: =INDEX('[64]Dados AECOM'!$D$580:$BK$615,MATCH($C60,'[64]Dados AECOM'!$C$580:$C$615,0),MATCH(M$3,'[64]Dados AECOM'!$D$2:$BK$2,0))*AN60 -> 60670 | N60: =INDEX('[64]Dados AECOM'!$D$580:$BK$615,MATCH($C60,'[64]Dados AECOM'!$C$580:$C$615,0),MATCH(N$3,'[64]Dados AECOM'!$D$2:$BK$2,0))*AO60 -> 364539.033 | O60: =INDEX('[64]Dados AECOM'!$D$580:$BK$615,MATCH($C60,'[64]Dados AECOM'!$C$580:$C$615,0),MATCH(O$3,'[64]Dados AECOM'!$D$2:$BK$2,0))*AP60 -> 14010 | P60: =INDEX('[64]Dados AECOM'!$D$580:$BK$615,MATCH($C60,'[64]Dados AECOM'!$C$580:$C$615,0),MATCH(P$3,'[64]Dados AECOM'!$D$2:$BK$2,0))*AQ60 -> 57800 | Q60: =INDEX('[64]Dados AECOM'!$D$580:$BK$615,MATCH($C60,'[64]Dados AECOM'!$C$580:$C$615,0),MATCH(Q$3,'[64]Dados AECOM'!$D$2:$BK$2,0))*AR60 -> 6977 | R60: =INDEX('[64]Dados AECOM'!$D$580:$BK$615,MATCH($C60,'[64]Dados AECOM'!$C$580:$C$615,0),MATCH(R$3,'[64]Dados AECOM'!$D$2:$BK$2,0))*AS60 -> 2837680 | S60: =INDEX('[64]Dados AECOM'!$D$580:$BK$615,MATCH($C60,'[64]Dados AECOM'!$C$580:$C$615,0),MATCH(S$3,'[64]Dados AECOM'!$D$2:$BK$2,0))*AT60 -> 17166 | T60: =INDEX('[64]Dados AECOM'!$D$580:$BK$615,MATCH($C60,'[64]Dados AECOM'!$C$580:$C$615,0),MATCH(T$3,'[64]Dados AECOM'!$D$2:$BK$2,0))*AU60 -> 65724 | U60: =INDEX('[64]Dados AECOM'!$D$580:$BK$615,MATCH($C60,'[64]Dados AECOM'!$C$580:$C$615,0),MATCH(U$3,'[64]Dados AECOM'!$D$2:$BK$2,0))*AV60 -> 46753 | V60: =INDEX('[64]Dados AECOM'!$D$580:$BK$615,MATCH($C60,'[64]Dados AECOM'!$C$580:$C$615,0),MATCH(V$3,'[64]Dados AECOM'!$D$2:$BK$2,0))*AW60 -> 287370 | W60: =INDEX('[64]Dados AECOM'!$D$580:$BK$615,MATCH($C60,'[64]Dados AECOM'!$C$580:$C$615,0),MATCH(W$3,'[64]Dados AECOM'!$D$2:$BK$2,0))*AX60 -> 243454 | X60: =INDEX('[64]Dados AECOM'!$D$580:$BK$615,MATCH($C60,'[64]Dados AECOM'!$C$580:$C$615,0),MATCH(X$3,'[64]Dados AECOM'!$D$2:$BK$2,0))*AY60 -> 100119 | Y60: =INDEX('[64]Dados AECOM'!$D$580:$BK$615,MATCH($C60,'[64]Dados AECOM'!$C$580:$C$615,0),MATCH(Y$3,'[64]Dados AECOM'!$D$2:$BK$2,0))*AZ60 -> 15883 | Z60: =INDEX('[64]Dados AECOM'!$D$580:$BK$615,MATCH($C60,'[64]Dados AECOM'!$C$580:$C$615,0),MATCH(Z$3,'[64]Dados AECOM'!$D$2:$BK$2,0))*BA60 -> 15721.32828 | AA60: =INDEX('[64]Dados AECOM'!$D$580:$BK$615,MATCH($C60,'[64]Dados AECOM'!$C$580:$C$615,0),MATCH(AA$3,'[64]Dados AECOM'!$D$2:$BK$2,0))*BB60 -> 63972 | AB60: =INDEX('[64]Dados AECOM'!$D$580:$BK$615,MATCH($C60,'[64]Dados AECOM'!$C$580:$C$615,0),MATCH(AB$3,'[64]Dados AECOM'!$D$2:$BK$2,0))*BC60 -> 77363 | AC60: =INDEX('[64]Dados AECOM'!$D$580:$BK$615,MATCH($C60,'[64]Dados AECOM'!$C$580:$C$615,0),MATCH(AC$3,'[64]Dados AECOM'!$D$2:$BK$2,0))*BD60 -> 24144 | AD60: =INDEX('[64]Dados AECOM'!$D$580:$BK$615,MATCH($C60,'[64]Dados AECOM'!$C$580:$C$615,0),MATCH(AD$3,'[64]Dados AECOM'!$D$2:$BK$2,0))*BE60 -> 13144 | AE60: =INDEX('[64]Dados AECOM'!$D$580:$BK$615,MATCH($C60,'[64]Dados AECOM'!$C$580:$C$615,0),MATCH(AE$3,'[64]Dados AECOM'!$D$2:$BK$2,0))*BF60 -> 26549 | AF60: =INDEX('[64]Dados AECOM'!$D$580:$BK$615,MATCH($C60,'[64]Dados AECOM'!$C$580:$C$615,0),MATCH(AF$3,'[64]Dados AECOM'!$D$2:$BK$2,0))*BG60 -> 8611 | AG60: =INDEX('[64]Dados AECOM'!$D$580:$BK$615,MATCH($C60,'[64]Dados AECOM'!$C$580:$C$615,0),MATCH(AG$3,'[64]Dados AECOM'!$D$2:$BK$2,0))*BH60 -> 22111 | AH60: =INDEX('[64]Dados AECOM'!$D$580:$BN$615,MATCH($C60,'[64]Dados AECOM'!$C$580:$C$615,0),MATCH(AH$3,'[64]Dados AECOM'!$D$2:$BN$2,0))*BI60 -> 5902 | AK60: 27 | AL60: 1 | AM60: 1 | AN60: 1 | AO60: 1 | AP60: 1 | AQ60: =IF(OR(AQ59<1,$C60>AQ$13),0,IF(YEAR(INDEX($K$13:$AG$13,1,MATCH(AQ$4,$K$4:$AG$4,0)))<=$C60,INDEX($K$14:$AG$14,1,MATCH(AQ$4,$K$4:$AG$4,0)),1)) -> 1 | AR60: 1 | AS60: 1 | AT60: 1 | AU60: 1 | AV60: 1 | AW60: 1 | AX60: 1 | AY60: 1 | AZ60: 1 | BA60: 1 | BB60: 1 | BC60: 1 | BD60: 1 | BE60: 1 | BF60: 1 | BG60: 1 | BH60: 1 | BI60: 1
B61: 61 | C61: 2050 | D61: População | E61: 1177583.527 | F61: 3288841.863 | G61: 0 | H61: 0 | I61: 0 | K61: =INDEX('[64]Dados AECOM'!$D$580:$BK$615,MATCH($C61,'[64]Dados AECOM'!$C$580:$C$615,0),MATCH(K$3,'[64]Dados AECOM'!$D$2:$BK$2,0))*AL61 -> 57043 | L61: =INDEX('[64]Dados AECOM'!$D$580:$BK$615,MATCH($C61,'[64]Dados AECOM'!$C$580:$C$615,0),MATCH(L$3,'[64]Dados AECOM'!$D$2:$BK$2,0))*AM61 -> 44783 | M61: =INDEX('[64]Dados AECOM'!$D$580:$BK$615,MATCH($C61,'[64]Dados AECOM'!$C$580:$C$615,0),MATCH(M$3,'[64]Dados AECOM'!$D$2:$BK$2,0))*AN61 -> 60505 | N61: =INDEX('[64]Dados AECOM'!$D$580:$BK$615,MATCH($C61,'[64]Dados AECOM'!$C$580:$C$615,0),MATCH(N$3,'[64]Dados AECOM'!$D$2:$BK$2,0))*AO61 -> 363247.8627 | O61: =INDEX('[64]Dados AECOM'!$D$580:$BK$615,MATCH($C61,'[64]Dados AECOM'!$C$580:$C$615,0),MATCH(O$3,'[64]Dados AECOM'!$D$2:$BK$2,0))*AP61 -> 13950 | P61: =INDEX('[64]Dados AECOM'!$D$580:$BK$615,MATCH($C61,'[64]Dados AECOM'!$C$580:$C$615,0),MATCH(P$3,'[64]Dados AECOM'!$D$2:$BK$2,0))*AQ61 -> 57606 | Q61: =INDEX('[64]Dados AECOM'!$D$580:$BK$615,MATCH($C61,'[64]Dados AECOM'!$C$580:$C$615,0),MATCH(Q$3,'[64]Dados AECOM'!$D$2:$BK$2,0))*AR61 -> 6975 | R61: =INDEX('[64]Dados AECOM'!$D$580:$BK$615,MATCH($C61,'[64]Dados AECOM'!$C$580:$C$615,0),MATCH(R$3,'[64]Dados AECOM'!$D$2:$BK$2,0))*AS61 -> 2831322 | S61: =INDEX('[64]Dados AECOM'!$D$580:$BK$615,MATCH($C61,'[64]Dados AECOM'!$C$580:$C$615,0),MATCH(S$3,'[64]Dados AECOM'!$D$2:$BK$2,0))*AT61 -> 17119 | T61: =INDEX('[64]Dados AECOM'!$D$580:$BK$615,MATCH($C61,'[64]Dados AECOM'!$C$580:$C$615,0),MATCH(T$3,'[64]Dados AECOM'!$D$2:$BK$2,0))*AU61 -> 65477 | U61: =INDEX('[64]Dados AECOM'!$D$580:$BK$615,MATCH($C61,'[64]Dados AECOM'!$C$580:$C$615,0),MATCH(U$3,'[64]Dados AECOM'!$D$2:$BK$2,0))*AV61 -> 46617 | V61: =INDEX('[64]Dados AECOM'!$D$580:$BK$615,MATCH($C61,'[64]Dados AECOM'!$C$580:$C$615,0),MATCH(V$3,'[64]Dados AECOM'!$D$2:$BK$2,0))*AW61 -> 286591 | W61: =INDEX('[64]Dados AECOM'!$D$580:$BK$615,MATCH($C61,'[64]Dados AECOM'!$C$580:$C$615,0),MATCH(W$3,'[64]Dados AECOM'!$D$2:$BK$2,0))*AX61 -> 242943 | X61: =INDEX('[64]Dados AECOM'!$D$580:$BK$615,MATCH($C61,'[64]Dados AECOM'!$C$580:$C$615,0),MATCH(X$3,'[64]Dados AECOM'!$D$2:$BK$2,0))*AY61 -> 99733 | Y61: =INDEX('[64]Dados AECOM'!$D$580:$BK$615,MATCH($C61,'[64]Dados AECOM'!$C$580:$C$615,0),MATCH(Y$3,'[64]Dados AECOM'!$D$2:$BK$2,0))*AZ61 -> 15833 | Z61: =INDEX('[64]Dados AECOM'!$D$580:$BK$615,MATCH($C61,'[64]Dados AECOM'!$C$580:$C$615,0),MATCH(Z$3,'[64]Dados AECOM'!$D$2:$BK$2,0))*BA61 -> 15644.52655 | AA61: =INDEX('[64]Dados AECOM'!$D$580:$BK$615,MATCH($C61,'[64]Dados AECOM'!$C$580:$C$615,0),MATCH(AA$3,'[64]Dados AECOM'!$D$2:$BK$2,0))*BB61 -> 63731 | AB61: =INDEX('[64]Dados AECOM'!$D$580:$BK$615,MATCH($C61,'[64]Dados AECOM'!$C$580:$C$615,0),MATCH(AB$3,'[64]Dados AECOM'!$D$2:$BK$2,0))*BC61 -> 77135 | AC61: =INDEX('[64]Dados AECOM'!$D$580:$BK$615,MATCH($C61,'[64]Dados AECOM'!$C$580:$C$615,0),MATCH(AC$3,'[64]Dados AECOM'!$D$2:$BK$2,0))*BD61 -> 24072 | AD61: =INDEX('[64]Dados AECOM'!$D$580:$BK$615,MATCH($C61,'[64]Dados AECOM'!$C$580:$C$615,0),MATCH(AD$3,'[64]Dados AECOM'!$D$2:$BK$2,0))*BE61 -> 13119 | AE61: =INDEX('[64]Dados AECOM'!$D$580:$BK$615,MATCH($C61,'[64]Dados AECOM'!$C$580:$C$615,0),MATCH(AE$3,'[64]Dados AECOM'!$D$2:$BK$2,0))*BF61 -> 26454 | AF61: =INDEX('[64]Dados AECOM'!$D$580:$BK$615,MATCH($C61,'[64]Dados AECOM'!$C$580:$C$615,0),MATCH(AF$3,'[64]Dados AECOM'!$D$2:$BK$2,0))*BG61 -> 8600 | AG61: =INDEX('[64]Dados AECOM'!$D$580:$BK$615,MATCH($C61,'[64]Dados AECOM'!$C$580:$C$615,0),MATCH(AG$3,'[64]Dados AECOM'!$D$2:$BK$2,0))*BH61 -> 22027 | AH61: =INDEX('[64]Dados AECOM'!$D$580:$BN$615,MATCH($C61,'[64]Dados AECOM'!$C$580:$C$615,0),MATCH(AH$3,'[64]Dados AECOM'!$D$2:$BN$2,0))*BI61 -> 5898 | AK61: 28 | AL61: 1 | AM61: 1 | AN61: 1 | AO61: 1 | AP61: 1 | AQ61: 1 | AR61: 1 | AS61: 1 | AT61: 1 | AU61: 1 | AV61: 1 | AW61: 1 | AX61: 1 | AY61: 1 | AZ61: 1 | BA61: 1 | BB61: 1 | BC61: 1 | BD61: 1 | BE61: 1 | BF61: 1 | BG61: 1 | BH61: 1 | BI61: 1
B62: 62 | C62: 2051 | D62: População | E62: 1173666.514 | F62: 3279909.157 | G62: 0 | H62: 0 | I62: 0 | K62: =INDEX('[64]Dados AECOM'!$D$580:$BK$615,MATCH($C62,'[64]Dados AECOM'!$C$580:$C$615,0),MATCH(K$3,'[64]Dados AECOM'!$D$2:$BK$2,0))*AL62 -> 56796 | L62: =INDEX('[64]Dados AECOM'!$D$580:$BK$615,MATCH($C62,'[64]Dados AECOM'!$C$580:$C$615,0),MATCH(L$3,'[64]Dados AECOM'!$D$2:$BK$2,0))*AM62 -> 44644 | M62: =INDEX('[64]Dados AECOM'!$D$580:$BK$615,MATCH($C62,'[64]Dados AECOM'!$C$580:$C$615,0),MATCH(M$3,'[64]Dados AECOM'!$D$2:$BK$2,0))*AN62 -> 60320 | N62: =INDEX('[64]Dados AECOM'!$D$580:$BK$615,MATCH($C62,'[64]Dados AECOM'!$C$580:$C$615,0),MATCH(N$3,'[64]Dados AECOM'!$D$2:$BK$2,0))*AO62 -> 361794.1572 | O62: =INDEX('[64]Dados AECOM'!$D$580:$BK$615,MATCH($C62,'[64]Dados AECOM'!$C$580:$C$615,0),MATCH(O$3,'[64]Dados AECOM'!$D$2:$BK$2,0))*AP62 -> 13882 | P62: =INDEX('[64]Dados AECOM'!$D$580:$BK$615,MATCH($C62,'[64]Dados AECOM'!$C$580:$C$615,0),MATCH(P$3,'[64]Dados AECOM'!$D$2:$BK$2,0))*AQ62 -> 57387 | Q62: =INDEX('[64]Dados AECOM'!$D$580:$BK$615,MATCH($C62,'[64]Dados AECOM'!$C$580:$C$615,0),MATCH(Q$3,'[64]Dados AECOM'!$D$2:$BK$2,0))*AR62 -> 6974 | R62: =INDEX('[64]Dados AECOM'!$D$580:$BK$615,MATCH($C62,'[64]Dados AECOM'!$C$580:$C$615,0),MATCH(R$3,'[64]Dados AECOM'!$D$2:$BK$2,0))*AS62 -> 2824166 | S62: =INDEX('[64]Dados AECOM'!$D$580:$BK$615,MATCH($C62,'[64]Dados AECOM'!$C$580:$C$615,0),MATCH(S$3,'[64]Dados AECOM'!$D$2:$BK$2,0))*AT62 -> 17068 | T62: =INDEX('[64]Dados AECOM'!$D$580:$BK$615,MATCH($C62,'[64]Dados AECOM'!$C$580:$C$615,0),MATCH(T$3,'[64]Dados AECOM'!$D$2:$BK$2,0))*AU62 -> 65198 | U62: =INDEX('[64]Dados AECOM'!$D$580:$BK$615,MATCH($C62,'[64]Dados AECOM'!$C$580:$C$615,0),MATCH(U$3,'[64]Dados AECOM'!$D$2:$BK$2,0))*AV62 -> 46460 | V62: =INDEX('[64]Dados AECOM'!$D$580:$BK$615,MATCH($C62,'[64]Dados AECOM'!$C$580:$C$615,0),MATCH(V$3,'[64]Dados AECOM'!$D$2:$BK$2,0))*AW62 -> 285713 | W62: =INDEX('[64]Dados AECOM'!$D$580:$BK$615,MATCH($C62,'[64]Dados AECOM'!$C$580:$C$615,0),MATCH(W$3,'[64]Dados AECOM'!$D$2:$BK$2,0))*AX62 -> 242361 | X62: =INDEX('[64]Dados AECOM'!$D$580:$BK$615,MATCH($C62,'[64]Dados AECOM'!$C$580:$C$615,0),MATCH(X$3,'[64]Dados AECOM'!$D$2:$BK$2,0))*AY62 -> 99296 | Y62: =INDEX('[64]Dados AECOM'!$D$580:$BK$615,MATCH($C62,'[64]Dados AECOM'!$C$580:$C$615,0),MATCH(Y$3,'[64]Dados AECOM'!$D$2:$BK$2,0))*AZ62 -> 15778 | Z62: =INDEX('[64]Dados AECOM'!$D$580:$BK$615,MATCH($C62,'[64]Dados AECOM'!$C$580:$C$615,0),MATCH(Z$3,'[64]Dados AECOM'!$D$2:$BK$2,0))*BA62 -> 15555.51351 | AA62: =INDEX('[64]Dados AECOM'!$D$580:$BK$615,MATCH($C62,'[64]Dados AECOM'!$C$580:$C$615,0),MATCH(AA$3,'[64]Dados AECOM'!$D$2:$BK$2,0))*BB62 -> 63459 | AB62: =INDEX('[64]Dados AECOM'!$D$580:$BK$615,MATCH($C62,'[64]Dados AECOM'!$C$580:$C$615,0),MATCH(AB$3,'[64]Dados AECOM'!$D$2:$BK$2,0))*BC62 -> 76879 | AC62: =INDEX('[64]Dados AECOM'!$D$580:$BK$615,MATCH($C62,'[64]Dados AECOM'!$C$580:$C$615,0),MATCH(AC$3,'[64]Dados AECOM'!$D$2:$BK$2,0))*BD62 -> 23990 | AD62: =INDEX('[64]Dados AECOM'!$D$580:$BK$615,MATCH($C62,'[64]Dados AECOM'!$C$580:$C$615,0),MATCH(AD$3,'[64]Dados AECOM'!$D$2:$BK$2,0))*BE62 -> 13090 | AE62: =INDEX('[64]Dados AECOM'!$D$580:$BK$615,MATCH($C62,'[64]Dados AECOM'!$C$580:$C$615,0),MATCH(AE$3,'[64]Dados AECOM'!$D$2:$BK$2,0))*BF62 -> 26348 | AF62: =INDEX('[64]Dados AECOM'!$D$580:$BK$615,MATCH($C62,'[64]Dados AECOM'!$C$580:$C$615,0),MATCH(AF$3,'[64]Dados AECOM'!$D$2:$BK$2,0))*BG62 -> 8588 | AG62: =INDEX('[64]Dados AECOM'!$D$580:$BK$615,MATCH($C62,'[64]Dados AECOM'!$C$580:$C$615,0),MATCH(AG$3,'[64]Dados AECOM'!$D$2:$BK$2,0))*BH62 -> 21933 | AH62: =INDEX('[64]Dados AECOM'!$D$580:$BN$615,MATCH($C62,'[64]Dados AECOM'!$C$580:$C$615,0),MATCH(AH$3,'[64]Dados AECOM'!$D$2:$BN$2,0))*BI62 -> 5896 | AK62: 29 | AL62: 1 | AM62: 1 | AN62: 1 | AO62: 1 | AP62: 1 | AQ62: 1 | AR62: 1 | AS62: 1 | AT62: 1 | AU62: 1 | AV62: 1 | AW62: 1 | AX62: 1 | AY62: 1 | AZ62: 1 | BA62: 1 | BB62: 1 | BC62: 1 | BD62: 1 | BE62: 1 | BF62: 1 | BG62: 1 | BH62: 1 | BI62: 1
B63: 63 | C63: 2052 | D63: População | E63: =SUMIFS($K63:$AH63,$K$18:$AH$18,E$4) -> 1169301.067 | F63: 3269968.9 | G63: 0 | H63: 0 | I63: 0 | K63: =INDEX('[64]Dados AECOM'!$D$580:$BK$615,MATCH($C63,'[64]Dados AECOM'!$C$580:$C$615,0),MATCH(K$3,'[64]Dados AECOM'!$D$2:$BK$2,0))*AL63 -> 56520 | L63: =INDEX('[64]Dados AECOM'!$D$580:$BK$615,MATCH($C63,'[64]Dados AECOM'!$C$580:$C$615,0),MATCH(L$3,'[64]Dados AECOM'!$D$2:$BK$2,0))*AM63 -> 44490 | M63: =INDEX('[64]Dados AECOM'!$D$580:$BK$615,MATCH($C63,'[64]Dados AECOM'!$C$580:$C$615,0),MATCH(M$3,'[64]Dados AECOM'!$D$2:$BK$2,0))*AN63 -> 60116 | N63: =INDEX('[64]Dados AECOM'!$D$580:$BK$615,MATCH($C63,'[64]Dados AECOM'!$C$580:$C$615,0),MATCH(N$3,'[64]Dados AECOM'!$D$2:$BK$2,0))*AO63 -> 360177.9002 | O63: =INDEX('[64]Dados AECOM'!$D$580:$BK$615,MATCH($C63,'[64]Dados AECOM'!$C$580:$C$615,0),MATCH(O$3,'[64]Dados AECOM'!$D$2:$BK$2,0))*AP63 -> 13806 | P63: =INDEX('[64]Dados AECOM'!$D$580:$BK$615,MATCH($C63,'[64]Dados AECOM'!$C$580:$C$615,0),MATCH(P$3,'[64]Dados AECOM'!$D$2:$BK$2,0))*AQ63 -> 57144 | Q63: =INDEX('[64]Dados AECOM'!$D$580:$BK$615,MATCH($C63,'[64]Dados AECOM'!$C$580:$C$615,0),MATCH(Q$3,'[64]Dados AECOM'!$D$2:$BK$2,0))*AR63 -> 6972 | R63: =INDEX('[64]Dados AECOM'!$D$580:$BK$615,MATCH($C63,'[64]Dados AECOM'!$C$580:$C$615,0),MATCH(R$3,'[64]Dados AECOM'!$D$2:$BK$2,0))*AS63 -> 2816205 | S63: =INDEX('[64]Dados AECOM'!$D$580:$BK$615,MATCH($C63,'[64]Dados AECOM'!$C$580:$C$615,0),MATCH(S$3,'[64]Dados AECOM'!$D$2:$BK$2,0))*AT63 -> 17011 | T63: =INDEX('[64]Dados AECOM'!$D$580:$BK$615,MATCH($C63,'[64]Dados AECOM'!$C$580:$C$615,0),MATCH(T$3,'[64]Dados AECOM'!$D$2:$BK$2,0))*AU63 -> 64889 | U63: =INDEX('[64]Dados AECOM'!$D$580:$BK$615,MATCH($C63,'[64]Dados AECOM'!$C$580:$C$615,0),MATCH(U$3,'[64]Dados AECOM'!$D$2:$BK$2,0))*AV63 -> 46280 | V63: =INDEX('[64]Dados AECOM'!$D$580:$BK$615,MATCH($C63,'[64]Dados AECOM'!$C$580:$C$615,0),MATCH(V$3,'[64]Dados AECOM'!$D$2:$BK$2,0))*AW63 -> 284738 | W63: =INDEX('[64]Dados AECOM'!$D$580:$BK$615,MATCH($C63,'[64]Dados AECOM'!$C$580:$C$615,0),MATCH(W$3,'[64]Dados AECOM'!$D$2:$BK$2,0))*AX63 -> 241705 | X63: =INDEX('[64]Dados AECOM'!$D$580:$BK$615,MATCH($C63,'[64]Dados AECOM'!$C$580:$C$615,0),MATCH(X$3,'[64]Dados AECOM'!$D$2:$BK$2,0))*AY63 -> 98812 | Y63: =INDEX('[64]Dados AECOM'!$D$580:$BK$615,MATCH($C63,'[64]Dados AECOM'!$C$580:$C$615,0),MATCH(Y$3,'[64]Dados AECOM'!$D$2:$BK$2,0))*AZ63 -> 15716 | Z63: =INDEX('[64]Dados AECOM'!$D$580:$BK$615,MATCH($C63,'[64]Dados AECOM'!$C$580:$C$615,0),MATCH(Z$3,'[64]Dados AECOM'!$D$2:$BK$2,0))*BA63 -> 15457.06676 | AA63: =INDEX('[64]Dados AECOM'!$D$580:$BK$615,MATCH($C63,'[64]Dados AECOM'!$C$580:$C$615,0),MATCH(AA$3,'[64]Dados AECOM'!$D$2:$BK$2,0))*BB63 -> 63157 | AB63: =INDEX('[64]Dados AECOM'!$D$580:$BK$615,MATCH($C63,'[64]Dados AECOM'!$C$580:$C$615,0),MATCH(AB$3,'[64]Dados AECOM'!$D$2:$BK$2,0))*BC63 -> 76595 | AC63: =INDEX('[64]Dados AECOM'!$D$580:$BK$615,MATCH($C63,'[64]Dados AECOM'!$C$580:$C$615,0),MATCH(AC$3,'[64]Dados AECOM'!$D$2:$BK$2,0))*BD63 -> 23897 | AD63: =INDEX('[64]Dados AECOM'!$D$580:$BK$615,MATCH($C63,'[64]Dados AECOM'!$C$580:$C$615,0),MATCH(AD$3,'[64]Dados AECOM'!$D$2:$BK$2,0))*BE63 -> 13057 | AE63: =INDEX('[64]Dados AECOM'!$D$580:$BK$615,MATCH($C63,'[64]Dados AECOM'!$C$580:$C$615,0),MATCH(AE$3,'[64]Dados AECOM'!$D$2:$BK$2,0))*BF63 -> 26229 | AF63: =INDEX('[64]Dados AECOM'!$D$580:$BK$615,MATCH($C63,'[64]Dados AECOM'!$C$580:$C$615,0),MATCH(AF$3,'[64]Dados AECOM'!$D$2:$BK$2,0))*BG63 -> 8574 | AG63: =INDEX('[64]Dados AECOM'!$D$580:$BK$615,MATCH($C63,'[64]Dados AECOM'!$C$580:$C$615,0),MATCH(AG$3,'[64]Dados AECOM'!$D$2:$BK$2,0))*BH63 -> 21829 | AH63: =INDEX('[64]Dados AECOM'!$D$580:$BN$615,MATCH($C63,'[64]Dados AECOM'!$C$580:$C$615,0),MATCH(AH$3,'[64]Dados AECOM'!$D$2:$BN$2,0))*BI63 -> 5893 | AK63: 30 | AL63: 1 | AM63: 1 | AN63: 1 | AO63: 1 | AP63: 1 | AQ63: 1 | AR63: 1 | AS63: 1 | AT63: 1 | AU63: 1 | AV63: 1 | AW63: 1 | AX63: 1 | AY63: 1 | AZ63: 1 | BA63: 1 | BB63: 1 | BC63: 1 | BD63: 1 | BE63: 1 | BF63: 1 | BG63: 1 | BH63: 1 | BI63: 1
B64: 64 | C64: 2053 | D64: População | E64: 0 | F64: 0 | G64: 0 | H64: 0 | I64: 0 | K64: =INDEX('[64]Dados AECOM'!$D$580:$BK$615,MATCH($C64,'[64]Dados AECOM'!$C$580:$C$615,0),MATCH(K$3,'[64]Dados AECOM'!$D$2:$BK$2,0))*AL64 -> 0 | L64: =INDEX('[64]Dados AECOM'!$D$580:$BK$615,MATCH($C64,'[64]Dados AECOM'!$C$580:$C$615,0),MATCH(L$3,'[64]Dados AECOM'!$D$2:$BK$2,0))*AM64 -> 0 | M64: =INDEX('[64]Dados AECOM'!$D$580:$BK$615,MATCH($C64,'[64]Dados AECOM'!$C$580:$C$615,0),MATCH(M$3,'[64]Dados AECOM'!$D$2:$BK$2,0))*AN64 -> 0 | N64: =INDEX('[64]Dados AECOM'!$D$580:$BK$615,MATCH($C64,'[64]Dados AECOM'!$C$580:$C$615,0),MATCH(N$3,'[64]Dados AECOM'!$D$2:$BK$2,0))*AO64 -> 0 | O64: =INDEX('[64]Dados AECOM'!$D$580:$BK$615,MATCH($C64,'[64]Dados AECOM'!$C$580:$C$615,0),MATCH(O$3,'[64]Dados AECOM'!$D$2:$BK$2,0))*AP64 -> 0 | P64: =INDEX('[64]Dados AECOM'!$D$580:$BK$615,MATCH($C64,'[64]Dados AECOM'!$C$580:$C$615,0),MATCH(P$3,'[64]Dados AECOM'!$D$2:$BK$2,0))*AQ64 -> 0 | Q64: =INDEX('[64]Dados AECOM'!$D$580:$BK$615,MATCH($C64,'[64]Dados AECOM'!$C$580:$C$615,0),MATCH(Q$3,'[64]Dados AECOM'!$D$2:$BK$2,0))*AR64 -> 0 | R64: =INDEX('[64]Dados AECOM'!$D$580:$BK$615,MATCH($C64,'[64]Dados AECOM'!$C$580:$C$615,0),MATCH(R$3,'[64]Dados AECOM'!$D$2:$BK$2,0))*AS64 -> 0 | S64: =INDEX('[64]Dados AECOM'!$D$580:$BK$615,MATCH($C64,'[64]Dados AECOM'!$C$580:$C$615,0),MATCH(S$3,'[64]Dados AECOM'!$D$2:$BK$2,0))*AT64 -> 0 | T64: =INDEX('[64]Dados AECOM'!$D$580:$BK$615,MATCH($C64,'[64]Dados AECOM'!$C$580:$C$615,0),MATCH(T$3,'[64]Dados AECOM'!$D$2:$BK$2,0))*AU64 -> 0 | U64: =INDEX('[64]Dados AECOM'!$D$580:$BK$615,MATCH($C64,'[64]Dados AECOM'!$C$580:$C$615,0),MATCH(U$3,'[64]Dados AECOM'!$D$2:$BK$2,0))*AV64 -> 0 | V64: =INDEX('[64]Dados AECOM'!$D$580:$BK$615,MATCH($C64,'[64]Dados AECOM'!$C$580:$C$615,0),MATCH(V$3,'[64]Dados AECOM'!$D$2:$BK$2,0))*AW64 -> 0 | W64: =INDEX('[64]Dados AECOM'!$D$580:$BK$615,MATCH($C64,'[64]Dados AECOM'!$C$580:$C$615,0),MATCH(W$3,'[64]Dados AECOM'!$D$2:$BK$2,0))*AX64 -> 0 | X64: =INDEX('[64]Dados AECOM'!$D$580:$BK$615,MATCH($C64,'[64]Dados AECOM'!$C$580:$C$615,0),MATCH(X$3,'[64]Dados AECOM'!$D$2:$BK$2,0))*AY64 -> 0 | Y64: =INDEX('[64]Dados AECOM'!$D$580:$BK$615,MATCH($C64,'[64]Dados AECOM'!$C$580:$C$615,0),MATCH(Y$3,'[64]Dados AECOM'!$D$2:$BK$2,0))*AZ64 -> 0 | Z64: =INDEX('[64]Dados AECOM'!$D$580:$BK$615,MATCH($C64,'[64]Dados AECOM'!$C$580:$C$615,0),MATCH(Z$3,'[64]Dados AECOM'!$D$2:$BK$2,0))*BA64 -> 0 | AA64: =INDEX('[64]Dados AECOM'!$D$580:$BK$615,MATCH($C64,'[64]Dados AECOM'!$C$580:$C$615,0),MATCH(AA$3,'[64]Dados AECOM'!$D$2:$BK$2,0))*BB64 -> 0 | AB64: =INDEX('[64]Dados AECOM'!$D$580:$BK$615,MATCH($C64,'[64]Dados AECOM'!$C$580:$C$615,0),MATCH(AB$3,'[64]Dados AECOM'!$D$2:$BK$2,0))*BC64 -> 0 | AC64: =INDEX('[64]Dados AECOM'!$D$580:$BK$615,MATCH($C64,'[64]Dados AECOM'!$C$580:$C$615,0),MATCH(AC$3,'[64]Dados AECOM'!$D$2:$BK$2,0))*BD64 -> 0 | AD64: =INDEX('[64]Dados AECOM'!$D$580:$BK$615,MATCH($C64,'[64]Dados AECOM'!$C$580:$C$615,0),MATCH(AD$3,'[64]Dados AECOM'!$D$2:$BK$2,0))*BE64 -> 0 | AE64: =INDEX('[64]Dados AECOM'!$D$580:$BK$615,MATCH($C64,'[64]Dados AECOM'!$C$580:$C$615,0),MATCH(AE$3,'[64]Dados AECOM'!$D$2:$BK$2,0))*BF64 -> 0 | AF64: =INDEX('[64]Dados AECOM'!$D$580:$BK$615,MATCH($C64,'[64]Dados AECOM'!$C$580:$C$615,0),MATCH(AF$3,'[64]Dados AECOM'!$D$2:$BK$2,0))*BG64 -> 0 | AG64: =INDEX('[64]Dados AECOM'!$D$580:$BK$615,MATCH($C64,'[64]Dados AECOM'!$C$580:$C$615,0),MATCH(AG$3,'[64]Dados AECOM'!$D$2:$BK$2,0))*BH64 -> 0 | AH64: =INDEX('[64]Dados AECOM'!$D$580:$BN$615,MATCH($C64,'[64]Dados AECOM'!$C$580:$C$615,0),MATCH(AH$3,'[64]Dados AECOM'!$D$2:$BN$2,0))*BI64 -> 0 | AK64: 31 | AL64: 0 | AM64: 0 | AN64: 0 | AO64: 0 | AP64: 0 | AQ64: 0 | AR64: 0 | AS64: 0 | AT64: 0 | AU64: 0 | AV64: 0 | AW64: 0 | AX64: 0 | AY64: 0 | AZ64: 0 | BA64: 0 | BB64: 0 | BC64: 0 | BD64: 0 | BE64: 0 | BF64: 0 | BG64: 0 | BH64: 0 | BI64: 0
B65: 65 | C65: 2054 | D65: População | E65: 0 | F65: 0 | G65: 0 | H65: 0 | I65: 0 | K65: =INDEX('[64]Dados AECOM'!$D$580:$BK$615,MATCH($C65,'[64]Dados AECOM'!$C$580:$C$615,0),MATCH(K$3,'[64]Dados AECOM'!$D$2:$BK$2,0))*AL65 -> 0 | L65: =INDEX('[64]Dados AECOM'!$D$580:$BK$615,MATCH($C65,'[64]Dados AECOM'!$C$580:$C$615,0),MATCH(L$3,'[64]Dados AECOM'!$D$2:$BK$2,0))*AM65 -> 0 | M65: =INDEX('[64]Dados AECOM'!$D$580:$BK$615,MATCH($C65,'[64]Dados AECOM'!$C$580:$C$615,0),MATCH(M$3,'[64]Dados AECOM'!$D$2:$BK$2,0))*AN65 -> 0 | N65: =INDEX('[64]Dados AECOM'!$D$580:$BK$615,MATCH($C65,'[64]Dados AECOM'!$C$580:$C$615,0),MATCH(N$3,'[64]Dados AECOM'!$D$2:$BK$2,0))*AO65 -> 0 | O65: =INDEX('[64]Dados AECOM'!$D$580:$BK$615,MATCH($C65,'[64]Dados AECOM'!$C$580:$C$615,0),MATCH(O$3,'[64]Dados AECOM'!$D$2:$BK$2,0))*AP65 -> 0 | P65: =INDEX('[64]Dados AECOM'!$D$580:$BK$615,MATCH($C65,'[64]Dados AECOM'!$C$580:$C$615,0),MATCH(P$3,'[64]Dados AECOM'!$D$2:$BK$2,0))*AQ65 -> 0 | Q65: =INDEX('[64]Dados AECOM'!$D$580:$BK$615,MATCH($C65,'[64]Dados AECOM'!$C$580:$C$615,0),MATCH(Q$3,'[64]Dados AECOM'!$D$2:$BK$2,0))*AR65 -> 0 | R65: =INDEX('[64]Dados AECOM'!$D$580:$BK$615,MATCH($C65,'[64]Dados AECOM'!$C$580:$C$615,0),MATCH(R$3,'[64]Dados AECOM'!$D$2:$BK$2,0))*AS65 -> 0 | S65: =INDEX('[64]Dados AECOM'!$D$580:$BK$615,MATCH($C65,'[64]Dados AECOM'!$C$580:$C$615,0),MATCH(S$3,'[64]Dados AECOM'!$D$2:$BK$2,0))*AT65 -> 0 | T65: =INDEX('[64]Dados AECOM'!$D$580:$BK$615,MATCH($C65,'[64]Dados AECOM'!$C$580:$C$615,0),MATCH(T$3,'[64]Dados AECOM'!$D$2:$BK$2,0))*AU65 -> 0 | U65: =INDEX('[64]Dados AECOM'!$D$580:$BK$615,MATCH($C65,'[64]Dados AECOM'!$C$580:$C$615,0),MATCH(U$3,'[64]Dados AECOM'!$D$2:$BK$2,0))*AV65 -> 0 | V65: =INDEX('[64]Dados AECOM'!$D$580:$BK$615,MATCH($C65,'[64]Dados AECOM'!$C$580:$C$615,0),MATCH(V$3,'[64]Dados AECOM'!$D$2:$BK$2,0))*AW65 -> 0 | W65: =INDEX('[64]Dados AECOM'!$D$580:$BK$615,MATCH($C65,'[64]Dados AECOM'!$C$580:$C$615,0),MATCH(W$3,'[64]Dados AECOM'!$D$2:$BK$2,0))*AX65 -> 0 | X65: =INDEX('[64]Dados AECOM'!$D$580:$BK$615,MATCH($C65,'[64]Dados AECOM'!$C$580:$C$615,0),MATCH(X$3,'[64]Dados AECOM'!$D$2:$BK$2,0))*AY65 -> 0 | Y65: =INDEX('[64]Dados AECOM'!$D$580:$BK$615,MATCH($C65,'[64]Dados AECOM'!$C$580:$C$615,0),MATCH(Y$3,'[64]Dados AECOM'!$D$2:$BK$2,0))*AZ65 -> 0 | Z65: =INDEX('[64]Dados AECOM'!$D$580:$BK$615,MATCH($C65,'[64]Dados AECOM'!$C$580:$C$615,0),MATCH(Z$3,'[64]Dados AECOM'!$D$2:$BK$2,0))*BA65 -> 0 | AA65: =INDEX('[64]Dados AECOM'!$D$580:$BK$615,MATCH($C65,'[64]Dados AECOM'!$C$580:$C$615,0),MATCH(AA$3,'[64]Dados AECOM'!$D$2:$BK$2,0))*BB65 -> 0 | AB65: =INDEX('[64]Dados AECOM'!$D$580:$BK$615,MATCH($C65,'[64]Dados AECOM'!$C$580:$C$615,0),MATCH(AB$3,'[64]Dados AECOM'!$D$2:$BK$2,0))*BC65 -> 0 | AC65: =INDEX('[64]Dados AECOM'!$D$580:$BK$615,MATCH($C65,'[64]Dados AECOM'!$C$580:$C$615,0),MATCH(AC$3,'[64]Dados AECOM'!$D$2:$BK$2,0))*BD65 -> 0 | AD65: =INDEX('[64]Dados AECOM'!$D$580:$BK$615,MATCH($C65,'[64]Dados AECOM'!$C$580:$C$615,0),MATCH(AD$3,'[64]Dados AECOM'!$D$2:$BK$2,0))*BE65 -> 0 | AE65: =INDEX('[64]Dados AECOM'!$D$580:$BK$615,MATCH($C65,'[64]Dados AECOM'!$C$580:$C$615,0),MATCH(AE$3,'[64]Dados AECOM'!$D$2:$BK$2,0))*BF65 -> 0 | AF65: =INDEX('[64]Dados AECOM'!$D$580:$BK$615,MATCH($C65,'[64]Dados AECOM'!$C$580:$C$615,0),MATCH(AF$3,'[64]Dados AECOM'!$D$2:$BK$2,0))*BG65 -> 0 | AG65: =INDEX('[64]Dados AECOM'!$D$580:$BK$615,MATCH($C65,'[64]Dados AECOM'!$C$580:$C$615,0),MATCH(AG$3,'[64]Dados AECOM'!$D$2:$BK$2,0))*BH65 -> 0 | AH65: =INDEX('[64]Dados AECOM'!$D$580:$BN$615,MATCH($C65,'[64]Dados AECOM'!$C$580:$C$615,0),MATCH(AH$3,'[64]Dados AECOM'!$D$2:$BN$2,0))*BI65 -> 0 | AK65: 32 | AL65: 0 | AM65: 0 | AN65: 0 | AO65: 0 | AP65: 0 | AQ65: 0 | AR65: 0 | AS65: 0 | AT65: 0 | AU65: 0 | AV65: 0 | AW65: 0 | AX65: 0 | AY65: 0 | AZ65: 0 | BA65: 0 | BB65: 0 | BC65: 0 | BD65: 0 | BE65: 0 | BF65: 0 | BG65: 0 | BH65: 0 | BI65: 0
B66: 66 | C66: 2055 | D66: População | E66: 0 | F66: 0 | G66: 0 | H66: 0 | I66: 0 | K66: =INDEX('[64]Dados AECOM'!$D$580:$BK$615,MATCH($C66,'[64]Dados AECOM'!$C$580:$C$615,0),MATCH(K$3,'[64]Dados AECOM'!$D$2:$BK$2,0))*AL66 -> 0 | L66: =INDEX('[64]Dados AECOM'!$D$580:$BK$615,MATCH($C66,'[64]Dados AECOM'!$C$580:$C$615,0),MATCH(L$3,'[64]Dados AECOM'!$D$2:$BK$2,0))*AM66 -> 0 | M66: =INDEX('[64]Dados AECOM'!$D$580:$BK$615,MATCH($C66,'[64]Dados AECOM'!$C$580:$C$615,0),MATCH(M$3,'[64]Dados AECOM'!$D$2:$BK$2,0))*AN66 -> 0 | N66: =INDEX('[64]Dados AECOM'!$D$580:$BK$615,MATCH($C66,'[64]Dados AECOM'!$C$580:$C$615,0),MATCH(N$3,'[64]Dados AECOM'!$D$2:$BK$2,0))*AO66 -> 0 | O66: =INDEX('[64]Dados AECOM'!$D$580:$BK$615,MATCH($C66,'[64]Dados AECOM'!$C$580:$C$615,0),MATCH(O$3,'[64]Dados AECOM'!$D$2:$BK$2,0))*AP66 -> 0 | P66: =INDEX('[64]Dados AECOM'!$D$580:$BK$615,MATCH($C66,'[64]Dados AECOM'!$C$580:$C$615,0),MATCH(P$3,'[64]Dados AECOM'!$D$2:$BK$2,0))*AQ66 -> 0 | Q66: =INDEX('[64]Dados AECOM'!$D$580:$BK$615,MATCH($C66,'[64]Dados AECOM'!$C$580:$C$615,0),MATCH(Q$3,'[64]Dados AECOM'!$D$2:$BK$2,0))*AR66 -> 0 | R66: =INDEX('[64]Dados AECOM'!$D$580:$BK$615,MATCH($C66,'[64]Dados AECOM'!$C$580:$C$615,0),MATCH(R$3,'[64]Dados AECOM'!$D$2:$BK$2,0))*AS66 -> 0 | S66: =INDEX('[64]Dados AECOM'!$D$580:$BK$615,MATCH($C66,'[64]Dados AECOM'!$C$580:$C$615,0),MATCH(S$3,'[64]Dados AECOM'!$D$2:$BK$2,0))*AT66 -> 0 | T66: =INDEX('[64]Dados AECOM'!$D$580:$BK$615,MATCH($C66,'[64]Dados AECOM'!$C$580:$C$615,0),MATCH(T$3,'[64]Dados AECOM'!$D$2:$BK$2,0))*AU66 -> 0 | U66: =INDEX('[64]Dados AECOM'!$D$580:$BK$615,MATCH($C66,'[64]Dados AECOM'!$C$580:$C$615,0),MATCH(U$3,'[64]Dados AECOM'!$D$2:$BK$2,0))*AV66 -> 0 | V66: =INDEX('[64]Dados AECOM'!$D$580:$BK$615,MATCH($C66,'[64]Dados AECOM'!$C$580:$C$615,0),MATCH(V$3,'[64]Dados AECOM'!$D$2:$BK$2,0))*AW66 -> 0 | W66: =INDEX('[64]Dados AECOM'!$D$580:$BK$615,MATCH($C66,'[64]Dados AECOM'!$C$580:$C$615,0),MATCH(W$3,'[64]Dados AECOM'!$D$2:$BK$2,0))*AX66 -> 0 | X66: =INDEX('[64]Dados AECOM'!$D$580:$BK$615,MATCH($C66,'[64]Dados AECOM'!$C$580:$C$615,0),MATCH(X$3,'[64]Dados AECOM'!$D$2:$BK$2,0))*AY66 -> 0 | Y66: =INDEX('[64]Dados AECOM'!$D$580:$BK$615,MATCH($C66,'[64]Dados AECOM'!$C$580:$C$615,0),MATCH(Y$3,'[64]Dados AECOM'!$D$2:$BK$2,0))*AZ66 -> 0 | Z66: =INDEX('[64]Dados AECOM'!$D$580:$BK$615,MATCH($C66,'[64]Dados AECOM'!$C$580:$C$615,0),MATCH(Z$3,'[64]Dados AECOM'!$D$2:$BK$2,0))*BA66 -> 0 | AA66: =INDEX('[64]Dados AECOM'!$D$580:$BK$615,MATCH($C66,'[64]Dados AECOM'!$C$580:$C$615,0),MATCH(AA$3,'[64]Dados AECOM'!$D$2:$BK$2,0))*BB66 -> 0 | AB66: =INDEX('[64]Dados AECOM'!$D$580:$BK$615,MATCH($C66,'[64]Dados AECOM'!$C$580:$C$615,0),MATCH(AB$3,'[64]Dados AECOM'!$D$2:$BK$2,0))*BC66 -> 0 | AC66: =INDEX('[64]Dados AECOM'!$D$580:$BK$615,MATCH($C66,'[64]Dados AECOM'!$C$580:$C$615,0),MATCH(AC$3,'[64]Dados AECOM'!$D$2:$BK$2,0))*BD66 -> 0 | AD66: =INDEX('[64]Dados AECOM'!$D$580:$BK$615,MATCH($C66,'[64]Dados AECOM'!$C$580:$C$615,0),MATCH(AD$3,'[64]Dados AECOM'!$D$2:$BK$2,0))*BE66 -> 0 | AE66: =INDEX('[64]Dados AECOM'!$D$580:$BK$615,MATCH($C66,'[64]Dados AECOM'!$C$580:$C$615,0),MATCH(AE$3,'[64]Dados AECOM'!$D$2:$BK$2,0))*BF66 -> 0 | AF66: =INDEX('[64]Dados AECOM'!$D$580:$BK$615,MATCH($C66,'[64]Dados AECOM'!$C$580:$C$615,0),MATCH(AF$3,'[64]Dados AECOM'!$D$2:$BK$2,0))*BG66 -> 0 | AG66: =INDEX('[64]Dados AECOM'!$D$580:$BK$615,MATCH($C66,'[64]Dados AECOM'!$C$580:$C$615,0),MATCH(AG$3,'[64]Dados AECOM'!$D$2:$BK$2,0))*BH66 -> 0 | AH66: =INDEX('[64]Dados AECOM'!$D$580:$BN$615,MATCH($C66,'[64]Dados AECOM'!$C$580:$C$615,0),MATCH(AH$3,'[64]Dados AECOM'!$D$2:$BN$2,0))*BI66 -> 0 | AK66: 33 | AL66: 0 | AM66: 0 | AN66: 0 | AO66: 0 | AP66: 0 | AQ66: 0 | AR66: 0 | AS66: 0 | AT66: 0 | AU66: 0 | AV66: 0 | AW66: 0 | AX66: 0 | AY66: 0 | AZ66: 0 | BA66: 0 | BB66: 0 | BC66: 0 | BD66: 0 | BE66: 0 | BF66: 0 | BG66: 0 | BH66: 0 | BI66: 0
B67: 67 | C67: 2056 | D67: População | E67: 0 | F67: 0 | G67: 0 | H67: 0 | I67: 0 | K67: =INDEX('[64]Dados AECOM'!$D$580:$BK$615,MATCH($C67,'[64]Dados AECOM'!$C$580:$C$615,0),MATCH(K$3,'[64]Dados AECOM'!$D$2:$BK$2,0))*AL67 -> 0 | L67: =INDEX('[64]Dados AECOM'!$D$580:$BK$615,MATCH($C67,'[64]Dados AECOM'!$C$580:$C$615,0),MATCH(L$3,'[64]Dados AECOM'!$D$2:$BK$2,0))*AM67 -> 0 | M67: =INDEX('[64]Dados AECOM'!$D$580:$BK$615,MATCH($C67,'[64]Dados AECOM'!$C$580:$C$615,0),MATCH(M$3,'[64]Dados AECOM'!$D$2:$BK$2,0))*AN67 -> 0 | N67: =INDEX('[64]Dados AECOM'!$D$580:$BK$615,MATCH($C67,'[64]Dados AECOM'!$C$580:$C$615,0),MATCH(N$3,'[64]Dados AECOM'!$D$2:$BK$2,0))*AO67 -> 0 | O67: =INDEX('[64]Dados AECOM'!$D$580:$BK$615,MATCH($C67,'[64]Dados AECOM'!$C$580:$C$615,0),MATCH(O$3,'[64]Dados AECOM'!$D$2:$BK$2,0))*AP67 -> 0 | P67: =INDEX('[64]Dados AECOM'!$D$580:$BK$615,MATCH($C67,'[64]Dados AECOM'!$C$580:$C$615,0),MATCH(P$3,'[64]Dados AECOM'!$D$2:$BK$2,0))*AQ67 -> 0 | Q67: =INDEX('[64]Dados AECOM'!$D$580:$BK$615,MATCH($C67,'[64]Dados AECOM'!$C$580:$C$615,0),MATCH(Q$3,'[64]Dados AECOM'!$D$2:$BK$2,0))*AR67 -> 0 | R67: =INDEX('[64]Dados AECOM'!$D$580:$BK$615,MATCH($C67,'[64]Dados AECOM'!$C$580:$C$615,0),MATCH(R$3,'[64]Dados AECOM'!$D$2:$BK$2,0))*AS67 -> 0 | S67: =INDEX('[64]Dados AECOM'!$D$580:$BK$615,MATCH($C67,'[64]Dados AECOM'!$C$580:$C$615,0),MATCH(S$3,'[64]Dados AECOM'!$D$2:$BK$2,0))*AT67 -> 0 | T67: =INDEX('[64]Dados AECOM'!$D$580:$BK$615,MATCH($C67,'[64]Dados AECOM'!$C$580:$C$615,0),MATCH(T$3,'[64]Dados AECOM'!$D$2:$BK$2,0))*AU67 -> 0 | U67: =INDEX('[64]Dados AECOM'!$D$580:$BK$615,MATCH($C67,'[64]Dados AECOM'!$C$580:$C$615,0),MATCH(U$3,'[64]Dados AECOM'!$D$2:$BK$2,0))*AV67 -> 0 | V67: =INDEX('[64]Dados AECOM'!$D$580:$BK$615,MATCH($C67,'[64]Dados AECOM'!$C$580:$C$615,0),MATCH(V$3,'[64]Dados AECOM'!$D$2:$BK$2,0))*AW67 -> 0 | W67: =INDEX('[64]Dados AECOM'!$D$580:$BK$615,MATCH($C67,'[64]Dados AECOM'!$C$580:$C$615,0),MATCH(W$3,'[64]Dados AECOM'!$D$2:$BK$2,0))*AX67 -> 0 | X67: =INDEX('[64]Dados AECOM'!$D$580:$BK$615,MATCH($C67,'[64]Dados AECOM'!$C$580:$C$615,0),MATCH(X$3,'[64]Dados AECOM'!$D$2:$BK$2,0))*AY67 -> 0 | Y67: =INDEX('[64]Dados AECOM'!$D$580:$BK$615,MATCH($C67,'[64]Dados AECOM'!$C$580:$C$615,0),MATCH(Y$3,'[64]Dados AECOM'!$D$2:$BK$2,0))*AZ67 -> 0 | Z67: =INDEX('[64]Dados AECOM'!$D$580:$BK$615,MATCH($C67,'[64]Dados AECOM'!$C$580:$C$615,0),MATCH(Z$3,'[64]Dados AECOM'!$D$2:$BK$2,0))*BA67 -> 0 | AA67: =INDEX('[64]Dados AECOM'!$D$580:$BK$615,MATCH($C67,'[64]Dados AECOM'!$C$580:$C$615,0),MATCH(AA$3,'[64]Dados AECOM'!$D$2:$BK$2,0))*BB67 -> 0 | AB67: =INDEX('[64]Dados AECOM'!$D$580:$BK$615,MATCH($C67,'[64]Dados AECOM'!$C$580:$C$615,0),MATCH(AB$3,'[64]Dados AECOM'!$D$2:$BK$2,0))*BC67 -> 0 | AC67: =INDEX('[64]Dados AECOM'!$D$580:$BK$615,MATCH($C67,'[64]Dados AECOM'!$C$580:$C$615,0),MATCH(AC$3,'[64]Dados AECOM'!$D$2:$BK$2,0))*BD67 -> 0 | AD67: =INDEX('[64]Dados AECOM'!$D$580:$BK$615,MATCH($C67,'[64]Dados AECOM'!$C$580:$C$615,0),MATCH(AD$3,'[64]Dados AECOM'!$D$2:$BK$2,0))*BE67 -> 0 | AE67: =INDEX('[64]Dados AECOM'!$D$580:$BK$615,MATCH($C67,'[64]Dados AECOM'!$C$580:$C$615,0),MATCH(AE$3,'[64]Dados AECOM'!$D$2:$BK$2,0))*BF67 -> 0 | AF67: =INDEX('[64]Dados AECOM'!$D$580:$BK$615,MATCH($C67,'[64]Dados AECOM'!$C$580:$C$615,0),MATCH(AF$3,'[64]Dados AECOM'!$D$2:$BK$2,0))*BG67 -> 0 | AG67: =INDEX('[64]Dados AECOM'!$D$580:$BK$615,MATCH($C67,'[64]Dados AECOM'!$C$580:$C$615,0),MATCH(AG$3,'[64]Dados AECOM'!$D$2:$BK$2,0))*BH67 -> 0 | AH67: =INDEX('[64]Dados AECOM'!$D$580:$BN$615,MATCH($C67,'[64]Dados AECOM'!$C$580:$C$615,0),MATCH(AH$3,'[64]Dados AECOM'!$D$2:$BN$2,0))*BI67 -> 0 | AK67: 34 | AL67: 0 | AM67: 0 | AN67: 0 | AO67: 0 | AP67: 0 | AQ67: 0 | AR67: 0 | AS67: 0 | AT67: 0 | AU67: 0 | AV67: 0 | AW67: 0 | AX67: 0 | AY67: 0 | AZ67: 0 | BA67: 0 | BB67: 0 | BC67: 0 | BD67: 0 | BE67: 0 | BF67: 0 | BG67: 0 | BH67: 0 | BI67: 0
B68: 68 | C68: 2057 | D68: População | E68: 0 | F68: 0 | G68: 0 | H68: 0 | I68: 0 | K68: =INDEX('[64]Dados AECOM'!$D$580:$BK$615,MATCH($C68,'[64]Dados AECOM'!$C$580:$C$615,0),MATCH(K$3,'[64]Dados AECOM'!$D$2:$BK$2,0))*AL68 -> 0 | L68: =INDEX('[64]Dados AECOM'!$D$580:$BK$615,MATCH($C68,'[64]Dados AECOM'!$C$580:$C$615,0),MATCH(L$3,'[64]Dados AECOM'!$D$2:$BK$2,0))*AM68 -> 0 | M68: =INDEX('[64]Dados AECOM'!$D$580:$BK$615,MATCH($C68,'[64]Dados AECOM'!$C$580:$C$615,0),MATCH(M$3,'[64]Dados AECOM'!$D$2:$BK$2,0))*AN68 -> 0 | N68: =INDEX('[64]Dados AECOM'!$D$580:$BK$615,MATCH($C68,'[64]Dados AECOM'!$C$580:$C$615,0),MATCH(N$3,'[64]Dados AECOM'!$D$2:$BK$2,0))*AO68 -> 0 | O68: =INDEX('[64]Dados AECOM'!$D$580:$BK$615,MATCH($C68,'[64]Dados AECOM'!$C$580:$C$615,0),MATCH(O$3,'[64]Dados AECOM'!$D$2:$BK$2,0))*AP68 -> 0 | P68: =INDEX('[64]Dados AECOM'!$D$580:$BK$615,MATCH($C68,'[64]Dados AECOM'!$C$580:$C$615,0),MATCH(P$3,'[64]Dados AECOM'!$D$2:$BK$2,0))*AQ68 -> 0 | Q68: =INDEX('[64]Dados AECOM'!$D$580:$BK$615,MATCH($C68,'[64]Dados AECOM'!$C$580:$C$615,0),MATCH(Q$3,'[64]Dados AECOM'!$D$2:$BK$2,0))*AR68 -> 0 | R68: =INDEX('[64]Dados AECOM'!$D$580:$BK$615,MATCH($C68,'[64]Dados AECOM'!$C$580:$C$615,0),MATCH(R$3,'[64]Dados AECOM'!$D$2:$BK$2,0))*AS68 -> 0 | S68: =INDEX('[64]Dados AECOM'!$D$580:$BK$615,MATCH($C68,'[64]Dados AECOM'!$C$580:$C$615,0),MATCH(S$3,'[64]Dados AECOM'!$D$2:$BK$2,0))*AT68 -> 0 | T68: =INDEX('[64]Dados AECOM'!$D$580:$BK$615,MATCH($C68,'[64]Dados AECOM'!$C$580:$C$615,0),MATCH(T$3,'[64]Dados AECOM'!$D$2:$BK$2,0))*AU68 -> 0 | U68: =INDEX('[64]Dados AECOM'!$D$580:$BK$615,MATCH($C68,'[64]Dados AECOM'!$C$580:$C$615,0),MATCH(U$3,'[64]Dados AECOM'!$D$2:$BK$2,0))*AV68 -> 0 | V68: =INDEX('[64]Dados AECOM'!$D$580:$BK$615,MATCH($C68,'[64]Dados AECOM'!$C$580:$C$615,0),MATCH(V$3,'[64]Dados AECOM'!$D$2:$BK$2,0))*AW68 -> 0 | W68: =INDEX('[64]Dados AECOM'!$D$580:$BK$615,MATCH($C68,'[64]Dados AECOM'!$C$580:$C$615,0),MATCH(W$3,'[64]Dados AECOM'!$D$2:$BK$2,0))*AX68 -> 0 | X68: =INDEX('[64]Dados AECOM'!$D$580:$BK$615,MATCH($C68,'[64]Dados AECOM'!$C$580:$C$615,0),MATCH(X$3,'[64]Dados AECOM'!$D$2:$BK$2,0))*AY68 -> 0 | Y68: =INDEX('[64]Dados AECOM'!$D$580:$BK$615,MATCH($C68,'[64]Dados AECOM'!$C$580:$C$615,0),MATCH(Y$3,'[64]Dados AECOM'!$D$2:$BK$2,0))*AZ68 -> 0 | Z68: =INDEX('[64]Dados AECOM'!$D$580:$BK$615,MATCH($C68,'[64]Dados AECOM'!$C$580:$C$615,0),MATCH(Z$3,'[64]Dados AECOM'!$D$2:$BK$2,0))*BA68 -> 0 | AA68: =INDEX('[64]Dados AECOM'!$D$580:$BK$615,MATCH($C68,'[64]Dados AECOM'!$C$580:$C$615,0),MATCH(AA$3,'[64]Dados AECOM'!$D$2:$BK$2,0))*BB68 -> 0 | AB68: =INDEX('[64]Dados AECOM'!$D$580:$BK$615,MATCH($C68,'[64]Dados AECOM'!$C$580:$C$615,0),MATCH(AB$3,'[64]Dados AECOM'!$D$2:$BK$2,0))*BC68 -> 0 | AC68: =INDEX('[64]Dados AECOM'!$D$580:$BK$615,MATCH($C68,'[64]Dados AECOM'!$C$580:$C$615,0),MATCH(AC$3,'[64]Dados AECOM'!$D$2:$BK$2,0))*BD68 -> 0 | AD68: =INDEX('[64]Dados AECOM'!$D$580:$BK$615,MATCH($C68,'[64]Dados AECOM'!$C$580:$C$615,0),MATCH(AD$3,'[64]Dados AECOM'!$D$2:$BK$2,0))*BE68 -> 0 | AE68: =INDEX('[64]Dados AECOM'!$D$580:$BK$615,MATCH($C68,'[64]Dados AECOM'!$C$580:$C$615,0),MATCH(AE$3,'[64]Dados AECOM'!$D$2:$BK$2,0))*BF68 -> 0 | AF68: =INDEX('[64]Dados AECOM'!$D$580:$BK$615,MATCH($C68,'[64]Dados AECOM'!$C$580:$C$615,0),MATCH(AF$3,'[64]Dados AECOM'!$D$2:$BK$2,0))*BG68 -> 0 | AG68: =INDEX('[64]Dados AECOM'!$D$580:$BK$615,MATCH($C68,'[64]Dados AECOM'!$C$580:$C$615,0),MATCH(AG$3,'[64]Dados AECOM'!$D$2:$BK$2,0))*BH68 -> 0 | AH68: =INDEX('[64]Dados AECOM'!$D$580:$BN$615,MATCH($C68,'[64]Dados AECOM'!$C$580:$C$615,0),MATCH(AH$3,'[64]Dados AECOM'!$D$2:$BN$2,0))*BI68 -> 0 | AK68: 35 | AL68: 0 | AM68: 0 | AN68: 0 | AO68: 0 | AP68: 0 | AQ68: 0 | AR68: 0 | AS68: 0 | AT68: 0 | AU68: 0 | AV68: 0 | AW68: 0 | AX68: 0 | AY68: 0 | AZ68: 0 | BA68: 0 | BB68: 0 | BC68: 0 | BD68: 0 | BE68: 0 | BF68: 0 | BG68: 0 | BH68: 0 | BI68: 0
A70: Ligações Totais (EoP) | B70: 70 | C70: Nº Ligações Totais - esgoto | D70: 0
B71: 71 | C71: 2020 | D71: Nº Ligações Totais - esgoto | E71: =SUMIFS($K71:$AH71,$K$18:$AH$18,E$4) -> 167082 | F71: =SUMIFS($K71:$AH71,$K$18:$AH$18,F$4) -> 766397 | G71: 0 | H71: 0 | I71: 0 | K71: =(INDEX([64]Aquiraz!$B$2:$AP$492,MATCH($A$70,[64]Aquiraz!$B$2:$B$492,0),MATCH($C71,[64]Aquiraz!$B$2:$AP$2,0))*1)*(AL33) -> 5434 | L71: =(INDEX([64]Barbalha!$B$2:$AP$491,MATCH($A$70,[64]Barbalha!$B$2:$B$491,0),MATCH($C71,[64]Barbalha!$B$2:$AP$2,0))*1)*(AM33) -> 8087 | M71: =(INDEX([64]Cascavel!$B$2:$AP$491,MATCH($A$70,[64]Cascavel!$B$2:$B$491,0),MATCH($C71,[64]Cascavel!$B$2:$AP$2,0))*1)*(AN33) -> 1240 | N71: =(INDEX([64]Caucaia!$B$2:$AP$491,MATCH($A$70,[64]Caucaia!$B$2:$B$491,0),MATCH($C71,[64]Caucaia!$B$2:$AP$2,0))*1)*(AO33) -> 68414 | O71: =(INDEX([64]Chorozinho!$B$2:$AP$491,MATCH($A$70,[64]Chorozinho!$B$2:$B$491,0),MATCH($C71,[64]Chorozinho!$B$2:$AP$2,0))*1)*(AP33) -> 0 | P71: =(INDEX([64]Eusébio!$B$2:$AP$491,MATCH($A$70,[64]Eusébio!$B$2:$B$491,0),MATCH($C71,[64]Eusébio!$B$2:$AP$2,0))*1)*(AQ33) -> 5507 | Q71: =(INDEX('[64]Farias Brito'!$B$2:$AP$491,MATCH($A$70,'[64]Farias Brito'!$B$2:$B$491,0),MATCH($C71,'[64]Farias Brito'!$B$2:$AP$2,0))*1)*(AR33) -> 0 | R71: =(INDEX([64]Fortaleza!$B$2:$AP$427,MATCH($A$70,[64]Fortaleza!$B$2:$B$427,0),MATCH($C71,[64]Fortaleza!$B$2:$AP$2,0))*1)*(AS33) -> 673995 | S71: =(INDEX([64]Guaiúba!$B$2:$AP$491,MATCH($A$70,[64]Guaiúba!$B$2:$B$491,0),MATCH($C71,[64]Guaiúba!$B$2:$AP$2,0))*1)*(AT33) -> 2956 | T71: =(INDEX([64]Horizonte!$B$2:$AP$491,MATCH($A$70,[64]Horizonte!$B$2:$B$491,0),MATCH($C71,[64]Horizonte!$B$2:$AP$2,0))*1)*(AU33) -> 13841 | U71: =(INDEX([64]Itaitinga!$B$2:$AP$491,MATCH($A$70,[64]Itaitinga!$B$2:$B$491,0),MATCH($C71,[64]Itaitinga!$B$2:$AP$2,0))*1)*(AV33) -> 4211 | V71: =(INDEX('[64]Juazeiro do Norte'!$B$2:$AP$491,MATCH($A$70,'[64]Juazeiro do Norte'!$B$2:$B$491,0),MATCH($C71,'[64]Juazeiro do Norte'!$B$2:$AP$2,0))*1)*(AW33) -> 43300 | W71: =(INDEX([64]Maracanaú!$B$2:$AP$491,MATCH($A$70,[64]Maracanaú!$B$2:$B$491,0),MATCH($C71,[64]Maracanaú!$B$2:$AP$2,0))*1)*(AX33) -> 47479 | X71: =(INDEX([64]Maranguape!$B$2:$AP$491,MATCH($A$70,[64]Maranguape!$B$2:$B$491,0),MATCH($C71,[64]Maranguape!$B$2:$AP$2,0))*1)*(AY33) -> 16279 | Y71: =(INDEX('[64]Missão Velha'!$B$2:$AP$491,MATCH($A$70,'[64]Missão Velha'!$B$2:$B$491,0),MATCH($C71,'[64]Missão Velha'!$B$2:$AP$2,0))*1)*(AZ33) -> 842 | Z71: =(INDEX('[64]Nova Olinda'!$B$2:$AP$491,MATCH($A$70,'[64]Nova Olinda'!$B$2:$B$491,0),MATCH($C71,'[64]Nova Olinda'!$B$2:$AP$2,0))*1)*(BA33) -> 0 | AA71: =(INDEX([64]Pacajus!$B$2:$AP$491,MATCH($A$70,[64]Pacajus!$B$2:$B$491,0),MATCH($C71,[64]Pacajus!$B$2:$AP$2,0))*1)*(BB33) -> 917 | AB71: =(INDEX([64]Pacatuba!$B$2:$AP$491,MATCH($A$70,[64]Pacatuba!$B$2:$B$491,0),MATCH($C71,[64]Pacatuba!$B$2:$AP$2,0))*1)*(BC33) -> 15072 | AC71: =(INDEX([64]Paracuru!$B$2:$AP$491,MATCH($A$70,[64]Paracuru!$B$2:$B$491,0),MATCH($C71,[64]Paracuru!$B$2:$AP$2,0))*1)*(BD33) -> 3881 | AD71: =(INDEX([64]Paraipaba!$B$2:$AP$491,MATCH($A$70,[64]Paraipaba!$B$2:$B$491,0),MATCH($C71,[64]Paraipaba!$B$2:$AP$2,0))*1)*(BE33) -> 5278 | AE71: =(INDEX('[64]São Gonçalo do Amarante'!$B$2:$AP$491,MATCH($A$70,'[64]São Gonçalo do Amarante'!$B$2:$B$491,0),MATCH($C71,'[64]São Gonçalo do Amarante'!$B$2:$AP$2,0))*1)*(BF33) -> 10597 | AF71: =(INDEX('[64]São Luís do Curu'!$B$2:$AP$491,MATCH($A$70,'[64]São Luís do Curu'!$B$2:$B$491,0),MATCH($C71,'[64]São Luís do Curu'!$B$2:$AP$2,0))*1)*(BG33) -> 1961 | AG71: =(INDEX([64]Trairi!$B$2:$AP$491,MATCH($A$70,[64]Trairi!$B$2:$B$491,0),MATCH($C71,[64]Trairi!$B$2:$AP$2,0))*1)*(BH33) -> 2271 | AH71: =(INDEX('[64]Santana do Cariri'!$B$2:$AP$491,MATCH($A$70,'[64]Santana do Cariri'!$B$2:$B$491,0),MATCH($C71,'[64]Santana do Cariri'!$B$2:$AP$2,0))*1)*(BI33) -> 1917
B72: 72 | C72: 2023 | D72: Nº Ligações Totais - esgoto | E72: 197485 | F72: 810640 | G72: 0 | H72: 0 | I72: 0 | K72: =(INDEX([64]Aquiraz!$B$2:$AP$492,MATCH($A$70,[64]Aquiraz!$B$2:$B$492,0),MATCH($C72,[64]Aquiraz!$B$2:$AP$2,0))*1)*(AL34) -> 6615 | L72: =(INDEX([64]Barbalha!$B$2:$AP$491,MATCH($A$70,[64]Barbalha!$B$2:$B$491,0),MATCH($C72,[64]Barbalha!$B$2:$AP$2,0))*1)*(AM34) -> 9230 | M72: =(INDEX([64]Cascavel!$B$2:$AP$491,MATCH($A$70,[64]Cascavel!$B$2:$B$491,0),MATCH($C72,[64]Cascavel!$B$2:$AP$2,0))*1)*(AN34) -> 3128 | N72: =(INDEX([64]Caucaia!$B$2:$AP$491,MATCH($A$70,[64]Caucaia!$B$2:$B$491,0),MATCH($C72,[64]Caucaia!$B$2:$AP$2,0))*1)*(AO34) -> 74965 | O72: =(INDEX([64]Chorozinho!$B$2:$AP$491,MATCH($A$70,[64]Chorozinho!$B$2:$B$491,0),MATCH($C72,[64]Chorozinho!$B$2:$AP$2,0))*1)*(AP34) -> 0 | P72: =(INDEX([64]Eusébio!$B$2:$AP$491,MATCH($A$70,[64]Eusébio!$B$2:$B$491,0),MATCH($C72,[64]Eusébio!$B$2:$AP$2,0))*1)*(AQ34) -> 7601 | Q72: =(INDEX('[64]Farias Brito'!$B$2:$AP$491,MATCH($A$70,'[64]Farias Brito'!$B$2:$B$491,0),MATCH($C72,'[64]Farias Brito'!$B$2:$AP$2,0))*1)*(AR34) -> 348 | R72: =(INDEX([64]Fortaleza!$B$2:$AP$427,MATCH($A$70,[64]Fortaleza!$B$2:$B$427,0),MATCH($C72,[64]Fortaleza!$B$2:$AP$2,0))*1)*(AS34) -> 709998 | S72: =(INDEX([64]Guaiúba!$B$2:$AP$491,MATCH($A$70,[64]Guaiúba!$B$2:$B$491,0),MATCH($C72,[64]Guaiúba!$B$2:$AP$2,0))*1)*(AT34) -> 3290 | T72: =(INDEX([64]Horizonte!$B$2:$AP$491,MATCH($A$70,[64]Horizonte!$B$2:$B$491,0),MATCH($C72,[64]Horizonte!$B$2:$AP$2,0))*1)*(AU34) -> 15193 | U72: =(INDEX([64]Itaitinga!$B$2:$AP$491,MATCH($A$70,[64]Itaitinga!$B$2:$B$491,0),MATCH($C72,[64]Itaitinga!$B$2:$AP$2,0))*1)*(AV34) -> 6241 | V72: =(INDEX('[64]Juazeiro do Norte'!$B$2:$AP$491,MATCH($A$70,'[64]Juazeiro do Norte'!$B$2:$B$491,0),MATCH($C72,'[64]Juazeiro do Norte'!$B$2:$AP$2,0))*1)*(AW34) -> 50218 | W72: =(INDEX([64]Maracanaú!$B$2:$AP$491,MATCH($A$70,[64]Maracanaú!$B$2:$B$491,0),MATCH($C72,[64]Maracanaú!$B$2:$AP$2,0))*1)*(AX34) -> 52653 | X72: =(INDEX([64]Maranguape!$B$2:$AP$491,MATCH($A$70,[64]Maranguape!$B$2:$B$491,0),MATCH($C72,[64]Maranguape!$B$2:$AP$2,0))*1)*(AY34) -> 19023 | Y72: =(INDEX('[64]Missão Velha'!$B$2:$AP$491,MATCH($A$70,'[64]Missão Velha'!$B$2:$B$491,0),MATCH($C72,'[64]Missão Velha'!$B$2:$AP$2,0))*1)*(AZ34) -> 1369 | Z72: =(INDEX('[64]Nova Olinda'!$B$2:$AP$491,MATCH($A$70,'[64]Nova Olinda'!$B$2:$B$491,0),MATCH($C72,'[64]Nova Olinda'!$B$2:$AP$2,0))*1)*(BA34) -> 538 | AA72: =(INDEX([64]Pacajus!$B$2:$AP$491,MATCH($A$70,[64]Pacajus!$B$2:$B$491,0),MATCH($C72,[64]Pacajus!$B$2:$AP$2,0))*1)*(BB34) -> 3284 | AB72: =(INDEX([64]Pacatuba!$B$2:$AP$491,MATCH($A$70,[64]Pacatuba!$B$2:$B$491,0),MATCH($C72,[64]Pacatuba!$B$2:$AP$2,0))*1)*(BC34) -> 16757 | AC72: =(INDEX([64]Paracuru!$B$2:$AP$491,MATCH($A$70,[64]Paracuru!$B$2:$B$491,0),MATCH($C72,[64]Paracuru!$B$2:$AP$2,0))*1)*(BD34) -> 4439 | AD72: =(INDEX([64]Paraipaba!$B$2:$AP$491,MATCH($A$70,[64]Paraipaba!$B$2:$B$491,0),MATCH($C72,[64]Paraipaba!$B$2:$AP$2,0))*1)*(BE34) -> 5358 | AE72: =(INDEX('[64]São Gonçalo do Amarante'!$B$2:$AP$491,MATCH($A$70,'[64]São Gonçalo do Amarante'!$B$2:$B$491,0),MATCH($C72,'[64]São Gonçalo do Amarante'!$B$2:$AP$2,0))*1)*(BF34) -> 10972 | AF72: =(INDEX('[64]São Luís do Curu'!$B$2:$AP$491,MATCH($A$70,'[64]São Luís do Curu'!$B$2:$B$491,0),MATCH($C72,'[64]São Luís do Curu'!$B$2:$AP$2,0))*1)*(BG34) -> 2128 | AG72: =(INDEX([64]Trairi!$B$2:$AP$491,MATCH($A$70,[64]Trairi!$B$2:$B$491,0),MATCH($C72,[64]Trairi!$B$2:$AP$2,0))*1)*(BH34) -> 2780 | AH72: =(INDEX('[64]Santana do Cariri'!$B$2:$AP$491,MATCH($A$70,'[64]Santana do Cariri'!$B$2:$B$491,0),MATCH($C72,'[64]Santana do Cariri'!$B$2:$AP$2,0))*1)*(BI34) -> 1997
B73: 73 | C73: =C72+1 -> 2024 | D73: Nº Ligações Totais - esgoto | E73: 227798 | F73: 841198 | G73: 0 | H73: 0 | I73: 0 | K73: =(INDEX([64]Aquiraz!$B$2:$AP$492,MATCH($A$70,[64]Aquiraz!$B$2:$B$492,0),MATCH($C73,[64]Aquiraz!$B$2:$AP$2,0))*1)*(AL35) -> 7803 | L73: =(INDEX([64]Barbalha!$B$2:$AP$491,MATCH($A$70,[64]Barbalha!$B$2:$B$491,0),MATCH($C73,[64]Barbalha!$B$2:$AP$2,0))*1)*(AM35) -> 10387 | M73: =(INDEX([64]Cascavel!$B$2:$AP$491,MATCH($A$70,[64]Cascavel!$B$2:$B$491,0),MATCH($C73,[64]Cascavel!$B$2:$AP$2,0))*1)*(AN35) -> 5041 | N73: =(INDEX([64]Caucaia!$B$2:$AP$491,MATCH($A$70,[64]Caucaia!$B$2:$B$491,0),MATCH($C73,[64]Caucaia!$B$2:$AP$2,0))*1)*(AO35) -> 81593 | O73: =(INDEX([64]Chorozinho!$B$2:$AP$491,MATCH($A$70,[64]Chorozinho!$B$2:$B$491,0),MATCH($C73,[64]Chorozinho!$B$2:$AP$2,0))*1)*(AP35) -> 0 | P73: =(INDEX([64]Eusébio!$B$2:$AP$491,MATCH($A$70,[64]Eusébio!$B$2:$B$491,0),MATCH($C73,[64]Eusébio!$B$2:$AP$2,0))*1)*(AQ35) -> 9726 | Q73: =(INDEX('[64]Farias Brito'!$B$2:$AP$491,MATCH($A$70,'[64]Farias Brito'!$B$2:$B$491,0),MATCH($C73,'[64]Farias Brito'!$B$2:$AP$2,0))*1)*(AR35) -> 697 | R73: =(INDEX([64]Fortaleza!$B$2:$AP$427,MATCH($A$70,[64]Fortaleza!$B$2:$B$427,0),MATCH($C73,[64]Fortaleza!$B$2:$AP$2,0))*1)*(AS35) -> 732224 | S73: =(INDEX([64]Guaiúba!$B$2:$AP$491,MATCH($A$70,[64]Guaiúba!$B$2:$B$491,0),MATCH($C73,[64]Guaiúba!$B$2:$AP$2,0))*1)*(AT35) -> 3627 | T73: =(INDEX([64]Horizonte!$B$2:$AP$491,MATCH($A$70,[64]Horizonte!$B$2:$B$491,0),MATCH($C73,[64]Horizonte!$B$2:$AP$2,0))*1)*(AU35) -> 16564 | U73: =(INDEX([64]Itaitinga!$B$2:$AP$491,MATCH($A$70,[64]Itaitinga!$B$2:$B$491,0),MATCH($C73,[64]Itaitinga!$B$2:$AP$2,0))*1)*(AV35) -> 8147 | V73: =(INDEX('[64]Juazeiro do Norte'!$B$2:$AP$491,MATCH($A$70,'[64]Juazeiro do Norte'!$B$2:$B$491,0),MATCH($C73,'[64]Juazeiro do Norte'!$B$2:$AP$2,0))*1)*(AW35) -> 57209 | W73: =(INDEX([64]Maracanaú!$B$2:$AP$491,MATCH($A$70,[64]Maracanaú!$B$2:$B$491,0),MATCH($C73,[64]Maracanaú!$B$2:$AP$2,0))*1)*(AX35) -> 57561 | X73: =(INDEX([64]Maranguape!$B$2:$AP$491,MATCH($A$70,[64]Maranguape!$B$2:$B$491,0),MATCH($C73,[64]Maranguape!$B$2:$AP$2,0))*1)*(AY35) -> 21810 | Y73: =(INDEX('[64]Missão Velha'!$B$2:$AP$491,MATCH($A$70,'[64]Missão Velha'!$B$2:$B$491,0),MATCH($C73,'[64]Missão Velha'!$B$2:$AP$2,0))*1)*(AZ35) -> 1904 | Z73: =(INDEX('[64]Nova Olinda'!$B$2:$AP$491,MATCH($A$70,'[64]Nova Olinda'!$B$2:$B$491,0),MATCH($C73,'[64]Nova Olinda'!$B$2:$AP$2,0))*1)*(BA35) -> 1093 | AA73: =(INDEX([64]Pacajus!$B$2:$AP$491,MATCH($A$70,[64]Pacajus!$B$2:$B$491,0),MATCH($C73,[64]Pacajus!$B$2:$AP$2,0))*1)*(BB35) -> 5695 | AB73: =(INDEX([64]Pacatuba!$B$2:$AP$491,MATCH($A$70,[64]Pacatuba!$B$2:$B$491,0),MATCH($C73,[64]Pacatuba!$B$2:$AP$2,0))*1)*(BC35) -> 18457 | AC73: =(INDEX([64]Paracuru!$B$2:$AP$491,MATCH($A$70,[64]Paracuru!$B$2:$B$491,0),MATCH($C73,[64]Paracuru!$B$2:$AP$2,0))*1)*(BD35) -> 5005 | AD73: =(INDEX([64]Paraipaba!$B$2:$AP$491,MATCH($A$70,[64]Paraipaba!$B$2:$B$491,0),MATCH($C73,[64]Paraipaba!$B$2:$AP$2,0))*1)*(BE35) -> 5437 | AE73: =(INDEX('[64]São Gonçalo do Amarante'!$B$2:$AP$491,MATCH($A$70,'[64]São Gonçalo do Amarante'!$B$2:$B$491,0),MATCH($C73,'[64]São Gonçalo do Amarante'!$B$2:$AP$2,0))*1)*(BF35) -> 11346 | AF73: =(INDEX('[64]São Luís do Curu'!$B$2:$AP$491,MATCH($A$70,'[64]São Luís do Curu'!$B$2:$B$491,0),MATCH($C73,'[64]São Luís do Curu'!$B$2:$AP$2,0))*1)*(BG35) -> 2294 | AG73: =(INDEX([64]Trairi!$B$2:$AP$491,MATCH($A$70,[64]Trairi!$B$2:$B$491,0),MATCH($C73,[64]Trairi!$B$2:$AP$2,0))*1)*(BH35) -> 3299 | AH73: =(INDEX('[64]Santana do Cariri'!$B$2:$AP$491,MATCH($A$70,'[64]Santana do Cariri'!$B$2:$B$491,0),MATCH($C73,'[64]Santana do Cariri'!$B$2:$AP$2,0))*1)*(BI35) -> 2077
B74: 74 | C74: 2025 | D74: Nº Ligações Totais - esgoto | E74: 260170 | F74: 962775 | G74: 0 | H74: 0 | I74: 0 | K74: =(INDEX([64]Aquiraz!$B$2:$AP$492,MATCH($A$70,[64]Aquiraz!$B$2:$B$492,0),MATCH($C74,[64]Aquiraz!$B$2:$AP$2,0))*1)*(AL36) -> 9015 | L74: =(INDEX([64]Barbalha!$B$2:$AP$491,MATCH($A$70,[64]Barbalha!$B$2:$B$491,0),MATCH($C74,[64]Barbalha!$B$2:$AP$2,0))*1)*(AM36) -> 11557 | M74: =(INDEX([64]Cascavel!$B$2:$AP$491,MATCH($A$70,[64]Cascavel!$B$2:$B$491,0),MATCH($C74,[64]Cascavel!$B$2:$AP$2,0))*1)*(AN36) -> 6977 | N74: =(INDEX([64]Caucaia!$B$2:$AP$491,MATCH($A$70,[64]Caucaia!$B$2:$B$491,0),MATCH($C74,[64]Caucaia!$B$2:$AP$2,0))*1)*(AO36) -> 88285 | O74: =(INDEX([64]Chorozinho!$B$2:$AP$491,MATCH($A$70,[64]Chorozinho!$B$2:$B$491,0),MATCH($C74,[64]Chorozinho!$B$2:$AP$2,0))*1)*(AP36) -> 1571 | P74: =(INDEX([64]Eusébio!$B$2:$AP$491,MATCH($A$70,[64]Eusébio!$B$2:$B$491,0),MATCH($C74,[64]Eusébio!$B$2:$AP$2,0))*1)*(AQ36) -> 11880 | Q74: =(INDEX('[64]Farias Brito'!$B$2:$AP$491,MATCH($A$70,'[64]Farias Brito'!$B$2:$B$491,0),MATCH($C74,'[64]Farias Brito'!$B$2:$AP$2,0))*1)*(AR36) -> 1046 | R74: =(INDEX([64]Fortaleza!$B$2:$AP$427,MATCH($A$70,[64]Fortaleza!$B$2:$B$427,0),MATCH($C74,[64]Fortaleza!$B$2:$AP$2,0))*1)*(AS36) -> 844344 | S74: =(INDEX([64]Guaiúba!$B$2:$AP$491,MATCH($A$70,[64]Guaiúba!$B$2:$B$491,0),MATCH($C74,[64]Guaiúba!$B$2:$AP$2,0))*1)*(AT36) -> 3967 | T74: =(INDEX([64]Horizonte!$B$2:$AP$491,MATCH($A$70,[64]Horizonte!$B$2:$B$491,0),MATCH($C74,[64]Horizonte!$B$2:$AP$2,0))*1)*(AU36) -> 17949 | U74: =(INDEX([64]Itaitinga!$B$2:$AP$491,MATCH($A$70,[64]Itaitinga!$B$2:$B$491,0),MATCH($C74,[64]Itaitinga!$B$2:$AP$2,0))*1)*(AV36) -> 10216 | V74: =(INDEX('[64]Juazeiro do Norte'!$B$2:$AP$491,MATCH($A$70,'[64]Juazeiro do Norte'!$B$2:$B$491,0),MATCH($C74,'[64]Juazeiro do Norte'!$B$2:$AP$2,0))*1)*(AW36) -> 64267 | W74: =(INDEX([64]Maracanaú!$B$2:$AP$491,MATCH($A$70,[64]Maracanaú!$B$2:$B$491,0),MATCH($C74,[64]Maracanaú!$B$2:$AP$2,0))*1)*(AX36) -> 62508 | X74: =(INDEX([64]Maranguape!$B$2:$AP$491,MATCH($A$70,[64]Maranguape!$B$2:$B$491,0),MATCH($C74,[64]Maranguape!$B$2:$AP$2,0))*1)*(AY36) -> 24636 | Y74: =(INDEX('[64]Missão Velha'!$B$2:$AP$491,MATCH($A$70,'[64]Missão Velha'!$B$2:$B$491,0),MATCH($C74,'[64]Missão Velha'!$B$2:$AP$2,0))*1)*(AZ36) -> 2446 | Z74: =(INDEX('[64]Nova Olinda'!$B$2:$AP$491,MATCH($A$70,'[64]Nova Olinda'!$B$2:$B$491,0),MATCH($C74,'[64]Nova Olinda'!$B$2:$AP$2,0))*1)*(BA36) -> 1662 | AA74: =(INDEX([64]Pacajus!$B$2:$AP$491,MATCH($A$70,[64]Pacajus!$B$2:$B$491,0),MATCH($C74,[64]Pacajus!$B$2:$AP$2,0))*1)*(BB36) -> 8146 | AB74: =(INDEX([64]Pacatuba!$B$2:$AP$491,MATCH($A$70,[64]Pacatuba!$B$2:$B$491,0),MATCH($C74,[64]Pacatuba!$B$2:$AP$2,0))*1)*(BC36) -> 20173 | AC74: =(INDEX([64]Paracuru!$B$2:$AP$491,MATCH($A$70,[64]Paracuru!$B$2:$B$491,0),MATCH($C74,[64]Paracuru!$B$2:$AP$2,0))*1)*(BD36) -> 5577 | AD74: =(INDEX([64]Paraipaba!$B$2:$AP$491,MATCH($A$70,[64]Paraipaba!$B$2:$B$491,0),MATCH($C74,[64]Paraipaba!$B$2:$AP$2,0))*1)*(BE36) -> 5515 | AE74: =(INDEX('[64]São Gonçalo do Amarante'!$B$2:$AP$491,MATCH($A$70,'[64]São Gonçalo do Amarante'!$B$2:$B$491,0),MATCH($C74,'[64]São Gonçalo do Amarante'!$B$2:$AP$2,0))*1)*(BF36) -> 12764 | AF74: =(INDEX('[64]São Luís do Curu'!$B$2:$AP$491,MATCH($A$70,'[64]São Luís do Curu'!$B$2:$B$491,0),MATCH($C74,'[64]São Luís do Curu'!$B$2:$AP$2,0))*1)*(BG36) -> 2461 | AG74: =(INDEX([64]Trairi!$B$2:$AP$491,MATCH($A$70,[64]Trairi!$B$2:$B$491,0),MATCH($C74,[64]Trairi!$B$2:$AP$2,0))*1)*(BH36) -> 3829 | AH74: =(INDEX('[64]Santana do Cariri'!$B$2:$AP$491,MATCH($A$70,'[64]Santana do Cariri'!$B$2:$B$491,0),MATCH($C74,'[64]Santana do Cariri'!$B$2:$AP$2,0))*1)*(BI36) -> 2154
B75: 75 | C75: 2026 | D75: Nº Ligações Totais - esgoto | E75: 289598 | F75: 980663 | G75: 0 | H75: 0 | I75: 0 | K75: =(INDEX([64]Aquiraz!$B$2:$AP$492,MATCH($A$70,[64]Aquiraz!$B$2:$B$492,0),MATCH($C75,[64]Aquiraz!$B$2:$AP$2,0))*1)*(AL37) -> 10613 | L75: =(INDEX([64]Barbalha!$B$2:$AP$491,MATCH($A$70,[64]Barbalha!$B$2:$B$491,0),MATCH($C75,[64]Barbalha!$B$2:$AP$2,0))*1)*(AM37) -> 12287 | M75: =(INDEX([64]Cascavel!$B$2:$AP$491,MATCH($A$70,[64]Cascavel!$B$2:$B$491,0),MATCH($C75,[64]Cascavel!$B$2:$AP$2,0))*1)*(AN37) -> 8932 | N75: =(INDEX([64]Caucaia!$B$2:$AP$491,MATCH($A$70,[64]Caucaia!$B$2:$B$491,0),MATCH($C75,[64]Caucaia!$B$2:$AP$2,0))*1)*(AO37) -> 95034 | O75: =(INDEX([64]Chorozinho!$B$2:$AP$491,MATCH($A$70,[64]Chorozinho!$B$2:$B$491,0),MATCH($C75,[64]Chorozinho!$B$2:$AP$2,0))*1)*(AP37) -> 2207 | P75: =(INDEX([64]Eusébio!$B$2:$AP$491,MATCH($A$70,[64]Eusébio!$B$2:$B$491,0),MATCH($C75,[64]Eusébio!$B$2:$AP$2,0))*1)*(AQ37) -> 14060 | Q75: =(INDEX('[64]Farias Brito'!$B$2:$AP$491,MATCH($A$70,'[64]Farias Brito'!$B$2:$B$491,0),MATCH($C75,'[64]Farias Brito'!$B$2:$AP$2,0))*1)*(AR37) -> 1395 | R75: =(INDEX([64]Fortaleza!$B$2:$AP$427,MATCH($A$70,[64]Fortaleza!$B$2:$B$427,0),MATCH($C75,[64]Fortaleza!$B$2:$AP$2,0))*1)*(AS37) -> 853587 | S75: =(INDEX([64]Guaiúba!$B$2:$AP$491,MATCH($A$70,[64]Guaiúba!$B$2:$B$491,0),MATCH($C75,[64]Guaiúba!$B$2:$AP$2,0))*1)*(AT37) -> 4310 | T75: =(INDEX([64]Horizonte!$B$2:$AP$491,MATCH($A$70,[64]Horizonte!$B$2:$B$491,0),MATCH($C75,[64]Horizonte!$B$2:$AP$2,0))*1)*(AU37) -> 19347 | U75: =(INDEX([64]Itaitinga!$B$2:$AP$491,MATCH($A$70,[64]Itaitinga!$B$2:$B$491,0),MATCH($C75,[64]Itaitinga!$B$2:$AP$2,0))*1)*(AV37) -> 12319 | V75: =(INDEX('[64]Juazeiro do Norte'!$B$2:$AP$491,MATCH($A$70,'[64]Juazeiro do Norte'!$B$2:$B$491,0),MATCH($C75,'[64]Juazeiro do Norte'!$B$2:$AP$2,0))*1)*(AW37) -> 71383 | W75: =(INDEX([64]Maracanaú!$B$2:$AP$491,MATCH($A$70,[64]Maracanaú!$B$2:$B$491,0),MATCH($C75,[64]Maracanaú!$B$2:$AP$2,0))*1)*(AX37) -> 67489 | X75: =(INDEX([64]Maranguape!$B$2:$AP$491,MATCH($A$70,[64]Maranguape!$B$2:$B$491,0),MATCH($C75,[64]Maranguape!$B$2:$AP$2,0))*1)*(AY37) -> 26124 | Y75: =(INDEX('[64]Missão Velha'!$B$2:$AP$491,MATCH($A$70,'[64]Missão Velha'!$B$2:$B$491,0),MATCH($C75,'[64]Missão Velha'!$B$2:$AP$2,0))*1)*(AZ37) -> 2994 | Z75: =(INDEX('[64]Nova Olinda'!$B$2:$AP$491,MATCH($A$70,'[64]Nova Olinda'!$B$2:$B$491,0),MATCH($C75,'[64]Nova Olinda'!$B$2:$AP$2,0))*1)*(BA37) -> 2246 | AA75: =(INDEX([64]Pacajus!$B$2:$AP$491,MATCH($A$70,[64]Pacajus!$B$2:$B$491,0),MATCH($C75,[64]Pacajus!$B$2:$AP$2,0))*1)*(BB37) -> 10633 | AB75: =(INDEX([64]Pacatuba!$B$2:$AP$491,MATCH($A$70,[64]Pacatuba!$B$2:$B$491,0),MATCH($C75,[64]Pacatuba!$B$2:$AP$2,0))*1)*(BC37) -> 21026 | AC75: =(INDEX([64]Paracuru!$B$2:$AP$491,MATCH($A$70,[64]Paracuru!$B$2:$B$491,0),MATCH($C75,[64]Paracuru!$B$2:$AP$2,0))*1)*(BD37) -> 6153 | AD75: =(INDEX([64]Paraipaba!$B$2:$AP$491,MATCH($A$70,[64]Paraipaba!$B$2:$B$491,0),MATCH($C75,[64]Paraipaba!$B$2:$AP$2,0))*1)*(BE37) -> 5592 | AE75: =(INDEX('[64]São Gonçalo do Amarante'!$B$2:$AP$491,MATCH($A$70,'[64]São Gonçalo do Amarante'!$B$2:$B$491,0),MATCH($C75,'[64]São Gonçalo do Amarante'!$B$2:$AP$2,0))*1)*(BF37) -> 13302 | AF75: =(INDEX('[64]São Luís do Curu'!$B$2:$AP$491,MATCH($A$70,'[64]São Luís do Curu'!$B$2:$B$491,0),MATCH($C75,'[64]São Luís do Curu'!$B$2:$AP$2,0))*1)*(BG37) -> 2629 | AG75: =(INDEX([64]Trairi!$B$2:$AP$491,MATCH($A$70,[64]Trairi!$B$2:$B$491,0),MATCH($C75,[64]Trairi!$B$2:$AP$2,0))*1)*(BH37) -> 4366 | AH75: =(INDEX('[64]Santana do Cariri'!$B$2:$AP$491,MATCH($A$70,'[64]Santana do Cariri'!$B$2:$B$491,0),MATCH($C75,'[64]Santana do Cariri'!$B$2:$AP$2,0))*1)*(BI37) -> 2233
B76: 76 | C76: 2027 | D76: Nº Ligações Totais - esgoto | E76: 318315 | F76: 998426 | G76: 0 | H76: 0 | I76: 0 | K76: =(INDEX([64]Aquiraz!$B$2:$AP$492,MATCH($A$70,[64]Aquiraz!$B$2:$B$492,0),MATCH($C76,[64]Aquiraz!$B$2:$AP$2,0))*1)*(AL38) -> 11265 | L76: =(INDEX([64]Barbalha!$B$2:$AP$491,MATCH($A$70,[64]Barbalha!$B$2:$B$491,0),MATCH($C76,[64]Barbalha!$B$2:$AP$2,0))*1)*(AM38) -> 13021 | M76: =(INDEX([64]Cascavel!$B$2:$AP$491,MATCH($A$70,[64]Cascavel!$B$2:$B$491,0),MATCH($C76,[64]Cascavel!$B$2:$AP$2,0))*1)*(AN38) -> 10904 | N76: =(INDEX([64]Caucaia!$B$2:$AP$491,MATCH($A$70,[64]Caucaia!$B$2:$B$491,0),MATCH($C76,[64]Caucaia!$B$2:$AP$2,0))*1)*(AO38) -> 101830 | O76: =(INDEX([64]Chorozinho!$B$2:$AP$491,MATCH($A$70,[64]Chorozinho!$B$2:$B$491,0),MATCH($C76,[64]Chorozinho!$B$2:$AP$2,0))*1)*(AP38) -> 2853 | P76: =(INDEX([64]Eusébio!$B$2:$AP$491,MATCH($A$70,[64]Eusébio!$B$2:$B$491,0),MATCH($C76,[64]Eusébio!$B$2:$AP$2,0))*1)*(AQ38) -> 16263 | Q76: =(INDEX('[64]Farias Brito'!$B$2:$AP$491,MATCH($A$70,'[64]Farias Brito'!$B$2:$B$491,0),MATCH($C76,'[64]Farias Brito'!$B$2:$AP$2,0))*1)*(AR38) -> 1744 | R76: =(INDEX([64]Fortaleza!$B$2:$AP$427,MATCH($A$70,[64]Fortaleza!$B$2:$B$427,0),MATCH($C76,[64]Fortaleza!$B$2:$AP$2,0))*1)*(AS38) -> 862642 | S76: =(INDEX([64]Guaiúba!$B$2:$AP$491,MATCH($A$70,[64]Guaiúba!$B$2:$B$491,0),MATCH($C76,[64]Guaiúba!$B$2:$AP$2,0))*1)*(AT38) -> 4654 | T76: =(INDEX([64]Horizonte!$B$2:$AP$491,MATCH($A$70,[64]Horizonte!$B$2:$B$491,0),MATCH($C76,[64]Horizonte!$B$2:$AP$2,0))*1)*(AU38) -> 20756 | U76: =(INDEX([64]Itaitinga!$B$2:$AP$491,MATCH($A$70,[64]Itaitinga!$B$2:$B$491,0),MATCH($C76,[64]Itaitinga!$B$2:$AP$2,0))*1)*(AV38) -> 14453 | V76: =(INDEX('[64]Juazeiro do Norte'!$B$2:$AP$491,MATCH($A$70,'[64]Juazeiro do Norte'!$B$2:$B$491,0),MATCH($C76,'[64]Juazeiro do Norte'!$B$2:$AP$2,0))*1)*(AW38) -> 78550 | W76: =(INDEX([64]Maracanaú!$B$2:$AP$491,MATCH($A$70,[64]Maracanaú!$B$2:$B$491,0),MATCH($C76,[64]Maracanaú!$B$2:$AP$2,0))*1)*(AX38) -> 72499 | X76: =(INDEX([64]Maranguape!$B$2:$AP$491,MATCH($A$70,[64]Maranguape!$B$2:$B$491,0),MATCH($C76,[64]Maranguape!$B$2:$AP$2,0))*1)*(AY38) -> 27620 | Y76: =(INDEX('[64]Missão Velha'!$B$2:$AP$491,MATCH($A$70,'[64]Missão Velha'!$B$2:$B$491,0),MATCH($C76,'[64]Missão Velha'!$B$2:$AP$2,0))*1)*(AZ38) -> 3548 | Z76: =(INDEX('[64]Nova Olinda'!$B$2:$AP$491,MATCH($A$70,'[64]Nova Olinda'!$B$2:$B$491,0),MATCH($C76,'[64]Nova Olinda'!$B$2:$AP$2,0))*1)*(BA38) -> 2843 | AA76: =(INDEX([64]Pacajus!$B$2:$AP$491,MATCH($A$70,[64]Pacajus!$B$2:$B$491,0),MATCH($C76,[64]Pacajus!$B$2:$AP$2,0))*1)*(BB38) -> 13152 | AB76: =(INDEX([64]Pacatuba!$B$2:$AP$491,MATCH($A$70,[64]Pacatuba!$B$2:$B$491,0),MATCH($C76,[64]Pacatuba!$B$2:$AP$2,0))*1)*(BC38) -> 21880 | AC76: =(INDEX([64]Paracuru!$B$2:$AP$491,MATCH($A$70,[64]Paracuru!$B$2:$B$491,0),MATCH($C76,[64]Paracuru!$B$2:$AP$2,0))*1)*(BD38) -> 6735 | AD76: =(INDEX([64]Paraipaba!$B$2:$AP$491,MATCH($A$70,[64]Paraipaba!$B$2:$B$491,0),MATCH($C76,[64]Paraipaba!$B$2:$AP$2,0))*1)*(BE38) -> 5669 | AE76: =(INDEX('[64]São Gonçalo do Amarante'!$B$2:$AP$491,MATCH($A$70,'[64]São Gonçalo do Amarante'!$B$2:$B$491,0),MATCH($C76,'[64]São Gonçalo do Amarante'!$B$2:$AP$2,0))*1)*(BF38) -> 13841 | AF76: =(INDEX('[64]São Luís do Curu'!$B$2:$AP$491,MATCH($A$70,'[64]São Luís do Curu'!$B$2:$B$491,0),MATCH($C76,'[64]São Luís do Curu'!$B$2:$AP$2,0))*1)*(BG38) -> 2797 | AG76: =(INDEX([64]Trairi!$B$2:$AP$491,MATCH($A$70,[64]Trairi!$B$2:$B$491,0),MATCH($C76,[64]Trairi!$B$2:$AP$2,0))*1)*(BH38) -> 4912 | AH76: =(INDEX('[64]Santana do Cariri'!$B$2:$AP$491,MATCH($A$70,'[64]Santana do Cariri'!$B$2:$B$491,0),MATCH($C76,'[64]Santana do Cariri'!$B$2:$AP$2,0))*1)*(BI38) -> 2310
B77: 77 | C77: 2028 | D77: Nº Ligações Totais - esgoto | E77: 347244 | F77: 1016029 | G77: 0 | H77: 0 | I77: 0 | K77: =(INDEX([64]Aquiraz!$B$2:$AP$492,MATCH($A$70,[64]Aquiraz!$B$2:$B$492,0),MATCH($C77,[64]Aquiraz!$B$2:$AP$2,0))*1)*(AL39) -> 11920 | L77: =(INDEX([64]Barbalha!$B$2:$AP$491,MATCH($A$70,[64]Barbalha!$B$2:$B$491,0),MATCH($C77,[64]Barbalha!$B$2:$AP$2,0))*1)*(AM39) -> 13757 | M77: =(INDEX([64]Cascavel!$B$2:$AP$491,MATCH($A$70,[64]Cascavel!$B$2:$B$491,0),MATCH($C77,[64]Cascavel!$B$2:$AP$2,0))*1)*(AN39) -> 12895 | N77: =(INDEX([64]Caucaia!$B$2:$AP$491,MATCH($A$70,[64]Caucaia!$B$2:$B$491,0),MATCH($C77,[64]Caucaia!$B$2:$AP$2,0))*1)*(AO39) -> 108662 | O77: =(INDEX([64]Chorozinho!$B$2:$AP$491,MATCH($A$70,[64]Chorozinho!$B$2:$B$491,0),MATCH($C77,[64]Chorozinho!$B$2:$AP$2,0))*1)*(AP39) -> 3508 | P77: =(INDEX([64]Eusébio!$B$2:$AP$491,MATCH($A$70,[64]Eusébio!$B$2:$B$491,0),MATCH($C77,[64]Eusébio!$B$2:$AP$2,0))*1)*(AQ39) -> 18486 | Q77: =(INDEX('[64]Farias Brito'!$B$2:$AP$491,MATCH($A$70,'[64]Farias Brito'!$B$2:$B$491,0),MATCH($C77,'[64]Farias Brito'!$B$2:$AP$2,0))*1)*(AR39) -> 2093 | R77: =(INDEX([64]Fortaleza!$B$2:$AP$427,MATCH($A$70,[64]Fortaleza!$B$2:$B$427,0),MATCH($C77,[64]Fortaleza!$B$2:$AP$2,0))*1)*(AS39) -> 871491 | S77: =(INDEX([64]Guaiúba!$B$2:$AP$491,MATCH($A$70,[64]Guaiúba!$B$2:$B$491,0),MATCH($C77,[64]Guaiúba!$B$2:$AP$2,0))*1)*(AT39) -> 5001 | T77: =(INDEX([64]Horizonte!$B$2:$AP$491,MATCH($A$70,[64]Horizonte!$B$2:$B$491,0),MATCH($C77,[64]Horizonte!$B$2:$AP$2,0))*1)*(AU39) -> 22173 | U77: =(INDEX([64]Itaitinga!$B$2:$AP$491,MATCH($A$70,[64]Itaitinga!$B$2:$B$491,0),MATCH($C77,[64]Itaitinga!$B$2:$AP$2,0))*1)*(AV39) -> 16616 | V77: =(INDEX('[64]Juazeiro do Norte'!$B$2:$AP$491,MATCH($A$70,'[64]Juazeiro do Norte'!$B$2:$B$491,0),MATCH($C77,'[64]Juazeiro do Norte'!$B$2:$AP$2,0))*1)*(AW39) -> 85761 | W77: =(INDEX([64]Maracanaú!$B$2:$AP$491,MATCH($A$70,[64]Maracanaú!$B$2:$B$491,0),MATCH($C77,[64]Maracanaú!$B$2:$AP$2,0))*1)*(AX39) -> 77533 | X77: =(INDEX([64]Maranguape!$B$2:$AP$491,MATCH($A$70,[64]Maranguape!$B$2:$B$491,0),MATCH($C77,[64]Maranguape!$B$2:$AP$2,0))*1)*(AY39) -> 29120 | Y77: =(INDEX('[64]Missão Velha'!$B$2:$AP$491,MATCH($A$70,'[64]Missão Velha'!$B$2:$B$491,0),MATCH($C77,'[64]Missão Velha'!$B$2:$AP$2,0))*1)*(AZ39) -> 4107 | Z77: =(INDEX('[64]Nova Olinda'!$B$2:$AP$491,MATCH($A$70,'[64]Nova Olinda'!$B$2:$B$491,0),MATCH($C77,'[64]Nova Olinda'!$B$2:$AP$2,0))*1)*(BA39) -> 3452 | AA77: =(INDEX([64]Pacajus!$B$2:$AP$491,MATCH($A$70,[64]Pacajus!$B$2:$B$491,0),MATCH($C77,[64]Pacajus!$B$2:$AP$2,0))*1)*(BB39) -> 15702 | AB77: =(INDEX([64]Pacatuba!$B$2:$AP$491,MATCH($A$70,[64]Pacatuba!$B$2:$B$491,0),MATCH($C77,[64]Pacatuba!$B$2:$AP$2,0))*1)*(BC39) -> 22735 | AC77: =(INDEX([64]Paracuru!$B$2:$AP$491,MATCH($A$70,[64]Paracuru!$B$2:$B$491,0),MATCH($C77,[64]Paracuru!$B$2:$AP$2,0))*1)*(BD39) -> 7319 | AD77: =(INDEX([64]Paraipaba!$B$2:$AP$491,MATCH($A$70,[64]Paraipaba!$B$2:$B$491,0),MATCH($C77,[64]Paraipaba!$B$2:$AP$2,0))*1)*(BE39) -> 5745 | AE77: =(INDEX('[64]São Gonçalo do Amarante'!$B$2:$AP$491,MATCH($A$70,'[64]São Gonçalo do Amarante'!$B$2:$B$491,0),MATCH($C77,'[64]São Gonçalo do Amarante'!$B$2:$AP$2,0))*1)*(BF39) -> 14382 | AF77: =(INDEX('[64]São Luís do Curu'!$B$2:$AP$491,MATCH($A$70,'[64]São Luís do Curu'!$B$2:$B$491,0),MATCH($C77,'[64]São Luís do Curu'!$B$2:$AP$2,0))*1)*(BG39) -> 2966 | AG77: =(INDEX([64]Trairi!$B$2:$AP$491,MATCH($A$70,[64]Trairi!$B$2:$B$491,0),MATCH($C77,[64]Trairi!$B$2:$AP$2,0))*1)*(BH39) -> 5464 | AH77: =(INDEX('[64]Santana do Cariri'!$B$2:$AP$491,MATCH($A$70,'[64]Santana do Cariri'!$B$2:$B$491,0),MATCH($C77,'[64]Santana do Cariri'!$B$2:$AP$2,0))*1)*(BI39) -> 2385
B78: 78 | C78: 2029 | D78: =IF(C78="","",IF(AND(COUNT(C78)>0,COUNT(C77)=0),C77,D77)) -> Nº Ligações Totais - esgoto | E78: 376342 | F78: 1033455 | G78: 0 | H78: 0 | I78: 0 | K78: =(INDEX([64]Aquiraz!$B$2:$AP$492,MATCH($A$70,[64]Aquiraz!$B$2:$B$492,0),MATCH($C78,[64]Aquiraz!$B$2:$AP$2,0))*1)*(AL40) -> 12577 | L78: =(INDEX([64]Barbalha!$B$2:$AP$491,MATCH($A$70,[64]Barbalha!$B$2:$B$491,0),MATCH($C78,[64]Barbalha!$B$2:$AP$2,0))*1)*(AM40) -> 14496 | M78: =(INDEX([64]Cascavel!$B$2:$AP$491,MATCH($A$70,[64]Cascavel!$B$2:$B$491,0),MATCH($C78,[64]Cascavel!$B$2:$AP$2,0))*1)*(AN40) -> 14899 | N78: =(INDEX([64]Caucaia!$B$2:$AP$491,MATCH($A$70,[64]Caucaia!$B$2:$B$491,0),MATCH($C78,[64]Caucaia!$B$2:$AP$2,0))*1)*(AO40) -> 115521 | O78: =(INDEX([64]Chorozinho!$B$2:$AP$491,MATCH($A$70,[64]Chorozinho!$B$2:$B$491,0),MATCH($C78,[64]Chorozinho!$B$2:$AP$2,0))*1)*(AP40) -> 4171 | P78: =(INDEX([64]Eusébio!$B$2:$AP$491,MATCH($A$70,[64]Eusébio!$B$2:$B$491,0),MATCH($C78,[64]Eusébio!$B$2:$AP$2,0))*1)*(AQ40) -> 20727 | Q78: =(INDEX('[64]Farias Brito'!$B$2:$AP$491,MATCH($A$70,'[64]Farias Brito'!$B$2:$B$491,0),MATCH($C78,'[64]Farias Brito'!$B$2:$AP$2,0))*1)*(AR40) -> 2443 | R78: =(INDEX([64]Fortaleza!$B$2:$AP$427,MATCH($A$70,[64]Fortaleza!$B$2:$B$427,0),MATCH($C78,[64]Fortaleza!$B$2:$AP$2,0))*1)*(AS40) -> 880126 | S78: =(INDEX([64]Guaiúba!$B$2:$AP$491,MATCH($A$70,[64]Guaiúba!$B$2:$B$491,0),MATCH($C78,[64]Guaiúba!$B$2:$AP$2,0))*1)*(AT40) -> 5348 | T78: =(INDEX([64]Horizonte!$B$2:$AP$491,MATCH($A$70,[64]Horizonte!$B$2:$B$491,0),MATCH($C78,[64]Horizonte!$B$2:$AP$2,0))*1)*(AU40) -> 23596 | U78: =(INDEX([64]Itaitinga!$B$2:$AP$491,MATCH($A$70,[64]Itaitinga!$B$2:$B$491,0),MATCH($C78,[64]Itaitinga!$B$2:$AP$2,0))*1)*(AV40) -> 18802 | V78: =(INDEX('[64]Juazeiro do Norte'!$B$2:$AP$491,MATCH($A$70,'[64]Juazeiro do Norte'!$B$2:$B$491,0),MATCH($C78,'[64]Juazeiro do Norte'!$B$2:$AP$2,0))*1)*(AW40) -> 93006 | W78: =(INDEX([64]Maracanaú!$B$2:$AP$491,MATCH($A$70,[64]Maracanaú!$B$2:$B$491,0),MATCH($C78,[64]Maracanaú!$B$2:$AP$2,0))*1)*(AX40) -> 82587 | X78: =(INDEX([64]Maranguape!$B$2:$AP$491,MATCH($A$70,[64]Maranguape!$B$2:$B$491,0),MATCH($C78,[64]Maranguape!$B$2:$AP$2,0))*1)*(AY40) -> 30624 | Y78: =(INDEX('[64]Missão Velha'!$B$2:$AP$491,MATCH($A$70,'[64]Missão Velha'!$B$2:$B$491,0),MATCH($C78,'[64]Missão Velha'!$B$2:$AP$2,0))*1)*(AZ40) -> 4670 | Z78: =(INDEX('[64]Nova Olinda'!$B$2:$AP$491,MATCH($A$70,'[64]Nova Olinda'!$B$2:$B$491,0),MATCH($C78,'[64]Nova Olinda'!$B$2:$AP$2,0))*1)*(BA40) -> 4070 | AA78: =(INDEX([64]Pacajus!$B$2:$AP$491,MATCH($A$70,[64]Pacajus!$B$2:$B$491,0),MATCH($C78,[64]Pacajus!$B$2:$AP$2,0))*1)*(BB40) -> 18277 | AB78: =(INDEX([64]Pacatuba!$B$2:$AP$491,MATCH($A$70,[64]Pacatuba!$B$2:$B$491,0),MATCH($C78,[64]Pacatuba!$B$2:$AP$2,0))*1)*(BC40) -> 23588 | AC78: =(INDEX([64]Paracuru!$B$2:$AP$491,MATCH($A$70,[64]Paracuru!$B$2:$B$491,0),MATCH($C78,[64]Paracuru!$B$2:$AP$2,0))*1)*(BD40) -> 7908 | AD78: =(INDEX([64]Paraipaba!$B$2:$AP$491,MATCH($A$70,[64]Paraipaba!$B$2:$B$491,0),MATCH($C78,[64]Paraipaba!$B$2:$AP$2,0))*1)*(BE40) -> 5819 | AE78: =(INDEX('[64]São Gonçalo do Amarante'!$B$2:$AP$491,MATCH($A$70,'[64]São Gonçalo do Amarante'!$B$2:$B$491,0),MATCH($C78,'[64]São Gonçalo do Amarante'!$B$2:$AP$2,0))*1)*(BF40) -> 14925 | AF78: =(INDEX('[64]São Luís do Curu'!$B$2:$AP$491,MATCH($A$70,'[64]São Luís do Curu'!$B$2:$B$491,0),MATCH($C78,'[64]São Luís do Curu'!$B$2:$AP$2,0))*1)*(BG40) -> 3135 | AG78: =(INDEX([64]Trairi!$B$2:$AP$491,MATCH($A$70,[64]Trairi!$B$2:$B$491,0),MATCH($C78,[64]Trairi!$B$2:$AP$2,0))*1)*(BH40) -> 6021 | AH78: =(INDEX('[64]Santana do Cariri'!$B$2:$AP$491,MATCH($A$70,'[64]Santana do Cariri'!$B$2:$B$491,0),MATCH($C78,'[64]Santana do Cariri'!$B$2:$AP$2,0))*1)*(BI40) -> 2461
B79: 79 | C79: 2030 | D79: Nº Ligações Totais - esgoto | E79: 405573 | F79: 1050685 | G79: 0 | H79: 0 | I79: 0 | K79: =(INDEX([64]Aquiraz!$B$2:$AP$492,MATCH($A$70,[64]Aquiraz!$B$2:$B$492,0),MATCH($C79,[64]Aquiraz!$B$2:$AP$2,0))*1)*(AL41) -> 13236 | L79: =(INDEX([64]Barbalha!$B$2:$AP$491,MATCH($A$70,[64]Barbalha!$B$2:$B$491,0),MATCH($C79,[64]Barbalha!$B$2:$AP$2,0))*1)*(AM41) -> 15235 | M79: =(INDEX([64]Cascavel!$B$2:$AP$491,MATCH($A$70,[64]Cascavel!$B$2:$B$491,0),MATCH($C79,[64]Cascavel!$B$2:$AP$2,0))*1)*(AN41) -> 16914 | N79: =(INDEX([64]Caucaia!$B$2:$AP$491,MATCH($A$70,[64]Caucaia!$B$2:$B$491,0),MATCH($C79,[64]Caucaia!$B$2:$AP$2,0))*1)*(AO41) -> 122399 | O79: =(INDEX([64]Chorozinho!$B$2:$AP$491,MATCH($A$70,[64]Chorozinho!$B$2:$B$491,0),MATCH($C79,[64]Chorozinho!$B$2:$AP$2,0))*1)*(AP41) -> 4841 | P79: =(INDEX([64]Eusébio!$B$2:$AP$491,MATCH($A$70,[64]Eusébio!$B$2:$B$491,0),MATCH($C79,[64]Eusébio!$B$2:$AP$2,0))*1)*(AQ41) -> 22982 | Q79: =(INDEX('[64]Farias Brito'!$B$2:$AP$491,MATCH($A$70,'[64]Farias Brito'!$B$2:$B$491,0),MATCH($C79,'[64]Farias Brito'!$B$2:$AP$2,0))*1)*(AR41) -> 2793 | R79: =(INDEX([64]Fortaleza!$B$2:$AP$427,MATCH($A$70,[64]Fortaleza!$B$2:$B$427,0),MATCH($C79,[64]Fortaleza!$B$2:$AP$2,0))*1)*(AS41) -> 888544 | S79: =(INDEX([64]Guaiúba!$B$2:$AP$491,MATCH($A$70,[64]Guaiúba!$B$2:$B$491,0),MATCH($C79,[64]Guaiúba!$B$2:$AP$2,0))*1)*(AT41) -> 5697 | T79: =(INDEX([64]Horizonte!$B$2:$AP$491,MATCH($A$70,[64]Horizonte!$B$2:$B$491,0),MATCH($C79,[64]Horizonte!$B$2:$AP$2,0))*1)*(AU41) -> 25024 | U79: =(INDEX([64]Itaitinga!$B$2:$AP$491,MATCH($A$70,[64]Itaitinga!$B$2:$B$491,0),MATCH($C79,[64]Itaitinga!$B$2:$AP$2,0))*1)*(AV41) -> 21011 | V79: =(INDEX('[64]Juazeiro do Norte'!$B$2:$AP$491,MATCH($A$70,'[64]Juazeiro do Norte'!$B$2:$B$491,0),MATCH($C79,'[64]Juazeiro do Norte'!$B$2:$AP$2,0))*1)*(AW41) -> 100279 | W79: =(INDEX([64]Maracanaú!$B$2:$AP$491,MATCH($A$70,[64]Maracanaú!$B$2:$B$491,0),MATCH($C79,[64]Maracanaú!$B$2:$AP$2,0))*1)*(AX41) -> 87654 | X79: =(INDEX([64]Maranguape!$B$2:$AP$491,MATCH($A$70,[64]Maranguape!$B$2:$B$491,0),MATCH($C79,[64]Maranguape!$B$2:$AP$2,0))*1)*(AY41) -> 32126 | Y79: =(INDEX('[64]Missão Velha'!$B$2:$AP$491,MATCH($A$70,'[64]Missão Velha'!$B$2:$B$491,0),MATCH($C79,'[64]Missão Velha'!$B$2:$AP$2,0))*1)*(AZ41) -> 5237 | Z79: =(INDEX('[64]Nova Olinda'!$B$2:$AP$491,MATCH($A$70,'[64]Nova Olinda'!$B$2:$B$491,0),MATCH($C79,'[64]Nova Olinda'!$B$2:$AP$2,0))*1)*(BA41) -> 4697 | AA79: =(INDEX([64]Pacajus!$B$2:$AP$491,MATCH($A$70,[64]Pacajus!$B$2:$B$491,0),MATCH($C79,[64]Pacajus!$B$2:$AP$2,0))*1)*(BB41) -> 20873 | AB79: =(INDEX([64]Pacatuba!$B$2:$AP$491,MATCH($A$70,[64]Pacatuba!$B$2:$B$491,0),MATCH($C79,[64]Pacatuba!$B$2:$AP$2,0))*1)*(BC41) -> 24439 | AC79: =(INDEX([64]Paracuru!$B$2:$AP$491,MATCH($A$70,[64]Paracuru!$B$2:$B$491,0),MATCH($C79,[64]Paracuru!$B$2:$AP$2,0))*1)*(BD41) -> 8498 | AD79: =(INDEX([64]Paraipaba!$B$2:$AP$491,MATCH($A$70,[64]Paraipaba!$B$2:$B$491,0),MATCH($C79,[64]Paraipaba!$B$2:$AP$2,0))*1)*(BE41) -> 5891 | AE79: =(INDEX('[64]São Gonçalo do Amarante'!$B$2:$AP$491,MATCH($A$70,'[64]São Gonçalo do Amarante'!$B$2:$B$491,0),MATCH($C79,'[64]São Gonçalo do Amarante'!$B$2:$AP$2,0))*1)*(BF41) -> 15467 | AF79: =(INDEX('[64]São Luís do Curu'!$B$2:$AP$491,MATCH($A$70,'[64]São Luís do Curu'!$B$2:$B$491,0),MATCH($C79,'[64]São Luís do Curu'!$B$2:$AP$2,0))*1)*(BG41) -> 3303 | AG79: =(INDEX([64]Trairi!$B$2:$AP$491,MATCH($A$70,[64]Trairi!$B$2:$B$491,0),MATCH($C79,[64]Trairi!$B$2:$AP$2,0))*1)*(BH41) -> 6583 | AH79: =(INDEX('[64]Santana do Cariri'!$B$2:$AP$491,MATCH($A$70,'[64]Santana do Cariri'!$B$2:$B$491,0),MATCH($C79,'[64]Santana do Cariri'!$B$2:$AP$2,0))*1)*(BI41) -> 2535
B80: 80 | C80: 2031 | D80: Nº Ligações Totais - esgoto | E80: 434907 | F80: 1067708 | G80: 0 | H80: 0 | I80: 0 | K80: =(INDEX([64]Aquiraz!$B$2:$AP$492,MATCH($A$70,[64]Aquiraz!$B$2:$B$492,0),MATCH($C80,[64]Aquiraz!$B$2:$AP$2,0))*1)*(AL42) -> 13896 | L80: =(INDEX([64]Barbalha!$B$2:$AP$491,MATCH($A$70,[64]Barbalha!$B$2:$B$491,0),MATCH($C80,[64]Barbalha!$B$2:$AP$2,0))*1)*(AM42) -> 15974 | M80: =(INDEX([64]Cascavel!$B$2:$AP$491,MATCH($A$70,[64]Cascavel!$B$2:$B$491,0),MATCH($C80,[64]Cascavel!$B$2:$AP$2,0))*1)*(AN42) -> 18940 | N80: =(INDEX([64]Caucaia!$B$2:$AP$491,MATCH($A$70,[64]Caucaia!$B$2:$B$491,0),MATCH($C80,[64]Caucaia!$B$2:$AP$2,0))*1)*(AO42) -> 129287 | O80: =(INDEX([64]Chorozinho!$B$2:$AP$491,MATCH($A$70,[64]Chorozinho!$B$2:$B$491,0),MATCH($C80,[64]Chorozinho!$B$2:$AP$2,0))*1)*(AP42) -> 5516 | P80: =(INDEX([64]Eusébio!$B$2:$AP$491,MATCH($A$70,[64]Eusébio!$B$2:$B$491,0),MATCH($C80,[64]Eusébio!$B$2:$AP$2,0))*1)*(AQ42) -> 25249 | Q80: =(INDEX('[64]Farias Brito'!$B$2:$AP$491,MATCH($A$70,'[64]Farias Brito'!$B$2:$B$491,0),MATCH($C80,'[64]Farias Brito'!$B$2:$AP$2,0))*1)*(AR42) -> 3142 | R80: =(INDEX([64]Fortaleza!$B$2:$AP$427,MATCH($A$70,[64]Fortaleza!$B$2:$B$427,0),MATCH($C80,[64]Fortaleza!$B$2:$AP$2,0))*1)*(AS42) -> 896736 | S80: =(INDEX([64]Guaiúba!$B$2:$AP$491,MATCH($A$70,[64]Guaiúba!$B$2:$B$491,0),MATCH($C80,[64]Guaiúba!$B$2:$AP$2,0))*1)*(AT42) -> 6045 | T80: =(INDEX([64]Horizonte!$B$2:$AP$491,MATCH($A$70,[64]Horizonte!$B$2:$B$491,0),MATCH($C80,[64]Horizonte!$B$2:$AP$2,0))*1)*(AU42) -> 26453 | U80: =(INDEX([64]Itaitinga!$B$2:$AP$491,MATCH($A$70,[64]Itaitinga!$B$2:$B$491,0),MATCH($C80,[64]Itaitinga!$B$2:$AP$2,0))*1)*(AV42) -> 23238 | V80: =(INDEX('[64]Juazeiro do Norte'!$B$2:$AP$491,MATCH($A$70,'[64]Juazeiro do Norte'!$B$2:$B$491,0),MATCH($C80,'[64]Juazeiro do Norte'!$B$2:$AP$2,0))*1)*(AW42) -> 107573 | W80: =(INDEX([64]Maracanaú!$B$2:$AP$491,MATCH($A$70,[64]Maracanaú!$B$2:$B$491,0),MATCH($C80,[64]Maracanaú!$B$2:$AP$2,0))*1)*(AX42) -> 92731 | X80: =(INDEX([64]Maranguape!$B$2:$AP$491,MATCH($A$70,[64]Maranguape!$B$2:$B$491,0),MATCH($C80,[64]Maranguape!$B$2:$AP$2,0))*1)*(AY42) -> 33627 | Y80: =(INDEX('[64]Missão Velha'!$B$2:$AP$491,MATCH($A$70,'[64]Missão Velha'!$B$2:$B$491,0),MATCH($C80,'[64]Missão Velha'!$B$2:$AP$2,0))*1)*(AZ42) -> 5807 | Z80: =(INDEX('[64]Nova Olinda'!$B$2:$AP$491,MATCH($A$70,'[64]Nova Olinda'!$B$2:$B$491,0),MATCH($C80,'[64]Nova Olinda'!$B$2:$AP$2,0))*1)*(BA42) -> 5332 | AA80: =(INDEX([64]Pacajus!$B$2:$AP$491,MATCH($A$70,[64]Pacajus!$B$2:$B$491,0),MATCH($C80,[64]Pacajus!$B$2:$AP$2,0))*1)*(BB42) -> 23488 | AB80: =(INDEX([64]Pacatuba!$B$2:$AP$491,MATCH($A$70,[64]Pacatuba!$B$2:$B$491,0),MATCH($C80,[64]Pacatuba!$B$2:$AP$2,0))*1)*(BC42) -> 25287 | AC80: =(INDEX([64]Paracuru!$B$2:$AP$491,MATCH($A$70,[64]Paracuru!$B$2:$B$491,0),MATCH($C80,[64]Paracuru!$B$2:$AP$2,0))*1)*(BD42) -> 9090 | AD80: =(INDEX([64]Paraipaba!$B$2:$AP$491,MATCH($A$70,[64]Paraipaba!$B$2:$B$491,0),MATCH($C80,[64]Paraipaba!$B$2:$AP$2,0))*1)*(BE42) -> 5963 | AE80: =(INDEX('[64]São Gonçalo do Amarante'!$B$2:$AP$491,MATCH($A$70,'[64]São Gonçalo do Amarante'!$B$2:$B$491,0),MATCH($C80,'[64]São Gonçalo do Amarante'!$B$2:$AP$2,0))*1)*(BF42) -> 16010 | AF80: =(INDEX('[64]São Luís do Curu'!$B$2:$AP$491,MATCH($A$70,'[64]São Luís do Curu'!$B$2:$B$491,0),MATCH($C80,'[64]São Luís do Curu'!$B$2:$AP$2,0))*1)*(BG42) -> 3473 | AG80: =(INDEX([64]Trairi!$B$2:$AP$491,MATCH($A$70,[64]Trairi!$B$2:$B$491,0),MATCH($C80,[64]Trairi!$B$2:$AP$2,0))*1)*(BH42) -> 7149 | AH80: =(INDEX('[64]Santana do Cariri'!$B$2:$AP$491,MATCH($A$70,'[64]Santana do Cariri'!$B$2:$B$491,0),MATCH($C80,'[64]Santana do Cariri'!$B$2:$AP$2,0))*1)*(BI42) -> 2609
B81: 81 | C81: 2032 | D81: Nº Ligações Totais - esgoto | E81: =SUMIFS($K81:$AH81,$K$18:$AH$18,E$4) -> 464307 | F81: 1084478 | G81: 0 | H81: 0 | I81: 0 | K81: =(INDEX([64]Aquiraz!$B$2:$AP$492,MATCH($A$70,[64]Aquiraz!$B$2:$B$492,0),MATCH($C81,[64]Aquiraz!$B$2:$AP$2,0))*1)*(AL43) -> 14555 | L81: =(INDEX([64]Barbalha!$B$2:$AP$491,MATCH($A$70,[64]Barbalha!$B$2:$B$491,0),MATCH($C81,[64]Barbalha!$B$2:$AP$2,0))*1)*(AM43) -> 16713 | M81: =(INDEX([64]Cascavel!$B$2:$AP$491,MATCH($A$70,[64]Cascavel!$B$2:$B$491,0),MATCH($C81,[64]Cascavel!$B$2:$AP$2,0))*1)*(AN43) -> 20973 | N81: =(INDEX([64]Caucaia!$B$2:$AP$491,MATCH($A$70,[64]Caucaia!$B$2:$B$491,0),MATCH($C81,[64]Caucaia!$B$2:$AP$2,0))*1)*(AO43) -> 136172 | O81: =(INDEX([64]Chorozinho!$B$2:$AP$491,MATCH($A$70,[64]Chorozinho!$B$2:$B$491,0),MATCH($C81,[64]Chorozinho!$B$2:$AP$2,0))*1)*(AP43) -> 6196 | P81: =(INDEX([64]Eusébio!$B$2:$AP$491,MATCH($A$70,[64]Eusébio!$B$2:$B$491,0),MATCH($C81,[64]Eusébio!$B$2:$AP$2,0))*1)*(AQ43) -> 27523 | Q81: =(INDEX('[64]Farias Brito'!$B$2:$AP$491,MATCH($A$70,'[64]Farias Brito'!$B$2:$B$491,0),MATCH($C81,'[64]Farias Brito'!$B$2:$AP$2,0))*1)*(AR43) -> 3493 | R81: =(INDEX([64]Fortaleza!$B$2:$AP$427,MATCH($A$70,[64]Fortaleza!$B$2:$B$427,0),MATCH($C81,[64]Fortaleza!$B$2:$AP$2,0))*1)*(AS43) -> 904683 | S81: =(INDEX([64]Guaiúba!$B$2:$AP$491,MATCH($A$70,[64]Guaiúba!$B$2:$B$491,0),MATCH($C81,[64]Guaiúba!$B$2:$AP$2,0))*1)*(AT43) -> 6395 | T81: =(INDEX([64]Horizonte!$B$2:$AP$491,MATCH($A$70,[64]Horizonte!$B$2:$B$491,0),MATCH($C81,[64]Horizonte!$B$2:$AP$2,0))*1)*(AU43) -> 27883 | U81: =(INDEX([64]Itaitinga!$B$2:$AP$491,MATCH($A$70,[64]Itaitinga!$B$2:$B$491,0),MATCH($C81,[64]Itaitinga!$B$2:$AP$2,0))*1)*(AV43) -> 25479 | V81: =(INDEX('[64]Juazeiro do Norte'!$B$2:$AP$491,MATCH($A$70,'[64]Juazeiro do Norte'!$B$2:$B$491,0),MATCH($C81,'[64]Juazeiro do Norte'!$B$2:$AP$2,0))*1)*(AW43) -> 114878 | W81: =(INDEX([64]Maracanaú!$B$2:$AP$491,MATCH($A$70,[64]Maracanaú!$B$2:$B$491,0),MATCH($C81,[64]Maracanaú!$B$2:$AP$2,0))*1)*(AX43) -> 97813 | X81: =(INDEX([64]Maranguape!$B$2:$AP$491,MATCH($A$70,[64]Maranguape!$B$2:$B$491,0),MATCH($C81,[64]Maranguape!$B$2:$AP$2,0))*1)*(AY43) -> 35125 | Y81: =(INDEX('[64]Missão Velha'!$B$2:$AP$491,MATCH($A$70,'[64]Missão Velha'!$B$2:$B$491,0),MATCH($C81,'[64]Missão Velha'!$B$2:$AP$2,0))*1)*(AZ43) -> 6378 | Z81: =(INDEX('[64]Nova Olinda'!$B$2:$AP$491,MATCH($A$70,'[64]Nova Olinda'!$B$2:$B$491,0),MATCH($C81,'[64]Nova Olinda'!$B$2:$AP$2,0))*1)*(BA43) -> 5973 | AA81: =(INDEX([64]Pacajus!$B$2:$AP$491,MATCH($A$70,[64]Pacajus!$B$2:$B$491,0),MATCH($C81,[64]Pacajus!$B$2:$AP$2,0))*1)*(BB43) -> 26116 | AB81: =(INDEX([64]Pacatuba!$B$2:$AP$491,MATCH($A$70,[64]Pacatuba!$B$2:$B$491,0),MATCH($C81,[64]Pacatuba!$B$2:$AP$2,0))*1)*(BC43) -> 26131 | AC81: =(INDEX([64]Paracuru!$B$2:$AP$491,MATCH($A$70,[64]Paracuru!$B$2:$B$491,0),MATCH($C81,[64]Paracuru!$B$2:$AP$2,0))*1)*(BD43) -> 9683 | AD81: =(INDEX([64]Paraipaba!$B$2:$AP$491,MATCH($A$70,[64]Paraipaba!$B$2:$B$491,0),MATCH($C81,[64]Paraipaba!$B$2:$AP$2,0))*1)*(BE43) -> 6032 | AE81: =(INDEX('[64]São Gonçalo do Amarante'!$B$2:$AP$491,MATCH($A$70,'[64]São Gonçalo do Amarante'!$B$2:$B$491,0),MATCH($C81,'[64]São Gonçalo do Amarante'!$B$2:$AP$2,0))*1)*(BF43) -> 16550 | AF81: =(INDEX('[64]São Luís do Curu'!$B$2:$AP$491,MATCH($A$70,'[64]São Luís do Curu'!$B$2:$B$491,0),MATCH($C81,'[64]São Luís do Curu'!$B$2:$AP$2,0))*1)*(BG43) -> 3641 | AG81: =(INDEX([64]Trairi!$B$2:$AP$491,MATCH($A$70,[64]Trairi!$B$2:$B$491,0),MATCH($C81,[64]Trairi!$B$2:$AP$2,0))*1)*(BH43) -> 7717 | AH81: =(INDEX('[64]Santana do Cariri'!$B$2:$AP$491,MATCH($A$70,'[64]Santana do Cariri'!$B$2:$B$491,0),MATCH($C81,'[64]Santana do Cariri'!$B$2:$AP$2,0))*1)*(BI43) -> 2683
B82: 82 | C82: 2033 | D82: Nº Ligações Totais - esgoto | E82: 487071 | F82: 1100980 | G82: 0 | H82: 0 | I82: 0 | K82: =(INDEX([64]Aquiraz!$B$2:$AP$492,MATCH($A$70,[64]Aquiraz!$B$2:$B$492,0),MATCH($C82,[64]Aquiraz!$B$2:$AP$2,0))*1)*(AL44) -> 15039 | L82: =(INDEX([64]Barbalha!$B$2:$AP$491,MATCH($A$70,[64]Barbalha!$B$2:$B$491,0),MATCH($C82,[64]Barbalha!$B$2:$AP$2,0))*1)*(AM44) -> 17448 | M82: =(INDEX([64]Cascavel!$B$2:$AP$491,MATCH($A$70,[64]Cascavel!$B$2:$B$491,0),MATCH($C82,[64]Cascavel!$B$2:$AP$2,0))*1)*(AN44) -> 23012 | N82: =(INDEX([64]Caucaia!$B$2:$AP$491,MATCH($A$70,[64]Caucaia!$B$2:$B$491,0),MATCH($C82,[64]Caucaia!$B$2:$AP$2,0))*1)*(AO44) -> 143043 | O82: =(INDEX([64]Chorozinho!$B$2:$AP$491,MATCH($A$70,[64]Chorozinho!$B$2:$B$491,0),MATCH($C82,[64]Chorozinho!$B$2:$AP$2,0))*1)*(AP44) -> 6878 | P82: =(INDEX([64]Eusébio!$B$2:$AP$491,MATCH($A$70,[64]Eusébio!$B$2:$B$491,0),MATCH($C82,[64]Eusébio!$B$2:$AP$2,0))*1)*(AQ44) -> 29803 | Q82: =(INDEX('[64]Farias Brito'!$B$2:$AP$491,MATCH($A$70,'[64]Farias Brito'!$B$2:$B$491,0),MATCH($C82,'[64]Farias Brito'!$B$2:$AP$2,0))*1)*(AR44) -> 3795 | R82: =(INDEX([64]Fortaleza!$B$2:$AP$427,MATCH($A$70,[64]Fortaleza!$B$2:$B$427,0),MATCH($C82,[64]Fortaleza!$B$2:$AP$2,0))*1)*(AS44) -> 912380 | S82: =(INDEX([64]Guaiúba!$B$2:$AP$491,MATCH($A$70,[64]Guaiúba!$B$2:$B$491,0),MATCH($C82,[64]Guaiúba!$B$2:$AP$2,0))*1)*(AT44) -> 6744 | T82: =(INDEX([64]Horizonte!$B$2:$AP$491,MATCH($A$70,[64]Horizonte!$B$2:$B$491,0),MATCH($C82,[64]Horizonte!$B$2:$AP$2,0))*1)*(AU44) -> 29309 | U82: =(INDEX([64]Itaitinga!$B$2:$AP$491,MATCH($A$70,[64]Itaitinga!$B$2:$B$491,0),MATCH($C82,[64]Itaitinga!$B$2:$AP$2,0))*1)*(AV44) -> 27731 | V82: =(INDEX('[64]Juazeiro do Norte'!$B$2:$AP$491,MATCH($A$70,'[64]Juazeiro do Norte'!$B$2:$B$491,0),MATCH($C82,'[64]Juazeiro do Norte'!$B$2:$AP$2,0))*1)*(AW44) -> 115754 | W82: =(INDEX([64]Maracanaú!$B$2:$AP$491,MATCH($A$70,[64]Maracanaú!$B$2:$B$491,0),MATCH($C82,[64]Maracanaú!$B$2:$AP$2,0))*1)*(AX44) -> 102894 | X82: =(INDEX([64]Maranguape!$B$2:$AP$491,MATCH($A$70,[64]Maranguape!$B$2:$B$491,0),MATCH($C82,[64]Maranguape!$B$2:$AP$2,0))*1)*(AY44) -> 36615 | Y82: =(INDEX('[64]Missão Velha'!$B$2:$AP$491,MATCH($A$70,'[64]Missão Velha'!$B$2:$B$491,0),MATCH($C82,'[64]Missão Velha'!$B$2:$AP$2,0))*1)*(AZ44) -> 6951 | Z82: =(INDEX('[64]Nova Olinda'!$B$2:$AP$491,MATCH($A$70,'[64]Nova Olinda'!$B$2:$B$491,0),MATCH($C82,'[64]Nova Olinda'!$B$2:$AP$2,0))*1)*(BA44) -> 6619 | AA82: =(INDEX([64]Pacajus!$B$2:$AP$491,MATCH($A$70,[64]Pacajus!$B$2:$B$491,0),MATCH($C82,[64]Pacajus!$B$2:$AP$2,0))*1)*(BB44) -> 28753 | AB82: =(INDEX([64]Pacatuba!$B$2:$AP$491,MATCH($A$70,[64]Pacatuba!$B$2:$B$491,0),MATCH($C82,[64]Pacatuba!$B$2:$AP$2,0))*1)*(BC44) -> 26970 | AC82: =(INDEX([64]Paracuru!$B$2:$AP$491,MATCH($A$70,[64]Paracuru!$B$2:$B$491,0),MATCH($C82,[64]Paracuru!$B$2:$AP$2,0))*1)*(BD44) -> 10276 | AD82: =(INDEX([64]Paraipaba!$B$2:$AP$491,MATCH($A$70,[64]Paraipaba!$B$2:$B$491,0),MATCH($C82,[64]Paraipaba!$B$2:$AP$2,0))*1)*(BE44) -> 6100 | AE82: =(INDEX('[64]São Gonçalo do Amarante'!$B$2:$AP$491,MATCH($A$70,'[64]São Gonçalo do Amarante'!$B$2:$B$491,0),MATCH($C82,'[64]São Gonçalo do Amarante'!$B$2:$AP$2,0))*1)*(BF44) -> 17086 | AF82: =(INDEX('[64]São Luís do Curu'!$B$2:$AP$491,MATCH($A$70,'[64]São Luís do Curu'!$B$2:$B$491,0),MATCH($C82,'[64]São Luís do Curu'!$B$2:$AP$2,0))*1)*(BG44) -> 3810 | AG82: =(INDEX([64]Trairi!$B$2:$AP$491,MATCH($A$70,[64]Trairi!$B$2:$B$491,0),MATCH($C82,[64]Trairi!$B$2:$AP$2,0))*1)*(BH44) -> 8285 | AH82: =(INDEX('[64]Santana do Cariri'!$B$2:$AP$491,MATCH($A$70,'[64]Santana do Cariri'!$B$2:$B$491,0),MATCH($C82,'[64]Santana do Cariri'!$B$2:$AP$2,0))*1)*(BI44) -> 2756
B83: 83 | C83: 2034 | D83: Nº Ligações Totais - esgoto | E83: 492535 | F83: 1112416 | G83: 0 | H83: 0 | I83: 0 | K83: =(INDEX([64]Aquiraz!$B$2:$AP$492,MATCH($A$70,[64]Aquiraz!$B$2:$B$492,0),MATCH($C83,[64]Aquiraz!$B$2:$AP$2,0))*1)*(AL45) -> 15224 | L83: =(INDEX([64]Barbalha!$B$2:$AP$491,MATCH($A$70,[64]Barbalha!$B$2:$B$491,0),MATCH($C83,[64]Barbalha!$B$2:$AP$2,0))*1)*(AM45) -> 17638 | M83: =(INDEX([64]Cascavel!$B$2:$AP$491,MATCH($A$70,[64]Cascavel!$B$2:$B$491,0),MATCH($C83,[64]Cascavel!$B$2:$AP$2,0))*1)*(AN45) -> 23257 | N83: =(INDEX([64]Caucaia!$B$2:$AP$491,MATCH($A$70,[64]Caucaia!$B$2:$B$491,0),MATCH($C83,[64]Caucaia!$B$2:$AP$2,0))*1)*(AO45) -> 144693 | O83: =(INDEX([64]Chorozinho!$B$2:$AP$491,MATCH($A$70,[64]Chorozinho!$B$2:$B$491,0),MATCH($C83,[64]Chorozinho!$B$2:$AP$2,0))*1)*(AP45) -> 6963 | P83: =(INDEX([64]Eusébio!$B$2:$AP$491,MATCH($A$70,[64]Eusébio!$B$2:$B$491,0),MATCH($C83,[64]Eusébio!$B$2:$AP$2,0))*1)*(AQ45) -> 30142 | Q83: =(INDEX('[64]Farias Brito'!$B$2:$AP$491,MATCH($A$70,'[64]Farias Brito'!$B$2:$B$491,0),MATCH($C83,'[64]Farias Brito'!$B$2:$AP$2,0))*1)*(AR45) -> 3825 | R83: =(INDEX([64]Fortaleza!$B$2:$AP$427,MATCH($A$70,[64]Fortaleza!$B$2:$B$427,0),MATCH($C83,[64]Fortaleza!$B$2:$AP$2,0))*1)*(AS45) -> 921701 | S83: =(INDEX([64]Guaiúba!$B$2:$AP$491,MATCH($A$70,[64]Guaiúba!$B$2:$B$491,0),MATCH($C83,[64]Guaiúba!$B$2:$AP$2,0))*1)*(AT45) -> 6816 | T83: =(INDEX([64]Horizonte!$B$2:$AP$491,MATCH($A$70,[64]Horizonte!$B$2:$B$491,0),MATCH($C83,[64]Horizonte!$B$2:$AP$2,0))*1)*(AU45) -> 29658 | U83: =(INDEX([64]Itaitinga!$B$2:$AP$491,MATCH($A$70,[64]Itaitinga!$B$2:$B$491,0),MATCH($C83,[64]Itaitinga!$B$2:$AP$2,0))*1)*(AV45) -> 28093 | V83: =(INDEX('[64]Juazeiro do Norte'!$B$2:$AP$491,MATCH($A$70,'[64]Juazeiro do Norte'!$B$2:$B$491,0),MATCH($C83,'[64]Juazeiro do Norte'!$B$2:$AP$2,0))*1)*(AW45) -> 116992 | W83: =(INDEX([64]Maracanaú!$B$2:$AP$491,MATCH($A$70,[64]Maracanaú!$B$2:$B$491,0),MATCH($C83,[64]Maracanaú!$B$2:$AP$2,0))*1)*(AX45) -> 103996 | X83: =(INDEX([64]Maranguape!$B$2:$AP$491,MATCH($A$70,[64]Maranguape!$B$2:$B$491,0),MATCH($C83,[64]Maranguape!$B$2:$AP$2,0))*1)*(AY45) -> 37051 | Y83: =(INDEX('[64]Missão Velha'!$B$2:$AP$491,MATCH($A$70,'[64]Missão Velha'!$B$2:$B$491,0),MATCH($C83,'[64]Missão Velha'!$B$2:$AP$2,0))*1)*(AZ45) -> 7028 | Z83: =(INDEX('[64]Nova Olinda'!$B$2:$AP$491,MATCH($A$70,'[64]Nova Olinda'!$B$2:$B$491,0),MATCH($C83,'[64]Nova Olinda'!$B$2:$AP$2,0))*1)*(BA45) -> 6715 | AA83: =(INDEX([64]Pacajus!$B$2:$AP$491,MATCH($A$70,[64]Pacajus!$B$2:$B$491,0),MATCH($C83,[64]Pacajus!$B$2:$AP$2,0))*1)*(BB45) -> 29092 | AB83: =(INDEX([64]Pacatuba!$B$2:$AP$491,MATCH($A$70,[64]Pacatuba!$B$2:$B$491,0),MATCH($C83,[64]Pacatuba!$B$2:$AP$2,0))*1)*(BC45) -> 27267 | AC83: =(INDEX([64]Paracuru!$B$2:$AP$491,MATCH($A$70,[64]Paracuru!$B$2:$B$491,0),MATCH($C83,[64]Paracuru!$B$2:$AP$2,0))*1)*(BD45) -> 10390 | AD83: =(INDEX([64]Paraipaba!$B$2:$AP$491,MATCH($A$70,[64]Paraipaba!$B$2:$B$491,0),MATCH($C83,[64]Paraipaba!$B$2:$AP$2,0))*1)*(BE45) -> 6152 | AE83: =(INDEX('[64]São Gonçalo do Amarante'!$B$2:$AP$491,MATCH($A$70,'[64]São Gonçalo do Amarante'!$B$2:$B$491,0),MATCH($C83,'[64]São Gonçalo do Amarante'!$B$2:$AP$2,0))*1)*(BF45) -> 17244 | AF83: =(INDEX('[64]São Luís do Curu'!$B$2:$AP$491,MATCH($A$70,'[64]São Luís do Curu'!$B$2:$B$491,0),MATCH($C83,'[64]São Luís do Curu'!$B$2:$AP$2,0))*1)*(BG45) -> 3845 | AG83: =(INDEX([64]Trairi!$B$2:$AP$491,MATCH($A$70,[64]Trairi!$B$2:$B$491,0),MATCH($C83,[64]Trairi!$B$2:$AP$2,0))*1)*(BH45) -> 8391 | AH83: =(INDEX('[64]Santana do Cariri'!$B$2:$AP$491,MATCH($A$70,'[64]Santana do Cariri'!$B$2:$B$491,0),MATCH($C83,'[64]Santana do Cariri'!$B$2:$AP$2,0))*1)*(BI45) -> 2778
B84: 84 | C84: 2035 | D84: Nº Ligações Totais - esgoto | E84: 497816 | F84: 1123530 | G84: 0 | H84: 0 | I84: 0 | K84: =(INDEX([64]Aquiraz!$B$2:$AP$492,MATCH($A$70,[64]Aquiraz!$B$2:$B$492,0),MATCH($C84,[64]Aquiraz!$B$2:$AP$2,0))*1)*(AL46) -> 15401 | L84: =(INDEX([64]Barbalha!$B$2:$AP$491,MATCH($A$70,[64]Barbalha!$B$2:$B$491,0),MATCH($C84,[64]Barbalha!$B$2:$AP$2,0))*1)*(AM46) -> 17821 | M84: =(INDEX([64]Cascavel!$B$2:$AP$491,MATCH($A$70,[64]Cascavel!$B$2:$B$491,0),MATCH($C84,[64]Cascavel!$B$2:$AP$2,0))*1)*(AN46) -> 23496 | N84: =(INDEX([64]Caucaia!$B$2:$AP$491,MATCH($A$70,[64]Caucaia!$B$2:$B$491,0),MATCH($C84,[64]Caucaia!$B$2:$AP$2,0))*1)*(AO46) -> 146284 | O84: =(INDEX([64]Chorozinho!$B$2:$AP$491,MATCH($A$70,[64]Chorozinho!$B$2:$B$491,0),MATCH($C84,[64]Chorozinho!$B$2:$AP$2,0))*1)*(AP46) -> 7044 | P84: =(INDEX([64]Eusébio!$B$2:$AP$491,MATCH($A$70,[64]Eusébio!$B$2:$B$491,0),MATCH($C84,[64]Eusébio!$B$2:$AP$2,0))*1)*(AQ46) -> 30468 | Q84: =(INDEX('[64]Farias Brito'!$B$2:$AP$491,MATCH($A$70,'[64]Farias Brito'!$B$2:$B$491,0),MATCH($C84,'[64]Farias Brito'!$B$2:$AP$2,0))*1)*(AR46) -> 3856 | R84: =(INDEX([64]Fortaleza!$B$2:$AP$427,MATCH($A$70,[64]Fortaleza!$B$2:$B$427,0),MATCH($C84,[64]Fortaleza!$B$2:$AP$2,0))*1)*(AS46) -> 930774 | S84: =(INDEX([64]Guaiúba!$B$2:$AP$491,MATCH($A$70,[64]Guaiúba!$B$2:$B$491,0),MATCH($C84,[64]Guaiúba!$B$2:$AP$2,0))*1)*(AT46) -> 6885 | T84: =(INDEX([64]Horizonte!$B$2:$AP$491,MATCH($A$70,[64]Horizonte!$B$2:$B$491,0),MATCH($C84,[64]Horizonte!$B$2:$AP$2,0))*1)*(AU46) -> 29993 | U84: =(INDEX([64]Itaitinga!$B$2:$AP$491,MATCH($A$70,[64]Itaitinga!$B$2:$B$491,0),MATCH($C84,[64]Itaitinga!$B$2:$AP$2,0))*1)*(AV46) -> 28440 | V84: =(INDEX('[64]Juazeiro do Norte'!$B$2:$AP$491,MATCH($A$70,'[64]Juazeiro do Norte'!$B$2:$B$491,0),MATCH($C84,'[64]Juazeiro do Norte'!$B$2:$AP$2,0))*1)*(AW46) -> 118192 | W84: =(INDEX([64]Maracanaú!$B$2:$AP$491,MATCH($A$70,[64]Maracanaú!$B$2:$B$491,0),MATCH($C84,[64]Maracanaú!$B$2:$AP$2,0))*1)*(AX46) -> 105068 | X84: =(INDEX([64]Maranguape!$B$2:$AP$491,MATCH($A$70,[64]Maranguape!$B$2:$B$491,0),MATCH($C84,[64]Maranguape!$B$2:$AP$2,0))*1)*(AY46) -> 37471 | Y84: =(INDEX('[64]Missão Velha'!$B$2:$AP$491,MATCH($A$70,'[64]Missão Velha'!$B$2:$B$491,0),MATCH($C84,'[64]Missão Velha'!$B$2:$AP$2,0))*1)*(AZ46) -> 7103 | Z84: =(INDEX('[64]Nova Olinda'!$B$2:$AP$491,MATCH($A$70,'[64]Nova Olinda'!$B$2:$B$491,0),MATCH($C84,'[64]Nova Olinda'!$B$2:$AP$2,0))*1)*(BA46) -> 6807 | AA84: =(INDEX([64]Pacajus!$B$2:$AP$491,MATCH($A$70,[64]Pacajus!$B$2:$B$491,0),MATCH($C84,[64]Pacajus!$B$2:$AP$2,0))*1)*(BB46) -> 29417 | AB84: =(INDEX([64]Pacatuba!$B$2:$AP$491,MATCH($A$70,[64]Pacatuba!$B$2:$B$491,0),MATCH($C84,[64]Pacatuba!$B$2:$AP$2,0))*1)*(BC46) -> 27554 | AC84: =(INDEX([64]Paracuru!$B$2:$AP$491,MATCH($A$70,[64]Paracuru!$B$2:$B$491,0),MATCH($C84,[64]Paracuru!$B$2:$AP$2,0))*1)*(BD46) -> 10500 | AD84: =(INDEX([64]Paraipaba!$B$2:$AP$491,MATCH($A$70,[64]Paraipaba!$B$2:$B$491,0),MATCH($C84,[64]Paraipaba!$B$2:$AP$2,0))*1)*(BE46) -> 6203 | AE84: =(INDEX('[64]São Gonçalo do Amarante'!$B$2:$AP$491,MATCH($A$70,'[64]São Gonçalo do Amarante'!$B$2:$B$491,0),MATCH($C84,'[64]São Gonçalo do Amarante'!$B$2:$AP$2,0))*1)*(BF46) -> 17399 | AF84: =(INDEX('[64]São Luís do Curu'!$B$2:$AP$491,MATCH($A$70,'[64]São Luís do Curu'!$B$2:$B$491,0),MATCH($C84,'[64]São Luís do Curu'!$B$2:$AP$2,0))*1)*(BG46) -> 3880 | AG84: =(INDEX([64]Trairi!$B$2:$AP$491,MATCH($A$70,[64]Trairi!$B$2:$B$491,0),MATCH($C84,[64]Trairi!$B$2:$AP$2,0))*1)*(BH46) -> 8490 | AH84: =(INDEX('[64]Santana do Cariri'!$B$2:$AP$491,MATCH($A$70,'[64]Santana do Cariri'!$B$2:$B$491,0),MATCH($C84,'[64]Santana do Cariri'!$B$2:$AP$2,0))*1)*(BI46) -> 2800
B85: 85 | C85: 2036 | D85: Nº Ligações Totais - esgoto | E85: 502915 | F85: 1134308 | G85: 0 | H85: 0 | I85: 0 | K85: =(INDEX([64]Aquiraz!$B$2:$AP$492,MATCH($A$70,[64]Aquiraz!$B$2:$B$492,0),MATCH($C85,[64]Aquiraz!$B$2:$AP$2,0))*1)*(AL47) -> 15571 | L85: =(INDEX([64]Barbalha!$B$2:$AP$491,MATCH($A$70,[64]Barbalha!$B$2:$B$491,0),MATCH($C85,[64]Barbalha!$B$2:$AP$2,0))*1)*(AM47) -> 17997 | M85: =(INDEX([64]Cascavel!$B$2:$AP$491,MATCH($A$70,[64]Cascavel!$B$2:$B$491,0),MATCH($C85,[64]Cascavel!$B$2:$AP$2,0))*1)*(AN47) -> 23726 | N85: =(INDEX([64]Caucaia!$B$2:$AP$491,MATCH($A$70,[64]Caucaia!$B$2:$B$491,0),MATCH($C85,[64]Caucaia!$B$2:$AP$2,0))*1)*(AO47) -> 147811 | O85: =(INDEX([64]Chorozinho!$B$2:$AP$491,MATCH($A$70,[64]Chorozinho!$B$2:$B$491,0),MATCH($C85,[64]Chorozinho!$B$2:$AP$2,0))*1)*(AP47) -> 7122 | P85: =(INDEX([64]Eusébio!$B$2:$AP$491,MATCH($A$70,[64]Eusébio!$B$2:$B$491,0),MATCH($C85,[64]Eusébio!$B$2:$AP$2,0))*1)*(AQ47) -> 30782 | Q85: =(INDEX('[64]Farias Brito'!$B$2:$AP$491,MATCH($A$70,'[64]Farias Brito'!$B$2:$B$491,0),MATCH($C85,'[64]Farias Brito'!$B$2:$AP$2,0))*1)*(AR47) -> 3887 | R85: =(INDEX([64]Fortaleza!$B$2:$AP$427,MATCH($A$70,[64]Fortaleza!$B$2:$B$427,0),MATCH($C85,[64]Fortaleza!$B$2:$AP$2,0))*1)*(AS47) -> 939595 | S85: =(INDEX([64]Guaiúba!$B$2:$AP$491,MATCH($A$70,[64]Guaiúba!$B$2:$B$491,0),MATCH($C85,[64]Guaiúba!$B$2:$AP$2,0))*1)*(AT47) -> 6953 | T85: =(INDEX([64]Horizonte!$B$2:$AP$491,MATCH($A$70,[64]Horizonte!$B$2:$B$491,0),MATCH($C85,[64]Horizonte!$B$2:$AP$2,0))*1)*(AU47) -> 30313 | U85: =(INDEX([64]Itaitinga!$B$2:$AP$491,MATCH($A$70,[64]Itaitinga!$B$2:$B$491,0),MATCH($C85,[64]Itaitinga!$B$2:$AP$2,0))*1)*(AV47) -> 28773 | V85: =(INDEX('[64]Juazeiro do Norte'!$B$2:$AP$491,MATCH($A$70,'[64]Juazeiro do Norte'!$B$2:$B$491,0),MATCH($C85,'[64]Juazeiro do Norte'!$B$2:$AP$2,0))*1)*(AW47) -> 119354 | W85: =(INDEX([64]Maracanaú!$B$2:$AP$491,MATCH($A$70,[64]Maracanaú!$B$2:$B$491,0),MATCH($C85,[64]Maracanaú!$B$2:$AP$2,0))*1)*(AX47) -> 106111 | X85: =(INDEX([64]Maranguape!$B$2:$AP$491,MATCH($A$70,[64]Maranguape!$B$2:$B$491,0),MATCH($C85,[64]Maranguape!$B$2:$AP$2,0))*1)*(AY47) -> 37874 | Y85: =(INDEX('[64]Missão Velha'!$B$2:$AP$491,MATCH($A$70,'[64]Missão Velha'!$B$2:$B$491,0),MATCH($C85,'[64]Missão Velha'!$B$2:$AP$2,0))*1)*(AZ47) -> 7175 | Z85: =(INDEX('[64]Nova Olinda'!$B$2:$AP$491,MATCH($A$70,'[64]Nova Olinda'!$B$2:$B$491,0),MATCH($C85,'[64]Nova Olinda'!$B$2:$AP$2,0))*1)*(BA47) -> 6894 | AA85: =(INDEX([64]Pacajus!$B$2:$AP$491,MATCH($A$70,[64]Pacajus!$B$2:$B$491,0),MATCH($C85,[64]Pacajus!$B$2:$AP$2,0))*1)*(BB47) -> 29729 | AB85: =(INDEX([64]Pacatuba!$B$2:$AP$491,MATCH($A$70,[64]Pacatuba!$B$2:$B$491,0),MATCH($C85,[64]Pacatuba!$B$2:$AP$2,0))*1)*(BC47) -> 27832 | AC85: =(INDEX([64]Paracuru!$B$2:$AP$491,MATCH($A$70,[64]Paracuru!$B$2:$B$491,0),MATCH($C85,[64]Paracuru!$B$2:$AP$2,0))*1)*(BD47) -> 10605 | AD85: =(INDEX([64]Paraipaba!$B$2:$AP$491,MATCH($A$70,[64]Paraipaba!$B$2:$B$491,0),MATCH($C85,[64]Paraipaba!$B$2:$AP$2,0))*1)*(BE47) -> 6251 | AE85: =(INDEX('[64]São Gonçalo do Amarante'!$B$2:$AP$491,MATCH($A$70,'[64]São Gonçalo do Amarante'!$B$2:$B$491,0),MATCH($C85,'[64]São Gonçalo do Amarante'!$B$2:$AP$2,0))*1)*(BF47) -> 17546 | AF85: =(INDEX('[64]São Luís do Curu'!$B$2:$AP$491,MATCH($A$70,'[64]São Luís do Curu'!$B$2:$B$491,0),MATCH($C85,'[64]São Luís do Curu'!$B$2:$AP$2,0))*1)*(BG47) -> 3914 | AG85: =(INDEX([64]Trairi!$B$2:$AP$491,MATCH($A$70,[64]Trairi!$B$2:$B$491,0),MATCH($C85,[64]Trairi!$B$2:$AP$2,0))*1)*(BH47) -> 8586 | AH85: =(INDEX('[64]Santana do Cariri'!$B$2:$AP$491,MATCH($A$70,'[64]Santana do Cariri'!$B$2:$B$491,0),MATCH($C85,'[64]Santana do Cariri'!$B$2:$AP$2,0))*1)*(BI47) -> 2822
B86: 86 | C86: 2037 | D86: Nº Ligações Totais - esgoto | E86: 507821 | F86: 1144744 | G86: 0 | H86: 0 | I86: 0 | K86: =(INDEX([64]Aquiraz!$B$2:$AP$492,MATCH($A$70,[64]Aquiraz!$B$2:$B$492,0),MATCH($C86,[64]Aquiraz!$B$2:$AP$2,0))*1)*(AL48) -> 15732 | L86: =(INDEX([64]Barbalha!$B$2:$AP$491,MATCH($A$70,[64]Barbalha!$B$2:$B$491,0),MATCH($C86,[64]Barbalha!$B$2:$AP$2,0))*1)*(AM48) -> 18167 | M86: =(INDEX([64]Cascavel!$B$2:$AP$491,MATCH($A$70,[64]Cascavel!$B$2:$B$491,0),MATCH($C86,[64]Cascavel!$B$2:$AP$2,0))*1)*(AN48) -> 23950 | N86: =(INDEX([64]Caucaia!$B$2:$AP$491,MATCH($A$70,[64]Caucaia!$B$2:$B$491,0),MATCH($C86,[64]Caucaia!$B$2:$AP$2,0))*1)*(AO48) -> 149274 | O86: =(INDEX([64]Chorozinho!$B$2:$AP$491,MATCH($A$70,[64]Chorozinho!$B$2:$B$491,0),MATCH($C86,[64]Chorozinho!$B$2:$AP$2,0))*1)*(AP48) -> 7195 | P86: =(INDEX([64]Eusébio!$B$2:$AP$491,MATCH($A$70,[64]Eusébio!$B$2:$B$491,0),MATCH($C86,[64]Eusébio!$B$2:$AP$2,0))*1)*(AQ48) -> 31083 | Q86: =(INDEX('[64]Farias Brito'!$B$2:$AP$491,MATCH($A$70,'[64]Farias Brito'!$B$2:$B$491,0),MATCH($C86,'[64]Farias Brito'!$B$2:$AP$2,0))*1)*(AR48) -> 3918 | R86: =(INDEX([64]Fortaleza!$B$2:$AP$427,MATCH($A$70,[64]Fortaleza!$B$2:$B$427,0),MATCH($C86,[64]Fortaleza!$B$2:$AP$2,0))*1)*(AS48) -> 948157 | S86: =(INDEX([64]Guaiúba!$B$2:$AP$491,MATCH($A$70,[64]Guaiúba!$B$2:$B$491,0),MATCH($C86,[64]Guaiúba!$B$2:$AP$2,0))*1)*(AT48) -> 7017 | T86: =(INDEX([64]Horizonte!$B$2:$AP$491,MATCH($A$70,[64]Horizonte!$B$2:$B$491,0),MATCH($C86,[64]Horizonte!$B$2:$AP$2,0))*1)*(AU48) -> 30620 | U86: =(INDEX([64]Itaitinga!$B$2:$AP$491,MATCH($A$70,[64]Itaitinga!$B$2:$B$491,0),MATCH($C86,[64]Itaitinga!$B$2:$AP$2,0))*1)*(AV48) -> 29094 | V86: =(INDEX('[64]Juazeiro do Norte'!$B$2:$AP$491,MATCH($A$70,'[64]Juazeiro do Norte'!$B$2:$B$491,0),MATCH($C86,'[64]Juazeiro do Norte'!$B$2:$AP$2,0))*1)*(AW48) -> 120476 | W86: =(INDEX([64]Maracanaú!$B$2:$AP$491,MATCH($A$70,[64]Maracanaú!$B$2:$B$491,0),MATCH($C86,[64]Maracanaú!$B$2:$AP$2,0))*1)*(AX48) -> 107123 | X86: =(INDEX([64]Maranguape!$B$2:$AP$491,MATCH($A$70,[64]Maranguape!$B$2:$B$491,0),MATCH($C86,[64]Maranguape!$B$2:$AP$2,0))*1)*(AY48) -> 38258 | Y86: =(INDEX('[64]Missão Velha'!$B$2:$AP$491,MATCH($A$70,'[64]Missão Velha'!$B$2:$B$491,0),MATCH($C86,'[64]Missão Velha'!$B$2:$AP$2,0))*1)*(AZ48) -> 7244 | Z86: =(INDEX('[64]Nova Olinda'!$B$2:$AP$491,MATCH($A$70,'[64]Nova Olinda'!$B$2:$B$491,0),MATCH($C86,'[64]Nova Olinda'!$B$2:$AP$2,0))*1)*(BA48) -> 6976 | AA86: =(INDEX([64]Pacajus!$B$2:$AP$491,MATCH($A$70,[64]Pacajus!$B$2:$B$491,0),MATCH($C86,[64]Pacajus!$B$2:$AP$2,0))*1)*(BB48) -> 30027 | AB86: =(INDEX([64]Pacatuba!$B$2:$AP$491,MATCH($A$70,[64]Pacatuba!$B$2:$B$491,0),MATCH($C86,[64]Pacatuba!$B$2:$AP$2,0))*1)*(BC48) -> 28098 | AC86: =(INDEX([64]Paracuru!$B$2:$AP$491,MATCH($A$70,[64]Paracuru!$B$2:$B$491,0),MATCH($C86,[64]Paracuru!$B$2:$AP$2,0))*1)*(BD48) -> 10707 | AD86: =(INDEX([64]Paraipaba!$B$2:$AP$491,MATCH($A$70,[64]Paraipaba!$B$2:$B$491,0),MATCH($C86,[64]Paraipaba!$B$2:$AP$2,0))*1)*(BE48) -> 6298 | AE86: =(INDEX('[64]São Gonçalo do Amarante'!$B$2:$AP$491,MATCH($A$70,'[64]São Gonçalo do Amarante'!$B$2:$B$491,0),MATCH($C86,'[64]São Gonçalo do Amarante'!$B$2:$AP$2,0))*1)*(BF48) -> 17684 | AF86: =(INDEX('[64]São Luís do Curu'!$B$2:$AP$491,MATCH($A$70,'[64]São Luís do Curu'!$B$2:$B$491,0),MATCH($C86,'[64]São Luís do Curu'!$B$2:$AP$2,0))*1)*(BG48) -> 3947 | AG86: =(INDEX([64]Trairi!$B$2:$AP$491,MATCH($A$70,[64]Trairi!$B$2:$B$491,0),MATCH($C86,[64]Trairi!$B$2:$AP$2,0))*1)*(BH48) -> 8677 | AH86: =(INDEX('[64]Santana do Cariri'!$B$2:$AP$491,MATCH($A$70,'[64]Santana do Cariri'!$B$2:$B$491,0),MATCH($C86,'[64]Santana do Cariri'!$B$2:$AP$2,0))*1)*(BI48) -> 2843
B87: 87 | C87: 2038 | D87: Nº Ligações Totais - esgoto | E87: 512539 | F87: 1154837 | G87: 0 | H87: 0 | I87: 0 | K87: =(INDEX([64]Aquiraz!$B$2:$AP$492,MATCH($A$70,[64]Aquiraz!$B$2:$B$492,0),MATCH($C87,[64]Aquiraz!$B$2:$AP$2,0))*1)*(AL49) -> 15887 | L87: =(INDEX([64]Barbalha!$B$2:$AP$491,MATCH($A$70,[64]Barbalha!$B$2:$B$491,0),MATCH($C87,[64]Barbalha!$B$2:$AP$2,0))*1)*(AM49) -> 18332 | M87: =(INDEX([64]Cascavel!$B$2:$AP$491,MATCH($A$70,[64]Cascavel!$B$2:$B$491,0),MATCH($C87,[64]Cascavel!$B$2:$AP$2,0))*1)*(AN49) -> 24163 | N87: =(INDEX([64]Caucaia!$B$2:$AP$491,MATCH($A$70,[64]Caucaia!$B$2:$B$491,0),MATCH($C87,[64]Caucaia!$B$2:$AP$2,0))*1)*(AO49) -> 150672 | O87: =(INDEX([64]Chorozinho!$B$2:$AP$491,MATCH($A$70,[64]Chorozinho!$B$2:$B$491,0),MATCH($C87,[64]Chorozinho!$B$2:$AP$2,0))*1)*(AP49) -> 7266 | P87: =(INDEX([64]Eusébio!$B$2:$AP$491,MATCH($A$70,[64]Eusébio!$B$2:$B$491,0),MATCH($C87,[64]Eusébio!$B$2:$AP$2,0))*1)*(AQ49) -> 31371 | Q87: =(INDEX('[64]Farias Brito'!$B$2:$AP$491,MATCH($A$70,'[64]Farias Brito'!$B$2:$B$491,0),MATCH($C87,'[64]Farias Brito'!$B$2:$AP$2,0))*1)*(AR49) -> 3947 | R87: =(INDEX([64]Fortaleza!$B$2:$AP$427,MATCH($A$70,[64]Fortaleza!$B$2:$B$427,0),MATCH($C87,[64]Fortaleza!$B$2:$AP$2,0))*1)*(AS49) -> 956456 | S87: =(INDEX([64]Guaiúba!$B$2:$AP$491,MATCH($A$70,[64]Guaiúba!$B$2:$B$491,0),MATCH($C87,[64]Guaiúba!$B$2:$AP$2,0))*1)*(AT49) -> 7081 | T87: =(INDEX([64]Horizonte!$B$2:$AP$491,MATCH($A$70,[64]Horizonte!$B$2:$B$491,0),MATCH($C87,[64]Horizonte!$B$2:$AP$2,0))*1)*(AU49) -> 30911 | U87: =(INDEX([64]Itaitinga!$B$2:$AP$491,MATCH($A$70,[64]Itaitinga!$B$2:$B$491,0),MATCH($C87,[64]Itaitinga!$B$2:$AP$2,0))*1)*(AV49) -> 29402 | V87: =(INDEX('[64]Juazeiro do Norte'!$B$2:$AP$491,MATCH($A$70,'[64]Juazeiro do Norte'!$B$2:$B$491,0),MATCH($C87,'[64]Juazeiro do Norte'!$B$2:$AP$2,0))*1)*(AW49) -> 121557 | W87: =(INDEX([64]Maracanaú!$B$2:$AP$491,MATCH($A$70,[64]Maracanaú!$B$2:$B$491,0),MATCH($C87,[64]Maracanaú!$B$2:$AP$2,0))*1)*(AX49) -> 108102 | X87: =(INDEX([64]Maranguape!$B$2:$AP$491,MATCH($A$70,[64]Maranguape!$B$2:$B$491,0),MATCH($C87,[64]Maranguape!$B$2:$AP$2,0))*1)*(AY49) -> 38624 | Y87: =(INDEX('[64]Missão Velha'!$B$2:$AP$491,MATCH($A$70,'[64]Missão Velha'!$B$2:$B$491,0),MATCH($C87,'[64]Missão Velha'!$B$2:$AP$2,0))*1)*(AZ49) -> 7311 | Z87: =(INDEX('[64]Nova Olinda'!$B$2:$AP$491,MATCH($A$70,'[64]Nova Olinda'!$B$2:$B$491,0),MATCH($C87,'[64]Nova Olinda'!$B$2:$AP$2,0))*1)*(BA49) -> 7053 | AA87: =(INDEX([64]Pacajus!$B$2:$AP$491,MATCH($A$70,[64]Pacajus!$B$2:$B$491,0),MATCH($C87,[64]Pacajus!$B$2:$AP$2,0))*1)*(BB49) -> 30312 | AB87: =(INDEX([64]Pacatuba!$B$2:$AP$491,MATCH($A$70,[64]Pacatuba!$B$2:$B$491,0),MATCH($C87,[64]Pacatuba!$B$2:$AP$2,0))*1)*(BC49) -> 28354 | AC87: =(INDEX([64]Paracuru!$B$2:$AP$491,MATCH($A$70,[64]Paracuru!$B$2:$B$491,0),MATCH($C87,[64]Paracuru!$B$2:$AP$2,0))*1)*(BD49) -> 10805 | AD87: =(INDEX([64]Paraipaba!$B$2:$AP$491,MATCH($A$70,[64]Paraipaba!$B$2:$B$491,0),MATCH($C87,[64]Paraipaba!$B$2:$AP$2,0))*1)*(BE49) -> 6345 | AE87: =(INDEX('[64]São Gonçalo do Amarante'!$B$2:$AP$491,MATCH($A$70,'[64]São Gonçalo do Amarante'!$B$2:$B$491,0),MATCH($C87,'[64]São Gonçalo do Amarante'!$B$2:$AP$2,0))*1)*(BF49) -> 17818 | AF87: =(INDEX('[64]São Luís do Curu'!$B$2:$AP$491,MATCH($A$70,'[64]São Luís do Curu'!$B$2:$B$491,0),MATCH($C87,'[64]São Luís do Curu'!$B$2:$AP$2,0))*1)*(BG49) -> 3979 | AG87: =(INDEX([64]Trairi!$B$2:$AP$491,MATCH($A$70,[64]Trairi!$B$2:$B$491,0),MATCH($C87,[64]Trairi!$B$2:$AP$2,0))*1)*(BH49) -> 8762 | AH87: =(INDEX('[64]Santana do Cariri'!$B$2:$AP$491,MATCH($A$70,'[64]Santana do Cariri'!$B$2:$B$491,0),MATCH($C87,'[64]Santana do Cariri'!$B$2:$AP$2,0))*1)*(BI49) -> 2866
B88: 88 | C88: 2039 | D88: Nº Ligações Totais - esgoto | E88: 517062 | F88: 1164578 | G88: 0 | H88: 0 | I88: 0 | K88: =(INDEX([64]Aquiraz!$B$2:$AP$492,MATCH($A$70,[64]Aquiraz!$B$2:$B$492,0),MATCH($C88,[64]Aquiraz!$B$2:$AP$2,0))*1)*(AL50) -> 16033 | L88: =(INDEX([64]Barbalha!$B$2:$AP$491,MATCH($A$70,[64]Barbalha!$B$2:$B$491,0),MATCH($C88,[64]Barbalha!$B$2:$AP$2,0))*1)*(AM50) -> 18490 | M88: =(INDEX([64]Cascavel!$B$2:$AP$491,MATCH($A$70,[64]Cascavel!$B$2:$B$491,0),MATCH($C88,[64]Cascavel!$B$2:$AP$2,0))*1)*(AN50) -> 24371 | N88: =(INDEX([64]Caucaia!$B$2:$AP$491,MATCH($A$70,[64]Caucaia!$B$2:$B$491,0),MATCH($C88,[64]Caucaia!$B$2:$AP$2,0))*1)*(AO50) -> 152004 | O88: =(INDEX([64]Chorozinho!$B$2:$AP$491,MATCH($A$70,[64]Chorozinho!$B$2:$B$491,0),MATCH($C88,[64]Chorozinho!$B$2:$AP$2,0))*1)*(AP50) -> 7332 | P88: =(INDEX([64]Eusébio!$B$2:$AP$491,MATCH($A$70,[64]Eusébio!$B$2:$B$491,0),MATCH($C88,[64]Eusébio!$B$2:$AP$2,0))*1)*(AQ50) -> 31647 | Q88: =(INDEX('[64]Farias Brito'!$B$2:$AP$491,MATCH($A$70,'[64]Farias Brito'!$B$2:$B$491,0),MATCH($C88,'[64]Farias Brito'!$B$2:$AP$2,0))*1)*(AR50) -> 3978 | R88: =(INDEX([64]Fortaleza!$B$2:$AP$427,MATCH($A$70,[64]Fortaleza!$B$2:$B$427,0),MATCH($C88,[64]Fortaleza!$B$2:$AP$2,0))*1)*(AS50) -> 964492 | S88: =(INDEX([64]Guaiúba!$B$2:$AP$491,MATCH($A$70,[64]Guaiúba!$B$2:$B$491,0),MATCH($C88,[64]Guaiúba!$B$2:$AP$2,0))*1)*(AT50) -> 7141 | T88: =(INDEX([64]Horizonte!$B$2:$AP$491,MATCH($A$70,[64]Horizonte!$B$2:$B$491,0),MATCH($C88,[64]Horizonte!$B$2:$AP$2,0))*1)*(AU50) -> 31188 | U88: =(INDEX([64]Itaitinga!$B$2:$AP$491,MATCH($A$70,[64]Itaitinga!$B$2:$B$491,0),MATCH($C88,[64]Itaitinga!$B$2:$AP$2,0))*1)*(AV50) -> 29695 | V88: =(INDEX('[64]Juazeiro do Norte'!$B$2:$AP$491,MATCH($A$70,'[64]Juazeiro do Norte'!$B$2:$B$491,0),MATCH($C88,'[64]Juazeiro do Norte'!$B$2:$AP$2,0))*1)*(AW50) -> 122598 | W88: =(INDEX([64]Maracanaú!$B$2:$AP$491,MATCH($A$70,[64]Maracanaú!$B$2:$B$491,0),MATCH($C88,[64]Maracanaú!$B$2:$AP$2,0))*1)*(AX50) -> 109050 | X88: =(INDEX([64]Maranguape!$B$2:$AP$491,MATCH($A$70,[64]Maranguape!$B$2:$B$491,0),MATCH($C88,[64]Maranguape!$B$2:$AP$2,0))*1)*(AY50) -> 38972 | Y88: =(INDEX('[64]Missão Velha'!$B$2:$AP$491,MATCH($A$70,'[64]Missão Velha'!$B$2:$B$491,0),MATCH($C88,'[64]Missão Velha'!$B$2:$AP$2,0))*1)*(AZ50) -> 7374 | Z88: =(INDEX('[64]Nova Olinda'!$B$2:$AP$491,MATCH($A$70,'[64]Nova Olinda'!$B$2:$B$491,0),MATCH($C88,'[64]Nova Olinda'!$B$2:$AP$2,0))*1)*(BA50) -> 7125 | AA88: =(INDEX([64]Pacajus!$B$2:$AP$491,MATCH($A$70,[64]Pacajus!$B$2:$B$491,0),MATCH($C88,[64]Pacajus!$B$2:$AP$2,0))*1)*(BB50) -> 30582 | AB88: =(INDEX([64]Pacatuba!$B$2:$AP$491,MATCH($A$70,[64]Pacatuba!$B$2:$B$491,0),MATCH($C88,[64]Pacatuba!$B$2:$AP$2,0))*1)*(BC50) -> 28599 | AC88: =(INDEX([64]Paracuru!$B$2:$AP$491,MATCH($A$70,[64]Paracuru!$B$2:$B$491,0),MATCH($C88,[64]Paracuru!$B$2:$AP$2,0))*1)*(BD50) -> 10899 | AD88: =(INDEX([64]Paraipaba!$B$2:$AP$491,MATCH($A$70,[64]Paraipaba!$B$2:$B$491,0),MATCH($C88,[64]Paraipaba!$B$2:$AP$2,0))*1)*(BE50) -> 6388 | AE88: =(INDEX('[64]São Gonçalo do Amarante'!$B$2:$AP$491,MATCH($A$70,'[64]São Gonçalo do Amarante'!$B$2:$B$491,0),MATCH($C88,'[64]São Gonçalo do Amarante'!$B$2:$AP$2,0))*1)*(BF50) -> 17942 | AF88: =(INDEX('[64]São Luís do Curu'!$B$2:$AP$491,MATCH($A$70,'[64]São Luís do Curu'!$B$2:$B$491,0),MATCH($C88,'[64]São Luís do Curu'!$B$2:$AP$2,0))*1)*(BG50) -> 4011 | AG88: =(INDEX([64]Trairi!$B$2:$AP$491,MATCH($A$70,[64]Trairi!$B$2:$B$491,0),MATCH($C88,[64]Trairi!$B$2:$AP$2,0))*1)*(BH50) -> 8842 | AH88: =(INDEX('[64]Santana do Cariri'!$B$2:$AP$491,MATCH($A$70,'[64]Santana do Cariri'!$B$2:$B$491,0),MATCH($C88,'[64]Santana do Cariri'!$B$2:$AP$2,0))*1)*(BI50) -> 2887
B89: 89 | C89: 2040 | D89: Nº Ligações Totais - esgoto | E89: 521397 | F89: 1173980 | G89: 0 | H89: 0 | I89: 0 | K89: =(INDEX([64]Aquiraz!$B$2:$AP$492,MATCH($A$70,[64]Aquiraz!$B$2:$B$492,0),MATCH($C89,[64]Aquiraz!$B$2:$AP$2,0))*1)*(AL51) -> 16172 | L89: =(INDEX([64]Barbalha!$B$2:$AP$491,MATCH($A$70,[64]Barbalha!$B$2:$B$491,0),MATCH($C89,[64]Barbalha!$B$2:$AP$2,0))*1)*(AM51) -> 18642 | M89: =(INDEX([64]Cascavel!$B$2:$AP$491,MATCH($A$70,[64]Cascavel!$B$2:$B$491,0),MATCH($C89,[64]Cascavel!$B$2:$AP$2,0))*1)*(AN51) -> 24570 | N89: =(INDEX([64]Caucaia!$B$2:$AP$491,MATCH($A$70,[64]Caucaia!$B$2:$B$491,0),MATCH($C89,[64]Caucaia!$B$2:$AP$2,0))*1)*(AO51) -> 153270 | O89: =(INDEX([64]Chorozinho!$B$2:$AP$491,MATCH($A$70,[64]Chorozinho!$B$2:$B$491,0),MATCH($C89,[64]Chorozinho!$B$2:$AP$2,0))*1)*(AP51) -> 7394 | P89: =(INDEX([64]Eusébio!$B$2:$AP$491,MATCH($A$70,[64]Eusébio!$B$2:$B$491,0),MATCH($C89,[64]Eusébio!$B$2:$AP$2,0))*1)*(AQ51) -> 31910 | Q89: =(INDEX('[64]Farias Brito'!$B$2:$AP$491,MATCH($A$70,'[64]Farias Brito'!$B$2:$B$491,0),MATCH($C89,'[64]Farias Brito'!$B$2:$AP$2,0))*1)*(AR51) -> 4009 | R89: =(INDEX([64]Fortaleza!$B$2:$AP$427,MATCH($A$70,[64]Fortaleza!$B$2:$B$427,0),MATCH($C89,[64]Fortaleza!$B$2:$AP$2,0))*1)*(AS51) -> 972266 | S89: =(INDEX([64]Guaiúba!$B$2:$AP$491,MATCH($A$70,[64]Guaiúba!$B$2:$B$491,0),MATCH($C89,[64]Guaiúba!$B$2:$AP$2,0))*1)*(AT51) -> 7199 | T89: =(INDEX([64]Horizonte!$B$2:$AP$491,MATCH($A$70,[64]Horizonte!$B$2:$B$491,0),MATCH($C89,[64]Horizonte!$B$2:$AP$2,0))*1)*(AU51) -> 31450 | U89: =(INDEX([64]Itaitinga!$B$2:$AP$491,MATCH($A$70,[64]Itaitinga!$B$2:$B$491,0),MATCH($C89,[64]Itaitinga!$B$2:$AP$2,0))*1)*(AV51) -> 29974 | V89: =(INDEX('[64]Juazeiro do Norte'!$B$2:$AP$491,MATCH($A$70,'[64]Juazeiro do Norte'!$B$2:$B$491,0),MATCH($C89,'[64]Juazeiro do Norte'!$B$2:$AP$2,0))*1)*(AW51) -> 123598 | W89: =(INDEX([64]Maracanaú!$B$2:$AP$491,MATCH($A$70,[64]Maracanaú!$B$2:$B$491,0),MATCH($C89,[64]Maracanaú!$B$2:$AP$2,0))*1)*(AX51) -> 109966 | X89: =(INDEX([64]Maranguape!$B$2:$AP$491,MATCH($A$70,[64]Maranguape!$B$2:$B$491,0),MATCH($C89,[64]Maranguape!$B$2:$AP$2,0))*1)*(AY51) -> 39301 | Y89: =(INDEX('[64]Missão Velha'!$B$2:$AP$491,MATCH($A$70,'[64]Missão Velha'!$B$2:$B$491,0),MATCH($C89,'[64]Missão Velha'!$B$2:$AP$2,0))*1)*(AZ51) -> 7435 | Z89: =(INDEX('[64]Nova Olinda'!$B$2:$AP$491,MATCH($A$70,'[64]Nova Olinda'!$B$2:$B$491,0),MATCH($C89,'[64]Nova Olinda'!$B$2:$AP$2,0))*1)*(BA51) -> 7193 | AA89: =(INDEX([64]Pacajus!$B$2:$AP$491,MATCH($A$70,[64]Pacajus!$B$2:$B$491,0),MATCH($C89,[64]Pacajus!$B$2:$AP$2,0))*1)*(BB51) -> 30839 | AB89: =(INDEX([64]Pacatuba!$B$2:$AP$491,MATCH($A$70,[64]Pacatuba!$B$2:$B$491,0),MATCH($C89,[64]Pacatuba!$B$2:$AP$2,0))*1)*(BC51) -> 28834 | AC89: =(INDEX([64]Paracuru!$B$2:$AP$491,MATCH($A$70,[64]Paracuru!$B$2:$B$491,0),MATCH($C89,[64]Paracuru!$B$2:$AP$2,0))*1)*(BD51) -> 10989 | AD89: =(INDEX([64]Paraipaba!$B$2:$AP$491,MATCH($A$70,[64]Paraipaba!$B$2:$B$491,0),MATCH($C89,[64]Paraipaba!$B$2:$AP$2,0))*1)*(BE51) -> 6430 | AE89: =(INDEX('[64]São Gonçalo do Amarante'!$B$2:$AP$491,MATCH($A$70,'[64]São Gonçalo do Amarante'!$B$2:$B$491,0),MATCH($C89,'[64]São Gonçalo do Amarante'!$B$2:$AP$2,0))*1)*(BF51) -> 18063 | AF89: =(INDEX('[64]São Luís do Curu'!$B$2:$AP$491,MATCH($A$70,'[64]São Luís do Curu'!$B$2:$B$491,0),MATCH($C89,'[64]São Luís do Curu'!$B$2:$AP$2,0))*1)*(BG51) -> 4043 | AG89: =(INDEX([64]Trairi!$B$2:$AP$491,MATCH($A$70,[64]Trairi!$B$2:$B$491,0),MATCH($C89,[64]Trairi!$B$2:$AP$2,0))*1)*(BH51) -> 8919 | AH89: =(INDEX('[64]Santana do Cariri'!$B$2:$AP$491,MATCH($A$70,'[64]Santana do Cariri'!$B$2:$B$491,0),MATCH($C89,'[64]Santana do Cariri'!$B$2:$AP$2,0))*1)*(BI51) -> 2911
B90: 90 | C90: 2041 | D90: Nº Ligações Totais - esgoto | E90: 521615 | F90: 1174241 | G90: 0 | H90: 0 | I90: 0 | K90: =(INDEX([64]Aquiraz!$B$2:$AP$492,MATCH($A$70,[64]Aquiraz!$B$2:$B$492,0),MATCH($C90,[64]Aquiraz!$B$2:$AP$2,0))*1)*(AL52) -> 16181 | L90: =(INDEX([64]Barbalha!$B$2:$AP$491,MATCH($A$70,[64]Barbalha!$B$2:$B$491,0),MATCH($C90,[64]Barbalha!$B$2:$AP$2,0))*1)*(AM52) -> 18646 | M90: =(INDEX([64]Cascavel!$B$2:$AP$491,MATCH($A$70,[64]Cascavel!$B$2:$B$491,0),MATCH($C90,[64]Cascavel!$B$2:$AP$2,0))*1)*(AN52) -> 24576 | N90: =(INDEX([64]Caucaia!$B$2:$AP$491,MATCH($A$70,[64]Caucaia!$B$2:$B$491,0),MATCH($C90,[64]Caucaia!$B$2:$AP$2,0))*1)*(AO52) -> 153320 | O90: =(INDEX([64]Chorozinho!$B$2:$AP$491,MATCH($A$70,[64]Chorozinho!$B$2:$B$491,0),MATCH($C90,[64]Chorozinho!$B$2:$AP$2,0))*1)*(AP52) -> 7397 | P90: =(INDEX([64]Eusébio!$B$2:$AP$491,MATCH($A$70,[64]Eusébio!$B$2:$B$491,0),MATCH($C90,[64]Eusébio!$B$2:$AP$2,0))*1)*(AQ52) -> 31919 | Q90: =(INDEX('[64]Farias Brito'!$B$2:$AP$491,MATCH($A$70,'[64]Farias Brito'!$B$2:$B$491,0),MATCH($C90,'[64]Farias Brito'!$B$2:$AP$2,0))*1)*(AR52) -> 4015 | R90: =(INDEX([64]Fortaleza!$B$2:$AP$427,MATCH($A$70,[64]Fortaleza!$B$2:$B$427,0),MATCH($C90,[64]Fortaleza!$B$2:$AP$2,0))*1)*(AS52) -> 972464 | S90: =(INDEX([64]Guaiúba!$B$2:$AP$491,MATCH($A$70,[64]Guaiúba!$B$2:$B$491,0),MATCH($C90,[64]Guaiúba!$B$2:$AP$2,0))*1)*(AT52) -> 7201 | T90: =(INDEX([64]Horizonte!$B$2:$AP$491,MATCH($A$70,[64]Horizonte!$B$2:$B$491,0),MATCH($C90,[64]Horizonte!$B$2:$AP$2,0))*1)*(AU52) -> 31461 | U90: =(INDEX([64]Itaitinga!$B$2:$AP$491,MATCH($A$70,[64]Itaitinga!$B$2:$B$491,0),MATCH($C90,[64]Itaitinga!$B$2:$AP$2,0))*1)*(AV52) -> 30013 | V90: =(INDEX('[64]Juazeiro do Norte'!$B$2:$AP$491,MATCH($A$70,'[64]Juazeiro do Norte'!$B$2:$B$491,0),MATCH($C90,'[64]Juazeiro do Norte'!$B$2:$AP$2,0))*1)*(AW52) -> 123628 | W90: =(INDEX([64]Maracanaú!$B$2:$AP$491,MATCH($A$70,[64]Maracanaú!$B$2:$B$491,0),MATCH($C90,[64]Maracanaú!$B$2:$AP$2,0))*1)*(AX52) -> 110023 | X90: =(INDEX([64]Maranguape!$B$2:$AP$491,MATCH($A$70,[64]Maranguape!$B$2:$B$491,0),MATCH($C90,[64]Maranguape!$B$2:$AP$2,0))*1)*(AY52) -> 39315 | Y90: =(INDEX('[64]Missão Velha'!$B$2:$AP$491,MATCH($A$70,'[64]Missão Velha'!$B$2:$B$491,0),MATCH($C90,'[64]Missão Velha'!$B$2:$AP$2,0))*1)*(AZ52) -> 7437 | Z90: =(INDEX('[64]Nova Olinda'!$B$2:$AP$491,MATCH($A$70,'[64]Nova Olinda'!$B$2:$B$491,0),MATCH($C90,'[64]Nova Olinda'!$B$2:$AP$2,0))*1)*(BA52) -> 7202 | AA90: =(INDEX([64]Pacajus!$B$2:$AP$491,MATCH($A$70,[64]Pacajus!$B$2:$B$491,0),MATCH($C90,[64]Pacajus!$B$2:$AP$2,0))*1)*(BB52) -> 30849 | AB90: =(INDEX([64]Pacatuba!$B$2:$AP$491,MATCH($A$70,[64]Pacatuba!$B$2:$B$491,0),MATCH($C90,[64]Pacatuba!$B$2:$AP$2,0))*1)*(BC52) -> 28842 | AC90: =(INDEX([64]Paracuru!$B$2:$AP$491,MATCH($A$70,[64]Paracuru!$B$2:$B$491,0),MATCH($C90,[64]Paracuru!$B$2:$AP$2,0))*1)*(BD52) -> 10992 | AD90: =(INDEX([64]Paraipaba!$B$2:$AP$491,MATCH($A$70,[64]Paraipaba!$B$2:$B$491,0),MATCH($C90,[64]Paraipaba!$B$2:$AP$2,0))*1)*(BE52) -> 6432 | AE90: =(INDEX('[64]São Gonçalo do Amarante'!$B$2:$AP$491,MATCH($A$70,'[64]São Gonçalo do Amarante'!$B$2:$B$491,0),MATCH($C90,'[64]São Gonçalo do Amarante'!$B$2:$AP$2,0))*1)*(BF52) -> 18067 | AF90: =(INDEX('[64]São Luís do Curu'!$B$2:$AP$491,MATCH($A$70,'[64]São Luís do Curu'!$B$2:$B$491,0),MATCH($C90,'[64]São Luís do Curu'!$B$2:$AP$2,0))*1)*(BG52) -> 4044 | AG90: =(INDEX([64]Trairi!$B$2:$AP$491,MATCH($A$70,[64]Trairi!$B$2:$B$491,0),MATCH($C90,[64]Trairi!$B$2:$AP$2,0))*1)*(BH52) -> 8922 | AH90: =(INDEX('[64]Santana do Cariri'!$B$2:$AP$491,MATCH($A$70,'[64]Santana do Cariri'!$B$2:$B$491,0),MATCH($C90,'[64]Santana do Cariri'!$B$2:$AP$2,0))*1)*(BI52) -> 2910
B91: 91 | C91: 2042 | D91: Nº Ligações Totais - esgoto | E91: =SUMIFS($K91:$AH91,$K$18:$AH$18,E$4) -> 521628 | F91: 1174148 | G91: 0 | H91: 0 | I91: 0 | K91: =(INDEX([64]Aquiraz!$B$2:$AP$492,MATCH($A$70,[64]Aquiraz!$B$2:$B$492,0),MATCH($C91,[64]Aquiraz!$B$2:$AP$2,0))*1)*(AL53) -> 16182 | L91: =(INDEX([64]Barbalha!$B$2:$AP$491,MATCH($A$70,[64]Barbalha!$B$2:$B$491,0),MATCH($C91,[64]Barbalha!$B$2:$AP$2,0))*1)*(AM53) -> 18644 | M91: =(INDEX([64]Cascavel!$B$2:$AP$491,MATCH($A$70,[64]Cascavel!$B$2:$B$491,0),MATCH($C91,[64]Cascavel!$B$2:$AP$2,0))*1)*(AN53) -> 24574 | N91: =(INDEX([64]Caucaia!$B$2:$AP$491,MATCH($A$70,[64]Caucaia!$B$2:$B$491,0),MATCH($C91,[64]Caucaia!$B$2:$AP$2,0))*1)*(AO53) -> 153303 | O91: =(INDEX([64]Chorozinho!$B$2:$AP$491,MATCH($A$70,[64]Chorozinho!$B$2:$B$491,0),MATCH($C91,[64]Chorozinho!$B$2:$AP$2,0))*1)*(AP53) -> 7396 | P91: =(INDEX([64]Eusébio!$B$2:$AP$491,MATCH($A$70,[64]Eusébio!$B$2:$B$491,0),MATCH($C91,[64]Eusébio!$B$2:$AP$2,0))*1)*(AQ53) -> 31916 | Q91: =(INDEX('[64]Farias Brito'!$B$2:$AP$491,MATCH($A$70,'[64]Farias Brito'!$B$2:$B$491,0),MATCH($C91,'[64]Farias Brito'!$B$2:$AP$2,0))*1)*(AR53) -> 4009 | R91: =(INDEX([64]Fortaleza!$B$2:$AP$427,MATCH($A$70,[64]Fortaleza!$B$2:$B$427,0),MATCH($C91,[64]Fortaleza!$B$2:$AP$2,0))*1)*(AS53) -> 972393 | S91: =(INDEX([64]Guaiúba!$B$2:$AP$491,MATCH($A$70,[64]Guaiúba!$B$2:$B$491,0),MATCH($C91,[64]Guaiúba!$B$2:$AP$2,0))*1)*(AT53) -> 7200 | T91: =(INDEX([64]Horizonte!$B$2:$AP$491,MATCH($A$70,[64]Horizonte!$B$2:$B$491,0),MATCH($C91,[64]Horizonte!$B$2:$AP$2,0))*1)*(AU53) -> 31457 | U91: =(INDEX([64]Itaitinga!$B$2:$AP$491,MATCH($A$70,[64]Itaitinga!$B$2:$B$491,0),MATCH($C91,[64]Itaitinga!$B$2:$AP$2,0))*1)*(AV53) -> 30038 | V91: =(INDEX('[64]Juazeiro do Norte'!$B$2:$AP$491,MATCH($A$70,'[64]Juazeiro do Norte'!$B$2:$B$491,0),MATCH($C91,'[64]Juazeiro do Norte'!$B$2:$AP$2,0))*1)*(AW53) -> 123618 | W91: =(INDEX([64]Maracanaú!$B$2:$AP$491,MATCH($A$70,[64]Maracanaú!$B$2:$B$491,0),MATCH($C91,[64]Maracanaú!$B$2:$AP$2,0))*1)*(AX53) -> 110046 | X91: =(INDEX([64]Maranguape!$B$2:$AP$491,MATCH($A$70,[64]Maranguape!$B$2:$B$491,0),MATCH($C91,[64]Maranguape!$B$2:$AP$2,0))*1)*(AY53) -> 39311 | Y91: =(INDEX('[64]Missão Velha'!$B$2:$AP$491,MATCH($A$70,'[64]Missão Velha'!$B$2:$B$491,0),MATCH($C91,'[64]Missão Velha'!$B$2:$AP$2,0))*1)*(AZ53) -> 7436 | Z91: =(INDEX('[64]Nova Olinda'!$B$2:$AP$491,MATCH($A$70,'[64]Nova Olinda'!$B$2:$B$491,0),MATCH($C91,'[64]Nova Olinda'!$B$2:$AP$2,0))*1)*(BA53) -> 7205 | AA91: =(INDEX([64]Pacajus!$B$2:$AP$491,MATCH($A$70,[64]Pacajus!$B$2:$B$491,0),MATCH($C91,[64]Pacajus!$B$2:$AP$2,0))*1)*(BB53) -> 30846 | AB91: =(INDEX([64]Pacatuba!$B$2:$AP$491,MATCH($A$70,[64]Pacatuba!$B$2:$B$491,0),MATCH($C91,[64]Pacatuba!$B$2:$AP$2,0))*1)*(BC53) -> 28840 | AC91: =(INDEX([64]Paracuru!$B$2:$AP$491,MATCH($A$70,[64]Paracuru!$B$2:$B$491,0),MATCH($C91,[64]Paracuru!$B$2:$AP$2,0))*1)*(BD53) -> 10991 | AD91: =(INDEX([64]Paraipaba!$B$2:$AP$491,MATCH($A$70,[64]Paraipaba!$B$2:$B$491,0),MATCH($C91,[64]Paraipaba!$B$2:$AP$2,0))*1)*(BE53) -> 6431 | AE91: =(INDEX('[64]São Gonçalo do Amarante'!$B$2:$AP$491,MATCH($A$70,'[64]São Gonçalo do Amarante'!$B$2:$B$491,0),MATCH($C91,'[64]São Gonçalo do Amarante'!$B$2:$AP$2,0))*1)*(BF53) -> 18066 | AF91: =(INDEX('[64]São Luís do Curu'!$B$2:$AP$491,MATCH($A$70,'[64]São Luís do Curu'!$B$2:$B$491,0),MATCH($C91,'[64]São Luís do Curu'!$B$2:$AP$2,0))*1)*(BG53) -> 4043 | AG91: =(INDEX([64]Trairi!$B$2:$AP$491,MATCH($A$70,[64]Trairi!$B$2:$B$491,0),MATCH($C91,[64]Trairi!$B$2:$AP$2,0))*1)*(BH53) -> 8921 | AH91: =(INDEX('[64]Santana do Cariri'!$B$2:$AP$491,MATCH($A$70,'[64]Santana do Cariri'!$B$2:$B$491,0),MATCH($C91,'[64]Santana do Cariri'!$B$2:$AP$2,0))*1)*(BI53) -> 2910
B92: 92 | C92: 2043 | D92: Nº Ligações Totais - esgoto | E92: 521453 | F92: 1173705 | G92: 0 | H92: 0 | I92: 0 | K92: =(INDEX([64]Aquiraz!$B$2:$AP$492,MATCH($A$70,[64]Aquiraz!$B$2:$B$492,0),MATCH($C92,[64]Aquiraz!$B$2:$AP$2,0))*1)*(AL54) -> 16175 | L92: =(INDEX([64]Barbalha!$B$2:$AP$491,MATCH($A$70,[64]Barbalha!$B$2:$B$491,0),MATCH($C92,[64]Barbalha!$B$2:$AP$2,0))*1)*(AM54) -> 18636 | M92: =(INDEX([64]Cascavel!$B$2:$AP$491,MATCH($A$70,[64]Cascavel!$B$2:$B$491,0),MATCH($C92,[64]Cascavel!$B$2:$AP$2,0))*1)*(AN54) -> 24563 | N92: =(INDEX([64]Caucaia!$B$2:$AP$491,MATCH($A$70,[64]Caucaia!$B$2:$B$491,0),MATCH($C92,[64]Caucaia!$B$2:$AP$2,0))*1)*(AO54) -> 153219 | O92: =(INDEX([64]Chorozinho!$B$2:$AP$491,MATCH($A$70,[64]Chorozinho!$B$2:$B$491,0),MATCH($C92,[64]Chorozinho!$B$2:$AP$2,0))*1)*(AP54) -> 7391 | P92: =(INDEX([64]Eusébio!$B$2:$AP$491,MATCH($A$70,[64]Eusébio!$B$2:$B$491,0),MATCH($C92,[64]Eusébio!$B$2:$AP$2,0))*1)*(AQ54) -> 31899 | Q92: =(INDEX('[64]Farias Brito'!$B$2:$AP$491,MATCH($A$70,'[64]Farias Brito'!$B$2:$B$491,0),MATCH($C92,'[64]Farias Brito'!$B$2:$AP$2,0))*1)*(AR54) -> 4009 | R92: =(INDEX([64]Fortaleza!$B$2:$AP$427,MATCH($A$70,[64]Fortaleza!$B$2:$B$427,0),MATCH($C92,[64]Fortaleza!$B$2:$AP$2,0))*1)*(AS54) -> 972058 | S92: =(INDEX([64]Guaiúba!$B$2:$AP$491,MATCH($A$70,[64]Guaiúba!$B$2:$B$491,0),MATCH($C92,[64]Guaiúba!$B$2:$AP$2,0))*1)*(AT54) -> 7197 | T92: =(INDEX([64]Horizonte!$B$2:$AP$491,MATCH($A$70,[64]Horizonte!$B$2:$B$491,0),MATCH($C92,[64]Horizonte!$B$2:$AP$2,0))*1)*(AU54) -> 31439 | U92: =(INDEX([64]Itaitinga!$B$2:$AP$491,MATCH($A$70,[64]Itaitinga!$B$2:$B$491,0),MATCH($C92,[64]Itaitinga!$B$2:$AP$2,0))*1)*(AV54) -> 30048 | V92: =(INDEX('[64]Juazeiro do Norte'!$B$2:$AP$491,MATCH($A$70,'[64]Juazeiro do Norte'!$B$2:$B$491,0),MATCH($C92,'[64]Juazeiro do Norte'!$B$2:$AP$2,0))*1)*(AW54) -> 123566 | W92: =(INDEX([64]Maracanaú!$B$2:$AP$491,MATCH($A$70,[64]Maracanaú!$B$2:$B$491,0),MATCH($C92,[64]Maracanaú!$B$2:$AP$2,0))*1)*(AX54) -> 110038 | X92: =(INDEX([64]Maranguape!$B$2:$AP$491,MATCH($A$70,[64]Maranguape!$B$2:$B$491,0),MATCH($C92,[64]Maranguape!$B$2:$AP$2,0))*1)*(AY54) -> 39291 | Y92: =(INDEX('[64]Missão Velha'!$B$2:$AP$491,MATCH($A$70,'[64]Missão Velha'!$B$2:$B$491,0),MATCH($C92,'[64]Missão Velha'!$B$2:$AP$2,0))*1)*(AZ54) -> 7433 | Z92: =(INDEX('[64]Nova Olinda'!$B$2:$AP$491,MATCH($A$70,'[64]Nova Olinda'!$B$2:$B$491,0),MATCH($C92,'[64]Nova Olinda'!$B$2:$AP$2,0))*1)*(BA54) -> 7204 | AA92: =(INDEX([64]Pacajus!$B$2:$AP$491,MATCH($A$70,[64]Pacajus!$B$2:$B$491,0),MATCH($C92,[64]Pacajus!$B$2:$AP$2,0))*1)*(BB54) -> 30828 | AB92: =(INDEX([64]Pacatuba!$B$2:$AP$491,MATCH($A$70,[64]Pacatuba!$B$2:$B$491,0),MATCH($C92,[64]Pacatuba!$B$2:$AP$2,0))*1)*(BC54) -> 28826 | AC92: =(INDEX([64]Paracuru!$B$2:$AP$491,MATCH($A$70,[64]Paracuru!$B$2:$B$491,0),MATCH($C92,[64]Paracuru!$B$2:$AP$2,0))*1)*(BD54) -> 10986 | AD92: =(INDEX([64]Paraipaba!$B$2:$AP$491,MATCH($A$70,[64]Paraipaba!$B$2:$B$491,0),MATCH($C92,[64]Paraipaba!$B$2:$AP$2,0))*1)*(BE54) -> 6429 | AE92: =(INDEX('[64]São Gonçalo do Amarante'!$B$2:$AP$491,MATCH($A$70,'[64]São Gonçalo do Amarante'!$B$2:$B$491,0),MATCH($C92,'[64]São Gonçalo do Amarante'!$B$2:$AP$2,0))*1)*(BF54) -> 18056 | AF92: =(INDEX('[64]São Luís do Curu'!$B$2:$AP$491,MATCH($A$70,'[64]São Luís do Curu'!$B$2:$B$491,0),MATCH($C92,'[64]São Luís do Curu'!$B$2:$AP$2,0))*1)*(BG54) -> 4043 | AG92: =(INDEX([64]Trairi!$B$2:$AP$491,MATCH($A$70,[64]Trairi!$B$2:$B$491,0),MATCH($C92,[64]Trairi!$B$2:$AP$2,0))*1)*(BH54) -> 8914 | AH92: =(INDEX('[64]Santana do Cariri'!$B$2:$AP$491,MATCH($A$70,'[64]Santana do Cariri'!$B$2:$B$491,0),MATCH($C92,'[64]Santana do Cariri'!$B$2:$AP$2,0))*1)*(BI54) -> 2910
B93: 93 | C93: 2044 | D93: Nº Ligações Totais - esgoto | E93: 521088 | F93: 1172927 | G93: 0 | H93: 0 | I93: 0 | K93: =(INDEX([64]Aquiraz!$B$2:$AP$492,MATCH($A$70,[64]Aquiraz!$B$2:$B$492,0),MATCH($C93,[64]Aquiraz!$B$2:$AP$2,0))*1)*(AL55) -> 16160 | L93: =(INDEX([64]Barbalha!$B$2:$AP$491,MATCH($A$70,[64]Barbalha!$B$2:$B$491,0),MATCH($C93,[64]Barbalha!$B$2:$AP$2,0))*1)*(AM55) -> 18622 | M93: =(INDEX([64]Cascavel!$B$2:$AP$491,MATCH($A$70,[64]Cascavel!$B$2:$B$491,0),MATCH($C93,[64]Cascavel!$B$2:$AP$2,0))*1)*(AN55) -> 24546 | N93: =(INDEX([64]Caucaia!$B$2:$AP$491,MATCH($A$70,[64]Caucaia!$B$2:$B$491,0),MATCH($C93,[64]Caucaia!$B$2:$AP$2,0))*1)*(AO55) -> 153072 | O93: =(INDEX([64]Chorozinho!$B$2:$AP$491,MATCH($A$70,[64]Chorozinho!$B$2:$B$491,0),MATCH($C93,[64]Chorozinho!$B$2:$AP$2,0))*1)*(AP55) -> 7382 | P93: =(INDEX([64]Eusébio!$B$2:$AP$491,MATCH($A$70,[64]Eusébio!$B$2:$B$491,0),MATCH($C93,[64]Eusébio!$B$2:$AP$2,0))*1)*(AQ55) -> 31870 | Q93: =(INDEX('[64]Farias Brito'!$B$2:$AP$491,MATCH($A$70,'[64]Farias Brito'!$B$2:$B$491,0),MATCH($C93,'[64]Farias Brito'!$B$2:$AP$2,0))*1)*(AR55) -> 4009 | R93: =(INDEX([64]Fortaleza!$B$2:$AP$427,MATCH($A$70,[64]Fortaleza!$B$2:$B$427,0),MATCH($C93,[64]Fortaleza!$B$2:$AP$2,0))*1)*(AS55) -> 971467 | S93: =(INDEX([64]Guaiúba!$B$2:$AP$491,MATCH($A$70,[64]Guaiúba!$B$2:$B$491,0),MATCH($C93,[64]Guaiúba!$B$2:$AP$2,0))*1)*(AT55) -> 7192 | T93: =(INDEX([64]Horizonte!$B$2:$AP$491,MATCH($A$70,[64]Horizonte!$B$2:$B$491,0),MATCH($C93,[64]Horizonte!$B$2:$AP$2,0))*1)*(AU55) -> 31406 | U93: =(INDEX([64]Itaitinga!$B$2:$AP$491,MATCH($A$70,[64]Itaitinga!$B$2:$B$491,0),MATCH($C93,[64]Itaitinga!$B$2:$AP$2,0))*1)*(AV55) -> 30046 | V93: =(INDEX('[64]Juazeiro do Norte'!$B$2:$AP$491,MATCH($A$70,'[64]Juazeiro do Norte'!$B$2:$B$491,0),MATCH($C93,'[64]Juazeiro do Norte'!$B$2:$AP$2,0))*1)*(AW55) -> 123475 | W93: =(INDEX([64]Maracanaú!$B$2:$AP$491,MATCH($A$70,[64]Maracanaú!$B$2:$B$491,0),MATCH($C93,[64]Maracanaú!$B$2:$AP$2,0))*1)*(AX55) -> 109997 | X93: =(INDEX([64]Maranguape!$B$2:$AP$491,MATCH($A$70,[64]Maranguape!$B$2:$B$491,0),MATCH($C93,[64]Maranguape!$B$2:$AP$2,0))*1)*(AY55) -> 39249 | Y93: =(INDEX('[64]Missão Velha'!$B$2:$AP$491,MATCH($A$70,'[64]Missão Velha'!$B$2:$B$491,0),MATCH($C93,'[64]Missão Velha'!$B$2:$AP$2,0))*1)*(AZ55) -> 7426 | Z93: =(INDEX('[64]Nova Olinda'!$B$2:$AP$491,MATCH($A$70,'[64]Nova Olinda'!$B$2:$B$491,0),MATCH($C93,'[64]Nova Olinda'!$B$2:$AP$2,0))*1)*(BA55) -> 7198 | AA93: =(INDEX([64]Pacajus!$B$2:$AP$491,MATCH($A$70,[64]Pacajus!$B$2:$B$491,0),MATCH($C93,[64]Pacajus!$B$2:$AP$2,0))*1)*(BB55) -> 30796 | AB93: =(INDEX([64]Pacatuba!$B$2:$AP$491,MATCH($A$70,[64]Pacatuba!$B$2:$B$491,0),MATCH($C93,[64]Pacatuba!$B$2:$AP$2,0))*1)*(BC55) -> 28803 | AC93: =(INDEX([64]Paracuru!$B$2:$AP$491,MATCH($A$70,[64]Paracuru!$B$2:$B$491,0),MATCH($C93,[64]Paracuru!$B$2:$AP$2,0))*1)*(BD55) -> 10977 | AD93: =(INDEX([64]Paraipaba!$B$2:$AP$491,MATCH($A$70,[64]Paraipaba!$B$2:$B$491,0),MATCH($C93,[64]Paraipaba!$B$2:$AP$2,0))*1)*(BE55) -> 6426 | AE93: =(INDEX('[64]São Gonçalo do Amarante'!$B$2:$AP$491,MATCH($A$70,'[64]São Gonçalo do Amarante'!$B$2:$B$491,0),MATCH($C93,'[64]São Gonçalo do Amarante'!$B$2:$AP$2,0))*1)*(BF55) -> 18041 | AF93: =(INDEX('[64]São Luís do Curu'!$B$2:$AP$491,MATCH($A$70,'[64]São Luís do Curu'!$B$2:$B$491,0),MATCH($C93,'[64]São Luís do Curu'!$B$2:$AP$2,0))*1)*(BG55) -> 4041 | AG93: =(INDEX([64]Trairi!$B$2:$AP$491,MATCH($A$70,[64]Trairi!$B$2:$B$491,0),MATCH($C93,[64]Trairi!$B$2:$AP$2,0))*1)*(BH55) -> 8903 | AH93: =(INDEX('[64]Santana do Cariri'!$B$2:$AP$491,MATCH($A$70,'[64]Santana do Cariri'!$B$2:$B$491,0),MATCH($C93,'[64]Santana do Cariri'!$B$2:$AP$2,0))*1)*(BI55) -> 2911
B94: 94 | C94: 2045 | D94: Nº Ligações Totais - esgoto | E94: 520535 | F94: 1171807 | G94: 0 | H94: 0 | I94: 0 | K94: =(INDEX([64]Aquiraz!$B$2:$AP$492,MATCH($A$70,[64]Aquiraz!$B$2:$B$492,0),MATCH($C94,[64]Aquiraz!$B$2:$AP$2,0))*1)*(AL56) -> 16139 | L94: =(INDEX([64]Barbalha!$B$2:$AP$491,MATCH($A$70,[64]Barbalha!$B$2:$B$491,0),MATCH($C94,[64]Barbalha!$B$2:$AP$2,0))*1)*(AM56) -> 18602 | M94: =(INDEX([64]Cascavel!$B$2:$AP$491,MATCH($A$70,[64]Cascavel!$B$2:$B$491,0),MATCH($C94,[64]Cascavel!$B$2:$AP$2,0))*1)*(AN56) -> 24520 | N94: =(INDEX([64]Caucaia!$B$2:$AP$491,MATCH($A$70,[64]Caucaia!$B$2:$B$491,0),MATCH($C94,[64]Caucaia!$B$2:$AP$2,0))*1)*(AO56) -> 152862 | O94: =(INDEX([64]Chorozinho!$B$2:$AP$491,MATCH($A$70,[64]Chorozinho!$B$2:$B$491,0),MATCH($C94,[64]Chorozinho!$B$2:$AP$2,0))*1)*(AP56) -> 7370 | P94: =(INDEX([64]Eusébio!$B$2:$AP$491,MATCH($A$70,[64]Eusébio!$B$2:$B$491,0),MATCH($C94,[64]Eusébio!$B$2:$AP$2,0))*1)*(AQ56) -> 31829 | Q94: =(INDEX('[64]Farias Brito'!$B$2:$AP$491,MATCH($A$70,'[64]Farias Brito'!$B$2:$B$491,0),MATCH($C94,'[64]Farias Brito'!$B$2:$AP$2,0))*1)*(AR56) -> 4008 | R94: =(INDEX([64]Fortaleza!$B$2:$AP$427,MATCH($A$70,[64]Fortaleza!$B$2:$B$427,0),MATCH($C94,[64]Fortaleza!$B$2:$AP$2,0))*1)*(AS56) -> 970616 | S94: =(INDEX([64]Guaiúba!$B$2:$AP$491,MATCH($A$70,[64]Guaiúba!$B$2:$B$491,0),MATCH($C94,[64]Guaiúba!$B$2:$AP$2,0))*1)*(AT56) -> 7185 | T94: =(INDEX([64]Horizonte!$B$2:$AP$491,MATCH($A$70,[64]Horizonte!$B$2:$B$491,0),MATCH($C94,[64]Horizonte!$B$2:$AP$2,0))*1)*(AU56) -> 31358 | U94: =(INDEX([64]Itaitinga!$B$2:$AP$491,MATCH($A$70,[64]Itaitinga!$B$2:$B$491,0),MATCH($C94,[64]Itaitinga!$B$2:$AP$2,0))*1)*(AV56) -> 30027 | V94: =(INDEX('[64]Juazeiro do Norte'!$B$2:$AP$491,MATCH($A$70,'[64]Juazeiro do Norte'!$B$2:$B$491,0),MATCH($C94,'[64]Juazeiro do Norte'!$B$2:$AP$2,0))*1)*(AW56) -> 123344 | W94: =(INDEX([64]Maracanaú!$B$2:$AP$491,MATCH($A$70,[64]Maracanaú!$B$2:$B$491,0),MATCH($C94,[64]Maracanaú!$B$2:$AP$2,0))*1)*(AX56) -> 109925 | X94: =(INDEX([64]Maranguape!$B$2:$AP$491,MATCH($A$70,[64]Maranguape!$B$2:$B$491,0),MATCH($C94,[64]Maranguape!$B$2:$AP$2,0))*1)*(AY56) -> 39192 | Y94: =(INDEX('[64]Missão Velha'!$B$2:$AP$491,MATCH($A$70,'[64]Missão Velha'!$B$2:$B$491,0),MATCH($C94,'[64]Missão Velha'!$B$2:$AP$2,0))*1)*(AZ56) -> 7417 | Z94: =(INDEX('[64]Nova Olinda'!$B$2:$AP$491,MATCH($A$70,'[64]Nova Olinda'!$B$2:$B$491,0),MATCH($C94,'[64]Nova Olinda'!$B$2:$AP$2,0))*1)*(BA56) -> 7187 | AA94: =(INDEX([64]Pacajus!$B$2:$AP$491,MATCH($A$70,[64]Pacajus!$B$2:$B$491,0),MATCH($C94,[64]Pacajus!$B$2:$AP$2,0))*1)*(BB56) -> 30751 | AB94: =(INDEX([64]Pacatuba!$B$2:$AP$491,MATCH($A$70,[64]Pacatuba!$B$2:$B$491,0),MATCH($C94,[64]Pacatuba!$B$2:$AP$2,0))*1)*(BC56) -> 28770 | AC94: =(INDEX([64]Paracuru!$B$2:$AP$491,MATCH($A$70,[64]Paracuru!$B$2:$B$491,0),MATCH($C94,[64]Paracuru!$B$2:$AP$2,0))*1)*(BD56) -> 10963 | AD94: =(INDEX([64]Paraipaba!$B$2:$AP$491,MATCH($A$70,[64]Paraipaba!$B$2:$B$491,0),MATCH($C94,[64]Paraipaba!$B$2:$AP$2,0))*1)*(BE56) -> 6421 | AE94: =(INDEX('[64]São Gonçalo do Amarante'!$B$2:$AP$491,MATCH($A$70,'[64]São Gonçalo do Amarante'!$B$2:$B$491,0),MATCH($C94,'[64]São Gonçalo do Amarante'!$B$2:$AP$2,0))*1)*(BF56) -> 18019 | AF94: =(INDEX('[64]São Luís do Curu'!$B$2:$AP$491,MATCH($A$70,'[64]São Luís do Curu'!$B$2:$B$491,0),MATCH($C94,'[64]São Luís do Curu'!$B$2:$AP$2,0))*1)*(BG56) -> 4039 | AG94: =(INDEX([64]Trairi!$B$2:$AP$491,MATCH($A$70,[64]Trairi!$B$2:$B$491,0),MATCH($C94,[64]Trairi!$B$2:$AP$2,0))*1)*(BH56) -> 8887 | AH94: =(INDEX('[64]Santana do Cariri'!$B$2:$AP$491,MATCH($A$70,'[64]Santana do Cariri'!$B$2:$B$491,0),MATCH($C94,'[64]Santana do Cariri'!$B$2:$AP$2,0))*1)*(BI56) -> 2911
B95: 95 | C95: 2046 | D95: Nº Ligações Totais - esgoto | E95: 519789 | F95: 1170344 | G95: 0 | H95: 0 | I95: 0 | K95: =(INDEX([64]Aquiraz!$B$2:$AP$492,MATCH($A$70,[64]Aquiraz!$B$2:$B$492,0),MATCH($C95,[64]Aquiraz!$B$2:$AP$2,0))*1)*(AL57) -> 16109 | L95: =(INDEX([64]Barbalha!$B$2:$AP$491,MATCH($A$70,[64]Barbalha!$B$2:$B$491,0),MATCH($C95,[64]Barbalha!$B$2:$AP$2,0))*1)*(AM57) -> 18575 | M95: =(INDEX([64]Cascavel!$B$2:$AP$491,MATCH($A$70,[64]Cascavel!$B$2:$B$491,0),MATCH($C95,[64]Cascavel!$B$2:$AP$2,0))*1)*(AN57) -> 24485 | N95: =(INDEX([64]Caucaia!$B$2:$AP$491,MATCH($A$70,[64]Caucaia!$B$2:$B$491,0),MATCH($C95,[64]Caucaia!$B$2:$AP$2,0))*1)*(AO57) -> 152587 | O95: =(INDEX([64]Chorozinho!$B$2:$AP$491,MATCH($A$70,[64]Chorozinho!$B$2:$B$491,0),MATCH($C95,[64]Chorozinho!$B$2:$AP$2,0))*1)*(AP57) -> 7354 | P95: =(INDEX([64]Eusébio!$B$2:$AP$491,MATCH($A$70,[64]Eusébio!$B$2:$B$491,0),MATCH($C95,[64]Eusébio!$B$2:$AP$2,0))*1)*(AQ57) -> 31774 | Q95: =(INDEX('[64]Farias Brito'!$B$2:$AP$491,MATCH($A$70,'[64]Farias Brito'!$B$2:$B$491,0),MATCH($C95,'[64]Farias Brito'!$B$2:$AP$2,0))*1)*(AR57) -> 4008 | R95: =(INDEX([64]Fortaleza!$B$2:$AP$427,MATCH($A$70,[64]Fortaleza!$B$2:$B$427,0),MATCH($C95,[64]Fortaleza!$B$2:$AP$2,0))*1)*(AS57) -> 969505 | S95: =(INDEX([64]Guaiúba!$B$2:$AP$491,MATCH($A$70,[64]Guaiúba!$B$2:$B$491,0),MATCH($C95,[64]Guaiúba!$B$2:$AP$2,0))*1)*(AT57) -> 7176 | T95: =(INDEX([64]Horizonte!$B$2:$AP$491,MATCH($A$70,[64]Horizonte!$B$2:$B$491,0),MATCH($C95,[64]Horizonte!$B$2:$AP$2,0))*1)*(AU57) -> 31296 | U95: =(INDEX([64]Itaitinga!$B$2:$AP$491,MATCH($A$70,[64]Itaitinga!$B$2:$B$491,0),MATCH($C95,[64]Itaitinga!$B$2:$AP$2,0))*1)*(AV57) -> 29996 | V95: =(INDEX('[64]Juazeiro do Norte'!$B$2:$AP$491,MATCH($A$70,'[64]Juazeiro do Norte'!$B$2:$B$491,0),MATCH($C95,'[64]Juazeiro do Norte'!$B$2:$AP$2,0))*1)*(AW57) -> 123174 | W95: =(INDEX([64]Maracanaú!$B$2:$AP$491,MATCH($A$70,[64]Maracanaú!$B$2:$B$491,0),MATCH($C95,[64]Maracanaú!$B$2:$AP$2,0))*1)*(AX57) -> 109823 | X95: =(INDEX([64]Maranguape!$B$2:$AP$491,MATCH($A$70,[64]Maranguape!$B$2:$B$491,0),MATCH($C95,[64]Maranguape!$B$2:$AP$2,0))*1)*(AY57) -> 39116 | Y95: =(INDEX('[64]Missão Velha'!$B$2:$AP$491,MATCH($A$70,'[64]Missão Velha'!$B$2:$B$491,0),MATCH($C95,'[64]Missão Velha'!$B$2:$AP$2,0))*1)*(AZ57) -> 7406 | Z95: =(INDEX('[64]Nova Olinda'!$B$2:$AP$491,MATCH($A$70,'[64]Nova Olinda'!$B$2:$B$491,0),MATCH($C95,'[64]Nova Olinda'!$B$2:$AP$2,0))*1)*(BA57) -> 7171 | AA95: =(INDEX([64]Pacajus!$B$2:$AP$491,MATCH($A$70,[64]Pacajus!$B$2:$B$491,0),MATCH($C95,[64]Pacajus!$B$2:$AP$2,0))*1)*(BB57) -> 30692 | AB95: =(INDEX([64]Pacatuba!$B$2:$AP$491,MATCH($A$70,[64]Pacatuba!$B$2:$B$491,0),MATCH($C95,[64]Pacatuba!$B$2:$AP$2,0))*1)*(BC57) -> 28724 | AC95: =(INDEX([64]Paracuru!$B$2:$AP$491,MATCH($A$70,[64]Paracuru!$B$2:$B$491,0),MATCH($C95,[64]Paracuru!$B$2:$AP$2,0))*1)*(BD57) -> 10946 | AD95: =(INDEX([64]Paraipaba!$B$2:$AP$491,MATCH($A$70,[64]Paraipaba!$B$2:$B$491,0),MATCH($C95,[64]Paraipaba!$B$2:$AP$2,0))*1)*(BE57) -> 6414 | AE95: =(INDEX('[64]São Gonçalo do Amarante'!$B$2:$AP$491,MATCH($A$70,'[64]São Gonçalo do Amarante'!$B$2:$B$491,0),MATCH($C95,'[64]São Gonçalo do Amarante'!$B$2:$AP$2,0))*1)*(BF57) -> 17989 | AF95: =(INDEX('[64]São Luís do Curu'!$B$2:$AP$491,MATCH($A$70,'[64]São Luís do Curu'!$B$2:$B$491,0),MATCH($C95,'[64]São Luís do Curu'!$B$2:$AP$2,0))*1)*(BG57) -> 4037 | AG95: =(INDEX([64]Trairi!$B$2:$AP$491,MATCH($A$70,[64]Trairi!$B$2:$B$491,0),MATCH($C95,[64]Trairi!$B$2:$AP$2,0))*1)*(BH57) -> 8866 | AH95: =(INDEX('[64]Santana do Cariri'!$B$2:$AP$491,MATCH($A$70,'[64]Santana do Cariri'!$B$2:$B$491,0),MATCH($C95,'[64]Santana do Cariri'!$B$2:$AP$2,0))*1)*(BI57) -> 2910
B96: 96 | C96: 2047 | D96: Nº Ligações Totais - esgoto | E96: 518853 | F96: 1168537 | G96: 0 | H96: 0 | I96: 0 | K96: =(INDEX([64]Aquiraz!$B$2:$AP$492,MATCH($A$70,[64]Aquiraz!$B$2:$B$492,0),MATCH($C96,[64]Aquiraz!$B$2:$AP$2,0))*1)*(AL58) -> 16071 | L96: =(INDEX([64]Barbalha!$B$2:$AP$491,MATCH($A$70,[64]Barbalha!$B$2:$B$491,0),MATCH($C96,[64]Barbalha!$B$2:$AP$2,0))*1)*(AM58) -> 18542 | M96: =(INDEX([64]Cascavel!$B$2:$AP$491,MATCH($A$70,[64]Cascavel!$B$2:$B$491,0),MATCH($C96,[64]Cascavel!$B$2:$AP$2,0))*1)*(AN58) -> 24445 | N96: =(INDEX([64]Caucaia!$B$2:$AP$491,MATCH($A$70,[64]Caucaia!$B$2:$B$491,0),MATCH($C96,[64]Caucaia!$B$2:$AP$2,0))*1)*(AO58) -> 152246 | O96: =(INDEX([64]Chorozinho!$B$2:$AP$491,MATCH($A$70,[64]Chorozinho!$B$2:$B$491,0),MATCH($C96,[64]Chorozinho!$B$2:$AP$2,0))*1)*(AP58) -> 7334 | P96: =(INDEX([64]Eusébio!$B$2:$AP$491,MATCH($A$70,[64]Eusébio!$B$2:$B$491,0),MATCH($C96,[64]Eusébio!$B$2:$AP$2,0))*1)*(AQ58) -> 31707 | Q96: =(INDEX('[64]Farias Brito'!$B$2:$AP$491,MATCH($A$70,'[64]Farias Brito'!$B$2:$B$491,0),MATCH($C96,'[64]Farias Brito'!$B$2:$AP$2,0))*1)*(AR58) -> 4007 | R96: =(INDEX([64]Fortaleza!$B$2:$AP$427,MATCH($A$70,[64]Fortaleza!$B$2:$B$427,0),MATCH($C96,[64]Fortaleza!$B$2:$AP$2,0))*1)*(AS58) -> 968132 | S96: =(INDEX([64]Guaiúba!$B$2:$AP$491,MATCH($A$70,[64]Guaiúba!$B$2:$B$491,0),MATCH($C96,[64]Guaiúba!$B$2:$AP$2,0))*1)*(AT58) -> 7163 | T96: =(INDEX([64]Horizonte!$B$2:$AP$491,MATCH($A$70,[64]Horizonte!$B$2:$B$491,0),MATCH($C96,[64]Horizonte!$B$2:$AP$2,0))*1)*(AU58) -> 31220 | U96: =(INDEX([64]Itaitinga!$B$2:$AP$491,MATCH($A$70,[64]Itaitinga!$B$2:$B$491,0),MATCH($C96,[64]Itaitinga!$B$2:$AP$2,0))*1)*(AV58) -> 29951 | V96: =(INDEX('[64]Juazeiro do Norte'!$B$2:$AP$491,MATCH($A$70,'[64]Juazeiro do Norte'!$B$2:$B$491,0),MATCH($C96,'[64]Juazeiro do Norte'!$B$2:$AP$2,0))*1)*(AW58) -> 122963 | W96: =(INDEX([64]Maracanaú!$B$2:$AP$491,MATCH($A$70,[64]Maracanaú!$B$2:$B$491,0),MATCH($C96,[64]Maracanaú!$B$2:$AP$2,0))*1)*(AX58) -> 109688 | X96: =(INDEX([64]Maranguape!$B$2:$AP$491,MATCH($A$70,[64]Maranguape!$B$2:$B$491,0),MATCH($C96,[64]Maranguape!$B$2:$AP$2,0))*1)*(AY58) -> 39022 | Y96: =(INDEX('[64]Missão Velha'!$B$2:$AP$491,MATCH($A$70,'[64]Missão Velha'!$B$2:$B$491,0),MATCH($C96,'[64]Missão Velha'!$B$2:$AP$2,0))*1)*(AZ58) -> 7391 | Z96: =(INDEX('[64]Nova Olinda'!$B$2:$AP$491,MATCH($A$70,'[64]Nova Olinda'!$B$2:$B$491,0),MATCH($C96,'[64]Nova Olinda'!$B$2:$AP$2,0))*1)*(BA58) -> 7151 | AA96: =(INDEX([64]Pacajus!$B$2:$AP$491,MATCH($A$70,[64]Pacajus!$B$2:$B$491,0),MATCH($C96,[64]Pacajus!$B$2:$AP$2,0))*1)*(BB58) -> 30619 | AB96: =(INDEX([64]Pacatuba!$B$2:$AP$491,MATCH($A$70,[64]Pacatuba!$B$2:$B$491,0),MATCH($C96,[64]Pacatuba!$B$2:$AP$2,0))*1)*(BC58) -> 28670 | AC96: =(INDEX([64]Paracuru!$B$2:$AP$491,MATCH($A$70,[64]Paracuru!$B$2:$B$491,0),MATCH($C96,[64]Paracuru!$B$2:$AP$2,0))*1)*(BD58) -> 10925 | AD96: =(INDEX([64]Paraipaba!$B$2:$AP$491,MATCH($A$70,[64]Paraipaba!$B$2:$B$491,0),MATCH($C96,[64]Paraipaba!$B$2:$AP$2,0))*1)*(BE58) -> 6406 | AE96: =(INDEX('[64]São Gonçalo do Amarante'!$B$2:$AP$491,MATCH($A$70,'[64]São Gonçalo do Amarante'!$B$2:$B$491,0),MATCH($C96,'[64]São Gonçalo do Amarante'!$B$2:$AP$2,0))*1)*(BF58) -> 17954 | AF96: =(INDEX('[64]São Luís do Curu'!$B$2:$AP$491,MATCH($A$70,'[64]São Luís do Curu'!$B$2:$B$491,0),MATCH($C96,'[64]São Luís do Curu'!$B$2:$AP$2,0))*1)*(BG58) -> 4034 | AG96: =(INDEX([64]Trairi!$B$2:$AP$491,MATCH($A$70,[64]Trairi!$B$2:$B$491,0),MATCH($C96,[64]Trairi!$B$2:$AP$2,0))*1)*(BH58) -> 8840 | AH96: =(INDEX('[64]Santana do Cariri'!$B$2:$AP$491,MATCH($A$70,'[64]Santana do Cariri'!$B$2:$B$491,0),MATCH($C96,'[64]Santana do Cariri'!$B$2:$AP$2,0))*1)*(BI58) -> 2909
B97: 97 | C97: 2048 | D97: Nº Ligações Totais - esgoto | E97: 517720 | F97: 1166388 | G97: 0 | H97: 0 | I97: 0 | K97: =(INDEX([64]Aquiraz!$B$2:$AP$492,MATCH($A$70,[64]Aquiraz!$B$2:$B$492,0),MATCH($C97,[64]Aquiraz!$B$2:$AP$2,0))*1)*(AL59) -> 16026 | L97: =(INDEX([64]Barbalha!$B$2:$AP$491,MATCH($A$70,[64]Barbalha!$B$2:$B$491,0),MATCH($C97,[64]Barbalha!$B$2:$AP$2,0))*1)*(AM59) -> 18500 | M97: =(INDEX([64]Cascavel!$B$2:$AP$491,MATCH($A$70,[64]Cascavel!$B$2:$B$491,0),MATCH($C97,[64]Cascavel!$B$2:$AP$2,0))*1)*(AN59) -> 24395 | N97: =(INDEX([64]Caucaia!$B$2:$AP$491,MATCH($A$70,[64]Caucaia!$B$2:$B$491,0),MATCH($C97,[64]Caucaia!$B$2:$AP$2,0))*1)*(AO59) -> 151841 | O97: =(INDEX([64]Chorozinho!$B$2:$AP$491,MATCH($A$70,[64]Chorozinho!$B$2:$B$491,0),MATCH($C97,[64]Chorozinho!$B$2:$AP$2,0))*1)*(AP59) -> 7310 | P97: =(INDEX([64]Eusébio!$B$2:$AP$491,MATCH($A$70,[64]Eusébio!$B$2:$B$491,0),MATCH($C97,[64]Eusébio!$B$2:$AP$2,0))*1)*(AQ59) -> 31627 | Q97: =(INDEX('[64]Farias Brito'!$B$2:$AP$491,MATCH($A$70,'[64]Farias Brito'!$B$2:$B$491,0),MATCH($C97,'[64]Farias Brito'!$B$2:$AP$2,0))*1)*(AR59) -> 4007 | R97: =(INDEX([64]Fortaleza!$B$2:$AP$427,MATCH($A$70,[64]Fortaleza!$B$2:$B$427,0),MATCH($C97,[64]Fortaleza!$B$2:$AP$2,0))*1)*(AS59) -> 966498 | S97: =(INDEX([64]Guaiúba!$B$2:$AP$491,MATCH($A$70,[64]Guaiúba!$B$2:$B$491,0),MATCH($C97,[64]Guaiúba!$B$2:$AP$2,0))*1)*(AT59) -> 7149 | T97: =(INDEX([64]Horizonte!$B$2:$AP$491,MATCH($A$70,[64]Horizonte!$B$2:$B$491,0),MATCH($C97,[64]Horizonte!$B$2:$AP$2,0))*1)*(AU59) -> 31128 | U97: =(INDEX([64]Itaitinga!$B$2:$AP$491,MATCH($A$70,[64]Itaitinga!$B$2:$B$491,0),MATCH($C97,[64]Itaitinga!$B$2:$AP$2,0))*1)*(AV59) -> 29892 | V97: =(INDEX('[64]Juazeiro do Norte'!$B$2:$AP$491,MATCH($A$70,'[64]Juazeiro do Norte'!$B$2:$B$491,0),MATCH($C97,'[64]Juazeiro do Norte'!$B$2:$AP$2,0))*1)*(AW59) -> 122712 | W97: =(INDEX([64]Maracanaú!$B$2:$AP$491,MATCH($A$70,[64]Maracanaú!$B$2:$B$491,0),MATCH($C97,[64]Maracanaú!$B$2:$AP$2,0))*1)*(AX59) -> 109522 | X97: =(INDEX([64]Maranguape!$B$2:$AP$491,MATCH($A$70,[64]Maranguape!$B$2:$B$491,0),MATCH($C97,[64]Maranguape!$B$2:$AP$2,0))*1)*(AY59) -> 38907 | Y97: =(INDEX('[64]Missão Velha'!$B$2:$AP$491,MATCH($A$70,'[64]Missão Velha'!$B$2:$B$491,0),MATCH($C97,'[64]Missão Velha'!$B$2:$AP$2,0))*1)*(AZ59) -> 7374 | Z97: =(INDEX('[64]Nova Olinda'!$B$2:$AP$491,MATCH($A$70,'[64]Nova Olinda'!$B$2:$B$491,0),MATCH($C97,'[64]Nova Olinda'!$B$2:$AP$2,0))*1)*(BA59) -> 7126 | AA97: =(INDEX([64]Pacajus!$B$2:$AP$491,MATCH($A$70,[64]Pacajus!$B$2:$B$491,0),MATCH($C97,[64]Pacajus!$B$2:$AP$2,0))*1)*(BB59) -> 30533 | AB97: =(INDEX([64]Pacatuba!$B$2:$AP$491,MATCH($A$70,[64]Pacatuba!$B$2:$B$491,0),MATCH($C97,[64]Pacatuba!$B$2:$AP$2,0))*1)*(BC59) -> 28604 | AC97: =(INDEX([64]Paracuru!$B$2:$AP$491,MATCH($A$70,[64]Paracuru!$B$2:$B$491,0),MATCH($C97,[64]Paracuru!$B$2:$AP$2,0))*1)*(BD59) -> 10899 | AD97: =(INDEX([64]Paraipaba!$B$2:$AP$491,MATCH($A$70,[64]Paraipaba!$B$2:$B$491,0),MATCH($C97,[64]Paraipaba!$B$2:$AP$2,0))*1)*(BE59) -> 6398 | AE97: =(INDEX('[64]São Gonçalo do Amarante'!$B$2:$AP$491,MATCH($A$70,'[64]São Gonçalo do Amarante'!$B$2:$B$491,0),MATCH($C97,'[64]São Gonçalo do Amarante'!$B$2:$AP$2,0))*1)*(BF59) -> 17912 | AF97: =(INDEX('[64]São Luís do Curu'!$B$2:$AP$491,MATCH($A$70,'[64]São Luís do Curu'!$B$2:$B$491,0),MATCH($C97,'[64]São Luís do Curu'!$B$2:$AP$2,0))*1)*(BG59) -> 4030 | AG97: =(INDEX([64]Trairi!$B$2:$AP$491,MATCH($A$70,[64]Trairi!$B$2:$B$491,0),MATCH($C97,[64]Trairi!$B$2:$AP$2,0))*1)*(BH59) -> 8810 | AH97: =(INDEX('[64]Santana do Cariri'!$B$2:$AP$491,MATCH($A$70,'[64]Santana do Cariri'!$B$2:$B$491,0),MATCH($C97,'[64]Santana do Cariri'!$B$2:$AP$2,0))*1)*(BI59) -> 2908
B98: 98 | C98: 2049 | D98: Nº Ligações Totais - esgoto | E98: 516405 | F98: 1163891 | G98: 0 | H98: 0 | I98: 0 | K98: =(INDEX([64]Aquiraz!$B$2:$AP$492,MATCH($A$70,[64]Aquiraz!$B$2:$B$492,0),MATCH($C98,[64]Aquiraz!$B$2:$AP$2,0))*1)*(AL60) -> 15973 | L98: =(INDEX([64]Barbalha!$B$2:$AP$491,MATCH($A$70,[64]Barbalha!$B$2:$B$491,0),MATCH($C98,[64]Barbalha!$B$2:$AP$2,0))*1)*(AM60) -> 18456 | M98: =(INDEX([64]Cascavel!$B$2:$AP$491,MATCH($A$70,[64]Cascavel!$B$2:$B$491,0),MATCH($C98,[64]Cascavel!$B$2:$AP$2,0))*1)*(AN60) -> 24337 | N98: =(INDEX([64]Caucaia!$B$2:$AP$491,MATCH($A$70,[64]Caucaia!$B$2:$B$491,0),MATCH($C98,[64]Caucaia!$B$2:$AP$2,0))*1)*(AO60) -> 151371 | O98: =(INDEX([64]Chorozinho!$B$2:$AP$491,MATCH($A$70,[64]Chorozinho!$B$2:$B$491,0),MATCH($C98,[64]Chorozinho!$B$2:$AP$2,0))*1)*(AP60) -> 7283 | P98: =(INDEX([64]Eusébio!$B$2:$AP$491,MATCH($A$70,[64]Eusébio!$B$2:$B$491,0),MATCH($C98,[64]Eusébio!$B$2:$AP$2,0))*1)*(AQ60) -> 31534 | Q98: =(INDEX('[64]Farias Brito'!$B$2:$AP$491,MATCH($A$70,'[64]Farias Brito'!$B$2:$B$491,0),MATCH($C98,'[64]Farias Brito'!$B$2:$AP$2,0))*1)*(AR60) -> 4006 | R98: =(INDEX([64]Fortaleza!$B$2:$AP$427,MATCH($A$70,[64]Fortaleza!$B$2:$B$427,0),MATCH($C98,[64]Fortaleza!$B$2:$AP$2,0))*1)*(AS60) -> 964603 | S98: =(INDEX([64]Guaiúba!$B$2:$AP$491,MATCH($A$70,[64]Guaiúba!$B$2:$B$491,0),MATCH($C98,[64]Guaiúba!$B$2:$AP$2,0))*1)*(AT60) -> 7132 | T98: =(INDEX([64]Horizonte!$B$2:$AP$491,MATCH($A$70,[64]Horizonte!$B$2:$B$491,0),MATCH($C98,[64]Horizonte!$B$2:$AP$2,0))*1)*(AU60) -> 31023 | U98: =(INDEX([64]Itaitinga!$B$2:$AP$491,MATCH($A$70,[64]Itaitinga!$B$2:$B$491,0),MATCH($C98,[64]Itaitinga!$B$2:$AP$2,0))*1)*(AV60) -> 29819 | V98: =(INDEX('[64]Juazeiro do Norte'!$B$2:$AP$491,MATCH($A$70,'[64]Juazeiro do Norte'!$B$2:$B$491,0),MATCH($C98,'[64]Juazeiro do Norte'!$B$2:$AP$2,0))*1)*(AW60) -> 122421 | W98: =(INDEX([64]Maracanaú!$B$2:$AP$491,MATCH($A$70,[64]Maracanaú!$B$2:$B$491,0),MATCH($C98,[64]Maracanaú!$B$2:$AP$2,0))*1)*(AX60) -> 109324 | X98: =(INDEX([64]Maranguape!$B$2:$AP$491,MATCH($A$70,[64]Maranguape!$B$2:$B$491,0),MATCH($C98,[64]Maranguape!$B$2:$AP$2,0))*1)*(AY60) -> 38776 | Y98: =(INDEX('[64]Missão Velha'!$B$2:$AP$491,MATCH($A$70,'[64]Missão Velha'!$B$2:$B$491,0),MATCH($C98,'[64]Missão Velha'!$B$2:$AP$2,0))*1)*(AZ60) -> 7354 | Z98: =(INDEX('[64]Nova Olinda'!$B$2:$AP$491,MATCH($A$70,'[64]Nova Olinda'!$B$2:$B$491,0),MATCH($C98,'[64]Nova Olinda'!$B$2:$AP$2,0))*1)*(BA60) -> 7095 | AA98: =(INDEX([64]Pacajus!$B$2:$AP$491,MATCH($A$70,[64]Pacajus!$B$2:$B$491,0),MATCH($C98,[64]Pacajus!$B$2:$AP$2,0))*1)*(BB60) -> 30432 | AB98: =(INDEX([64]Pacatuba!$B$2:$AP$491,MATCH($A$70,[64]Pacatuba!$B$2:$B$491,0),MATCH($C98,[64]Pacatuba!$B$2:$AP$2,0))*1)*(BC60) -> 28530 | AC98: =(INDEX([64]Paracuru!$B$2:$AP$491,MATCH($A$70,[64]Paracuru!$B$2:$B$491,0),MATCH($C98,[64]Paracuru!$B$2:$AP$2,0))*1)*(BD60) -> 10870 | AD98: =(INDEX([64]Paraipaba!$B$2:$AP$491,MATCH($A$70,[64]Paraipaba!$B$2:$B$491,0),MATCH($C98,[64]Paraipaba!$B$2:$AP$2,0))*1)*(BE60) -> 6386 | AE98: =(INDEX('[64]São Gonçalo do Amarante'!$B$2:$AP$491,MATCH($A$70,'[64]São Gonçalo do Amarante'!$B$2:$B$491,0),MATCH($C98,'[64]São Gonçalo do Amarante'!$B$2:$AP$2,0))*1)*(BF60) -> 17862 | AF98: =(INDEX('[64]São Luís do Curu'!$B$2:$AP$491,MATCH($A$70,'[64]São Luís do Curu'!$B$2:$B$491,0),MATCH($C98,'[64]São Luís do Curu'!$B$2:$AP$2,0))*1)*(BG60) -> 4025 | AG98: =(INDEX([64]Trairi!$B$2:$AP$491,MATCH($A$70,[64]Trairi!$B$2:$B$491,0),MATCH($C98,[64]Trairi!$B$2:$AP$2,0))*1)*(BH60) -> 8774 | AH98: =(INDEX('[64]Santana do Cariri'!$B$2:$AP$491,MATCH($A$70,'[64]Santana do Cariri'!$B$2:$B$491,0),MATCH($C98,'[64]Santana do Cariri'!$B$2:$AP$2,0))*1)*(BI60) -> 2910
B99: 99 | C99: 2050 | D99: Nº Ligações Totais - esgoto | E99: 514891 | F99: 1161044 | G99: 0 | H99: 0 | I99: 0 | K99: =(INDEX([64]Aquiraz!$B$2:$AP$492,MATCH($A$70,[64]Aquiraz!$B$2:$B$492,0),MATCH($C99,[64]Aquiraz!$B$2:$AP$2,0))*1)*(AL61) -> 15912 | L99: =(INDEX([64]Barbalha!$B$2:$AP$491,MATCH($A$70,[64]Barbalha!$B$2:$B$491,0),MATCH($C99,[64]Barbalha!$B$2:$AP$2,0))*1)*(AM61) -> 18404 | M99: =(INDEX([64]Cascavel!$B$2:$AP$491,MATCH($A$70,[64]Cascavel!$B$2:$B$491,0),MATCH($C99,[64]Cascavel!$B$2:$AP$2,0))*1)*(AN61) -> 24269 | N99: =(INDEX([64]Caucaia!$B$2:$AP$491,MATCH($A$70,[64]Caucaia!$B$2:$B$491,0),MATCH($C99,[64]Caucaia!$B$2:$AP$2,0))*1)*(AO61) -> 150834 | O99: =(INDEX([64]Chorozinho!$B$2:$AP$491,MATCH($A$70,[64]Chorozinho!$B$2:$B$491,0),MATCH($C99,[64]Chorozinho!$B$2:$AP$2,0))*1)*(AP61) -> 7252 | P99: =(INDEX([64]Eusébio!$B$2:$AP$491,MATCH($A$70,[64]Eusébio!$B$2:$B$491,0),MATCH($C99,[64]Eusébio!$B$2:$AP$2,0))*1)*(AQ61) -> 31429 | Q99: =(INDEX('[64]Farias Brito'!$B$2:$AP$491,MATCH($A$70,'[64]Farias Brito'!$B$2:$B$491,0),MATCH($C99,'[64]Farias Brito'!$B$2:$AP$2,0))*1)*(AR61) -> 4005 | R99: =(INDEX([64]Fortaleza!$B$2:$AP$427,MATCH($A$70,[64]Fortaleza!$B$2:$B$427,0),MATCH($C99,[64]Fortaleza!$B$2:$AP$2,0))*1)*(AS61) -> 962442 | S99: =(INDEX([64]Guaiúba!$B$2:$AP$491,MATCH($A$70,[64]Guaiúba!$B$2:$B$491,0),MATCH($C99,[64]Guaiúba!$B$2:$AP$2,0))*1)*(AT61) -> 7113 | T99: =(INDEX([64]Horizonte!$B$2:$AP$491,MATCH($A$70,[64]Horizonte!$B$2:$B$491,0),MATCH($C99,[64]Horizonte!$B$2:$AP$2,0))*1)*(AU61) -> 30903 | U99: =(INDEX([64]Itaitinga!$B$2:$AP$491,MATCH($A$70,[64]Itaitinga!$B$2:$B$491,0),MATCH($C99,[64]Itaitinga!$B$2:$AP$2,0))*1)*(AV61) -> 29732 | V99: =(INDEX('[64]Juazeiro do Norte'!$B$2:$AP$491,MATCH($A$70,'[64]Juazeiro do Norte'!$B$2:$B$491,0),MATCH($C99,'[64]Juazeiro do Norte'!$B$2:$AP$2,0))*1)*(AW61) -> 122089 | W99: =(INDEX([64]Maracanaú!$B$2:$AP$491,MATCH($A$70,[64]Maracanaú!$B$2:$B$491,0),MATCH($C99,[64]Maracanaú!$B$2:$AP$2,0))*1)*(AX61) -> 109095 | X99: =(INDEX([64]Maranguape!$B$2:$AP$491,MATCH($A$70,[64]Maranguape!$B$2:$B$491,0),MATCH($C99,[64]Maranguape!$B$2:$AP$2,0))*1)*(AY61) -> 38626 | Y99: =(INDEX('[64]Missão Velha'!$B$2:$AP$491,MATCH($A$70,'[64]Missão Velha'!$B$2:$B$491,0),MATCH($C99,'[64]Missão Velha'!$B$2:$AP$2,0))*1)*(AZ61) -> 7331 | Z99: =(INDEX('[64]Nova Olinda'!$B$2:$AP$491,MATCH($A$70,'[64]Nova Olinda'!$B$2:$B$491,0),MATCH($C99,'[64]Nova Olinda'!$B$2:$AP$2,0))*1)*(BA61) -> 7061 | AA99: =(INDEX([64]Pacajus!$B$2:$AP$491,MATCH($A$70,[64]Pacajus!$B$2:$B$491,0),MATCH($C99,[64]Pacajus!$B$2:$AP$2,0))*1)*(BB61) -> 30317 | AB99: =(INDEX([64]Pacatuba!$B$2:$AP$491,MATCH($A$70,[64]Pacatuba!$B$2:$B$491,0),MATCH($C99,[64]Pacatuba!$B$2:$AP$2,0))*1)*(BC61) -> 28444 | AC99: =(INDEX([64]Paracuru!$B$2:$AP$491,MATCH($A$70,[64]Paracuru!$B$2:$B$491,0),MATCH($C99,[64]Paracuru!$B$2:$AP$2,0))*1)*(BD61) -> 10837 | AD99: =(INDEX([64]Paraipaba!$B$2:$AP$491,MATCH($A$70,[64]Paraipaba!$B$2:$B$491,0),MATCH($C99,[64]Paraipaba!$B$2:$AP$2,0))*1)*(BE61) -> 6373 | AE99: =(INDEX('[64]São Gonçalo do Amarante'!$B$2:$AP$491,MATCH($A$70,'[64]São Gonçalo do Amarante'!$B$2:$B$491,0),MATCH($C99,'[64]São Gonçalo do Amarante'!$B$2:$AP$2,0))*1)*(BF61) -> 17805 | AF99: =(INDEX('[64]São Luís do Curu'!$B$2:$AP$491,MATCH($A$70,'[64]São Luís do Curu'!$B$2:$B$491,0),MATCH($C99,'[64]São Luís do Curu'!$B$2:$AP$2,0))*1)*(BG61) -> 4020 | AG99: =(INDEX([64]Trairi!$B$2:$AP$491,MATCH($A$70,[64]Trairi!$B$2:$B$491,0),MATCH($C99,[64]Trairi!$B$2:$AP$2,0))*1)*(BH61) -> 8733 | AH99: =(INDEX('[64]Santana do Cariri'!$B$2:$AP$491,MATCH($A$70,'[64]Santana do Cariri'!$B$2:$B$491,0),MATCH($C99,'[64]Santana do Cariri'!$B$2:$AP$2,0))*1)*(BI61) -> 2909
B100: 100 | C100: 2051 | D100: Nº Ligações Totais - esgoto | E100: 513180 | F100: 1157846 | G100: 0 | H100: 0 | I100: 0 | K100: =(INDEX([64]Aquiraz!$B$2:$AP$492,MATCH($A$70,[64]Aquiraz!$B$2:$B$492,0),MATCH($C100,[64]Aquiraz!$B$2:$AP$2,0))*1)*(AL62) -> 15843 | L100: =(INDEX([64]Barbalha!$B$2:$AP$491,MATCH($A$70,[64]Barbalha!$B$2:$B$491,0),MATCH($C100,[64]Barbalha!$B$2:$AP$2,0))*1)*(AM62) -> 18344 | M100: =(INDEX([64]Cascavel!$B$2:$AP$491,MATCH($A$70,[64]Cascavel!$B$2:$B$491,0),MATCH($C100,[64]Cascavel!$B$2:$AP$2,0))*1)*(AN62) -> 24196 | N100: =(INDEX([64]Caucaia!$B$2:$AP$491,MATCH($A$70,[64]Caucaia!$B$2:$B$491,0),MATCH($C100,[64]Caucaia!$B$2:$AP$2,0))*1)*(AO62) -> 150231 | O100: =(INDEX([64]Chorozinho!$B$2:$AP$491,MATCH($A$70,[64]Chorozinho!$B$2:$B$491,0),MATCH($C100,[64]Chorozinho!$B$2:$AP$2,0))*1)*(AP62) -> 7216 | P100: =(INDEX([64]Eusébio!$B$2:$AP$491,MATCH($A$70,[64]Eusébio!$B$2:$B$491,0),MATCH($C100,[64]Eusébio!$B$2:$AP$2,0))*1)*(AQ62) -> 31309 | Q100: =(INDEX('[64]Farias Brito'!$B$2:$AP$491,MATCH($A$70,'[64]Farias Brito'!$B$2:$B$491,0),MATCH($C100,'[64]Farias Brito'!$B$2:$AP$2,0))*1)*(AR62) -> 4005 | R100: =(INDEX([64]Fortaleza!$B$2:$AP$427,MATCH($A$70,[64]Fortaleza!$B$2:$B$427,0),MATCH($C100,[64]Fortaleza!$B$2:$AP$2,0))*1)*(AS62) -> 960010 | S100: =(INDEX([64]Guaiúba!$B$2:$AP$491,MATCH($A$70,[64]Guaiúba!$B$2:$B$491,0),MATCH($C100,[64]Guaiúba!$B$2:$AP$2,0))*1)*(AT62) -> 7091 | T100: =(INDEX([64]Horizonte!$B$2:$AP$491,MATCH($A$70,[64]Horizonte!$B$2:$B$491,0),MATCH($C100,[64]Horizonte!$B$2:$AP$2,0))*1)*(AU62) -> 30767 | U100: =(INDEX([64]Itaitinga!$B$2:$AP$491,MATCH($A$70,[64]Itaitinga!$B$2:$B$491,0),MATCH($C100,[64]Itaitinga!$B$2:$AP$2,0))*1)*(AV62) -> 29632 | V100: =(INDEX('[64]Juazeiro do Norte'!$B$2:$AP$491,MATCH($A$70,'[64]Juazeiro do Norte'!$B$2:$B$491,0),MATCH($C100,'[64]Juazeiro do Norte'!$B$2:$AP$2,0))*1)*(AW62) -> 121715 | W100: =(INDEX([64]Maracanaú!$B$2:$AP$491,MATCH($A$70,[64]Maracanaú!$B$2:$B$491,0),MATCH($C100,[64]Maracanaú!$B$2:$AP$2,0))*1)*(AX62) -> 108834 | X100: =(INDEX([64]Maranguape!$B$2:$AP$491,MATCH($A$70,[64]Maranguape!$B$2:$B$491,0),MATCH($C100,[64]Maranguape!$B$2:$AP$2,0))*1)*(AY62) -> 38457 | Y100: =(INDEX('[64]Missão Velha'!$B$2:$AP$491,MATCH($A$70,'[64]Missão Velha'!$B$2:$B$491,0),MATCH($C100,'[64]Missão Velha'!$B$2:$AP$2,0))*1)*(AZ62) -> 7305 | Z100: =(INDEX('[64]Nova Olinda'!$B$2:$AP$491,MATCH($A$70,'[64]Nova Olinda'!$B$2:$B$491,0),MATCH($C100,'[64]Nova Olinda'!$B$2:$AP$2,0))*1)*(BA62) -> 7021 | AA100: =(INDEX([64]Pacajus!$B$2:$AP$491,MATCH($A$70,[64]Pacajus!$B$2:$B$491,0),MATCH($C100,[64]Pacajus!$B$2:$AP$2,0))*1)*(BB62) -> 30188 | AB100: =(INDEX([64]Pacatuba!$B$2:$AP$491,MATCH($A$70,[64]Pacatuba!$B$2:$B$491,0),MATCH($C100,[64]Pacatuba!$B$2:$AP$2,0))*1)*(BC62) -> 28347 | AC100: =(INDEX([64]Paracuru!$B$2:$AP$491,MATCH($A$70,[64]Paracuru!$B$2:$B$491,0),MATCH($C100,[64]Paracuru!$B$2:$AP$2,0))*1)*(BD62) -> 10800 | AD100: =(INDEX([64]Paraipaba!$B$2:$AP$491,MATCH($A$70,[64]Paraipaba!$B$2:$B$491,0),MATCH($C100,[64]Paraipaba!$B$2:$AP$2,0))*1)*(BE62) -> 6360 | AE100: =(INDEX('[64]São Gonçalo do Amarante'!$B$2:$AP$491,MATCH($A$70,'[64]São Gonçalo do Amarante'!$B$2:$B$491,0),MATCH($C100,'[64]São Gonçalo do Amarante'!$B$2:$AP$2,0))*1)*(BF62) -> 17742 | AF100: =(INDEX('[64]São Luís do Curu'!$B$2:$AP$491,MATCH($A$70,'[64]São Luís do Curu'!$B$2:$B$491,0),MATCH($C100,'[64]São Luís do Curu'!$B$2:$AP$2,0))*1)*(BG62) -> 4015 | AG100: =(INDEX([64]Trairi!$B$2:$AP$491,MATCH($A$70,[64]Trairi!$B$2:$B$491,0),MATCH($C100,[64]Trairi!$B$2:$AP$2,0))*1)*(BH62) -> 8688 | AH100: =(INDEX('[64]Santana do Cariri'!$B$2:$AP$491,MATCH($A$70,'[64]Santana do Cariri'!$B$2:$B$491,0),MATCH($C100,'[64]Santana do Cariri'!$B$2:$AP$2,0))*1)*(BI62) -> 2910
B101: 101 | C101: 2052 | D101: Nº Ligações Totais - esgoto | E101: =SUMIFS($K101:$AH101,$K$18:$AH$18,E$4) -> 511268 | F101: 1154280 | G101: 0 | H101: 0 | I101: 0 | K101: =(INDEX([64]Aquiraz!$B$2:$AP$492,MATCH($A$70,[64]Aquiraz!$B$2:$B$492,0),MATCH($C101,[64]Aquiraz!$B$2:$AP$2,0))*1)*(AL63) -> 15766 | L101: =(INDEX([64]Barbalha!$B$2:$AP$491,MATCH($A$70,[64]Barbalha!$B$2:$B$491,0),MATCH($C101,[64]Barbalha!$B$2:$AP$2,0))*1)*(AM63) -> 18278 | M101: =(INDEX([64]Cascavel!$B$2:$AP$491,MATCH($A$70,[64]Cascavel!$B$2:$B$491,0),MATCH($C101,[64]Cascavel!$B$2:$AP$2,0))*1)*(AN63) -> 24115 | N101: =(INDEX([64]Caucaia!$B$2:$AP$491,MATCH($A$70,[64]Caucaia!$B$2:$B$491,0),MATCH($C101,[64]Caucaia!$B$2:$AP$2,0))*1)*(AO63) -> 149560 | O101: =(INDEX([64]Chorozinho!$B$2:$AP$491,MATCH($A$70,[64]Chorozinho!$B$2:$B$491,0),MATCH($C101,[64]Chorozinho!$B$2:$AP$2,0))*1)*(AP63) -> 7177 | P101: =(INDEX([64]Eusébio!$B$2:$AP$491,MATCH($A$70,[64]Eusébio!$B$2:$B$491,0),MATCH($C101,[64]Eusébio!$B$2:$AP$2,0))*1)*(AQ63) -> 31176 | Q101: =(INDEX('[64]Farias Brito'!$B$2:$AP$491,MATCH($A$70,'[64]Farias Brito'!$B$2:$B$491,0),MATCH($C101,'[64]Farias Brito'!$B$2:$AP$2,0))*1)*(AR63) -> 4003 | R101: =(INDEX([64]Fortaleza!$B$2:$AP$427,MATCH($A$70,[64]Fortaleza!$B$2:$B$427,0),MATCH($C101,[64]Fortaleza!$B$2:$AP$2,0))*1)*(AS63) -> 957303 | S101: =(INDEX([64]Guaiúba!$B$2:$AP$491,MATCH($A$70,[64]Guaiúba!$B$2:$B$491,0),MATCH($C101,[64]Guaiúba!$B$2:$AP$2,0))*1)*(AT63) -> 7067 | T101: =(INDEX([64]Horizonte!$B$2:$AP$491,MATCH($A$70,[64]Horizonte!$B$2:$B$491,0),MATCH($C101,[64]Horizonte!$B$2:$AP$2,0))*1)*(AU63) -> 30616 | U101: =(INDEX([64]Itaitinga!$B$2:$AP$491,MATCH($A$70,[64]Itaitinga!$B$2:$B$491,0),MATCH($C101,[64]Itaitinga!$B$2:$AP$2,0))*1)*(AV63) -> 29517 | V101: =(INDEX('[64]Juazeiro do Norte'!$B$2:$AP$491,MATCH($A$70,'[64]Juazeiro do Norte'!$B$2:$B$491,0),MATCH($C101,'[64]Juazeiro do Norte'!$B$2:$AP$2,0))*1)*(AW63) -> 121300 | W101: =(INDEX([64]Maracanaú!$B$2:$AP$491,MATCH($A$70,[64]Maracanaú!$B$2:$B$491,0),MATCH($C101,[64]Maracanaú!$B$2:$AP$2,0))*1)*(AX63) -> 108539 | X101: =(INDEX([64]Maranguape!$B$2:$AP$491,MATCH($A$70,[64]Maranguape!$B$2:$B$491,0),MATCH($C101,[64]Maranguape!$B$2:$AP$2,0))*1)*(AY63) -> 38269 | Y101: =(INDEX('[64]Missão Velha'!$B$2:$AP$491,MATCH($A$70,'[64]Missão Velha'!$B$2:$B$491,0),MATCH($C101,'[64]Missão Velha'!$B$2:$AP$2,0))*1)*(AZ63) -> 7277 | Z101: =(INDEX('[64]Nova Olinda'!$B$2:$AP$491,MATCH($A$70,'[64]Nova Olinda'!$B$2:$B$491,0),MATCH($C101,'[64]Nova Olinda'!$B$2:$AP$2,0))*1)*(BA63) -> 6976 | AA101: =(INDEX([64]Pacajus!$B$2:$AP$491,MATCH($A$70,[64]Pacajus!$B$2:$B$491,0),MATCH($C101,[64]Pacajus!$B$2:$AP$2,0))*1)*(BB63) -> 30044 | AB101: =(INDEX([64]Pacatuba!$B$2:$AP$491,MATCH($A$70,[64]Pacatuba!$B$2:$B$491,0),MATCH($C101,[64]Pacatuba!$B$2:$AP$2,0))*1)*(BC63) -> 28239 | AC101: =(INDEX([64]Paracuru!$B$2:$AP$491,MATCH($A$70,[64]Paracuru!$B$2:$B$491,0),MATCH($C101,[64]Paracuru!$B$2:$AP$2,0))*1)*(BD63) -> 10757 | AD101: =(INDEX([64]Paraipaba!$B$2:$AP$491,MATCH($A$70,[64]Paraipaba!$B$2:$B$491,0),MATCH($C101,[64]Paraipaba!$B$2:$AP$2,0))*1)*(BE63) -> 6344 | AE101: =(INDEX('[64]São Gonçalo do Amarante'!$B$2:$AP$491,MATCH($A$70,'[64]São Gonçalo do Amarante'!$B$2:$B$491,0),MATCH($C101,'[64]São Gonçalo do Amarante'!$B$2:$AP$2,0))*1)*(BF63) -> 17671 | AF101: =(INDEX('[64]São Luís do Curu'!$B$2:$AP$491,MATCH($A$70,'[64]São Luís do Curu'!$B$2:$B$491,0),MATCH($C101,'[64]São Luís do Curu'!$B$2:$AP$2,0))*1)*(BG63) -> 4008 | AG101: =(INDEX([64]Trairi!$B$2:$AP$491,MATCH($A$70,[64]Trairi!$B$2:$B$491,0),MATCH($C101,[64]Trairi!$B$2:$AP$2,0))*1)*(BH63) -> 8637 | AH101: =(INDEX('[64]Santana do Cariri'!$B$2:$AP$491,MATCH($A$70,'[64]Santana do Cariri'!$B$2:$B$491,0),MATCH($C101,'[64]Santana do Cariri'!$B$2:$AP$2,0))*1)*(BI63) -> 2909
B102: 102 | C102: 2053 | D102: Nº Ligações Totais - esgoto | E102: 0 | F102: 0 | G102: 0 | H102: 0 | I102: 0 | K102: =(INDEX([64]Aquiraz!$B$2:$AP$492,MATCH($A$70,[64]Aquiraz!$B$2:$B$492,0),MATCH($C102,[64]Aquiraz!$B$2:$AP$2,0))*1)*(AL64) -> 0 | L102: =(INDEX([64]Barbalha!$B$2:$AP$491,MATCH($A$70,[64]Barbalha!$B$2:$B$491,0),MATCH($C102,[64]Barbalha!$B$2:$AP$2,0))*1)*(AM64) -> 0 | M102: =(INDEX([64]Cascavel!$B$2:$AP$491,MATCH($A$70,[64]Cascavel!$B$2:$B$491,0),MATCH($C102,[64]Cascavel!$B$2:$AP$2,0))*1)*(AN64) -> 0 | N102: =(INDEX([64]Caucaia!$B$2:$AP$491,MATCH($A$70,[64]Caucaia!$B$2:$B$491,0),MATCH($C102,[64]Caucaia!$B$2:$AP$2,0))*1)*(AO64) -> 0 | O102: =(INDEX([64]Chorozinho!$B$2:$AP$491,MATCH($A$70,[64]Chorozinho!$B$2:$B$491,0),MATCH($C102,[64]Chorozinho!$B$2:$AP$2,0))*1)*(AP64) -> 0 | P102: =(INDEX([64]Eusébio!$B$2:$AP$491,MATCH($A$70,[64]Eusébio!$B$2:$B$491,0),MATCH($C102,[64]Eusébio!$B$2:$AP$2,0))*1)*(AQ64) -> 0 | Q102: =(INDEX('[64]Farias Brito'!$B$2:$AP$491,MATCH($A$70,'[64]Farias Brito'!$B$2:$B$491,0),MATCH($C102,'[64]Farias Brito'!$B$2:$AP$2,0))*1)*(AR64) -> 0 | R102: =(INDEX([64]Fortaleza!$B$2:$AP$427,MATCH($A$70,[64]Fortaleza!$B$2:$B$427,0),MATCH($C102,[64]Fortaleza!$B$2:$AP$2,0))*1)*(AS64) -> 0 | S102: =(INDEX([64]Guaiúba!$B$2:$AP$491,MATCH($A$70,[64]Guaiúba!$B$2:$B$491,0),MATCH($C102,[64]Guaiúba!$B$2:$AP$2,0))*1)*(AT64) -> 0 | T102: =(INDEX([64]Horizonte!$B$2:$AP$491,MATCH($A$70,[64]Horizonte!$B$2:$B$491,0),MATCH($C102,[64]Horizonte!$B$2:$AP$2,0))*1)*(AU64) -> 0 | U102: =(INDEX([64]Itaitinga!$B$2:$AP$491,MATCH($A$70,[64]Itaitinga!$B$2:$B$491,0),MATCH($C102,[64]Itaitinga!$B$2:$AP$2,0))*1)*(AV64) -> 0 | V102: =(INDEX('[64]Juazeiro do Norte'!$B$2:$AP$491,MATCH($A$70,'[64]Juazeiro do Norte'!$B$2:$B$491,0),MATCH($C102,'[64]Juazeiro do Norte'!$B$2:$AP$2,0))*1)*(AW64) -> 0 | W102: =(INDEX([64]Maracanaú!$B$2:$AP$491,MATCH($A$70,[64]Maracanaú!$B$2:$B$491,0),MATCH($C102,[64]Maracanaú!$B$2:$AP$2,0))*1)*(AX64) -> 0 | X102: =(INDEX([64]Maranguape!$B$2:$AP$491,MATCH($A$70,[64]Maranguape!$B$2:$B$491,0),MATCH($C102,[64]Maranguape!$B$2:$AP$2,0))*1)*(AY64) -> 0 | Y102: =(INDEX('[64]Missão Velha'!$B$2:$AP$491,MATCH($A$70,'[64]Missão Velha'!$B$2:$B$491,0),MATCH($C102,'[64]Missão Velha'!$B$2:$AP$2,0))*1)*(AZ64) -> 0 | Z102: =(INDEX('[64]Nova Olinda'!$B$2:$AP$491,MATCH($A$70,'[64]Nova Olinda'!$B$2:$B$491,0),MATCH($C102,'[64]Nova Olinda'!$B$2:$AP$2,0))*1)*(BA64) -> 0 | AA102: =(INDEX([64]Pacajus!$B$2:$AP$491,MATCH($A$70,[64]Pacajus!$B$2:$B$491,0),MATCH($C102,[64]Pacajus!$B$2:$AP$2,0))*1)*(BB64) -> 0 | AB102: =(INDEX([64]Pacatuba!$B$2:$AP$491,MATCH($A$70,[64]Pacatuba!$B$2:$B$491,0),MATCH($C102,[64]Pacatuba!$B$2:$AP$2,0))*1)*(BC64) -> 0 | AC102: =(INDEX([64]Paracuru!$B$2:$AP$491,MATCH($A$70,[64]Paracuru!$B$2:$B$491,0),MATCH($C102,[64]Paracuru!$B$2:$AP$2,0))*1)*(BD64) -> 0 | AD102: =(INDEX([64]Paraipaba!$B$2:$AP$491,MATCH($A$70,[64]Paraipaba!$B$2:$B$491,0),MATCH($C102,[64]Paraipaba!$B$2:$AP$2,0))*1)*(BE64) -> 0 | AE102: =(INDEX('[64]São Gonçalo do Amarante'!$B$2:$AP$491,MATCH($A$70,'[64]São Gonçalo do Amarante'!$B$2:$B$491,0),MATCH($C102,'[64]São Gonçalo do Amarante'!$B$2:$AP$2,0))*1)*(BF64) -> 0 | AF102: =(INDEX('[64]São Luís do Curu'!$B$2:$AP$491,MATCH($A$70,'[64]São Luís do Curu'!$B$2:$B$491,0),MATCH($C102,'[64]São Luís do Curu'!$B$2:$AP$2,0))*1)*(BG64) -> 0 | AG102: =(INDEX([64]Trairi!$B$2:$AP$491,MATCH($A$70,[64]Trairi!$B$2:$B$491,0),MATCH($C102,[64]Trairi!$B$2:$AP$2,0))*1)*(BH64) -> 0 | AH102: =(INDEX('[64]Santana do Cariri'!$B$2:$AP$491,MATCH($A$70,'[64]Santana do Cariri'!$B$2:$B$491,0),MATCH($C102,'[64]Santana do Cariri'!$B$2:$AP$2,0))*1)*(BI64) -> 0
B103: 103 | C103: 2054 | D103: Nº Ligações Totais - esgoto | E103: 0 | F103: 0 | G103: 0 | H103: 0 | I103: 0 | K103: =(INDEX([64]Aquiraz!$B$2:$AP$492,MATCH($A$70,[64]Aquiraz!$B$2:$B$492,0),MATCH($C103,[64]Aquiraz!$B$2:$AP$2,0))*1)*(AL65) -> 0 | L103: =(INDEX([64]Barbalha!$B$2:$AP$491,MATCH($A$70,[64]Barbalha!$B$2:$B$491,0),MATCH($C103,[64]Barbalha!$B$2:$AP$2,0))*1)*(AM65) -> 0 | M103: =(INDEX([64]Cascavel!$B$2:$AP$491,MATCH($A$70,[64]Cascavel!$B$2:$B$491,0),MATCH($C103,[64]Cascavel!$B$2:$AP$2,0))*1)*(AN65) -> 0 | N103: =(INDEX([64]Caucaia!$B$2:$AP$491,MATCH($A$70,[64]Caucaia!$B$2:$B$491,0),MATCH($C103,[64]Caucaia!$B$2:$AP$2,0))*1)*(AO65) -> 0 | O103: =(INDEX([64]Chorozinho!$B$2:$AP$491,MATCH($A$70,[64]Chorozinho!$B$2:$B$491,0),MATCH($C103,[64]Chorozinho!$B$2:$AP$2,0))*1)*(AP65) -> 0 | P103: =(INDEX([64]Eusébio!$B$2:$AP$491,MATCH($A$70,[64]Eusébio!$B$2:$B$491,0),MATCH($C103,[64]Eusébio!$B$2:$AP$2,0))*1)*(AQ65) -> 0 | Q103: =(INDEX('[64]Farias Brito'!$B$2:$AP$491,MATCH($A$70,'[64]Farias Brito'!$B$2:$B$491,0),MATCH($C103,'[64]Farias Brito'!$B$2:$AP$2,0))*1)*(AR65) -> 0 | R103: =(INDEX([64]Fortaleza!$B$2:$AP$427,MATCH($A$70,[64]Fortaleza!$B$2:$B$427,0),MATCH($C103,[64]Fortaleza!$B$2:$AP$2,0))*1)*(AS65) -> 0 | S103: =(INDEX([64]Guaiúba!$B$2:$AP$491,MATCH($A$70,[64]Guaiúba!$B$2:$B$491,0),MATCH($C103,[64]Guaiúba!$B$2:$AP$2,0))*1)*(AT65) -> 0 | T103: =(INDEX([64]Horizonte!$B$2:$AP$491,MATCH($A$70,[64]Horizonte!$B$2:$B$491,0),MATCH($C103,[64]Horizonte!$B$2:$AP$2,0))*1)*(AU65) -> 0 | U103: =(INDEX([64]Itaitinga!$B$2:$AP$491,MATCH($A$70,[64]Itaitinga!$B$2:$B$491,0),MATCH($C103,[64]Itaitinga!$B$2:$AP$2,0))*1)*(AV65) -> 0 | V103: =(INDEX('[64]Juazeiro do Norte'!$B$2:$AP$491,MATCH($A$70,'[64]Juazeiro do Norte'!$B$2:$B$491,0),MATCH($C103,'[64]Juazeiro do Norte'!$B$2:$AP$2,0))*1)*(AW65) -> 0 | W103: =(INDEX([64]Maracanaú!$B$2:$AP$491,MATCH($A$70,[64]Maracanaú!$B$2:$B$491,0),MATCH($C103,[64]Maracanaú!$B$2:$AP$2,0))*1)*(AX65) -> 0 | X103: =(INDEX([64]Maranguape!$B$2:$AP$491,MATCH($A$70,[64]Maranguape!$B$2:$B$491,0),MATCH($C103,[64]Maranguape!$B$2:$AP$2,0))*1)*(AY65) -> 0 | Y103: =(INDEX('[64]Missão Velha'!$B$2:$AP$491,MATCH($A$70,'[64]Missão Velha'!$B$2:$B$491,0),MATCH($C103,'[64]Missão Velha'!$B$2:$AP$2,0))*1)*(AZ65) -> 0 | Z103: =(INDEX('[64]Nova Olinda'!$B$2:$AP$491,MATCH($A$70,'[64]Nova Olinda'!$B$2:$B$491,0),MATCH($C103,'[64]Nova Olinda'!$B$2:$AP$2,0))*1)*(BA65) -> 0 | AA103: =(INDEX([64]Pacajus!$B$2:$AP$491,MATCH($A$70,[64]Pacajus!$B$2:$B$491,0),MATCH($C103,[64]Pacajus!$B$2:$AP$2,0))*1)*(BB65) -> 0 | AB103: =(INDEX([64]Pacatuba!$B$2:$AP$491,MATCH($A$70,[64]Pacatuba!$B$2:$B$491,0),MATCH($C103,[64]Pacatuba!$B$2:$AP$2,0))*1)*(BC65) -> 0 | AC103: =(INDEX([64]Paracuru!$B$2:$AP$491,MATCH($A$70,[64]Paracuru!$B$2:$B$491,0),MATCH($C103,[64]Paracuru!$B$2:$AP$2,0))*1)*(BD65) -> 0 | AD103: =(INDEX([64]Paraipaba!$B$2:$AP$491,MATCH($A$70,[64]Paraipaba!$B$2:$B$491,0),MATCH($C103,[64]Paraipaba!$B$2:$AP$2,0))*1)*(BE65) -> 0 | AE103: =(INDEX('[64]São Gonçalo do Amarante'!$B$2:$AP$491,MATCH($A$70,'[64]São Gonçalo do Amarante'!$B$2:$B$491,0),MATCH($C103,'[64]São Gonçalo do Amarante'!$B$2:$AP$2,0))*1)*(BF65) -> 0 | AF103: =(INDEX('[64]São Luís do Curu'!$B$2:$AP$491,MATCH($A$70,'[64]São Luís do Curu'!$B$2:$B$491,0),MATCH($C103,'[64]São Luís do Curu'!$B$2:$AP$2,0))*1)*(BG65) -> 0 | AG103: =(INDEX([64]Trairi!$B$2:$AP$491,MATCH($A$70,[64]Trairi!$B$2:$B$491,0),MATCH($C103,[64]Trairi!$B$2:$AP$2,0))*1)*(BH65) -> 0 | AH103: =(INDEX('[64]Santana do Cariri'!$B$2:$AP$491,MATCH($A$70,'[64]Santana do Cariri'!$B$2:$B$491,0),MATCH($C103,'[64]Santana do Cariri'!$B$2:$AP$2,0))*1)*(BI65) -> 0
